Workbook

Sheet PRESENTACION

Sheet SINOPSIS - ÍNDICE DE CUADROS

Sheet SINOPSIS - ÍNDICE DE GRÁFICOS

Sheet ACLARACIONES AL LECTOR
A3: El lector deberá tener presente que la actualización permanente de la documentación publicada, puede traer como consecuencia diferencias entre los datos incluidos en las versiones PDF y EXCEL de cada Anuario.

Sheet Indicadores Escogidos
A1: Ministerio de Educación y Cultura Dirección de Educación
A3: Cuadro I-0.0.0 INDICADORES ESCOGIDOS
A4: INICIAL
A5: Cantidad de Estableciminetos de Educación Inicial (Supervisados por CEIP, públicos y privados) | D5: 252
A6: Cantidad de Centros CAIF[1] | D6: 333
A7: Cantidad de Centros Educativos en la Primera Infancia (RNG) | D7: 478
A8: Cantidad de alumnos en Educación Inicial (Supervisados por CEIP) | D8: 108244
A9: Cantidad de alumnos en Primera Infancia | D9: 45237
A10: Cantidad de alumnos en Centros Educativos en la Primera Infancia (RNG) | D10: 20007
A11: EDUCACIÓN PRIMARIA
A12: Cantidad de establecimientos | D12: 2541
A13: Cantidad de alumnos | D13: 308550
A14: % de alumnos de educación pública | D14: 83.4
A15: % de alumnos de educación pública en Montevideo | D15: 72.1
A16: % de alumnos de educación pública en el Resto del País | D16: 90.5
A17: % de alumnos de educación pública Urbana | D17: 93.9
A18: Razón Público/Privado en Educación Primaria | D18: 5.3
A19: % de alumnos que no aprobaron en 1ero | D19: 14.1
A20: % de alumnos que no aprobaron de 1ero a 6to | D20: 6.1
A21: % de alumnos que no aprobaron de 1ero a 6to en escuelas rurales | D21: 0
A22: % de alumnos que no aprobaron de 1ero a 6to en escuelas urbanas | D22: 6.1
A23: % de personas de 14 a 15 que culminaron primaria | D23: 95.6
A24: % de personas de 15 a 20 que no culminaron educación media básica, no estudian, no trabajan ni buscan trabajo | D24: 9.1
A25: EDUCACIÓN MEDIA
A26: Cantidad de establecimientos dependientes del CES | D26: 386
A27: Cantidad de establecimientos dependientes del CETP (UTU) | D27: 133
A28: % de establecimientos dependientes del CES en Montevideo | D28: 37
A29: % de establecimientos dependientes del CETP (UTU) en Montevideo | D29: 22.5
A30: Cantidad de alumnos en Educación Media Básica | D30: 182175
A31: Cantidad de alumnos en Educación Media Superior | D31: 149484
A32: Razón Público/Privado en Educación Media Básica[2] | D32: 5.2
A33: Razón Público/Privado en Educación Media Superior | D33: 5.9
A34: % de no aprobación de 1º a 3º año diurno público en Educación Media Básica General | D34: 30
A35: % de desvinculación de 1º a 3º año diurno público en Educación Media Básica General | D35: 3.4
A36: % de personas de 17 a 18 años que culminaron ciclo básico | D36: 65
A37: % de personas de 21 a 22 años que culminaron segundo ciclo | D37: 37.5
A38: EDUCACIÓN TERCIARIA
A39: Cantidad de matriculados en cursos de grado en universidades e institutos universitarios | D39: 132420
A40: Cantidad de matriculados en ofertas terciarias de Formación Docente | D40: 20995
A41: Cantidad de matriculados en ofertas terciarias del Ministerio del Interior y del Ministerio de Defensa Nacional | D41: 470
A42: Cantidad de ingresos en cursos de grado en universidades e institutos universitarios | D42: 22945
A43: Cantidad de egresos en cursos de grado en universidades e institutos universitarios | D43: 6476
A44: LOGRO EDUCATIVO Y ASISTENCIA
A45: % personas de 25 años o más con primaria completa o menos como nivel máximo alcanzado | D45: 41
A46: % personas de 25 a 29 años con primaria completa o menos como nivel máximo alcanzado | D46: 19
A47: Tasa de analfabetismo (Uruguay) | D47: 2
A48: Tasa de analfabetismo (MERCOSUR) | D48: 7.8
A49: Tasa de analfabetismo (UNASUR) | D49: 8.3
A50: % de jóvenes de 15 a 20 años que no asiste a ningún establecimiento, no trabaja, ni busca trabajo | D50: 13
A51: CONTEXTO DE LA EDUCACIÓN
A52: Cantidad de alumnos atendidos por el Programa Maestros Comunitarios | D52: 15680
A53: Cantidad de alumnos atendidos por los CECAP’s | D53: 2060
A54: Alumnos atendidos por el Programa de Educación Física Escolar | D54: 306318
A55: Razón alumnos/docente en el Programa Maestros Comunitarios | D55: 28.3
A56: Razón alumnos/educadores en los CECAP’s | D56: 10.6
A57: Razón alumnos/docente en el Programa de Educación Física Escolar | D57: 313.5
A58: GASTO
A59: Gasto público en educación como porcentaje de gasto del Gobierno Central | D59: 20
A60: Gasto público en educación como % del PBI (Uruguay) | D60: 4.5
A62: Notas: CAIF incluye Centros Diurnos, y sólo en Montevideo, el Proyecto Nuestros Niños de la IMM. La relación matriculados en educación pública, matriculados en educación privada, se realiza sin incorporar en el sector público la matrícula del CETP (UTU), por no contar con información sobre la matrícula técnico-vocacional en educación media del sector privado.

Sheet I-1.1.1
A1: Ministerio de Educación y Cultura Dirección de Educación
A3: Cuadro I-1.1.1 UNIVERSO CUBIERTO POR EL ANUARIO ESTADÍSTICO DE EDUCACIÓN 2011 POR FORMA DE ADMINISTRACIÓN, MATRÍCULA Y FUENTE DE INFORMACIÓN SEGÚN TIPO DE OFERTA Y NIVEL EDUCATIVO
A4: Nivel (Edad teórica) | C4: Descripción (Oferta por forma de administración) | E4: Matricula 2011 | F4: Fuentes de información
A5: EDUCACIÓN EN LA PRIMERA INFANCIA 0 a 3 años | C5: PÚBLICO: centros de educación infantil gestionados por organismos públicos (por ej centros de INAU o intendencias). | E5: 47845 | F5: · Área de Educación en la Primera Infancia y Área de Investigación y Estadística de la Dirección de Educación del Ministerio de Educación y Cultura – Registro Nacional de Centros de Educación en la Primera Infancia; · Sistema de Información Para la Infancia (SIPI) de INAU; · I Montevideo (Programa Nuestros Niños).
C6: PRIVADO: Centros de Educación Infantil Privados bajo supervisión del MEC En todos los casos la matrícula reportada excluye a los niños matriculados en centros que ya han sido habilitados por ANEP.
C7: PÚBLICO/PRIVADO: CAIF (modalidad diaria)
A8: EDUCACIÓN INICIAL 3 a 5 años (4 y 5 años obligatorio) | C8: PUBLICO:Esta.del Consejo de Educación Inicial y Primaria (CEIP) Jardines y clases jardineras en escuelas de educación común. | E8: 108244 | F8: · Área de Educación en la Primera Infancia, AIEde la Dir. de Edu. del MEC; · Depto. de Estadística Educativa del CEIP; · SIPI de INAU.
C9: PRIVADO: jardines de infantes privados, jardines en colegios privados y clases jardineras en colegios privados (bajo supervisión de ANEP).
A10: EDUCACIÓN PRIMARIA 6 a 11 años (obligatorio) | C10: PUBLICO: Establecimientos del Consejo de Educación Inicial y Primaria. | E10: 337762 | F10: · Departamento de Estadística Educativa del CEIP.
C11: PRIVADO: Establecimientos privados bajo supervisión de ANEP.
A12: EDUCACIÓN MEDIA BÁSICA 12 a 14 años | C12: PUBLICO: establecimientos del Consejo de Educación Secundaria, del Consejo de Educación Técnico Profesional y del Ciclo Básico Rural (7º, 8º y 9º) | D12: MEDIA BÁSICA 12 a 14 años (obligatorio) | E12: 182175 | F12: · Departamento de Estadística del CES (oficiales, habilitados privados y habilitados militares); · Departamento de Estadística del CETP.
C13: PRIVADO: liceos habilitados privados bajo supervisión de ANEP.
A14: EDUCACIÓN MEDIA SUPERIOR 15 a 17 años | C14: PUBLICO: establecimientos del Consejo de Educación Secundaria, del Consejo de Educación Técnico Profesional y los Habilitados Liceo Militar y Escuela Naval. | D14: MEDIA SUPERIOR 15 a 17 años | E14: 149484 | F14: · Departamento de estadística del CEIP (para 7º, 8º y 9º) a través de planillas estadísticas
C15: PRIVADO: liceos habilitados privados bajo supervisión de ANEP.
A16: EDUCACIÓN TÉCNICO-PROFESIONAL DE INSERCIÓN LABORAL | C16: PUBLICO: establecimientos del Consejo de Educación Técnico Profesional. | D16: TÉCNICO-PROFESIONAL DE INSERCIÓN LABORAL 15 y más años | E16: 7546 | F16: · Departamento de Estadística del CETP.
A17: EDUCACIÓN TERCIARIA | C17: PÚBLICOS: Inst. Terc. Univ. y No Univ. (UdelaR; CFE, ISEF, Esc. Mun. de Arte Dramático, Cen. de Form. del INAU, Esc. Nacional de Policía, Esc. Militar, Esc. Militar de Aeronáutica y Esc. Naval). | E17: 129943 | F17: · Div. de Estadística de la DGP de la UdelaR; · Of. de información para la Gestión delCFE de ANEP Unidades de planeamiento y/o asuntos estudiantiles de univ. e inst. univ. y no univ. públicos y privados.
C18: PRIVADOS: Univ. e Inst. Univ. Privados (UC, ORT, de Montevideo, de la Empresa; Autónomo del Sur, Asociación Cristiana de Jóvenes, CLAEH, Crandon, BIOS, Mariano Soler); CIEP.
A19: EDUCACIÓN FORMAL DE JÓVENES Y ADULTOS | C19: Dirección Sectorial de Educación de Jóvenes y Adultos de la ANEP (Niveles I y II y Acreditación). | E19: 4227 | F19: · Dirección Sectorial de Educación de Jóvenes y Adultos de la ANEP.
A20: EDUCACIÓN NO FORMAL | C20: Centros de Capacitación y Producción (CECAP) y Consejo De Capacitación Profesional (COCAP) del MEC. | E20: 2893 | F20: · Departamento de Estadística del CETP; · Área de Educación No Formal de la Dirección de Educación del MEC; · Gerencia de Programas Especiales de CODICEN; · Oficina Nacional del Servicio Civil; e · Oficinas productoras de las instituciones universitarias
C21: Dir. Sectorial de Edu.de Jóvenes y Adultos de la ANEP (Talleres). | E21: 4092
C22: Escuela de Funcionarios Públicos de la ONSC. | E22: 4637
C23: Educación no terciaria en universidades e instituciones universitarias privadas. | E23: 4311
A25: Nota:La matrícula de Educación Primaria incluye 1.041 alumnos que Acreditaron Primaria en la Dirección Sectorial de EJA de la ANEP. Educación en la primera infancia de 0 a 3 años: Esta definición etaria responde a la lógica de los hechos: prácticamente la mitad de los niños atendidos en Centros de Educación Infantil Privados tienen 3 años (también existe una porción minoritaria de niños de 4 y 5 años) En términos teóricos, este nivel atendería a niños de 0 a 36 meses (o hasta 2 años cumplidos y 11 meses) Algo similar sucede en el caso del nivel “Educación Inicial”, donde la enorme mayoría de los niños tienen 4 o 5 años y cuya definición teórica apuntaría a aquellos de 3, 4 y 5. Media Básica incluye Ciclo Básico Rural, Educación Media Básica General (CEM) y Educación Media Tecnológica Básica (CETP); y Media Superior incluye Ciclo Superior de Secundaria, Bachillerato Tecnológico y Educación Media Tecnológica, Otros Cursos de Educación Técnica, incluyen a los demás cursos de las ofertas de Nivel I y II del CETP.

Sheet I-1.2.1
A1: Ministerio de Educación y Cultura Dirección de Educación
A3: Cuadro I-1.2.1
A4: TASA DE ANALFABETISMO Y PORCENTAJE DE POBLACIÓN POR ÁREA DEMOGRÁFICA SEGÚN AÑO
A5: AÑO LECTIVO | B5: Fuente | C5: TASA | E5: % de población rural | F5: % de analfabetos rurales sobre total país
C6: Total del país | D6: Área Rural
A7: 1963 | B7: CENSO | C7: 8.8 | D7: 15.4 | E7: 19.2 | F7: 2.96
A8: 1975 | B8: CENSO | C8: 5.7 | D8: 10.3 | E8: 17 | F8: 1.75
A9: 1985 | B9: CENSO | C9: 4.3 | D9: 8.4 | E9: 12.7 | F9: 1.06
A10: 1996 | B10: CENSO | C10: 3.1 | D10: 6.2 | E10: 9.2 | F10: 0.57
A11: 2006 | B11: ENHA | C11: 2.2 | D11: 3 | E11: 6.4 | F11: 0.19
A12: 2007 | B12: ECH | C12: 2.1 | D12: 3.4 | E12: 6.6 | F12: 0.21
A13: 2008 | B13: ECH | C13: 1.9 | D13: 3.1 | E13: 6.2 | F13: 0.19
A14: 2009 | B14: ECH | C14: 1.8 | D14: 3.4 | E14: 7.9 | F14: 0.27
A15: 2010 | B15: ECH | C15: 2 | D15: 3.2 | E15: 5.8 | F15: 0.19
A16: 2011 | B16: ECH | C16: 1.7 | D16: 3.4 | E16: 8.58 | F16: 0.29

Sheet I-1.2.2
A1: Ministerio de Educación y Cultura Dirección de Educación
A3: Cuadro I-1.2.2
A4: TASA DE ANALFABETISMO SEGÚN TRAMOS DE EDAD.
A5: TASA DE ANALFABETISMO | C5: TRAMOS DE EDAD
C6: TOTAL | D6: 15 a 20 años | E6: 21 a 39 años | F6: 40 a 49 años | G6: 50 a 59 años | H6: 60 a 64 años | I6: 65 y más años
A7: 2006 | C7: 2.2 | D7: 1.2 | E7: 1.4 | F7: 1.4 | G7: 2.1 | H7: 2.6 | I7: 4.7
A8: 2007 | C8: 2.1 | D8: 1.2 | E8: 1.3 | F8: 1.5 | G8: 1.8 | H8: 2.3 | I8: 4.7
A9: 2008 | C9: 1.9 | D9: 0.9 | E9: 1.3 | F9: 1.3 | G9: 1.9 | H9: 2 | I9: 4
A10: 2009 | C10: 1.8 | D10: 1 | E10: 1.1 | F10: 1.1 | G10: 1.5 | H10: 2.3 | I10: 4.2
A11: 2010 | C11: 2 | D11: 1.2 | E11: 1.3 | F11: 1.3 | G11: 1.8 | H11: 2.1 | I11: 4.5
A12: 2011 | C12: 1.7 | D12: 1.3 | E12: 1.1 | F12: 1.2 | G12: 1.6 | H12: 1.8 | I12: 3.6
A14: Fuentes: Elaboración propia en base a la Encuesta Continua de Hogares 2011. Nota: Población con 15 y más años para todo el país (Año 2006-2011)

Sheet I-1.2.3
A1: Ministerio de Educación y Cultura Dirección de Educación
A3: Cuadro I-1.2.3 ASISTENCIA A ALGÚN ESTABLECIMIENTO EDUCATIVO POR EDADES SIMPLES SEGÚN GRANDES ÁREAS Y AÑO LECTIVO.
A4: EDADES SIMPLES | B4: GRANDES ÁREAS
B5: MONTEVIDEO | H5: RESTO DEL PAÍS
B6: 2006 | C6: 2007 | D6: 2008 | E6: 2009 | F6: 2010 | G6: 2011 | H6: 2006 | I6: 2007 | J6: 2008 | K6: 2009 | L6: 2010 | M6: 2011
A7: 3 | B7: 53.7 | C7: 59.6 | D7: 61.5 | E7: 67.2 | F7: 72.2 | G7: 64.7 | H7: 41.9 | I7: 43.3 | J7: 42.8 | K7: 52.5 | L7: 58 | M7: 57.8
A8: 4 | B8: 79.4 | C8: 82.5 | D8: 86.5 | E8: 86.5 | F8: 89 | G8: 87.1 | H8: 74.8 | I8: 76.9 | J8: 78 | K8: 86.7 | L8: 86.3 | M8: 85.5
A9: 5 | B9: 95.8 | C9: 94.5 | D9: 96.5 | E9: 95.5 | F9: 95.6 | G9: 93.3 | H9: 94.8 | I9: 94.8 | J9: 96.3 | K9: 98.4 | L9: 98.4 | M9: 98
A10: 6 | B10: 99.1 | C10: 99.1 | D10: 99.1 | E10: 98.6 | F10: 99 | G10: 97.6 | H10: 99.4 | I10: 99.5 | J10: 98.9 | K10: 99.1 | L10: 99.5 | M10: 98.3
A11: 7 | B11: 99.5 | C11: 99.1 | D11: 98.9 | E11: 98.5 | F11: 98.4 | G11: 97.1 | H11: 99.6 | I11: 99.8 | J11: 99.2 | K11: 98.9 | L11: 99.2 | M11: 99.3
A12: 8 | B12: 99.7 | C12: 99.6 | D12: 99 | E12: 97.9 | F12: 99.2 | G12: 98.8 | H12: 99.8 | I12: 99.7 | J12: 99.1 | K12: 99.3 | L12: 98.4 | M12: 98.9
A13: 9 | B13: 99.8 | C13: 100 | D13: 99.4 | E13: 99.4 | F13: 98.5 | G13: 98.5 | H13: 99.8 | I13: 99.9 | J13: 99.2 | K13: 98.5 | L13: 99.6 | M13: 98.4
A14: 10 | B14: 99.6 | C14: 99.8 | D14: 98.8 | E14: 99.2 | F14: 99.3 | G14: 98.4 | H14: 99.6 | I14: 99.8 | J14: 99.3 | K14: 98.8 | L14: 99.3 | M14: 98.5
A15: 11 | B15: 99.6 | C15: 99.9 | D15: 98.9 | E15: 99.3 | F15: 98.2 | G15: 97.3 | H15: 99.5 | I15: 99.8 | J15: 99.1 | K15: 98.8 | L15: 98.8 | M15: 97.7
A16: 12 | B16: 99.1 | C16: 99.2 | D16: 98.1 | E16: 98.5 | F16: 97.9 | G16: 97.5 | H16: 98.2 | I16: 98.5 | J16: 97.1 | K16: 97.7 | L16: 98.7 | M16: 97.8
A17: 13 | B17: 96.8 | C17: 96.5 | D17: 96.2 | E17: 96.7 | F17: 96.9 | G17: 97.5 | H17: 94.4 | I17: 94.2 | J17: 93.4 | K17: 93.4 | L17: 95.4 | M17: 95.3
A18: 14 | B18: 93.3 | C18: 90.7 | D18: 92.8 | E18: 93.5 | F18: 93.6 | G18: 94.8 | H18: 88.4 | I18: 87.7 | J18: 88.1 | K18: 89.7 | L18: 91.7 | M18: 91.3
A19: 15 | B19: 86.1 | C19: 85.5 | D19: 87.3 | E19: 88.6 | F19: 85.9 | G19: 89.2 | H19: 79.7 | I19: 80.2 | J19: 79.9 | K19: 80.9 | L19: 81.3 | M19: 83.1
A20: 16 | B20: 79.1 | C20: 80.3 | D20: 79.1 | E20: 81.8 | F20: 82.1 | G20: 81.2 | H20: 75.1 | I20: 71.5 | J20: 69.9 | K20: 75.3 | L20: 77.2 | M20: 75.8
A21: 17 | B21: 72.9 | C21: 70.4 | D21: 74.1 | E21: 74.8 | F21: 70.9 | G21: 73 | H21: 63 | I21: 62.5 | J21: 63.6 | K21: 67.4 | L21: 64.8 | M21: 65.8
A22: 18 | B22: 62.7 | C22: 60.5 | D22: 57.6 | E22: 60.9 | F22: 56.8 | G22: 57 | H22: 49.6 | I22: 48.9 | J22: 49.7 | K22: 48.5 | L22: 45.6 | M22: 44.8
A23: 19 | B23: 55.1 | C23: 56.9 | D23: 54.2 | E23: 51 | F23: 52.6 | G23: 53.1 | H23: 41.8 | I23: 38.9 | J23: 39.1 | K23: 40.5 | L23: 39.4 | M23: 40.2
A24: 20 | B24: 51.3 | C24: 49.2 | D24: 51.5 | E24: 50.8 | F24: 50.5 | G24: 50.1 | H24: 33.1 | I24: 32.7 | J24: 35.2 | K24: 34 | L24: 34.8 | M24: 32.3
A25: 21 | B25: 47.9 | C25: 49.1 | D25: 48.5 | E25: 52 | F25: 48.6 | G25: 48.7 | H25: 25.9 | I25: 27.9 | J25: 31.2 | K25: 26.6 | L25: 28.9 | M25: 27.4
A26: 22 | B26: 46 | C26: 42.6 | D26: 45.9 | E26: 42 | F26: 44.2 | G26: 49.9 | H26: 24.5 | I26: 23 | J26: 23 | K26: 24.5 | L26: 23.7 | M26: 26
A28: Fuentes:Elaboración propia en base a ECH 2006 y ECH de 2007 a 2011 del INE. Nota:Todo el país (Años 2006 a 2011)

Sheet I-1.2.4.
A1: Ministerio de Educación y Cultura Dirección de Educación
A3: Cuadro I-1.2.4 ASISTENCIA A ALGÚN ESTABLECIMIENTO EDUCATIVO POR EDADES SIMPLES SEGÚN AÑO LECTIVO Y PERTENENCIA DE LOS HOGARES A LOS QUINTILES EXTREMOS DE INGRESOS
A4: AÑO LECTIVO | C4: EDADES SIMPLES
C5: 12 | D5: 13 | E5: 14
A6: 1er Quintil
A7: 2006 | C7: 97.5 | D7: 93 | E7: 83.7
A8: 2007 | C8: 98.5 | D8: 92.6 | E8: 81.9
A9: 2008 | C9: 96.9 | D9: 90.2 | E9: 81.8
A10: 2009 | C10: 97.5 | D10: 91.2 | E10: 83.5
A11: 2010 | C11: 97.8 | D11: 92.6 | E11: 83.7
A12: 2011 | C12: 97.5 | D12: 93.7 | E12: 86.9
A13: Quintil Mayor
A14: 2006 | C14: 100 | D14: 99.2 | E14: 99.3
A15: 2007 | C15: 99.1 | D15: 100 | E15: 100
A16: 2008 | C16: 98.3 | D16: 98.1 | E16: 99.3
A17: 2009 | C17: 98 | D17: 94.5 | E17: 91
A18: 2010 | C18: 99.3 | D18: 99.2 | E18: 99.5
A19: 2011 | C19: 97.9 | D19: 99.5 | E19: 100
A20: Fuentes:Elaboración propia en base a la ENHA 2006 y a las ECH 2007 a 2011. Nota:Todo el país (Años 2006 a 2011)

Sheet I-1.2.5
A1: Ministerio de Educación y Cultura Dirección de Educación
A3: Cuadro I-1.2.5 DIFERENCIA DE ASISTENCIA ENTRE EL QUINTIL MAYOR Y EL PRIMER Y EL 2DO QUINTIL Y EL PRIMERO DE INGRESOS DE LOS HOGARES PARA 2011 Y DIFERENCIA CON 2010
A4: DIFERENCIAS | D4: EDADES SIMPLES
D5: 12 | E5: 13 | F5: 14
A6: Entre el Quintil mayor y el 1erQuintil | C6: Diferencia 2011 | D6: 0.3 | E6: 5.8 | F6: 13.1
C7: Diferencia 2011-diferencia 2010 = | D7: -1.2 | E7: -0.8 | F7: -2.7
A8: Entre el 2do quintil y el 1erquintil | C8: Diferencia 2011 | D8: 0.7 | E8: 3 | F8: 4.9
C9: Diferencia 2011-diferencia 2010 = | D9: 0.3 | E9: -0.2 | F9: -2.9
A11: Fuentes:Elaboración propia en base en las ECH 2010 y 2011. Notas:Las diferencias “2011-2010” son el resultado de restar a la diferencia entre quintiles de 2011, idéntica diferencia entre quintiles de 2010. Estos valores son interpretados como indicadores de evolución de la brecha entre el año de referencia y el anterior. Todo el país (Años 2010y 2011)

Sheet I-1.2.6
A1: Ministerio de Educación y Cultura Dirección de Educación
A3: Cuadro I-1.2.6 ASISTENCIA POR GRUPOS DE EDADES TEORICAS Y NIVEL EDUCATIVO. AÑO 2011.
A4: NIVEL EDUCATIVO | B4: GRUPOS DE EDADES TEÓRICAS
B5: 4 a 5 años | C5: 6 a 11 años | D5: 12 a 14 años | E5: 15 a 17 años | F5: 18 a 24 años | G5: 25 a 29 años | H5: Total
A6: No asiste | B6: 8.778366323 | C6: 1.68643813 | D6: 4.684505907 | E6: 22.82801944 | F6: 61.42982644 | G6: 80.69247007 | H6: 35.40327702
A7: Educación Inicial | B7: 88.46612768 | C7: 3.349751742 | D7: 0 | E7: 0 | F7: 0 | G7: 0 | H7: 6.862044317
A8: Educación primaria | B8: 2.755505994 | C8: 94.24628934 | D8: 19.38730582 | E8: 0.7443404054 | F8: 0.09074043035 | G8: 0.05224105637 | H8: 24.59750527
A9: Educación media básica | B9: 0 | C9: 0.7175207873 | D9: 73.73166724 | E9: 25.50136304 | F9: 1.125874894 | G9: 0.4247240356 | H9: 12.96105127
A10: Educación media superior | B10: 0 | C10: 0 | D10: 2.196521038 | E10: 50.48180633 | F10: 12.81087267 | G10: 2.67746032 | H10: 10.6881985
A11: Enseñanza Terciaria | B11: 0 | C11: 0 | D11: 0 | E11: 0.4444707835 | F11: 24.54268557 | G11: 16.15310452 | H11: 9.487923624
A13: Fuente: Elaboración propia en base a la ECH 2011.

Sheet I-1.2.7
A1: Ministerio de Educación y Cultura Dirección de Educación
A3: Cuadro I-1.2.7 JÓVENES DE 15 A 20 AÑOS DE EDAD POR ASISTENCIA A ALGÚN ESTABLECIMIENTO DE EDUCACIÓN Y ACTIVIDAD SEGÚN NIVEL EDUCATIVO MÁXIMO ALCANZADO
A4: NIVEL EDUCATIVO MÁXIMO ALCANZADO | B4: ASISTENCIA A ALGÚN ESTABLECIMIENTO DE EDUCACIÓN Y ACTIVIDAD
B5: TOTAL | C5: Asiste y trabaja o busca trabajo | D5: Asiste y no trabaja ni busca trabajo | E5: No Asiste y trabaja o busca trabajo | F5: No asiste, no trabaja y no busca trabajo
A6: TOTAL | B6: 100 | C6: 12.9 | D6: 48.9 | E6: 25.6 | F6: 12.5
A7: Sin instrucción | B7: 0.1 | C7: 0 | D7: 0 | E7: 0 | F7: 0.1
A8: Educación inicial | B8: 0 | C8: 0 | D8: 0 | E8: 0 | F8: 0
A9: Primaria incompleta | B9: 2.4 | C9: 0.1 | D9: 0.4 | E9: 0.8 | F9: 1.2
A10: Primaria completa | B10: 11.5 | C10: 0 | D10: 0 | E10: 7 | F10: 4.5
A11: Media básica incompleta | B11: 25.1 | C11: 2 | D11: 12.2 | E11: 7.2 | F11: 3.6
A12: Media básica completa | B12: 6.5 | C12: 0 | D12: 0 | E12: 5.1 | F12: 1.4
A13: Media superior incompleta | B13: 41.1 | C13: 7.7 | D13: 28.9 | E13: 3.7 | F13: 0.8
A14: Media superior completa | B14: 2.5 | C14: 0 | D14: 0 | E14: 1.7 | F14: 0.8
A15: Terciaria Incompleta | B15: 10.7 | C15: 3.1 | D15: 7.4 | E15: 0.2 | F15: 0.1
A16: Terciaria Completa | B16: 0.1 | C16: 0 | D16: 0 | E16: 0 | F16: 0
A18: Fuentes: Elaboración propia en base a la ECH 2011.Nota: Todo el país (Año 2011)

Sheet I.1.2.8
A1: Ministerio de Educación y Cultura Dirección de Educación
A3: Cuadro I-1.2.8 JÓVENES DE 15 A 20 AÑOS DE EDAD POR ASISTENCIA A ALGÚN ESTABLECIMIENTO DE EDUCACIÓN Y ACTIVIDAD SEGÚN AÑO LECTIVO
C4: ASISTENCIA A ALGÚN ESTABLECIMIENTO DE EDUCACIÓN Y ACTIVIDAD
A5: AÑO LECTIVO | C5: Asiste y no trabaja ni busca trabajo | D5: Asiste y trabaja o busca trabajo | E5: No asiste y trabaja o busca trabajo | F5: No asiste y no trabaja ni busca trabajo | G5: TOTAL
A6: 2006 | C6: 47.9 | D6: 14.4 | E6: 25.7 | F6: 12.1 | G6: 100
A7: 2007 | C7: 47.1 | D7: 13.9 | E7: 27.3 | F7: 11.8 | G7: 100
A8: 2008 | C8: 48.2 | D8: 13.3 | E8: 25.9 | F8: 12.6 | G8: 100
A9: 2009 | C9: 48.4 | D9: 14.3 | E9: 25.6 | F9: 11.7 | G9: 100
A10: 2010 | C10: 48.2 | D10: 13.2 | E10: 26.2 | F10: 12.4 | G10: 100
A11: 2011 | C11: 48.9 | D11: 12.9 | E11: 25.6 | F11: 12.5 | G11: 100
A13: Fuentes: Elaboración propia en base a la ENHA 2006 y a las ECH 2007 a 2011. Nota:Todo el país (Años 2006 a 2011)

Sheet I.1.2.9
A1: Ministerio de Educación y Cultura Dirección de Educación
A3: Cuadro I-1.2.9 JÓVENES DE 12 A 29 AÑOS DE EDAD POR TRAMOS DE EDAD Y QUINTILES EXTREMOS DE INGRESO SEGÚN LA PRINCIPAL RAZÓN POR LA CUAL SE HA DESVINCULADO DEL SISTEMA EDUCATIVO
A4: NIVEL EDUCATIVO MÁXIMO | C4: TOTAL | D4: TRAMOS DE EDAD | G4: QUINTILES EXTREMOS DE INGRESO
D5: 12 a 17 años | E5: 18 a 29 años | G5: Primer quintil | H5: Quintil mayor
A6: TOTAL | C6: 100 | D6: 100 | E6: 100 | G6: 100 | H6: 100
A7: Comenzó a trabajar | C7: 29.6 | D7: 5.5 | E7: 32.8 | G7: 21.9 | H7: 36.8
A8: No tenía interés o le interesaban otras cosas | C8: 45 | D8: 62.8 | E8: 42.6 | G8: 44.2 | H8: 46.8
A9: Quedó ella o su pareja embarazada | C9: 6.2 | D9: 4.4 | E9: 6.4 | G9: 10.3 | H9: 0.6
A10: Le resultaba difícil | C10: 6 | D10: 9.2 | E10: 5.6 | G10: 6.9 | H10: 4.8
A11: Debió atender asuntos familiares | C11: 5.5 | D11: 5.3 | E11: 5.6 | G11: 7.6 | H11: 4
A12: Otras razones | C12: 7.6 | D12: 12.9 | E12: 6.9 | G12: 9 | H12: 7
A14: Fuentes: Elaboración propia en base a la ECH 2011. Nota: Jóvenes de 12 a 29 años de todo el país, que declararon haber asistido a educación media pero que hoy no lo hacen (Año 2011)

Sheet I-1.2.10
A1: Ministerio de Educación y Cultura Dirección de Educación
A3: Cuadro I-1.2.10 SITUACIÓN DE LOS JÒVENES QUE NO ESTUDIAN Y NO TRABAJAN POR ASISTENCIA Y CONDICIÓN DE ACTIVIDAD SEGÚN SEXO, GRANDES ÁREAS Y QUINTILES DE INGRESOS DE LOS HOGARES.
B4: ASISTENCIA Y CONDICIÓN DE ACTIVIDAD ECONÓMICA | D4: Total
B5: No estudia y no trabaja, pero en las últimas 4 semanas buscó trabajo | C5: No estudia, no trabaja y no busca trabajo
A6: SEXO
A7: Hombre | B7: 50.2 | C7: 33.8 | D7: 39.4
A8: Mujer | B8: 49.8 | C8: 66.2 | D8: 60.6
A9: GRANDES ÁREAS
A10: Montevideo | B10: 38.1 | C10: 34 | D10: 35.5
A11: Resto del país | B11: 61.9 | C11: 66 | D11: 64.5
A12: QUINTILES DE INGRESOS DE LOS HOGARES
A13: 1er quintil | B13: 42.7 | C13: 48.8 | D13: 46.7
A14: 2do quintil | B14: 25.4 | C14: 26.2 | D14: 25.9
A15: 3er quintil | B15: 15.6 | C15: 14.1 | D15: 14.6
A16: 4to quintil | B16: 11.9 | C16: 7.3 | D16: 8.9
A17: Quintil mayor | B17: 4.4 | C17: 3.6 | D17: 3.9
A18: Total | B18: 100 | C18: 100 | D18: 100
A20: Fuente: Elaboración propia en base a la ECH 2011.

Sheet I-1-2-11
A1: Ministerio de Educación y Cultura Dirección de Educación
A3: Cuadro I-1.2.11 SITUACIÓN DE LOS JÒVENES QUE NO ESTUDIAN Y NO TRABAJAN POR ASISTENCIA Y CONDICIÓN DE ACTIVIDAD SEGÚN NIVEL EDUCATIVO ALCANZADO
A4: NIVEL EDUCATIVO ALCANZADO | B4: ASISTENCIA Y CONDICIÓN DE ACTIVIDAD ECONÓMICA | D4: Total
B6: No estudia y no trabaja, pero en las últimas 4 semanas buscó trabajo | C6: No estudia, no trabaja y no busca trabajo
A7: Sin instrucción | B7: 0 | C7: 0.8 | D7: 0.1
A8: Educación inicial | B8: 0 | C8: 0.1 | D8: 0
A9: Primaria | B9: 27.2 | C9: 42.6 | D9: 15.9
A10: Media Básica | B10: 45.9 | C10: 40 | D10: 39.2
A11: Media Superior | B11: 23.3 | C11: 14.5 | D11: 26.4
A12: Terciaria Completa | B12: 3.6 | C12: 1.9 | D12: 18.4
A13: Total | B13: 100 | C13: 100 | D13: 100
A15: Fuente:Elaboración propia en base a la ECH 2011.

Sheet I-1.2.12
A1: Ministerio de Educación y Cultura Dirección de Educación
A3: Cuadro I-1.2.12
A4: MATRÍCULA DEL SISTEMA EDUCATIVO POR AÑO LECTIVO SEGÚN NIVEL, FORMA DE ADMINISTRACIÓN Y MODALIDAD
A5: NIVEL/FROMA DE ADMINISTRACIÓN/MODALIDAD | D5: AÑO LECTIVO
D6: 2002 | E6: 2003 | F6: 2004 | G6: 2005 | H6: 2006 | I6: 2007 | J6: 2008 | K6: 2009 | L6: 2010 | M6: 2011
A8: TOTAL SISTEMA | D8: =D9+D17+D30+D46+D52 -> 943130 | E8: 949606 | F8: 954690 | G8: 937573 | H8: 950464 | I8: 949746 | J8: 973186 | K8: 986125 | L8: 969735 | M8: =M9+M17+M30+M46+M52 -> 966167
A9: Total Edu. en la Primera Infancia e Inicial | D9: =D11+D13 -> 144319 | E9: 133964 | F9: 140628 | G9: 133640 | H9: 144052 | I9: 141307 | J9: 160934 | K9: 173003 | L9: 160504 | M9: =M11+M13 -> 156089
B11: Primera Infancia1 | D11: 38096 | E11: 30345 | F11: 35413 | G11: 28069 | H11: 37416 | I11: 34429 | J11: 47928 | K11: 61112 | L11: 50685 | M11: 47845
B13: Total Educación Inicial2 | D13: =D14+D15 -> 106223 | E13: 103619 | F13: 105215 | G13: 105571 | H13: 106636 | I13: 106878 | J13: 113006 | K13: 111891 | L13: 109819 | M13: =M14+M15 -> 108244
A14: Inicial pública | D14: 86906 | E14: 85628 | F14: 84612 | G14: 83546 | H14: 81833 | I14: 81176 | J14: 86001 | K14: 83854 | L14: 81875 | M14: 79405
A15: Inicial privada | D15: 19317 | E15: 17991 | F15: 20603 | G15: 22025 | H15: 24803 | I15: 25702 | J15: 27005 | K15: 28037 | L15: 27944 | M15: 28839
A17: Total Educación Primaria3 | D17: =D19+D22+D26 -> 365004 | E17: =E19+E22+E26 -> 365495 | F17: 367428 | G17: 365840 | H17: 365879 | I17: 360653 | J17: 354852 | K17: 349271 | L17: 346183 | M17: =M19+M22+M26 -> 340989
B19: Primaria Común3 | D19: =D20+D21 -> 353826 | E19: 354843 | F19: 355568 | G19: 354777 | H19: 353528 | I19: 348579 | J19: 342498 | K19: 336865 | L19: 330548 | M19: =M20+M21 -> 325509
A20: Común pública3 | D20: 307756 | E20: 311141 | F20: 311350 | G20: 309286 | H20: 306030 | I20: 300143 | J20: 292542 | K20: 286092 | L20: 279445 | M20: 273440
A21: Común privada | D21: 46070 | E21: 43702 | F21: 44218 | G21: 45491 | H21: 47498 | I21: 48436 | J21: 49956 | K21: 50773 | L21: 51103 | M21: 52069
B22: Primaria Especial | D22: =D23+D24 -> 11178 | E22: 10652 | F22: 11860 | G22: 11063 | H22: 12351 | I22: 12074 | J22: 12354 | K22: 12406 | L22: 11808 | M22: =M23+M24 -> 11253
A23: Especial pública | D23: 9076 | E23: 8884 | F23: 8553 | G23: 8379 | H23: 8221 | I23: 7913 | J23: 7778 | K23: 7535 | L23: 7416 | M23: 7286
A24: Especial privada | D24: 2102 | E24: 1768 | F24: 3307 | G24: 2684 | H24: 4130 | I24: 4161 | J24: 4576 | K24: 4871 | L24: 4392 | M24: 3967
B26: Programa Jóvenes y Adultos ANEP | L26: =L27+L28 -> 3827 | M26: =M27+M28 -> 4227
A27: Educación Primaria (Niveles I y II) | L27: 2803 | M27: 3186
A28: Pruebas de Acreditación | L28: 1024 | M28: 1041
A30: Total Educación Media | D30: =D32+D39 -> 295399 | E30: 306417 | F30: 306778 | G30: 302311 | H30: 300681 | I30: 298925 | J30: 310128 | K30: 320420 | L30: 322977 | M30: =M32+M39 -> 331659
B32: Total Educación Media Básica | D32: =D33+D34+D37 -> 162664 | E32: 164180 | F32: 161736 | G32: 158131 | H32: 160028 | I32: 160367 | J32: 171502 | K32: 177015 | L32: 177619 | M32: =M33+M34+M37 -> 182175
A33: Ciclo Básico Rural (7º, 8º y 9º) | D33: 1498 | E33: 1771 | F33: 1869 | G33: 1797 | H33: 1818 | I33: 1784 | J33: 2028 | K33: 1991 | L33: 1934 | M33: 1966
A34: Total Media Básica General | D34: 146588 | E34: 147146 | F34: 144374 | G34: 140743 | H34: 142350 | I34: 142420 | J34: 151798 | K34: 155409 | L34: 155444 | M34: =M35+M36 -> 156418
A35: Pública | D35: 125367 | E35: 127162 | F35: 123869 | G35: 120487 | H35: 121195 | I35: 120960 | J35: 127681 | K35: 130013 | L35: 130073 | M35: 130978
A36: Privada4 | D36: 21221 | E36: 19984 | F36: 20505 | G36: 20256 | H36: 21155 | I36: 21460 | J36: 24117 | K36: 25396 | L36: 25371 | M36: 25440
A37: Media Básica Tecnológica | D37: 14578 | E37: 15263 | F37: 15493 | G37: 15591 | H37: 15860 | I37: 16163 | J37: 17676 | K37: 19615 | L37: 20241 | M37: 23791
B39: Total Educación Media Superior | D39: =D40+D44 -> 132735 | E39: 142237 | F39: 145042 | G39: 144180 | H39: 140653 | I39: 138558 | J39: 138626 | K39: 143405 | L39: 145358 | M39: =M40+M44 -> 149484
A40: Total Media Superior General | D40: 122617 | E40: 129454 | F40: 127356 | G40: 124512 | H40: 119418 | I40: 112877 | J40: 110507 | K40: 112664 | L40: 113327 | M40: =M41+M42 -> 116117
A41: Pública | D41: 108589 | E41: 115157 | F41: 112669 | G41: 108459 | H41: 103938 | I41: 97136 | J41: 94506 | K41: 96319 | L41: 96902 | M41: 99175
A42: Privada4 | D42: 14028 | E42: 14297 | F42: 14687 | G42: 16053 | H42: 15480 | I42: 15741 | J42: 16001 | K42: 16345 | L42: 16425 | M42: 16942
A44: Total Media Superior Tecnológica | D44: 10118 | E44: 12783 | F44: 17686 | G44: 19668 | H44: 21235 | I44: 25681 | J44: 28119 | K44: 30741 | L44: 32031 | M44: 33367
A46: Total Edu. Técnica (s/cont. educativa) | D46: =D48+D50 -> 36416 | E46: 37219 | F46: 32372 | G46: 27146 | H46: 28840 | I46: 24419 | J46: 19957 | K46: 16769 | L46: 11912 | M46: =M48+M50 -> 7546
B48: Nivel Básico Tecnológico | D48: 20154 | E48: 21719 | F48: 20724 | G48: 18180 | H48: 19336 | I48: 18539 | J48: 16387 | K48: 13653 | L48: 9800 | M48: 6443
B50: Nivel Superior Tecnológico | D50: 16262 | E50: 15500 | F50: 11648 | G50: 8966 | H50: 9504 | I50: 5880 | J50: 3570 | K50: 3116 | L50: 2112 | M50: 1103
L51: .
A52: Total Educación Terciaria | D52: =D54+D63+D65 -> 101992 | E52: =E54+E63+E65 -> 106511 | F52: 107484 | G52: 108636 | H52: 111012 | I52: 124442 | J52: 127315 | K52: 126662 | L52: 128159 | M52: =M54+M63+M65 -> 129884
B54: Terciaria No Universitaria | D54: =D56+D61 -> 5621 | E54: 7351 | F54: 6866 | G54: 5798 | H54: 6088 | I54: 6403 | J54: 7357 | K54: 7739 | L54: 8072 | M54: =M56+M61 -> 7662
A56: Terciaria No Universitaria Pública | D56: =D57+D58+D59 -> 5148 | E56: 6107 | F56: 6421 | G56: 5493 | H56: 5957 | I56: 6250 | J56: 7182 | K56: 7643 | L56: 8024 | M56: =M57+M58+M59 -> 7569
A57: CETP | D57: 2564 | E57: 3514 | F57: 3671 | G57: 4024 | H57: 3961 | I57: 3896 | J57: 4650 | K57: 4964 | L57: 6158 | M57: 6780
A58: Terciaria Policial o Militar | D58: 620 | E58: 623 | F58: 653 | G58: 679 | H58: 724 | I58: 652 | J58: 557 | K58: 649 | L58: 603 | M58: 470
A59: Otras terciaria pública5 | D59: 1964 | E59: 1970 | F59: 2097 | G59: 790 | H59: 1272 | I59: 1702 | J59: 1975 | K59: 2030 | L59: 1263 | M59: 319
A61: Terciaria No Universitaria Privada6 | D61: 473 | E61: 1244 | F61: 445 | G61: 305 | H61: 131 | I61: 153 | J61: 175 | K61: 96 | L61: 48 | M61: 93
B63: Formación en Educación | D63: 16610 | E63: 19298 | F63: 20968 | G63: 20435 | H63: 21175 | I63: 21992 | J63: 22108 | K63: 20391 | L63: 20191 | M63: 20919
B65: Total Educación Universitaria7 | D65: =D67+D69 -> 79761 | E65: 79862 | F65: 79650 | G65: 82403 | H65: 83749 | I65: 96047 | J65: 97850 | K65: 98532 | L65: 99896 | M65: =M67+M69 -> 101303
A67: Universitaria Pública (UdelaR)8 | D67: 70156 | E67: 70156 | F67: 70156 | G67: 70156 | H67: 70156 | I67: 81774 | J67: 81774 | K67: 81774 | L67: 81774 | M67: 81774
A69: Universitaria Privada | D69: 9605 | E69: 9706 | F69: 9494 | G69: 12247 | H69: 13593 | I69: 14273 | J69: 16076 | K69: 16758 | L69: 18122 | M69: 19529
A71: Fuentes: Departamentos de Estadística (u oficinas productoras de información) del CEP, CES y CETP y de la Universidad de la República, Dirección de Formación y Perfeccionamiento Docente, e instituciones privadas de educación terciaria Notas: 1- Los datos de primera infancia de 2006 fueron corregidos para 2007, ya que por error se contabilizaron centros pertenecientes al censo 2007 que eran reportados por primaria. 2- En el caso de CAÍF solo se tomaron niños de 2 a 5 años que son los que asisten a inicial, no se tomaron los niños de 0 y1 año. 3- El dato de Educación Primaria Común Pública para 2011 incluyen 1.041 acreditados por el Programa Nacional de Jóvenes y Adultos de ANEP(Acreditación de Primaria). 4- Los datos de secundaria privada corresponden a la educación secundaria habilitada, que se componen en su gran mayoría por liceos privados a los que se suma el Liceo Militar y el bachillerato de la Escuela Naval. 5- La baja significativa de matriculados en la categoría “Otras terciaria pública” en 2005, responde a que el ISEF no reportó información para dicho año sí lo había hecho en 2004 (1181 matriculados). En 2006 y 2007 reportó en UdelaR, institución a la pasó a formar parte. 6- Algunas instituciones de educación terciaria no universitaria privada fueron reportadas en distintos niveles a lo largo de la serie o bien no reportaron en algunos de los años, lo que explica la irregularidad de la evolución de la matrícula en este nivel. 7- Los datos de enseñanza terciaria universitaria pública y privada corresponden a carreras cortas y de grado (excluyen carreras de postgrado). 8- Los datos de UdelaR del 2000 a 2006 corresponden a una proyección realizada del Censo 1999 de carreras de grado. El dato de 2007 corresponde al Censo 2007 y los datos 2008 a 2011 responden a la proyección del Censo 2007 (no incluyen carreras de postgrado)

Sheet I-1.2.13
A1: Ministerio de Educación y Cultura Dirección de Educación
A3: Cuadro I-1.2.13 MATRICULA POR NIVEL Y FORMA DE ADMINISTRACIÓN SEGÚN GRANDES ÁREAS Y DEPARTAMENTO
A4: GRANDES ÁREAS / DEPARTAMENTO | B4: NIVEL / FORMA DE ADMINISTRACIÓN
B5: EDUCACIÓN INICIAL | E5: EDUCACIÓN PRIMARIA | H5: EDUCACIÓN MEDIA
B6: Total | C6: FORMA DE ADMINISTRACIÓN | E6: Total | F6: FORMA DE ADMINISTRACIÓN | H6: Total | I6: FORMA DE ADMINISTRACIÓN
C7: Pública | D7: Privada | F7: Pública | G7: Privada | I7: Pública | J7: Privada
A8: TOTAL | B8: =B11+B14 -> 108244 | C8: 79405 | D8: 28839 | E8: 337803 | F8: 281767 | G8: 56036 | H8: 331659 | I8: 289277 | J8: 42382
B9: =C9+D9 -> 100 | C9: =C8/B8*100 -> 73.35741473 | D9: =D8/B8*100 -> 26.64258527 | E9: =F9+G9 -> 100 | F9: =F8/E8*100 -> 83.41163341 | G9: =G8/E8*100 -> 16.58836659 | H9: =I9+J9 -> 100 | I9: =I8/H8*100 -> 87.22121215 | J9: =J8/H8*100 -> 12.77878785
A11: MONTEVIDEO | B11: =C11+D11 -> 41202 | C11: 23693 | D11: 17509 | E11: =F11+G11 -> 120699 | F11: 86302 | G11: 34397 | H11: =I11+J11 -> 124850 | I11: 95916 | J11: 28934
B12: =C12+D12 -> 100 | C12: =C11/B11*100 -> 57.50449007 | D12: =D11/B11*100 -> 42.49550993 | E12: =F12+G12 -> 100 | F12: =F11/E11*100 -> 71.50183514 | G12: =G11/E11*100 -> 28.49816486 | H12: =I12+J12 -> 100 | I12: =I11/H11*100 -> 76.82498999 | J12: =J11/H11*100 -> 23.17501001
A14: RESTO DEL PAÍS | B14: =C14+D14 -> 67042 | C14: =SUM(C16:C33) -> 55712 | D14: =SUM(D16:D33) -> 11330 | E14: =F14+G14 -> 217104 | F14: =SUM(F16:F33) -> 195465 | G14: =SUM(G16:G33) -> 21639 | H14: =I14+J14 -> 206809 | I14: =SUM(I16:I33) -> 193361 | J14: =SUM(J16:J33) -> 13448
B15: 100 | C15: =C14/B14*100 -> 83.10014618 | D15: =D14/B14*100 -> 16.89985382 | E15: 100 | F15: =F14/E14*100 -> 90.03288746 | G15: =G14/E14*100 -> 9.967112536 | H15: 100 | I15: =I14/H14*100 -> 93.49738164 | J15: =J14/H14*100 -> 6.502618358
A16: Artigas | B16: 2169 | C16: 2074 | D16: 95 | E16: 9294 | F16: 9040 | G16: 254 | H16: 9070 | I16: 9017 | J16: 53
A17: Canelones | B17: 16733 | C17: 12984 | D17: 3749 | E17: 53256 | F17: 46243 | G17: 7013 | H17: 50256 | I17: 45662 | J17: 4594
A18: Cerro Largo | B18: 2941 | C18: 2666 | D18: 275 | E18: 10154 | F18: 9539 | G18: 615 | H18: 9475 | I18: 9120 | J18: 355
A19: Colonia | B19: 4135 | C19: 3539 | D19: 596 | E19: 11615 | F19: 10891 | G19: 724 | H19: 11948 | I19: 11903 | J19: 45
A20: Durazno | B20: 1873 | C20: 1647 | D20: 226 | E20: 6713 | F20: 6079 | G20: 634 | H20: 6193 | I20: 5838 | J20: 355
A21: Flores | B21: 821 | C21: 648 | D21: 173 | E21: 2656 | F21: 2288 | G21: 368 | H21: 2722 | I21: 2496 | J21: 226
A22: Florida | B22: 1994 | C22: 1782 | D22: 212 | E22: 6931 | F22: 6573 | G22: 358 | H22: 6344 | I22: 6110 | J22: 234
A23: Lavalleja | B23: 2190 | C23: 1848 | D23: 342 | E23: 5882 | F23: 5267 | G23: 615 | H23: 5898 | I23: 5681 | J23: 217
A24: Maldonado | B24: 5924 | C24: 3877 | D24: 2047 | E24: 18018 | F24: 13998 | G24: 4020 | H24: 16685 | I24: 13956 | J24: 2729
A25: Paysandú | B25: 3931 | C25: 3427 | D25: 504 | E25: 13769 | F25: 12318 | G25: 1451 | H25: 12080 | I25: 11050 | J25: 1030
A26: Río Negro | B26: 2256 | C26: 1971 | D26: 285 | E26: 6675 | F26: 6065 | G26: 610 | H26: 5802 | I26: 5603 | J26: 199
A27: Rivera | B27: 4097 | C27: 3648 | D27: 449 | E27: 12362 | F27: 11682 | G27: 680 | H27: 12340 | I27: 11685 | J27: 655
A28: Rocha | B28: 2401 | C28: 2162 | D28: 239 | E28: 7620 | F28: 7120 | G28: 500 | H28: 7377 | I28: 7109 | J28: 268
A29: Salto | B29: 4784 | C29: 3930 | D29: 854 | E29: 15342 | F29: 14045 | G29: 1297 | H29: 14384 | I29: 13597 | J29: 787
A30: San José | B30: 3675 | C30: 3225 | D30: 450 | E30: 10976 | F30: 10400 | G30: 576 | H30: 10397 | I30: 9927 | J30: 470
A31: Soriano | B31: 2871 | C31: 2607 | D31: 264 | E31: 9918 | F31: 8824 | G31: 1094 | H31: 9458 | I31: 9163 | J31: 295
A32: Tacuarembo | B32: 3002 | C32: 2516 | D32: 486 | E32: 10601 | F32: 9958 | G32: 643 | H32: 10672 | I32: 10051 | J32: 621
A33: Treinta y Tres | B33: 1245 | C33: 1161 | D33: 84 | E33: 5322 | F33: 5135 | G33: 187 | H33: 5708 | I33: 5393 | J33: 315
A35: Nota : Educacion Primaria Incluye alumnos participantes en prueba de acreditación (1041).

Sheet I-2.1.14
A1: Ministerio de Educación y Cultura Dirección de Educación
A3: Cuadro I-1.2.14 PORCENTAJE DE POBLACIÓN DE 25 AÑOS O MÁS POR TRAMOS DE EDAD SEGÚN NIVEL EDUCATIVO MÁXIMO ALCANZADO
A4: NIVEL EDUCATIVO MÁXIMO ALCANZADO | C4: TRAMOS DE EDAD
C5: TOTAL | D5: 25 a 29 años | E5: 30 a 39 años | F5: 40 a 49 años | G5: 50 a 59 años | H5: 60 a 69 años | I5: 70 y más años
A6: TOTAL | C6: 100 | D6: 100 | E6: 100 | F6: 100 | G6: 100 | H6: 100 | I6: 100
A7: Sin instrucción | C7: 0.8 | D7: 0.2 | E7: 0.3 | F7: 0.3 | G7: 0.6 | H7: 0.9 | I7: 2.5
A8: Primaria incompleta | C8: 11.5 | D8: 2.9 | E8: 3.7 | F8: 5.6 | G8: 10.1 | H8: 20.2 | I8: 30.2
A9: Primaria completa | C9: 28.4 | D9: 16 | E9: 20.5 | F9: 28.5 | G9: 30.1 | H9: 35.3 | I9: 40.1
A10: HASTA PRIMARIA COMPLETA | C10: 40.7 | D10: 19.1 | E10: 24.5 | F10: 34.4 | G10: 40.8 | H10: 56.4 | I10: 72.8
A11: Media básica incompleta | C11: 8.7 | D11: 11.7 | E11: 10.9 | F11: 9.8 | G11: 8.2 | H11: 6.4 | I11: 4.6
A12: Media básica completa | C12: 10.5 | D12: 12.4 | E12: 14.7 | F12: 12.7 | G12: 10.2 | H12: 7.2 | I12: 4
A13: Media superior incompleta | C13: 13.5 | D13: 17.8 | E13: 17.9 | F13: 14.8 | G13: 13.4 | H13: 9.4 | I13: 6.1
A14: Media superior completa | C14: 8.1 | D14: 8.4 | E14: 8.9 | F14: 8.7 | G14: 10.3 | H14: 7.1 | I14: 4.1
A15: Terciaria Incompleta | C15: 7.8 | D15: 18.8 | E15: 9.8 | F15: 7.4 | G15: 5.9 | H15: 4.4 | I15: 2.8
A16: Terciaria Completa | C16: 10.8 | D16: 11.8 | E16: 13.2 | F16: 12.3 | G16: 11.4 | H16: 9 | I16: 5.6
A18: Fuentes:Elaboración propia en base a la Encuesta Continua de Hogares 2011. Nota:Todo el país (Año 2011)

Sheet I.2.2.1
A1: Ministerio de Educación y Cultura Dirección de Educación
A3: Cuadro I-2.2.1 TASA NETA DE MATRICULACIÓN ENTRE LOS NIÑOS DE 3 A 5 AÑOS POR AÑO LECTIVO Y TRAMOS DE EDAD
A4: TRAMOS DE EDAD | B4: AÑO LECTIVO | E4: TOTAL
B5: 2008 | C5: 2009 | D5: 2010 | E5: 2011
A6: 3 a 5 años | B6: 76.8 | C6: 81.2 | D6: 81.9 | E6: 81.5
A7: 4 y 5 años | B7: 88.9 | C7: 92 | D7: 91.9 | E7: 91.2
A9: Fuente: Elaboración propia en base en las ECH 2008 a 2011 del INE

Sheet I.2.2.2.
A1: Ministerio de Educación y Cultura Dirección de Educación
A3: Cuadro I-2.2.2 MATRÍCULA EN EDUCACIÓN PRIMARIA ESPECIAL SEGÚN REGIÓN Y FORMA DE ADMINISTRACIÓN
A4: REGIÓN Y FORMA DE ADMINISTRACIÓN | B4: Cantidad absoluta | C4: Porcentaje
A5: TOTAL REGIÓN | B5: 12406 | C5: 100
A7: Montevideo | B7: 5762 | C7: 46.4
A8: Resto del país | B8: 6644 | C8: 53.6
A9: FORMA DE ADMINISTRACIÓN
A10: Público | B10: 7535 | C10: 60.7
A11: Privado | B11: 4871 | C11: 39.3
A13: Fuentes: Elaboración propia en base a información del Departamento de Estadística del CEIP.

Sheet I.2.2.3
A1: Ministerio de Educación y Cultura Dirección de Educación
A3: Cuadro I-2.2.3 MATRÍCULA EN EDUCACIÓN PRIMARIA PÚBLICA COMÚN POR AÑO LECTIVO SEGÚN ÁREAS DEMOGRÁFICAS (2001 – 2011)
A5: ÁREAS | B5: AÑO LECTIVO
B6: 2000 | C6: 2001 | D6: 2002 | E6: 2003 | F6: 2004 | G6: 2005 | H6: 2006 | I6: 2007 | J6: 2008 | K6: 2009 | L6: 2010 | M6: 2011
A7: Urbana | B7: 285077 | C7: 288168 | D7: 291484 | E7: 294182 | F7: 293879 | G7: 292143 | H7: 285826 | I7: 280554 | J7: 273491 | K7: 267638 | L7: 262192 | M7: 256775
A8: Rural | B8: 16105 | C8: 16284 | D8: 16272 | E8: 16959 | F8: 17471 | G8: 17143 | H8: 20204 | I8: 19589 | J8: 19051 | K8: 18454 | L8: 17253 | M8: 16665
A9: % Urbana | B9: 94.7 | C9: 94.7 | D9: 94.7 | E9: 94.5 | F9: 94.4 | G9: 94.5 | H9: 93.4 | I9: 93.5 | J9: 93.5 | K9: 93.6 | L9: 93.8 | M9: 93.9
A12: Fuente: Elaboración | B12: propia en base a información del Departamento de Estadística del CEIP

Sheet I.2.2.4
A1: Ministerio de Educación y Cultura Dirección de Educación
A3: Cuadro I-2.2.4 PORCENTAJE DE ASISTENCIA INSUFICIENTE Y ABANDONO INTERMITENTE DE 1º A 6º GRADO EN EDUCACIÓN PRIMARIA COMÚN PÚBLICA SEGÚN REGIONES Y CONTEXTO 1er QUINTIL Y QUINTIL MAYOR (AÑO 2011)
B4: ASISTENCIA INSUFICIENTE | C4: ABANDONO INTERMITENTE
A5: TOTAL | B5: 6.1 | C5: 1.1
A6: MONTEVIDEO | B6: 8.1 | C6: 1.5
A7: RESTO DEL PAÍS | B7: 5.2 | C7: 0.9
A8: 1Quintil-Urbano | B8: 10.8 | C8: 2.1
A9: 1Quintil-Rural | B9: 5.7 | C9: 2.4
A10: 5Quintil-Urbano | B10: 2.7 | C10: 0.6
A11: 5Quintil-Rural | B11: 3.8 | C11: 0.2
A14: Fuentes:Monitor Educativo de Enseñanza Estado de Situación 2011.

Sheet I.2.4.1
A1: Ministerio de Educación y Cultura Dirección de Educación
A3: Cuadro I-2.4.1. ESTABLECIMIENTOS DE EDUCACIÓN TÉCNICO PROFESIONAL POR TIPO DE ESTABLECIMIENTO SEGÚN GRANDES ÁREAS
B4: TOTAL | C4: GRANDES ÁREAS
C5: Resto del País | D5: Montevideo
A6: TOTAL | B6: =C6+D6 -> 173 | C6: =SUM(C7:C19) -> 136 | D6: =SUM(D7:D19) -> 37
A7: básica | B7: =C7+D7 -> 13 | C7: 8 | D7: 5
A8: basica y superior | B8: 19 | C8: 19 | D8: 0
A9: superior | B9: 10 | C9: 9 | D9: 1
A10: terciaria | B10: 34 | C10: 30 | D10: 4
A11: jya | B11: 5 | C11: 2 | D11: 3
A12: superior y terciaria | B12: 8 | C12: 4 | D12: 4
A13: superior y jya | B13: 11 | C13: 6 | D13: 5
A14: basico superior y jya | B14: 19 | C14: 12 | D14: 7
A15: superior terc y jya | B15: 9 | C15: 3 | D15: 6
A16: basico superior y terciaria | B16: 11 | C16: 9 | D16: 2
A17: basico superior jya y terciaria | B17: 31 | C17: 31 | D17: 0
A18: terciaria y jya | B18: 1 | C18: 1 | D18: 0
A19: básica y jya | B19: 2 | C19: 2 | D19: 0
A22: Fuentes: Departamento de Estidísticas CETP-UTU
A23: Nota: Dentro de la cantidad de establecimentos declarados se encuentran 50 reparticiones denominadas satelites en las cuales se imparten cursos administrados por el CETP, en establecimientos que no forman parte de los activos de ANEP.

Sheet I.2.4.2
A1: Ministerio de Educación y Cultura Dirección de Educación
A3: Cuadro I.2.4.2 ALUMNOS MATRICULADOS EN EDUCACIÓN TÉCNICA POR GRANDES ÁREAS Y SEXO SEGÚN NIVEL Y TIPO DE CURSO
A4: NIVEL DEL CURSO | C4: GRANDES ÁREAS
C5: TOTAL | F5: MONTEVIDEO | I5: RESTO DEL PAÍS
D6: Sexo | G6: Sexo | J6: Sexo
C7: Total | D7: Femenino | E7: Masculino | F7: Total | G7: Femenino | H7: Masculino | I7: Total | J7: Femenino | K7: Masculino
A8: TOTAL | C8: =D8+E8 -> 71484 | D8: =SUM(D9:D13) -> 30740 | E8: =SUM(E9:E13) -> 40744 | F8: =G8+H8 -> 27756 | G8: =SUM(G9:G13) -> 11776 | H8: =SUM(H9:H13) -> 15980 | I8: =J8+K8 -> 43728 | J8: =SUM(J9:J13) -> 18964 | K8: =SUM(K9:K13) -> 24764
A9: Educación Media Básica | C9: 23791 | D9: =G9+J9 -> 9255 | E9: =H9+K9 -> 14536 | F9: 4259 | G9: 1631 | H9: 2628 | I9: 19532 | J9: 7624 | K9: 11908
A10: Educación Media superior | C10: 33367 | D10: =G10+J10 -> 14896 | E10: =H10+K10 -> 18471 | F10: 15042 | G10: 6296 | H10: 8746 | I10: 18325 | J10: 8600 | K10: 9725
A11: Nivel Básico de Formación Profesional | C11: 6443 | D11: 3127 | E11: 3316 | F11: 3562 | G11: 1778 | H11: 1784 | I11: 2881 | J11: 1349 | K11: 1532
A12: Nivel Superior de Formación Profesional | C12: 1103 | D12: 690 | E12: 413 | F12: 664 | G12: 396 | H12: 268 | I12: 439 | J12: 294 | K12: 145
A13: Terciaria no universitaria | C13: 6780 | D13: 2772 | E13: 4008 | F13: 4229 | G13: 1675 | H13: 2554 | I13: 2551 | J13: 1097 | K13: 1454
A14: Fuente: Elaboración propia en base a información del Departamento de Estadísticas CETP - U.T.U

Sheet I.2.4.3
A1: Ministerio de Educación y Cultura Dirección de Educación Área de Investigación y Estadística
A3: Cuadro I.2.4.3 ALUMNOS MATRICULADOS EN EDUCACIÓN MEDIA, TÉCNICA Y TERCIARIA POR NIVEL DEL CURSO SEGÚN SECTORES DE ESTUDIO
A4: ÁREAS DE ESTUDIO | C4: TOTAL | D4: NIVEL DEL CURSO
D5: Educación Media Básica | E5: Educación Media Superior | F5: Nivel Básico de Formación Profesional | G5: Nivel Superior de Formación Profesional | H5: Nivel Terciario
A6: TOTAL | C6: =SUM(D6:H6) -> 71484 | D6: =SUM(D7:D15) -> 23791 | E6: =SUM(E7:E15) -> 33367 | F6: 6443 | G6: 1103 | H6: 6780
A7: Agricultura y Pesca | C7: =SUM(D7:H7) -> 2724 | D7: 182 | E7: 2101 | F7: 56 | G7: 0 | H7: 385
A8: Artes y Artesanías | C8: =SUM(D8:H8) -> 1121 | D8: 0 | E8: 117 | F8: 1004 | G8: 0 | H8: 0
A9: Comercio y Administración | C9: 13241 | D9: 0 | E9: 11480 | F9: 68 | G9: 117 | H9: 1576
A10: Comunicación | C10: 787 | D10: 0 | E10: 0 | F10: 0 | G10: 0 | H10: 787
A11: Construcción | C11: 3384 | D11: 150 | E11: 2613 | F11: 319 | G11: 8 | H11: 294
A12: Industria | C12: 17151 | D12: 3191 | E12: 7061 | F12: 3662 | G12: 239 | H12: 2998
A13: Informática | C13: 7347 | D13: 779 | E13: 5441 | F13: 249 | G13: 416 | H13: 462
A14: Programas Generales | C14: 17272 | D14: 17272 | E14: 0 | F14: 0 | G14: 0 | H14: 0
A15: Servicios | C15: 8457 | D15: 2217 | E15: 4554 | F15: 1085 | G15: 323 | H15: 278
A17: Fuentes:Departamento de Estadísticas CETP - U.T.U

Sheet I.2.6.1.
A1: Ministerio de Educación y Cultura Dirección de Educación
A3: Cuadro I.2.6.1 EVOLUCIÓN DE LA MATRÍCULA DE LAS INSTITUCIONES UNIVERSITARIAS (2000 – 2011)
A4: INSTITUCIONES | B4: AÑO LECTIVO
A5: UNIVERSITARIAS | B5: 2000 | C5: 2001 | D5: 2002 | E5: 2003 | F5: 2004 | G5: 2005 | H5: 2006 | I5: 2007 | J5: 2008 | K5: 2009 | L5: 2010 | M5: 2011
A6: TOTAL | B6: =B8+B18 -> 78634 | C6: =C8+C18 -> 79678 | D6: 79761 | E6: 79862 | F6: 79650 | G6: 85019 | H6: 86802 | I6: 131000 | J6: 132905 | K6: 133699 | L6: 135288 | M6: 136946
A8: Total Universidades | B8: =SUM(B10,B12) -> 78419 | C8: =SUM(C10,C12) -> 79340 | D8: 79353 | E8: 79449 | F8: 79057 | G8: 83621 | H8: 85153 | I8: 129122 | J8: 130136 | K8: 131409 | L8: 132726 | M8: 133910
A10: UdelaR | B10: 70156 | C10: 70156 | D10: 70156 | E10: 70156 | F10: 70156 | G10: 70156 | H10: 70156 | I10: 112891 | J10: 112891 | K10: 112891 | L10: 112891 | M10: 112891
A12: Universidades privadas | B12: 8263 | C12: 9184 | D12: 9197 | E12: 9293 | F12: =SUM(F13:F16) -> 8901 | G12: 13465 | H12: 14997 | I12: 16231 | J12: 17245 | K12: 18518 | L12: 19835 | M12: 21019
A13: Univ. Católica del Uruguay | B13: 4057 | C13: 4180 | D13: 3591 | E13: 3849 | F13: 3286 | G13: 5580 | H13: 5911 | I13: 6401 | J13: 7126 | K13: 7227 | L13: 7996 | M13: 8899
A14: Univ. ORT Uruguay | B14: 3445 | C14: 3572 | D14: 3900 | E14: 3777 | F14: 3827 | G14: 5674 | H14: 5863 | I14: 6118 | J14: 6442 | K14: 7202 | L14: 7199 | M14: 7622
A15: Univ. de Montevideo | B15: 575 | C15: 775 | D15: 749 | E15: 824 | F15: 916 | G15: 1300 | H15: 1612 | I15: 1956 | J15: 1938 | K15: 2025 | L15: 2175 | M15: 2246
A16: Univ. de la Empresa | B16: 0 | C16: 609 | D16: 909 | E16: 790 | F16: 872 | G16: 911 | H16: 1611 | I16: 1756 | J16: 1739 | K16: 2064 | L16: 2465 | M16: 2252
A18: Total Inst. Universitarios | B18: =SUM(B19:B28) -> 215 | C18: =SUM(C19:C28) -> 338 | D18: 408 | E18: 413 | F18: 593 | G18: 1398 | H18: 1649 | I18: 1878 | J18: 2769 | K18: 2290 | L18: 2562 | M18: =SUM(M19:M30) -> 3036
A19: I.U. Autónomo del Sur | B19: 215 | C19: 211 | D19: 218 | E19: 184 | F19: 195 | G19: 318 | H19: 428 | I19: 414 | J19: 428 | K19: 515 | L19: 605 | M19: 691
A20: I.U. Asoc. Cristiana de Jóvenes | B20: 0 | C20: 93 | D20: 140 | E20: 141 | F20: 184 | G20: 407 | H20: 508 | I20: 449 | J20: 352 | K20: 346 | L20: 427 | M20: 515
A21: I.U. CLAEH | B21: 0 | C21: 0 | D21: 0 | E21: 39 | F21: 91 | G21: 283 | H21: 412 | I21: 483 | J21: 483 | K21: 740 | L21: 651 | M21: 706
A22: I.U. Monseñor Mariano Soler | B22: 0 | C22: 0 | D22: 0 | E22: 0 | F22: 59 | G22: 65 | H22: 50 | I22: 83 | J22: 54 | K22: 50 | L22: 42 | M22: 61
A23: I.U. Asoc. Psico. del Uru. | B23: 0 | C23: 0 | D23: 0 | E23: 0 | F23: 35 | G23: 25 | H23: 31 | I23: 29 | J23: 34 | K23: 38 | L23: 40 | M23: 48
A24: I.U. Crandon | B24: 0 | C24: 0 | D24: 0 | E24: 0 | F24: 29 | G24: 60 | H24: 59 | I24: 72 | J24: 21 | K24: 89 | L24: 78 | M24: 57
A25: I.U. San Francisco de Asís | B25: 0 | C25: 0 | D25: 0 | E25: 0 | F25: 0 | G25: 83 | H25: 161 | I25: 202 | J25: 202 | K25: 237 | L25: 380 | M25: 489
A26: I.U. Bios | B26: 0 | C26: 0 | D26: 0 | E26: 0 | F26: 0 | G26: 157 | H26: 0 | I26: 146 | J26: 178 | K26: 112 | L26: 109 | M26: 94
A27: I.U. Maldonado – P. del Este | B27: n/c | C27: n/c | D27: n/c | E27: n/c | F27: n/c | G27: n/c | H27: n/c | I27: n/c | J27: 1017 | K27: n/c | L27: n/c | M27: n/c
A28: I.U. CEDIIAP | B28: 0 | C28: 34 | D28: 50 | E28: 49 | F28: 0 | G28: 0 | H28: 0 | I28: 0 | J28: 0 | K28: 163 | L28: 230 | M28: 269
A29: Escuela Naval | B29: n/c | C29: n/c | D29: n/c | E29: n/c | F29: n/c | G29: n/c | H29: n/c | I29: n/c | J29: n/c | K29: n/c | L29: n/c | M29: s/d
A30: Centro de Altos Estudios Nacionales | B30: n/c | C30: n/c | D30: n/c | E30: n/c | F30: n/c | G30: n/c | H30: n/c | I30: n/c | J30: n/c | K30: n/c | L30: n/c | M30: 106
A31: Fuentes: Oficinas productoras de cada una de las instituciones
A32: Nota: UdelaR incluye tecnicaturas y grado, no incluye matrícula de postgrados
A33: Las Universidades privadas incluyen grado y postgrado.
A34: Para el instituto CEDIIAP no se incluye información de los años anteriores por no haber reportado información en el períodos 2004-2008.
A35: El Instituto Universitario "Instituto de Estudios para la Salud y el Desarrollo Florence Ninghtingale" (INSADE), que registrara actividad en los años 2000 a 2003 de la serie presentada, luego no reportó información, por lo cual fue retirado de la tabla. Sin embargo la matrícula correspondiente a dichos años sigue incluida en el ítem "Total de Institutos Universitarios".

Sheet I.2.6.2.
A1: Ministerio de Educación y Cultura Dirección de Educación
A3: Cuadro I-2.6.2
A4: INGRESOS A INSTITUCIONES UNIVERSITARIAS POR AÑO LECTIVO SEGÚN ÁREA DE CONOCIMIENTO
A5: ÁREA DE CONOCIMIENTO | B5: AÑO LECTIVO
B6: 2000 | C6: 2001 | D6: 2002 | E6: 2003 | F6: 2004 | G6: 2005 | H6: 2006 | I6: 2007 | J6: 2008 | K6: 2009 | L6: 2010 | M6: 2011
A7: TOTAL | B7: 18131 | C7: 19265 | D7: 20090 | E7: 21169 | F7: 21558 | G7: 21964 | H7: 22798 | I7: 23014 | J7: 23566 | K7: 24981 | L7: 26357 | M7: 26283
A8: Docencia y ciencias de la educación | B8: 315 | C8: 505 | D8: 542 | E8: 588 | F8: 515 | G8: 766 | H8: 911 | I8: 901 | J8: 941 | K8: 709 | L8: 800 | M8: 785
A9: Artes | B9: 488 | C9: 539 | D9: 574 | E9: 642 | F9: 710 | G9: 809 | H9: 744 | I9: 752 | J9: 746 | K9: 839 | L9: 1219 | M9: 997
A10: Humanidades | B10: 568 | C10: 663 | D10: 709 | E10: 803 | F10: 899 | G10: 967 | H10: 1038 | I10: 889 | J10: 909 | K10: 791 | L10: 541 | M10: 707
A11: Ciencias sociales y del comportamiento | B11: 2965 | C11: 2466 | D11: 3152 | E11: 2933 | F11: 3126 | G11: 3353 | H11: 2987 | I11: 3057 | J11: 4830 | K11: 5692 | L11: 5936 | M11: 5399
A12: Periodismo e información | B12: 945 | C12: 838 | D12: 1118 | E12: 1174 | F12: 972 | G12: 1170 | H12: 1219 | I12: 1036 | J12: 1038 | K12: 1049 | L12: 816 | M12: 1218
A13: Enseñanza comercial y administración | B13: 2546 | C13: 4252 | D13: 3903 | E13: 4132 | F13: 3942 | G13: 3828 | H13: 4292 | I13: 4885 | J13: 3127 | K13: 3253 | L13: 4176 | M13: 3661
A14: Derecho | B14: 2378 | C14: 2033 | D14: 2047 | E14: 2087 | F14: 1828 | G14: 2000 | H14: 1837 | I14: 1754 | J14: 1850 | K14: 1855 | L14: 2031 | M14: 2005
A15: Ciencias de la vida | B15: 474 | C15: 492 | D15: 515 | E15: 633 | F15: 815 | G15: 785 | H15: 955 | I15: 939 | J15: 818 | K15: 581 | L15: 650 | M15: 649
A16: Ciencias físicas | B16: 505 | C16: 374 | D16: 545 | E16: 540 | F16: 653 | G16: 624 | H16: 771 | I16: 653 | J16: 687 | K16: 760 | L16: 636 | M16: 667
A17: Matemáticas y estadística | B17: 107 | C17: 142 | D17: 113 | E17: 131 | F17: 324 | G17: 244 | H17: 328 | I17: 329 | J17: 238 | K17: 218 | L17: 155 | M17: 176
A18: Informática | B18: 792 | C18: 701 | D18: 749 | E18: 790 | F18: 813 | G18: 843 | H18: 917 | I18: 962 | J18: 1186 | K18: 1248 | L18: 1319 | M18: 1280
A19: Ingeniería y profesiones afines | B19: 720 | C19: 676 | D19: 672 | E19: 752 | F19: 767 | G19: 570 | H19: 701 | I19: 633 | J19: 671 | K19: 686 | L19: 856 | M19: 828
A20: Industria y producción | B20: 43 | C20: 151 | D20: 172 | E20: 214 | F20: 247 | G20: 114 | H20: 141 | I20: 104 | J20: 111 | K20: 115 | L20: 116 | M20: 219
A21: Arquitectura y construcción | B21: 788 | C21: 704 | D21: 756 | E21: 645 | F21: 602 | G21: 628 | H21: 648 | I21: 665 | J21: 646 | K21: 832 | L21: 770 | M21: 754
A22: Agricultura, silvicultura y pesca | B22: 210 | C22: 225 | D22: 176 | E22: 252 | F22: 283 | G22: 398 | H22: 362 | I22: 414 | J22: 436 | K22: 638 | L22: 806 | M22: 864
A23: Veterinaria | B23: 295 | C23: 320 | D23: 317 | E23: 381 | F23: 411 | G23: 508 | H23: 484 | I23: 525 | J23: 519 | K23: 533 | L23: 508 | M23: 578
A24: Medicina | B24: 3673 | C24: 3817 | D24: 3573 | E24: 3960 | F24: 4135 | G24: 3633 | H24: 3572 | I24: 3562 | J24: 3888 | K24: 4823 | L24: 4361 | M24: 4656
A25: Servicios sociales | B25: 311 | C25: 367 | D25: 457 | E25: 498 | F25: 508 | G25: 724 | H25: 573 | I25: 626 | J25: 594 | K25: 87 | L25: 146 | M25: 82
A26: Servicios personales | B26: 8 | C26: 0 | D26: 0 | E26: 14 | F26: 8 | G26: 0 | H26: 318 | I26: 328 | J26: 331 | K26: 272 | L26: 411 | M26: 327
A27: Protección del medio ambiente | B27: n/c | C27: n/c | D27: n/c | E27: n/c | F27: n/c | G27: n/c | H27: n/c | I27: n/c | J27: n/c | K27: n/c | L27: n/c | M27: 6
A28: Otras | B28: n/c | C28: n/c | D28: n/c | E28: n/c | F28: n/c | G28: n/c | H28: n/c | I28: n/c | J28: n/c | K28: n/c | L28: 104 | M28: 327
A30: Fuente:Elaboración propia en base información de las oficinas productoras de las instituciones. Nota:Las áreas corresponden a la clasificación CINE 1997 de UNESCO

Sheet I.2.6.3
A1: Ministerio de Educación y Cultura Dirección de Educación
A3: Cuadro I.2.6.3 EGRESOS DE INSTITUCIONES UNIVERSITARIAS POR NIVEL ACADÉMICO SEGÚN ÁREA DE CONOCIMIENTO
A5: INSTITUCIONES UNIVERSITARIAS | B5: TOTAL | C5: % | D5: NIVEL ACADÉMICO
D6: Carrera corta o tecnicatura | E6: Carrera de grado, licenciatura | F6: Postgrado de especialización | G6: Maestría | H6: Doctorado
A7: TOTAL | B7: =SUM(D7:H7) -> 7808 | C7: =SUM(C8:C27) -> 100 | D7: 620 | E7: 5857 | F7: 534 | G7: 761 | H7: 36
A8: Agricultura, silvicultura y pesca | B8: =SUM(D8:H8) -> 294 | C8: =(B8*100)/$B$7 -> 3.765368852 | D8: 55 | E8: 169 | F8: 42 | G8: 28 | H8: 0
A9: Arquitectura y construcción | B9: 349 | C9: 4.46977459 | D9: 0 | E9: 316 | F9: 0 | G9: 33 | H9: 0
A10: Artes | B10: 162 | C10: 2.074795082 | D10: 42 | E10: 120 | F10: 0 | G10: 0 | H10: 0
A11: Ciencias de la vida | B11: 240 | C11: 3.073770492 | D11: 0 | E11: 166 | F11: 0 | G11: 57 | H11: 17
A12: Ciencias físicas | B12: 158 | C12: 2.023565574 | D12: 4 | E12: 129 | F12: 0 | G12: 17 | H12: 8
A13: Ciencias sociales y del comportamiento | B13: 930 | C13: 11.91086066 | D13: 3 | E13: 758 | F13: 105 | G13: 61 | H13: 3
A14: Derecho | B14: 910 | C14: 11.65471311 | D14: 56 | E14: 811 | F14: 4 | G14: 39 | H14: 0
A15: Enseñanza comercial y administración | B15: 1239 | C15: 15.86834016 | D15: 185 | E15: 726 | F15: 214 | G15: 114 | H15: 0
A16: Formación de personal docente y ciencias de la educación | B16: 246 | C16: 3.150614754 | D16: 65 | E16: 54 | F16: 64 | G16: 59 | H16: 4
A17: Humanidades | B17: 75 | C17: 0.9605532787 | D17: 11 | E17: 59 | F17: 2 | G17: 3 | H17: 0
A18: Industria y producción | B18: 25 | C18: 0.3201844262 | D18: 0 | E18: 25 | F18: 0 | G18: 0 | H18: 0
A19: Informática | B19: 277 | C19: 3.547643443 | D19: 28 | E19: 204 | F19: 35 | G19: 9 | H19: 1
A20: Ingeniería y profesiones afines | B20: 232 | C20: 2.971311475 | D20: 15 | E20: 199 | F20: 1 | G20: 14 | H20: 3
A21: Matemáticas y estadística | B21: 11 | C21: 0.1408811475 | D21: 0 | E21: 8 | F21: 0 | G21: 3 | H21: 0
A22: Medicina | B22: 1953 | C22: 25.01280738 | D22: 126 | E22: 1449 | F22: 63 | G22: 315 | H22: 0
A23: Periodismo e información | B23: 241 | C23: 3.086577869 | D23: 19 | E23: 222 | F23: 0 | G23: 0 | H23: 0
A24: Protección del medio ambiente | B24: 5 | C24: 0.06403688525 | D24: 0 | E24: 0 | F24: 4 | G24: 1 | H24: 0
A25: Servicios personales | B25: 183 | C25: 2.34375 | D25: 11 | E25: 170 | F25: 0 | G25: 2 | H25: 0
A26: Servicios sociales | B26: 146 | C26: 1.869877049 | D26: 0 | E26: 146 | F26: 0 | G26: 0 | H26: 0
A27: Veterinaria | B27: 132 | C27: 1.69057377 | D27: 0 | E27: 126 | F27: 0 | G27: 6 | H27: 0
A29: Fuente: Elaboración propia en base información de las oficinas productoras de las instituciones Nota: Las áreas corresponden a la clasificación CINE 1997 de UNESCO.

Sheet I.2.6.4
A1: Ministerio de Educación y Cultura Dirección de Educación
A3: Cuadro I-2.6.4 EGRESOS DE INSTITUCIONES UNIVERSITARIAS POR AÑO LECTIVO SEGÚN ÁREA DE CONOCIMIENTO - (2000 - 2011)
A4: INSTITUCIONES UNIVERSITARIAS | B4: AÑO LECTIVO
B5: 2000 | C5: 2001 | D5: 2002 | E5: 2003 | F5: 2004 | G5: 2005 | H5: 2006 | I5: 2007 | J5: 2008 | K5: 2009 | L5: 2010 | M5: 2011
A6: TOTAL | B6: =SUM(B7:B26) -> 4646 | C6: 4402 | D6: 5902 | E6: 5697 | F6: 6177 | G6: 5514 | H6: 6151 | I6: 6381 | J6: 7018 | K6: 7185 | L6: 7223 | M6: =SUM(M7:M26) -> 7808
A7: Agricultura, silvicultura y pesca | B7: 226 | C7: 145 | D7: 164 | E7: 161 | F7: 213 | G7: 123 | H7: 126 | I7: 111 | J7: 164 | K7: 301 | L7: 279 | M7: 294
A8: Arquitectura y construcción | B8: 233 | C8: 136 | D8: 294 | E8: 208 | F8: 308 | G8: 437 | H8: 324 | I8: 303 | J8: 280 | K8: 275 | L8: 341 | M8: 349
A9: Artes | B9: 40 | C9: 33 | D9: 39 | E9: 60 | F9: 46 | G9: 42 | H9: 104 | I9: 120 | J9: 181 | K9: 184 | L9: 211 | M9: 162
A10: Ciencias de la vida | B10: 97 | C10: 62 | D10: 72 | E10: 73 | F10: 107 | G10: 108 | H10: 141 | I10: 137 | J10: 183 | K10: 169 | L10: 166 | M10: 240
A11: Ciencias físicas | B11: 110 | C11: 94 | D11: 153 | E11: 118 | F11: 162 | G11: 140 | H11: 105 | I11: 125 | J11: 143 | K11: 154 | L11: 158 | M11: 158
A12: Ciencias sociales y del comportamiento | B12: 381 | C12: 534 | D12: 739 | E12: 671 | F12: 655 | G12: 634 | H12: 689 | I12: 641 | J12: 923 | K12: 720 | L12: 746 | M12: 930
A13: Derecho | B13: 500 | C13: 613 | D13: 686 | E13: 676 | F13: 816 | G13: 781 | H13: 838 | I13: 777 | J13: 886 | K13: 806 | L13: 786 | M13: 910
A14: Enseñanza comercial y administración | B14: 914 | C14: 865 | D14: 1328 | E14: 1509 | F14: 1205 | G14: 918 | H14: 1032 | I14: 1071 | J14: 1135 | K14: 1289 | L14: 1280 | M14: 1239
A15: Formación de personal docente y ciencias de la educación | B15: 66 | C15: 61 | D15: 81 | E15: 120 | F15: 113 | G15: 136 | H15: 291 | I15: 372 | J15: 399 | K15: 275 | L15: 235 | M15: 246
A16: Humanidades | B16: 80 | C16: 33 | D16: 74 | E16: 33 | F16: 73 | G16: 64 | H16: 76 | I16: 75 | J16: 92 | K16: 90 | L16: 66 | M16: 75
A17: Industria y producción | B17: 0 | C17: 12 | D17: 8 | E17: 16 | F17: 10 | G17: 26 | H17: 16 | I17: 31 | J17: 33 | K17: 24 | L17: 27 | M17: 25
A18: Informática | B18: 285 | C18: 234 | D18: 257 | E18: 194 | F18: 237 | G18: 277 | H18: 235 | I18: 215 | J18: 242 | K18: 260 | L18: 250 | M18: 277
A19: Ingeniería y profesiones afines | B19: 133 | C19: 124 | D19: 187 | E19: 201 | F19: 224 | G19: 214 | H19: 200 | I19: 204 | J19: 194 | K19: 257 | L19: 222 | M19: 232
A20: Matemáticas y estadística | B20: 9 | C20: 4 | D20: 6 | E20: 9 | F20: 10 | G20: 12 | H20: 5 | I20: 13 | J20: 27 | K20: 19 | L20: 14 | M20: 11
A21: Medicina | B21: 1323 | C21: 1311 | D21: 1476 | E21: 1276 | F21: 1578 | G21: 1243 | H21: 1537 | I21: 1726 | J21: 1532 | K21: 1874 | L21: 1962 | M21: 1953
A22: Periodismo e información | B22: 120 | C22: 78 | D22: 208 | E22: 249 | F22: 289 | G22: 174 | H22: 191 | I22: 213 | J22: 234 | K22: 242 | L22: 201 | M22: 241
A23: Protección del medio ambiente | M23: 5
A24: Servicios personales | B24: 0 | C24: 0 | D24: 0 | E24: 16 | F24: 7 | G24: 19 | H24: 96 | I24: 145 | J24: 194 | K24: 67 | L24: 51 | M24: 181
A25: Servicios sociales | B25: 17 | C25: 14 | D25: 23 | E25: 18 | F25: 33 | G25: 48 | H25: 51 | I25: 47 | J25: 106 | K25: 88 | L25: 123 | M25: 148
A26: Veterinaria | B26: 112 | C26: 49 | D26: 107 | E26: 89 | F26: 91 | G26: 118 | H26: 94 | I26: 55 | J26: 70 | K26: 91 | L26: 105 | M26: 132
A27: Fuente: Elaboración propia en base a información brindada por las oficinas productoras de las instituciones. Nota: Las áreas corresponden a la clasificación CINE 1997 de UNESCO.

Sheet I.2.6.5.
A1: Ministerio de Educación y Cultura Dirección de Educación
A3: Cuadro I-2.6.5 INGRESOS A INSTITUCIONES UNIVERSITARIAS POR NIVEL ACADÉMICO SEGÚN ÁREA DE CONOCIMIENTO
A4: INSTITUCIONES UNIVERSITARIAS | B4: NIVEL ACADÉMICO
B5: TOTAL | D5: Carrera corta o tecnicatura | E5: Carrera de grado, licenciatura | F5: Postgrado de especialización | G5: Maestría | H5: Doctorado
A7: TOTAL | B7: =SUM(D7:H7) -> 26283 | C7: =SUM(C8:C28) -> 100 | D7: =SUM(D8:D28) -> 3277 | E7: =SUM(E8:E28) -> 19668 | F7: 1257 | G7: 2001 | H7: 80
A8: Agricultura, silvicultura y pesca | B8: =SUM(D8:H8) -> 864 | C8: =(B8*100)/$B$7 -> 3.287295971 | D8: 134 | E8: 525 | F8: 105 | G8: 80 | H8: 20
A9: Arquitectura y construcción | B9: 754 | C9: 2.868774493 | D9: 4 | E9: 702 | F9: 0 | G9: 47 | H9: 1
A10: Artes | B10: 997 | C10: 3.793326485 | D10: 26 | E10: 971 | F10: 0 | G10: 0 | H10: 0
A11: Ciencias de la vida | B11: 649 | C11: 2.469276719 | D11: 6 | E11: 473 | F11: 0 | G11: 170 | H11: 0
A12: Ciencias físicas | B12: 667 | C12: 2.537762052 | D12: 43 | E12: 569 | F12: 0 | G12: 27 | H12: 28
A13: Ciencias sociales y del comportamiento | B13: 5399 | C13: 20.54179508 | D13: 19 | E13: 4684 | F13: 410 | G13: 282 | H13: 4
A14: Derecho | B14: 2005 | C14: 7.628505117 | D14: 0 | E14: 1946 | F14: 5 | G14: 54 | H14: 0
A15: Enseñanza comercial y administración | B15: 3661 | C15: 13.92915573 | D15: 1516 | E15: 1538 | F15: 352 | G15: 251 | H15: 4
A16: Formación de personal docente y ciencias de la educación | B16: 785 | C16: 2.986721455 | D16: 101 | E16: 393 | F16: 179 | G16: 112 | H16: 0
A17: Humanidades | B17: 707 | C17: 2.68995168 | D17: 135 | E17: 445 | F17: 0 | G17: 127 | H17: 0
A18: Industria y producción | B18: 219 | C18: 0.8332382148 | D18: 0 | E18: 203 | F18: 0 | G18: 16 | H18: 0
A19: Informática | B19: 1280 | C19: 4.870068105 | D19: 106 | E19: 1109 | F19: 20 | G19: 41 | H19: 4
A20: Ingeniería y profesiones afines | B20: 926 | C20: 3.523189895 | D20: 90 | E20: 763 | F20: 17 | G20: 46 | H20: 10
A21: Matemáticas y estadística | B21: 176 | C21: 0.6696343644 | D21: 0 | E21: 171 | F21: 0 | G21: 2 | H21: 3
A22: Medicina | B22: 4656 | C22: 17.71487273 | D22: 291 | E22: 3608 | F22: 108 | G22: 649 | H22: 0
A23: Periodismo e información | B23: 1218 | C23: 4.634174181 | D23: 388 | E23: 768 | F23: 15 | G23: 47 | H23: 0
A24: Servicios personales | B24: 327 | C24: 1.244150211 | D24: 91 | E24: 236 | F24: 0 | G24: 0 | H24: 0
A25: Servicios sociales | B25: 82 | C25: 0.311988738 | D25: 0 | E25: 0 | F25: 40 | G25: 42 | H25: 0
A26: Protección del medio ambiente | B26: 6 | C26: 0.02282844424 | D26: 0 | E26: 0 | F26: 6 | G26: 0 | H26: 0
A27: Veterinaria | B27: 578 | C27: 2.199140129 | D27: 0 | E27: 564 | F27: 0 | G27: 8 | H27: 6
A28: Otras | B28: =SUM(D28:H28) -> 327 | C28: =(B28*100)/$B$7 -> 1.244150211 | D28: 327 | E28: n/c | F28: n/c | G28: n/c | H28: n/c
A29: Fuente: Elaboración propia en base información de las oficinas productoras de las instituciones
A30: Nota: Las áreas corresponden a la clasificación CINE 1997 de UNESCO.
A31: La categoría "Otras", refiere a estudiantes que ingresaron al Ciclo Inicial en UdelaR y no pueden ser clasificables por área.

Sheet I.2.6.6
A1: Ministerio de Educación y Cultura Dirección de Educación
A3: Cuadro I-2.6.6 INGRESOS, MATRÍCULA Y EGRESOS SEGÚN FORMA DE ADMINISTRACIÓN EN CANTIDADES ABSOLUTAS Y PORCENTAJES
A4: FORMA DE ADMINISTRACIÓN | B4: INGRESOS | C4: MATRÍCULA | D4: EGRESOS
A5: TOTAL VALORES ABSOLUTOS | B5: =SUM(B6:B7) -> 22945 | C5: =SUM(C6:C7) -> 132420 | D5: =SUM(D6:D7) -> 6476
A6: Universidad de la República | B6: 18705 | C6: 112891 | D6: 5284
A7: Instituciones Universitarias Privadas | B7: 4240 | C7: 19529 | D7: 1192
A8: TOTAL PORCENTAJES | B8: 1 | C8: 1 | D8: 1
A9: Universidad de la República | B9: =B6/B5*100% -> 0.8152102855 | C9: =C6/C5*100% -> 0.8525222776 | D9: =D6/D5*100% -> 0.8159357628
A10: Instituciones Universitarias Privadas | B10: =B7/B5*100% -> 0.1847897145 | C10: =C7/C5*100% -> 0.1474777224 | D10: =D7/D5*100% -> 0.1840642372
A11: Fuentes: Elaboración propia en base a información brindada por las oficinas productoras de las instituciones.
A12: Nota: Se toma en cuenta solo las ofertas de grado.

Sheet I.2.7.I
A1: Ministerio de Educación y Cultura
A2: Dirección de Educación
A5: Cuadro I-2.7.1
A6: ALUMNOS MATRICULADOS EN EL PROGRAMA NACIONAL DE JÓVENES Y ADULTOS POR MODALIDAD, NIVEL Y SEXO SEGÚN GRANDES ÁREAS
A7: GRANDES ÁREAS | B7: ALUMNOS MATRICULADOS EN EDUCACIÓN PRIMARIA | I7: ALUMNOS MATRICULADOS EN TALLERES
B8: TOTAL | C8: PRIMER TRAMO: NIVEL I | F8: PRIMER TRAMO: NIVEL II | I8: TOTAL | J8: SEXO
C9: TOTAL SEXO | D9: SEXO | F9: TOTAL | G9: SEXO
D10: Masculino | E10: Femenino | G10: Masculino | H10: Femenino | J10: Masculino | K10: Femenino
A11: TOTAL | B11: =C11+F11 -> 3186 | C11: =SUM(D11:E11) -> 1365 | D11: =D12+D13 -> 783 | E11: =E12+E13 -> 582 | F11: =SUM(G11:H11) -> 1821 | G11: =G12+G13 -> 920 | H11: =H12+H13 -> 901 | I11: =SUM(J11:K11) -> 4092 | J11: =J12+J13 -> 1404 | K11: =K12+K13 -> 2688
A12: Montevideo | B12: =C12+F12 -> 1623 | C12: 704 | D12: 470 | E12: 234 | F12: 919 | G12: 574 | H12: 345 | I12: =SUM(J12:K12) -> 3312 | J12: 1023 | K12: 2289
A13: Resto del País | B13: 1563 | C13: 661 | D13: 313 | E13: 348 | F13: 902 | G13: 346 | H13: 556 | I13: 780 | J13: 381 | K13: 399
A14: Fuente : ANEP -CODICEN - Programa de Eduacación de Jóvenes y Adultos

Sheet I.2.7.2
A1: Ministerio de Educación y Cultura
A2: Dirección de Educación
A5: Cuadro I.2.7.2
A6: ALUMNOS QUE RINDIERON LA PRUEBA DE ACREDITACIÓN EN EL PROGRAMA NACIONAL DE JÓVENES Y ADULTOS POR SEXO SEGÚN GRANDES ÁREAS
A7: GRANDES ÁREAS | B7: ALUMNOS PARTICIPANTES EN PRUEBA DE ACREDITACIÓN
B8: TOTAL PRUEBAS DE ACREDITACIÓN | C8: SEXO
C10: Masculino | D10: Femenino
A11: TOTAL | B11: =SUM(C11:D11) -> 1041 | C11: =C12+C13 -> 435 | D11: =D12+D13 -> 606
A12: Montevidel | B12: =SUM(C12:D12) -> 301 | C12: 169 | D12: 132
A13: Resto del País | B13: 740 | C13: 266 | D13: 474
A15: Fuentes : ANEP-CODICEN - Programa de Educación de jóvnes y Adultos .

Sheet I.2.8.1
A1: Ministerio de Educación y Cultura
A2: Dirección de Educación
A5: Cuadro I.2.8.1
A6: ALUMNOS MATRICULADOS POR REGIÓN Y SEXO SEGÚN ÁREA DE CONOCIMIENTO
A8: ÁREA DE CONOCIMIENTO | B8: REGIÓN
B9: TOTAL | E9: MONTEVIDEO | H9: RESTO DEL PAÍS
B10: Total | C10: SEXO | E10: Total | F10: SEXO | H10: Total | I10: SEXO
C11: Masculino | D11: Femenino | F11: Masculino | G11: Femenino | I11: Masculino | J11: Femenino
A12: TOTAL | B12: =SUM(B13:B19) -> 78544 | C12: =SUM(C13:C19) -> 39471 | D12: 39073 | E12: 64028 | F12: 33351 | G12: 30677 | H12: 14516 | I12: 6120 | J12: 8396
A13: Idiomas | B13: =(C13+D13) -> 13325 | C13: =(F13+I13) -> 5862 | D13: =(G13+J13) -> 7463 | E13: =(F13+G13) -> 9228 | F13: 4049 | G13: 5179 | H13: =(I13+J13) -> 4097 | I13: 1813 | J13: 2284
A14: Informática | B14: =(C14+D14) -> 12444 | C14: =(F14+I14) -> 8100 | D14: 4344 | E14: =(F14+G14) -> 8599 | F14: 6532 | G14: 2067 | H14: =(I14+J14) -> 3845 | I14: 1568 | J14: 2277
A15: Adm y Comercio | B15: 24350 | C15: 11486 | D15: 12864 | E15: 22838 | F15: 10897 | G15: 11941 | H15: 1512 | I15: 589 | J15: 923
A16: Artes | B16: 3995 | C16: 915 | D16: 3080 | E16: 3702 | F16: 861 | G16: 2841 | H16: 293 | I16: 54 | J16: 239
A17: Servicios Personales | B17: 1829 | C17: 674 | D17: 1155 | E17: 1349 | F17: 552 | G17: 797 | H17: 480 | I17: 122 | J17: 358
A18: Otros Técnicos | B18: 11777 | C18: 8192 | D18: 3585 | E18: 9716 | F18: 7002 | G18: 2714 | H18: 2061 | I18: 1190 | J18: 871
A19: Otros Diversos | B19: 10824 | C19: 4242 | D19: 6582 | E19: 8596 | F19: 3458 | G19: 5138 | H19: 2228 | I19: 784 | J19: 1444
A21: Fuente : Elaboración propia enbase en la iformación del Primer Censo Nacional de Instituciones de Formación Técnico-Profesional
A22: Nota: Las áreas de conocimiento corresponden a la clasificación CINE 1997 de UNESCO
A23: Al total de alumnos matriculados se le debe sumar 159 alumnos mas, de los cuáles no se obtuvo la información por sexo.

Sheet I.2.8.2
A1: Ministerio de Educación y Cultura Dirección de Educación
A3: Cuadro I.2.8.2 ALUMNOS MATRICULADOS POR TIPO DE INSTITUCIÓN Y SEXO SEGÚN ÁREA DE CONOCIMIENTO
A4: ÁREA DE CONOCIMIENTO | D4: TIPO DE INSTITUCIÓN | H4: AREA GEOGRÁFICA
B5: TOTAL | D5: PÚBLICO | F5: PRIVADO | H5: MONTEVIDEO | J5: RESTO DEL PAÍS
B7: Ingresados | C7: Egresados | D7: Ingresados | E7: Egresados | F7: Ingresados | G7: Egresados | H7: Ingresados | I7: Egresados | J7: Ingresados | K7: Egresados
A8: TOTAL | B8: =SUM(B9:B15) -> 72182 | C8: =SUM(C9:C15) -> 57786 | D8: 3248 | E8: 3060 | F8: 68934 | G8: 54726 | H8: 59862 | I8: 48018 | J8: 12320 | K8: 9768
A9: Idiomas | B9: =(D9+F9) -> 10016 | C9: =(E9+G9) -> 7910 | D9: 211 | E9: 64 | F9: 9805 | G9: 7846 | H9: 7508 | I9: 6596 | J9: 2508 | K9: 1314
A10: Informática | B10: =(D10+F10) -> 9631 | C10: 7031 | D10: 0 | E10: 0 | F10: 9631 | G10: 7031 | H10: 5847 | I10: 3653 | J10: 3784 | K10: 3378
A11: Adm y Comercio | B11: 24806 | C11: 21932 | D11: 0 | E11: 0 | F11: 24806 | G11: 21932 | H11: 23316 | I11: 20667 | J11: 1490 | K11: 1265
A12: Artes | B12: 2671 | C12: 1147 | D12: 59 | E12: 23 | F12: 2612 | G12: 1124 | H12: 2459 | I12: 1068 | J12: 212 | K12: 79
A13: Servicios Personales | B13: 2254 | C13: 1685 | D13: 0 | E13: 0 | F13: 2254 | G13: 1685 | H13: 2088 | I13: 1520 | J13: 166 | K13: 165
A14: Otros Técnicos | B14: 11762 | C14: 9214 | D14: 2978 | E14: 2973 | F14: 8784 | G14: 6241 | H14: 9695 | I14: 7441 | J14: 2067 | K14: 1773
A15: Otros Diversos | B15: 11042 | C15: 8867 | D15: 0 | E15: 0 | F15: 11042 | G15: 8867 | H15: 8949 | I15: 7073 | J15: 2093 | K15: 1794

Sheet I..2.8.3
A1: Ministerio de Educación y Cultura
A2: Dirección de Educación
A6: Cuadro I-2.8.3
A7: CANTIDAD DE CURSOS POR TRAMOS DE DURACIÓN EN HORAS SEGÚN ÁREA DE CONOCIMIENTO
A9: AREA DE CONOCIMIENTO | C9: TOTAL | D9: 0 a 40 | E9: 41 a 140 | F9: 141 a 320 | G9: 321 a 440 | H9: 440 y más
A11: TOTAL | C11: =SUM(D11:H11) -> 1754 | D11: =SUM(D12:D18) -> 393 | E11: =SUM(E12:E18) -> 748 | F11: =SUM(F12:F18) -> 366 | G11: =SUM(G12:G18) -> 103 | H11: =SUM(H12:H18) -> 144
A12: Idiomas | C12: =SUM(D12:H12) -> 324 | D12: 59 | E12: 191 | F12: 64 | G12: 1 | H12: 9
A13: Informática | C13: =SUM(D13:H13) -> 330 | D13: 80 | E13: 180 | F13: 31 | G13: 8 | H13: 31
A14: Administración y Comercio | C14: 409 | D14: 71 | E14: 183 | F14: 90 | G14: 49 | H14: 16
A15: Artes | C15: 77 | D15: 24 | E15: 19 | F15: 20 | G15: 2 | H15: 12
A16: Servicios Personales | C16: 57 | D16: 5 | E16: 21 | F16: 20 | G16: 2 | H16: 9
A17: Otros técnicos | C17: 341 | D17: 98 | E17: 108 | F17: 98 | G17: 16 | H17: 21
A18: Otros diversos | C18: 216 | D18: 56 | E18: 46 | F18: 43 | G18: 25 | H18: 46
A19: Fuente : Elaboración propia en base en la iformacioón del Primer Centro Nacional de Instituciones de Formación Técnico -Profesional
A20: Nota: Las áreas de conocimiento corresponden a la clasificación CINE 1997 de UNESCO

Sheet I..2.8.4
A1: Ministerio de Educación y Cultura Dirección de Educación
A3: Cuadro I.2.8.4 | B3: Total de Estabecimientos por forma de administración, Grandes Áreas según Área de Conocimiento
A4: AREA DE CONOCIMIENTO | B4: TOTAL | C4: FORMA DE ADMINISTRACIÓN | E4: ÁREA GEOGRAFICA
C5: PÚBLICO | D5: PRIVADO | E5: MONTEVIDEO | F5: RESTO DEL PAÍS
A6: TOTAL | B6: 318 | C6: 20 | D6: 298 | E6: 213 | F6: 105
A7: Idiomas | B7: 85 | D7: 85 | E7: 49 | F7: 36
A8: Informática | B8: 39 | D8: 39 | E8: 16 | F8: 23
A9: Administración y Comercio | B9: 40 | D9: 40 | E9: 28 | F9: 12
A10: Artes | B10: 35 | C10: 1 | D10: 34 | E10: 29 | F10: 6
A11: Servicios Personales | B11: 13 | D11: 13 | E11: 11 | F11: 2
A12: Otros técnicos | B12: 42 | C12: 18 | D12: 24 | E12: 30 | F12: 12
A13: Otros diversos | B13: 64 | C13: 1 | D13: 63 | E13: 50 | F13: 14
A15: Fuente : Elaboración propia en base en la iformacioón del Primer Centro Nacional de Instituciones de Formación Técnico -Profesional. Nota: Las áreas de conocimiento corresponden a la clasificación CINE 1997 de UNESCO

Sheet I.2.8.5
A1: Ministerio de Educación y Cultura Dirección de Educación
A3: Cuadro I.2.8.5. ALUMNOS MATRICULADOS EN CURSOS DE EDUCACIÓN TÉCNICA (CETP-UTU) PARA JÓVENES Y ADULTOS POR SEXO Y GRANDES ÁREAS SEGÚN TIPO DE CURSO
A4: NIVEL EDUCATIVO MÁXIMO ALCANZADO | C4: TOTAL | D4: SEXO | F4: GRANDES ÁREAS
D5: Masculino | E5: Femenino | F5: Montevideo | G5: Resto del País
A6: TOTAL | C6: =C7+C8 -> 7546 | D6: =D7+D8 -> 3729 | E6: =E7+E8 -> 3817 | F6: =F7+F8 -> 4226 | G6: =G7+G8 -> 3320
A7: Nivel Básico | C7: =D7+E7 -> 6443 | D7: 3316 | E7: 3127 | F7: 3562 | G7: 2881
A8: Nivel Superior | C8: =D8+E8 -> 1103 | D8: 413 | E8: 690 | F8: 664 | G8: 439
A10: Fuente: U.T.U

Sheet I.2.8.6
A1: Ministerio de Educación y Cultura Dirección de Educación
A3: Cuadro I.2.8.6 ALUMNOS INGRESADOS Y MATRICULADOS EN CECAP POR SEXO SEGÚN GRANDES ÁREAS
A4: NIVEL EDUCATIVO MÁXIMO ALCANZADO | B4: TOTAL | C4: INGRESADOS | F4: MATRICULADOS
C5: Masculino | D5: Femenino | E5: TOTAL | F5: Masculino | G5: Femenino
A6: TOTAL | B6: =B7+B8 -> 835 | C6: 419 | D6: 416 | E6: 2060 | F6: 1067 | G6: 993
A7: Montevideo | B7: =C7+D7 -> 227 | C7: 115 | D7: 112 | E7: =F7+G7 -> 669 | F7: 355 | G7: 314
A8: Resto del país | B8: =C8+D8 -> 608 | C8: 304 | D8: 304 | E8: =F8+G8 -> 1391 | F8: 712 | G8: 679
A10: Fuente: Área de Educación No Formal de la Dirección de Educación - MEC

Sheet I.2.8.7.
A1: Ministerio de Educación y Cultura Dirección de Educación
A3: Cuadro I-2.8.7.
A4: ALUMNOS MATRICULADOS DEL COCAP SEGÚN TIPO DE CURSO Y ÁREA DE FORMACIÓN
A5: TIPO DE CURSO | C5: TOTAL | D5: SEXO
D6: Masculino | E6: Femenino
A7: TOTAL | C7: =C8+C9 -> 833 | D7: =D8+D9 -> 824 | E7: =E8+E9 -> 9
A8: Cursos Abiertos (Industrial) | C8: =D8+E8 -> 749 | D8: 740 | E8: 9
A9: Cursos Cerrados (Industrial) | C9: =D9+E9 -> 84 | D9: 84 | E9: 0
A11: Fuente: COCAP

Sheet I.2.8.8
A1: Ministerio de Educación y Cultura Dirección de Educación
A4: Cuadro I-2.8.8. FUNCIONARIOS PARTICIPANTES EN LOS CURSOS DE LA ENAP "DR. AQUILES LANZA", CANTIDAD DE CURSOS Y HORAS TIPO DE CURSO
A5: GRANDES ÁREAS | C5: FUNCIONARIOS PARTICIPANTES | D5: CANTIDAD DE CURSOS | E5: HORAS
A6: TOTAL | C6: =SUM(C7:C10) -> 4637 | D6: =SUM(D7:D10) -> 195 | E6: 9392
A7: Maestría en Políticas y Gestión Pública | C7: s/d | D7: s/d | E7: s/d
A8: Programas de Formación: Programa de Dirección Media, Diploma en Gestión Humana y Programa de Desarrollo Administrativo | C8: 175 | D8: 7 | E8: 2560
A9: Cursos y Seminarios | C9: 3843 | D9: 167 | E9: 6320
A10: Cursos e-learning | C10: 619 | D10: 21 | E10: 512
A12: Fuentes: Oficina Nacional del Servicio Civil - Escuela Nacional de Administración Pública "Dr. Aquiles Lanza"
A13: Nota: En el período 2011 no se dictó la Maestría en Políticas y Gestión Pública.

Sheet I.2.8.9.
A1: Ministerio de Educación y Cultura Dirección de Educación
A3: Cuadro I-2.8.9. ALUMNOS INGRESADOS Y MATRICULADOS EN CARRERAS NO TERCIARIAS EN UNIVERSIDADES E INSTITUTOS UNIVERSITARIOS
A4: UNIVERSIDADES E INSTITUTOS UNIVERSITARIOS | D4: INGRESADOS | G4: MATRICULADOS
C5: TOTAL | D5: SEXO | F5: TOTAL | G5: SEXO
D6: Masculino | E6: Femenino | G6: Masculino | H6: Femenino
A7: TOTAL | C7: =C8+C9 -> 1126 | D7: 727 | E7: 399 | F7: 4311 | G7: 3006 | H7: 1305
A8: Universidad ORT Uruguay | C8: =D8+E8 -> 905 | D8: 612 | E8: 293 | F8: =G8+H8 -> 4014 | G8: 2846 | H8: 1168
A9: Universidad de la Empresa | C9: =D9+E9 -> 221 | D9: 115 | E9: 106 | F9: =G9+H9 -> 297 | G9: 160 | H9: 137
A10: Fuente: Procesamiento propio en base a datos proporcionados por el Área de Educación No Formal, Dirección de Educación, MEC.

Sheet I-3.1.1
A1: Ministerio de Educación y Cultura
A3: Cuadro I-3.1.1
A4: ESCUELAS, MAESTROS Y ALUMNOS ATENDIDOS POR EL PROGRAMA MAESTROS COMUNITARIOS SEGÚN AÑO LECTIVO
A5: AÑO LECTIVO | C5: Escuelas | F5: Maestros comunitarios | G5: Alumnos
C6: Total | D6: Montevideo | E6: Resto del país | G6: atendidos
A7: 2005 | C7: 255 | D7: 97 | E7: 158 | F7: 437 | G7: 9292
A8: 2006 | C8: 252 | D8: 95 | E8: 157 | F8: 433 | G8: 14884
A9: 2007 | C9: 334 | D9: 101 | E9: 233 | F9: 553 | G9: 18163
A10: 2008 | C10: 334 | D10: 100 | E10: 234 | F10: 533 | G10: 16802
A11: 2009 | C11: 337 | D11: 101 | E11: 236 | F11: 553 | G11: 16166
A12: 2010 | C12: 337 | D12: 101 | E12: 236 | F12: 553 | G12: 16749
A13: 2011 | C13: 342 | D13: 104 | E13: 238 | F13: 554 | G13: 15680
A14: Fuente: | B14: Coordinación Técnica, Programa INFAMILIA / CEP INFAMILIA

Sheet I-3.1.2
A1: Ministerio de Educación y Cultura Dirección de Educación
A3: Cuadro I-3.1.2
A4: ESCUELAS, MAESTROS Y ALUMNOS ATENDIDOS POR EL PROGRAMA MAESTROS COMUNITARIOS SEGÚN AÑO LECTIVO
A5: AÑO LECTIVO | C5: Maestros comunitarios | D5: Escuelas
A6: Total | C6: 554 | D6: 342
A7: Requerimiento 1 | C7: 273 | D7: 152
A8: Requerimiento 2 | C8: 211 | D8: 124
A9: Requerimiento 3 | C9: 70 | D9: 66
A10: Fuente: | B10: Coordinación Técnica, Programa INFAMILIA / CEP INFAMILIA Nota: Todo el país (Año 2011)

Sheet I-3.1.3
A1: Ministerio de Educación y Cultura
A2: Dirección de Educación
A6: Cuadro I-3.1.3
A7: EDUCACIÓN FÍSICA ESCOLAR SEGÚN AÑO LECTIVO
A8: AÑO LECTIVO | C8: Escuelas | D8: Profesores | E8: Alumnos atendidos
A9: 2005 | C9: 160 | D9: 157 | E9: 67462
A10: 2006 | C10: 248 | D10: 238 | E10: 86473
A11: 2007 | C11: 245 | D11: 248 | E11: 88023
A12: 2008 | C12: 605 | D12: 605 | E12: 213858
A13: 2008 | C13: 1004 | D13: 973 | E13: 325164
A14: 2010 | C14: 1016 | D14: 977 | E14: 308260
A15: 2011 | C15: 1016 | D15: 977 | E15: 306318
A16: Nota: | B16: Todo el país (Año 2011)

Sheet I-3.1.4
A1: Ministerio de Educación y Cultura
A2: Dirección de Educación
A6: Cuadro I-3.1.4
A7: ESCUELAS, PROFESORES Y ALUMNOS ATENDIDOS POR EL PROGRAMA DE EDUCACIÓN FÍSICA ESCOLAR SEGÚN GRANDES ÁREAS
A8: AÑO LECTIVO | D8: Escuelas | E8: Profesores | F8: Alumnos atendidos
A9: Todo el país | D9: 1016 | E9: 977 | F9: 306318
A10: Montevideo | D10: 283 | E10: 308 | F10: 94724
A11: Resto del país | D11: 733 | E11: 669 | F11: 211594
A12: Fuente: | B12: Coordinación Técnica, Programa INFAMILIA / CEP INFAMILIA

Sheet I-3.1.5
A1: Ministerio de Educación y Cultura
A2: Dirección de Educación
A5: Cuadro I-3.1.5
A6: BECAS OTORGADAS EN 2011 POR PROGRAMAS DE BECAS Y SEXO SEGÚN GRANDES ÁREAS Y DEPARTAMENTO
A7: GRANDES ÁREAS / DEPTO. | C7: TOTAL | F7: PROGRAMAS DE BECAS
F8: Becas MEC | H8: Compromiso Educativo | J8: Becas del Fondo de Solidaridad | L8: Becas Carlos Quijano
C10: TOTAL | D10: SEXO | F10: SEXO | H10: SEXO | J10: SEXO
D11: Hombres | E11: Mujeres | F11: Hombres | G11: Mujeres | H11: Hombres | I11: Mujeres | J11: Hombres | K11: Mujeres
A12: Total | C12: 9204 | D12: 2592 | E12: 6600 | F12: 556 | G12: 880 | H12: 507 | I12: 1103 | J12: 1529 | K12: 4617 | L12: 12
A14: Montevideo | C14: 1916 | D14: 586 | E14: 1318 | F14: 255 | G14: 355 | H14: 162 | I14: 347 | J14: 169 | K14: 616 | L14: 12
A15: Resto del País | C15: 7288 | D15: 2006 | E15: 5282 | F15: 301 | G15: 525 | H15: 345 | I15: 756 | J15: 1360 | K15: 4001 | L15: s/d
A16: Artigas | C16: 564 | D16: 181 | E16: 383 | F16: 27 | G16: 31 | H16: 71 | I16: 114 | J16: 83 | K16: 238
A17: Canelones | C17: 1444 | D17: 375 | E17: 1069 | F17: 54 | G17: 101 | H17: 100 | I17: 230 | J17: 221 | K17: 738
A18: Cerro Largo | C18: 287 | D18: 75 | E18: 212 | F18: 16 | G18: 36 | H18: 0 | I18: 0 | J18: 59 | K18: 176
A19: Colonia | C19: 522 | D19: 151 | E19: 371 | F19: 12 | G19: 20 | H19: 23 | I19: 64 | J19: 116 | K19: 287
A20: Durazno | C20: 240 | D20: 67 | E20: 173 | F20: 8 | G20: 23 | H20: 0 | I20: 0 | J20: 59 | K20: 150
A21: Flores | C21: 130 | D21: 38 | E21: 92 | F21: 8 | G21: 7 | H21: 0 | I21: 0 | J21: 30 | K21: 85
A22: Florida | C22: 319 | D22: 84 | E22: 235 | F22: 19 | G22: 12 | H22: 0 | I22: 0 | J22: 65 | K22: 223
A23: Lavalleja | C23: 199 | D23: 56 | E23: 143 | F23: 12 | G23: 14 | H23: 0 | I23: 0 | J23: 44 | K23: 129
A24: Maldonado | C24: 170 | D24: 49 | E24: 121 | F24: 10 | G24: 16 | H24: 0 | I24: 0 | J24: 39 | K24: 105
A25: Paysandú | C25: 652 | D25: 189 | E25: 463 | F25: 21 | G25: 37 | H25: 60 | I25: 175 | J25: 108 | K25: 251
A26: Rio Negro | C26: 201 | D26: 59 | E26: 142 | F26: 12 | G26: 16 | H26: 0 | I26: 0 | J26: 47 | K26: 126
A27: Rivera | C27: 546 | D27: 151 | E27: 395 | F27: 16 | G27: 44 | H27: 53 | I27: 125 | J27: 82 | K27: 226
A28: Rocha | C28: 207 | D28: 56 | E28: 151 | F28: 15 | G28: 19 | H28: 0 | I28: 0 | J28: 41 | K28: 132
A29: Salto | C29: 594 | D29: 172 | E29: 422 | F29: 19 | G29: 47 | H29: 26 | I29: 34 | J29: 127 | K29: 341
A30: San José | C30: 413 | D30: 92 | E30: 321 | F30: 13 | G30: 23 | H30: 0 | I30: 0 | J30: 79 | K30: 298
A31: Soriano | C31: 302 | D31: 78 | E31: 224 | F31: 16 | G31: 20 | H31: 12 | I31: 14 | J31: 50 | K31: 190
A32: Tacuarembó | C32: 347 | D32: 91 | E32: 256 | F32: 16 | G32: 34 | H32: 0 | I32: 0 | J32: 75 | K32: 222
A33: Treinta y Tres | C33: 151 | D33: 42 | E33: 109 | F33: 7 | G33: 25 | H33: 0 | I33: 0 | J33: 35 | K33: 84
A34: Fuente: | B34: Área de Becas, Dir. de Edu, MEC; Fondo de Solidaridad.

Sheet I.3.1.6.
A1: Ministerio de Educación y Cultura Dirección de Educación
A6: Cuadro I-3.1.6
A7: BECAS DE APOYO ECONÓMICO DEL MEC OTORGADAS EN 2011 POR CICLO Y CONSEJO DESCONCENTRADO SEGÚN GRANDES ÁREAS Y DEPARTAMENTO
A8: GRANDES ÁREAS / DEPTO. | C8: TOTAL | D8: EDUCACIÓN MEDIA BÁSICA | H8: EDUCACIÓN MEDIA SUPERIOR
D9: PPEE | E9: CES | F9: CEIP | G9: CETP | H9: CES | I9: Emt – Emp
A10: Total | C10: 1436 | D10: 12 | E10: 653 | F10: 17 | G10: 174 | H10: 433 | I10: 147
A12: Montevideo | C12: 610 | D12: 10 | E12: 358 | F12: 0 | G12: 77 | H12: 121 | I12: 44
A13: Resto del interior | C13: 826 | D13: 2 | E13: 295 | F13: 17 | G13: 97 | H13: 312 | I13: 103
A15: Artigas | C15: 58 | D15: 0 | E15: 20 | F15: 2 | G15: 7 | H15: 26 | I15: 3
A16: Canelones | C16: 155 | D16: 0 | E16: 61 | F16: 0 | G16: 17 | H16: 70 | I16: 7
A17: Cerro Largo | C17: 52 | D17: 0 | E17: 13 | F17: 0 | G17: 13 | H17: 18 | I17: 8
A18: Colonia | C18: 32 | D18: 0 | E18: 6 | F18: 6 | G18: 4 | H18: 7 | I18: 9
A19: Durazno | C19: 31 | D19: 0 | E19: 15 | F19: 0 | G19: 1 | H19: 13 | I19: 2
A20: Flores | C20: 15 | D20: 0 | E20: 4 | F20: 0 | G20: 3 | H20: 1 | I20: 7
A21: Florida | C21: 31 | D21: 0 | E21: 9 | F21: 0 | G21: 6 | H21: 15 | I21: 1
A22: Lavalleja | C22: 26 | D22: 0 | E22: 6 | F22: 2 | G22: 5 | H22: 6 | I22: 7
A23: Maldonado | C23: 26 | D23: 0 | E23: 8 | F23: 0 | G23: 5 | H23: 10 | I23: 3
A24: Paysandú | C24: 58 | D24: 2 | E24: 20 | F24: 2 | G24: 5 | H24: 13 | I24: 16
A25: Rio Negro | C25: 28 | D25: 0 | E25: 9 | F25: 0 | G25: 5 | H25: 11 | I25: 3
A26: Rivera | C26: 60 | D26: 0 | E26: 26 | F26: 4 | G26: 0 | H26: 30 | I26: 0
A27: Rocha | C27: 34 | D27: 0 | E27: 10 | F27: 0 | G27: 7 | H27: 8 | I27: 9
A28: Salto | C28: 66 | D28: 0 | E28: 30 | F28: 0 | G28: 3 | H28: 18 | I28: 15
A29: San José | C29: 36 | D29: 0 | E29: 15 | F29: 0 | G29: 2 | H29: 17 | I29: 2
A30: Soriano | C30: 36 | D30: 0 | E30: 6 | F30: 0 | G30: 12 | H30: 8 | I30: 10
A31: Tacuarembó | C31: 50 | D31: 0 | E31: 22 | F31: 1 | G31: 1 | H31: 25 | I31: 1
A32: Treinta y Tres | C32: 32 | D32: 0 | E32: 15 | F32: 0 | G32: 1 | H32: 16 | I32: 0
A33: Fuente: | B33: Área de Becas, Dir. de Edu, MEC; Fondo de Solidaridad.

Sheet I-.3.1.7
A1: Ministerio de Educación y Cultura
A2: Dirección de Educación
A5: Cuadro I-3.1.7
A6: BECAS DEL FONDO DE SOLIDARIDAD OTORGADAS EN 2011 POR SEXO SEGÚN GRANDES ÁREAS Y DEPARTAMENTO
A7: GRANDES ÁREAS / DEPTO. | C7: TOTAL | D7: SEXO
D8: Masculino | E8: Femenino
A9: Total | C9: 6146 | D9: 1529 | E9: 4538
A11: Montevideo | C11: 785 | D11: 169 | E11: 616
A12: Resto del interior | C12: 5361 | D12: 1360 | E12: 4001
A13: Artigas | C13: 321 | D13: 83 | E13: 238
A14: Canelones | C14: 959 | D14: 221 | E14: 738
A15: Cerro Largo | C15: 235 | D15: 59 | E15: 176
A16: Colonia | C16: 403 | D16: 116 | E16: 287
A17: Durazno | C17: 209 | D17: 59 | E17: 150
A18: Flores | C18: 115 | D18: 30 | E18: 85
A19: Florida | C19: 288 | D19: 65 | E19: 223
A20: Lavalleja | C20: 173 | D20: 44 | E20: 129
A21: Maldonado | C21: 144 | D21: 39 | E21: 105
A22: Paysandú | C22: 359 | D22: 108 | E22: 251
A23: Rio Negro | C23: 173 | D23: 47 | E23: 126
A24: Rivera | C24: 308 | D24: 82 | E24: 226
A25: Rocha | C25: 173 | D25: 41 | E25: 132
A26: Salto | C26: 468 | D26: 127 | E26: 341
A27: San José | C27: 377 | D27: 79 | E27: 298
A28: Soriano | C28: 240 | D28: 50 | E28: 190
A29: Tacuarembó | C29: 297 | D29: 75 | E29: 222
A30: Treinta y Tres | C30: 119 | D30: 35 | E30: 84
A31: Fuente: | B31: Área de Becas, Dir. de Edu, MEC; Fondo de Solidaridad.

Sheet I-3.1.8
A1: Ministerio de Educación y Cultura
A2: Dirección de Educación
A5: Ministerio de Educación y Cultura
A6: Dirección de Educación
A8: Cuadro I-3.1.8
A9: PORCENTAJE DE PERSONAS DE 6 AÑOS Y MÁS QUE UTILIZARON PC EL ÚLTIMO MES Y DE HOGARES CON ACCESO A INTERNET POR ÁREA GEOGRÁFICA SEGÚN AÑO LECTIVO
A10: AÑO LECTIVO | C10: % PERSONAS DE 6 AÑOS Y MÁS QUE UTILIZARON PC EL ÚLTIMO MES | E10: % HOGARES CON ACCESO A INTERNET
C11: Todo el país | D11: Áreas urbanas | E11: Todo el país | F11: Áreas urbanas
A12: 2006 | C12: 24.4 | D12: 26.4 | E12: 13.5 | F12: 14.8
A13: 2007 | C13: 28.2 | D13: 30.3 | E13: 15.8 | F13: 17.4
A14: 2008 | C14: 35.3 | D14: 37.3 | E14: 20.6 | F14: 22.6
A15: 2009 | C15: 47.6 | D15: 49.3 | E15: 27.7 | F15: 30.5
A16: 2010 | C16: 53.4 | D16: 53.4 | E16: 33.5 | F16: 37.4
A17: 2011 | C17: 60 | D17: 62.3 | E17: 43.8 | F17: 47.1
A18: Fuente: | B18: Plan Ceibal con base en la ENHA 2006 y las ECH 2007 a 2011 del INE.

Sheet I-3.3.1
A1: Ministerio de Educación y Cultura
A2: Dirección de Educación
A6: Cuadro I-3.3.1
A7: GASTO EN MILLONES DE PESOS CONSTANTES DE 2006 POR AÑO LECTIVO SEGÚN ÁMBITO DEL GASTO (2004 - 2011)
A8: ÁMBITO DEL GASTO | B8: AÑO LECTIVO
B9: 2004 | C9: 2005 | D9: 2006 | E9: 2007 | F9: 2008 | G9: 2009 | H9: 2010 | I9: 2011
A11: TOTAL | B11: 13806 | C11: 14406 | D11: 15866 | E11: 18883 | F11: 22388 | G11: =G12+G15+G19+G20+G23+G24 -> 25023 | H11: =H12+H15+H19+H20+H23+H24 -> 25608.20163 | I11: =I12+I15+I19+I20+I23+I24 -> 28090.37611
A12: Inst. básicas del sist. educación formal | B12: 12883 | C12: 13314 | D12: 14345 | E12: 16157 | F12: 19010 | G12: 22020 | H12: 22218.74291 | I12: 24360.78088
A13: ANEP | B13: 10337 | C13: 10702 | D13: 11455 | E13: 12881 | F13: 15223 | G13: 17662 | H13: 17771.8124 | I13: 19422.88393
A14: UDELAR | B14: 2546 | C14: 2612 | D14: 2890 | E14: 3276 | F14: 3787 | G14: 4357 | H14: 4446.93051 | I14: 4937.896944
A15: Administración Central e Inciso 21 | B15: 656 | C15: 733 | D15: 1079 | E15: 1152 | F15: 1327 | G15: 1294 | H15: 1523.082115 | I15: 1734.117378
A16: Educación policial y militar | B16: 391 | C16: 436 | D16: 482 | E16: 569 | F16: 608 | G16: 628 | H16: 694.2412637 | I16: 708.7408959
A17: Otros Administración Central1 | B17: 69 | C17: 91 | D17: 185 | E17: 159 | F17: 257 | G17: 164 | H17: 263.1640961 | I17: 390.1556544
A18: Partidas del inciso 21 con destino a educación2 | B18: 196 | C18: 206 | D18: 412 | E18: 424 | F18: 462 | G18: 502 | H18: 565.6767556 | I18: 635.2208281
A19: Educación no formal inicial (CAIF) y CENFORES | B19: 141 | C19: 191 | D19: 240 | E19: 281 | F19: 473 | G19: 540 | H19: 535.6258651 | I19: 666.6665992
A20: Ciencia y Tecnología | B20: 126 | C20: 168 | D20: 202 | E20: 299 | F20: 291 | G20: 206 | H20: 229.9738005 | I20: 278.1368348
A21: MEC3 | B21: 109 | C21: 125 | D21: 147 | E21: 240 | F21: 161 | G21: 79 | H21: 84.64402293 | I21: 73.69579869
A22: PEDECIBA, Instituto Pasteur, ANII4 | B22: 17 | C22: 43 | D22: 55 | E22: 59 | F22: 129 | G22: 127 | H22: 145.3297776 | I22: 204.4410361
A23: Plan Ceibal | B23: 0 | C23: 0 | D23: 0 | E23: 497 | F23: 1203 | G23: 801 | H23: 908.9556789 | I23: 843.9074011
A24: Incentivo a la demanda educativa en secundaria | B24: 0 | C24: 0 | D24: 0 | E24: 0 | F24: 84 | G24: 162 | H24: 191.8212572 | I24: 206.7670244
A26: Fuentes: Elaborado en base a datos del MEF.

Sheet I-4.5.1
A1: Ministerio de Educación y Cultura
A2: Dirección de Educación
A6: Cuadro I-4.5.1
A7: INDICADORES Y VALORES 2008 a 2011 PARA LA META NACIONAL 3 (ODM)
A8: Asistencia (%) al sistema educativo del grupo 3 a 5 por edad simple: | D8: 2008 | E8: 2009 | F8: 2010 | G8: 2011
C10: 3 años | D10: 53.8 | E10: 58.5 | F10: 61.3 | G10: 60.4
C11: 4 años | D11: 83 | E11: 86.6 | F11: 86.1 | G11: 86.1
C12: 5 años | D12: 96.9 | E12: 97.3 | F12: 97.3 | G12: 96.3
A13: Tasa neta de asistencia a Educ. Media Básica (12 a 14 años) | D13: 69.2 | E13: 73.1 | F13: 73.4 | G13: 75.9
A14: Tasa neta de asistencia e Educ. Media Superior (15 a 17 años) | D14: 53.2 | E14: 47.6 | F14: 43.2 | G14: 50.5
A15: Fuente: | B15: Procesamiento propio con base en la Encuesta Continua de Hogares 2010

Sheet I-4.5.2
A1: Ministerio de Educación y Cultura
A2: Dirección de Educación
A5: Cuadro I-4.5.2
A6: INDICADORES Y VALORES 2011 PARA LAS METAS ESPECÍFICAS NACIONALES (Metas 2021)
A8: INDICADOR: | G8: VALOR | I8: META 2021
G9: 2011
A11: Indicador 1: Número de proyectos en los que diferentes sectores sociales participan y que se aplican de forma integrada | G11: Muchas | I11: Incrementar anualmente
A12: Indicador 2: Porcentaje de familias con dificultades socioeconómicas que reciben apoyo para garantizar la asistencia habitual de sus hijos | G12: Más del 70 % | I12: 1
A13: Indicador 3: Porcentaje de niños de estos colectivos escolarizados en la educación inicial, primaria y secundaria básica | G13: s/d | I13: Igual demás niños
A14: Indicador 4: Porcentaje de alumnado de minorías étnicas, poblaciones originarias y afro descendientes que realiza estudios de educación técnico-profesional (ETP) y universitarios. | E14: Educación Técnico-profesional | G14: s/d | I14: +2% por año
E15: Educación Universitaria | G15: s/d | I15: +1% por año
A16: Indicador 5: Porcentaje de alumnos pertenecientes a minorías étnicas y pueblos originarios que dispone de libros y materiales educativos en su lengua materna | I16: No aplica
A17: Indicador 6: Porcentaje de maestros bilingües trabajando en las aulas bilingües con estudiantes que hablan en su mismo idioma originario
A18: Indicador 7: Porcentaje de alumnos con necesidades educativas especiales escolarizados en la escuela ordinaria | I18: 0.04
A19: Indicador 8: Porcentaje de niñas y niños de 0 a 6 años que participa en programas educativos | D19: Niños de 0 a 3 años de edad | G19: 0.32 | I19: 20% a 50%
D20: Niños de 3 a 6 años de edad | G20: 0.8 | I20: 1
A21: Indicador 9: Porcentaje de educadores que tienen el título específico de educación inicial | D21: Educadores titulados en 1era infancia (0 a 2 años) | G21: 0.3 | I21: 60% al 100%
D22: Educadores titulados en Educación Inicial (3 a 5 años) | G22: 0.9
A23: Indicador 10: Porcentaje de escolarización y de finalización de la educación primaria | D23: Escolarización[1] | G23: 0.94 | I23: 80% al 100%
D24: Finalización[2] | G24: 0.79 | I24: > 90%
A25: Indicador 11: Porcentaje de escolarización y de finalización de la educación secundaria básica | D25: Escolarización[3] | G25: 0.74 | I25: 70% al 100%
D26: Finalización[4] | G26: 0.66 | I26: 60% al 90%
A27: Indicador 12: Porcentaje de alumnado que completa la educación secundaria superior[5] | G27: 0.31 | I27: 60% al 90%
A28: Indicador 13: Porcentaje de alumnos con niveles satisfactorios de logro en competencias básicas en las pruebas nacionales e internacionales | D28: PISA (Lectura) 2009 | G28: 0.58 | I28: Disminuye en al menos un 20% el número de alumnos situados entre los dos niveles bajos de rendimiento en las pruebas
D29: PISA (Matemática) 2009 | G29: 0.52
D30: PISA (Ciencias) 2009 | G30: 0.57
D31: SERCE (Lectura) 2006 | G31: 0.95
D32: SERCE (Matemática) 2006 | G32: 0.98
D33: SERCE (Ciencias) 2006 | G33: 0.98
A34: Indicador 14: Actualización de la educación en valores y para la ciudadanía en los currículos de las diferentes etapas educativas | G34: Está reforzada la educación en valores y para la ciudadanía en las distintas áreas y materias.
A35: Indicador 15: Tiempo semanal de lectura en las distintas etapas | D35: Primaria | G35: 4 hs o más | I35: ³ ≥ 3 hs
D36: Secundaria | G36: 2 hs | I36: ³ ≥ 2 hs
A37: Indicador 16:Frecuencia de uso del computador en la escuela por los alumnos para tareas de aprendizaje. | G37: Todas las materias. | I37: De forma habitual
A38: Indicador 17: Tiempo semanal dedicado a la educación artística y a la educación física en las escuelas. | D38: Primaria, media de hs (Artística) | G38: s/d | I38: ³ ≥ 3 hs
D39: Secundaria, media de hs (Artística) | G39: 4 hs | I39: ³ ≥ 2 hs
D40: Primaria, media de hs (Edu. Física) | G40: 3 hs | I40: ³ ≥ 3 hs
D41: Secundaria, media de hs (Edu. Física) | G41: 3 hs | I41: ³ ≥ 2 hs
A42: Indicador 18: Porcentaje de alumnos que elige formación científica o | G42: s/d | I42: 0.2
A43: técnica en los estudios postobligatorios.
A44: Indicador 19: Porcentaje de escuelas con bibliotecas[6] | G44: 0.878 | I44: 1
A45: Indicador 20: Razón de alumnos por computador | G45: 0.018 | I45: 10 a 2
A46: Indicador 21: Porcentaje de escuelas públicas de primaria de tiempo completo | G46: 0.07 | I46: 20% al 50%
A47: Indicador 22:Porcentaje de escuelas que participan en programas de evaluación | G47: s/d | I47: 40% al 80%
A48: Indicador 23: Porcentaje de carreras técnico-profesionales cuyos currículos son diseñados por competencias teniendo en cuenta la demanda laboral | C48: Existen currículos de carreras Técnico-profesionales diseñados por competencias básicas | G48: s/d | I48: 50% al 100%
C49: La elaboración de los currículos de carreras técnico-profesionales tienen en cuenta la demanda laboral | G49: s/d
A50: Indicador 24: Porcentaje de alumnos que realizan prácticas formativas en empresas | G50: s/d | I50: 1
A51: Indicador 25: Porcentaje de jóvenes que acceden a un puesto de trabajo acorde a sus estudios de ETP | G51: s/d | I51: 50% al 75%
A52: Indicador 26: Porcentaje de población alfabetizada | G52: 0.983 | I52: 0.95
A53: Indicador 27: Porcentaje de personas jóvenes y adultas recién alfabetizadas que continúan estudiando | G53: s/d | I53: 30% al 70%
A54: Indicador 28: Porcentaje de jóvenes y adultos que participa en programas de formación y capacitación continua presenciales y a distancia | G54: s/d | I54: 0.2
A55: Indicador 29: Porcentaje de titulación en formación inicial docente con acreditación oficial de su calidad | D55: CINE 1 | F55: CEIP | G55: 1 | I55: 50% al 100%
F56: CES y CETP | G56: 0.548
A57: Indicador 30: Porcentaje de profesorado de primaria con formación especializada en docencia superior al nivel de la Clasificación Internacional Normalizada de la Educación (CINE, nivel 3), y porcentaje de profesorado de secundaria con formación universitaria y pedagógica | D57: Porcentaje de maestros de primaria (CINE 1) que tienen una formación especializada en docencia, superior a la clasificación CINE 3 | G57: 1 | I57: 70% al 100%
D58: Porcentaje de profesorado de secundaria (CINE 2) que tiene una formación universitaria y capacitación pedagógica | G58: 0.144
A59: Indicador 31: Porcentaje de docentes que participan en programas de formación continua e innovación educativa | G59: Más del 80% | I59: ³ ≥ 35%
A60: Fuente: | B60: OEI (2011). Miradas sobre la Educación en Iberoamérica 2011, Consejo Rector, IESME, OEI.
A62: [1] Tasa neta de matriculación en Educación Primaria (niños de 6 a 11 años de edad; ECH-2011).
A63: [2] Niños de 14 y 15 años de edad con Educación Primaria culminada (ECH-2011).
A64: [3] Tasa neta de matriculación en Educación Media Básica (niños y jóvenes de 12 a 14 años de edad; ECH-2011).
A65: [4] Jóvenes de 17 y 18 años de edad con Educación Media Básica concluida (ECH-2011).
A66: [5] Jóvenes de 21y 22 años de edad con Educación Media Superior concluida (ECH-2011).
A67: [6] Sólo se contabilizan escuelas con bibliotecas con volúmenes en papel; no se contabiliza las bibliotecas digitales incluidas en las XO del Plan Ceibal (en dicho caso se alcanzaría el 100%).

Sheet G I-1.2.1
A1: Ministerio de Educación y Cultura Dirección de Educación
A6: Gráfico I-1.2.1
A31: Fuente: Censos de Población 1963, 1975, 1985 y 1996, ENHA 2006 y ECH de 2007 a 2011 del INE.

Sheet G I-1.2.2.
A1: Ministerio de Educación y Cultura Dirección de Educación
A5: Gráfico I-1.2.2
A29: Fuente: Elaboración propia en base a Encuesta Continua de Hogares 2011.

Sheet G I-1.2.3
A1: Ministerio de Educación y Cultura Dirección de Educación
A5: Gráficos I-1.2.3
A29: Fuente: Elaboración propia en base a la ECH

Sheet G I-1.2.4
A1: Ministerio de Educación y Cultura Dirección de Educación
A5: Gráfico I-1.2.4
A29: Fuente: | B29: Elaboración propia en base a la ECH 2011 del INE.

Sheet G I-1.2.5
A1: Ministerio de Educación y Cultura Dirección de Educación
A5: Gráfico I-1.2.5
A29: Fuente: | B29: Elaboración propia en base a la ECH 2011 del INE.

Sheet G I-1.2.6
A1: Ministerio de Educación y Cultura Dirección de Educación
A5: Gráfico I-1.2.6
A27: Fuentes: | B27: Departamentos de Estadística u oficinas productoras de información del CEIP, CES, CETP, UdelaR, DFPD, INAU, y restantes instituciones públicas y privadas de educación terciaria.

Sheet G I-1.2.7
A1: Ministerio de Educación y Cultura Dirección de Educación
A5: Gráfico I-1.2.7
A29: Fuentes: | B29: Departamentos de Estadística y oficinas productoras de información del CEIP, CES, CETP (UTU), UdelaR e instituciones privadas de educación terciaria.
A30: Nota: | B30: Por razones de escala, no se incluye Terciaria No Universitaria 2011. No se cuenta con información sobre la cantidad de hombres y mujeres en Formación Docente, sólo existe esta información para Seguridad y Defensa y Otras Terciarias No Universitarias, que constituyen un volumen de matrícula demasiado bajo como para poder visualizarse en el gráfico.

Sheet G I-1.2.8
A1: Ministerio de Educación y Cultura Dirección de Educación
A5: Gráfico I-1.2.8
A6: Gráfico I-1.2.8
A29: Fuentes: | B29: Departamentos de Estadística u oficinas productoras de información del CEIP, CES, CETP (UTU), UdelaR, CFE e instituciones privadas de educación terciaria.

Sheet G I-1.2.9
A1: Ministerio de Educación y Cultura Dirección de Educación
A3: Gráfico I-1.2.9
A26: Fuentes : Departamentos de Estadística y oficinas productoras de informacion del CEIP. CES,CETP , (UTU) . UELAR e instituciones privadas de educacion terciaria.
A27: Nota: Por razonesde escala , n se incluye Terciaria No Universitaria 2011. No se cuenta informacion sobre la cantidad de mujres y hombres en Formación Docente, sólo existe esta información para Seguridad y Defensa y Otras Terciarias No Universitarias, que constituyen un columen de matrícula demasido bajo como para poder visualizarse en el gráfico.

Sheet G I-1.2.10
A1: Ministerio de Educación y Cultura Dirección de Educación
A3: Gráfico I-1.2.10
A27: Fuente : Elaboración propia en base a ECH

Sheet G I-1.2.11
A1: Ministerio de Educación y Cultura Dirección de Educación
A5: Gráfico I-1.2.11
A29: Fuente : Elaboración propia en base a la ECH 2011

Sheet G I-1.2.12
A1: Ministerio de Educación y Cultura Dirección de Educación
A5: Gráfico I-1.2.12
A28: Fuente : Elaboración propia en base a la ECH 2011

Sheet G I-1.2.13
A1: Ministerio de Educación y Cultura Dirección de Educación
A5: Gráfico I-1.2.13
A28: Fuente: Elaboración propia en base a Encuesta Continua de Hogares 2011.

Sheet G I-1.2.14
A1: Ministerio de Educación y Cultura Dirección de Educación
A5: Gráfico I-1.2.14
A26: Fuente : Elaboración propia en base a la ECH 2011

Sheet G I-1.2.15
A1: Ministerio de Educación y Cultura Dirección de Educación
A5: Gráfico I-1.2.15
A25: Fuente : Elaboración propia en base a la ECH 2011

Sheet G I-1.2.16
A1: Ministerio de Educación y Cultura Dirección de Educación
A5: Gráfico I-1.2.16
A25: Fuente : Elaboración propia en base a la ECH 2011

Sheet G I-1.2.17
A1: Ministerio de Educación y Cultura Dirección de Educación
A5: Gráfico I-1.2.17
A42: Fuente: Elaboración propia en base a Encuesta Continua de Hogares 2011.

Sheet G I-1.2.18
A1: Ministerio de Educación y Cultura Dirección de Educación
A5: Gráfico I-1.2.18
A29: Fuente: Elaboración propia en base a la ECH 2011.

Sheet G I-1.2.19
A1: Ministerio de Educación y Cultura Dirección de Educación
A5: Gráfico I-1.2.19
A27: Fuente: Elaboración propia en base a la ECH 2011.

Sheet G I-1.2.20
A1: Ministerio de Educación y Cultura Dirección de Educación
A4: Gráfico I-1.2.20
A27: Fuente: Elaboración propia en base a la ECH 2011.

Sheet G I-1.2.21
A1: Ministerio de Educación y Cultura Dirección de Educación
A3: Gráfico I-1.2.21
A18: Fuente: Elaboración propia en base a la ECH 2011.

Sheet G I-2.1.1
A1: Ministerio de Educación y Cultura Dirección de Educación
A5: Gráfico I-2.1.1
A33: Fuente: | B33: Elaboración propia en base en datos del Departamento de Estadística del CEIP, Sistema de Información para la Infancia de INAU Programa Nuestros Niños de la IMM y Área de Investigación y Estadística, MEC (CEIP)

Sheet G I-2.1.2
A1: Ministerio de Educación y Cultura Dirección de Educación
A5: Gráfico I-2.1.2
A40: Fuente: | B40: Elaboración propia en base a datos del Departamento de Estadística del CEIP, Sistema de Información para la Infancia de INAU y Área de Primera Infancia del MEC
A41: Nota: | B41: En el presente gráfico no se han incluido los 1.222 niños que asisten al Programa Nuestros Niños de la IMM ni los 1.505 que asisten al INAU en la modalidad “Diurna”

Sheet G I-2.1.3
A1: Ministerio de Educación y Cultura Dirección de Educación
A5: Gráfico I-2.1.3
A29: Fuente: | B29: Elaboración propia en base a datos del Departamento de Estadística del CEIP, Sistema de Información para la Infancia de INAU y Área de Primera Infancia del MEC
A30: Nota: | B30: En el presente gráfico no se han incluido los 1.222 niños que asisten al Programa Nuestros Niños de la IMM ni los 1.505 que asisten al INAU en la modalidad “Diurna”

Sheet G I-2.1.4
A1: Ministerio de Educación y Cultura Dirección de Educación
A5: Gráfico I-2.1.4
A29: Fuente: Elaboración propia en base a información del Departamento de Estadística del CEIP.

Sheet G I-2.1.5
A1: Ministerio de Educación y Cultura Dirección de Educación
A5: Gráfico I-2.1.5
A30: Fuente: Elaboración propia en base a información del Departamento de Estadística del CEIP.

Sheet G I-2.2.1
A1: Ministerio de Educación y Cultura Dirección de Educación
A6: Gráfico I-2.2.1
B29: Elaboración propia en base a datos del Departamento de Estadística del CEIP.
A30: Fuente:
A31: Nota: | B31: Educación primaria común incluye la matrícula de educación en Jardines de Infantes con Ciclo Inicial (JICI) compuesta por 783 alumnos.

Sheet G I-2.2.2
A1: Ministerio de Educación y Cultura Dirección de Educación
A6: Gráfico I-2.2.2
A29: Fuente: Elaboración propia en base a datos proporcionados por el Departamento de Estadística del CEIP.

Sheet G I-2.2.3
A1: Ministerio de Educación y Cultura Dirección de Educación
A5: Gráfico I-2.2.3
A30: Fuente: Monitor Educativo de Enseñanza Primaria ANEP.

Sheet G I-2.2.4
A1: Ministerio de Educación y Cultura Dirección de Educación
A5: Gráfico I-2.2.4
A27: Fuente: Monitor Educativo de Enseñanza Primaria. ANEP

Sheet G I-2.3.1
A1: Ministerio de Educación y Cultura Dirección de Educación
A5: Gráfico I-2.3.1
A30: Fuente: Departamentos de Estadísticas del CEIP, CES y CETP
A31: Nota: Incluye Ciclo Básico Rural, Media General y Media Técnica.
A32: Enseñanza técnica incluye educación de Jóvenes y Adultos y excuye educación Terciaria

Sheet G I-2.3.2
A1: Ministerio de Educación y Cultura Dirección de Educación
A5: Gráfico I-2.3.2
A30: Fuente: Departamentos de Estadísticas del CEIP, CES y CETP
A31: Nota: Incluye Ciclo Básico Rural, enseñanza secundaria y enseñanza técnica
A32: El cambio en la tendencia en Bachillerato se explica por el peso de la matrícula del CEPT en 2009.
A33: En dicho año se transformó la estructura de la Educación Superior con la subsiguiente incorporación de
A34: Bachillerato Figari, Bachillerato Profesional, EMP Especialización y Articulación en tanto se eliminó

Sheet G I-2.3.3
A1: Ministerio de Educación y Cultura Dirección de Educación
A5: Gráfico I-2.3.3
A28: Fuente Departamentos de Estadísticas del CEIP, CES y CETP.

Sheet G I-2.3.4
A1: Ministerio de Educación y Cultura Dirección de Educación
A5: Gráfico I-2.3.4
A26: Fuente: | B26: Departamentos de Estadística del CEIP, CES y del CETP
A27: Nota: | B27: Media Básica General incluye Ciclo Básico Rural

Sheet G I-2.3.5.
A1: Ministerio de Educación y Cultura Dirección de Educación
A5: Gráfico I-2.3.5
A33: Fuente: | B33: Departamento de Estadística del CES.
A34: Nota: | B34: La matrícula de la oferta pública no incluye la correspondiente a enseñanza técnica, por no contarse con información sobre la oferta técnica privada.

Sheet GI-2.3.6
A1: Ministerio de Educación y Cultura Dirección de Educación
A5: Gráfico I-2.3.6
A29: Fuente: Departamento de Estadística del CES.
A30: Nota: La matrícula de la oferta pública no incluye la correspondiente a enseñanza técnica, por no contarse con información sobre la oferta técnica privada.

Sheet GI-2.3.7
A1: Ministerio de Educación y Cultura Dirección de Educación
A5: Gráfico I-2.3.7
A28: Fuente: Departamento de Estadística del CES.
A29: Nota: La matrícula de la oferta pública no incluye la correspondiente a enseñanza técnica, ni liceos de extraedad y Plan 2003
A30: y Plan 2003 (TEMS)

Sheet G I-2.3.8
A1: Ministerio de Educación y Cultura Dirección de Educación
A5: Gráfico I-2.3.8
A33: Fuente: Departamentos de Estadística del CES y del CETP.

Sheet G I-2.3.9
A1: Ministerio de Educación y Cultura Dirección de Educación
A5: Gráfico I-2.3.9
A33: Fuente: Departamento de Estadística del CES.
A34: Nota: La matrícula de la oferta pública no incluye la correspondiente a enseñanza técnica

Sheet GI-2.3.10
A1: Ministerio de Educación y Cultura Dirección de Educación
A5: Gráfico I-2.3.10
A28: Fuente: | B28: Elaboración propia en base a información del Departamento de Estadística del CETP.
A29: Nota: | B29: No incluye educación Terciaria.

Sheet G I-2.4.1.
A1: Ministerio de Educación y Cultura Dirección de Educación
A5: Gráfico I-2.4.1
A32: Fuente: Elaboración propia en base a información del Departamento de Estadística del CETP.
A33: Nota: El total no incluye Nivel Terciario.

Sheet G I-.2.5.1
A1: Ministerio de Educación y Cultura Dirección de Educación
A5: Gráfico I-2.5.1
B27: Elaboración propia en base a información del Departamento de Estadística del CETP
A28: Fuente:
A29: Notas: | B29: No incluye las ofertas del Consejo de Formación en Educación (CFE) de ANEP ni Seguridad y Defensa, que se presentan aparte más adelante.
B30: En 2005 el ISEF no reportó información, de manera que se incluye el último dato disponible: 1181 matriculados (2004). A partir de 2006 reportó en UdelaR porque pasó a formar parte de dicha institución.

Sheet G I-.2.5.2
A1: Ministerio de Educación y Cultura Dirección de Educación
A5: Gráfico I-2.5.2
A20: Fuente:
A27: Elaboración propia en base a información proporcionada por las oficinas productoras de estadísticas de cada una de las instituciones.

Sheet G-.2.5.3
A1: Ministerio de Educación y Cultura Dirección de Educación
A5: Gráfico I-2.5.4
A27: Fuente: | B27: Elaboración propia en base a información proporcionada por las oficinas productoras de estadísticas de cada una de las instituciones.

Sheet G I-2.5.4.
A1: Ministerio de Educación y Cultura Dirección de Educación
A5: Gráfico I-2.5.4
A35: Fuente: | B35: Elaboración propia en base a información proporcionada por las oficinas productoras de estadísticas de cada una de las instituciones.

Sheet GI-.2.5.5
A1: Ministerio de Educación y Cultura Dirección de Educación
A5: Gráfico I-2.5.6
A27: Fuente: | B27: Dirección de Formación y Perfeccionamiento Docente

Sheet GI-.2.5.6.
A1: Ministerio de Educación y Cultura Dirección de Educación
A5: Gráfico I-2.5.7
A6: Gráfico I-2.5.3.
A33: Fuente: Dirección de Formación y Perfeccionamiento Docente

Sheet GI-.2.5.7.
A1: Ministerio de Educación y Cultura Dirección de Educación
A5: Gráfico I-2.5.4
A36: Fuente: Dirección de Formación y Perfeccionamiento Docente
A37: Nota: La serie presentada fue ajustada por la fuente, de manera que no coincide exactamente con la presentada
A38: en años anteriores.

Sheet G I-2.6.1.
A1: Ministerio de Educación y Cultura Dirección de Educación
A5: Gráfico I-2.6.1
A26: Fuente: | B26: Elaboración propia en base a información proporcionada por las oficinas productoras de estadísticas de cada una de las instituciones.

Sheet G I-2.6.2
A1: Ministerio de Educación y Cultura Dirección de Educación
A6: Gráfico I-2.6.2
A36: Fuente: Elaboración propia en base información de las oficinas productoras de las instituciones.
A37: Nota: Los ingresos a cursos de grado para UdelaR correspondientes al período 2000-2010 son extraídos de Estadísticas Básicas 2010 - Dirección General de Planeamiento -UdelaR.

Sheet G I-2.6.3
A1: Ministerio de Educación y Cultura Dirección de Educación
A5: Gráfico I-2.6.3
A29: Fuente: | B29: Elaboración propia en base a información proporcionada por la UdelaR y las oficinas productoras de estadísticas educativas de los Institutos Universitarios y de las Universidades Privadas.

Sheet G I-2.6.4
A1: Ministerio de Educación y Cultura Dirección de Educación
A5: Gráfico I-2.6.4
A28: Fuente: | B28: Elaboración propia en base a información proporcionada por UdelaR.
A29: Nota: | B29: Los ingresos y egresos a cursos de grado para UdelaR correspondientes al período 2000-2009 son extraídos de Estadísticas Básicas 2010 - Dirección General de Planeamiento –UdelaR.
B31: No Incluye postgrado

Sheet G I-2.6.5
A1: Ministerio de Educación y Cultura Dirección de Educación
A6: Gráfico I-2.6.5
A36: Elaboración propia en base a información proporcionada por la UdelaR y las oficinas productoras de estadísticas educativas de los Institutos Universitarios y de las Universidades Privadas.
A38: Nota: | B38: No incluye postgrado.

Sheet G I-2.6.6
A1: Ministerio de Educación y Cultura Dirección de Educación
A5: Gráfico I-2.6.6
A28: Fuente: | B28: Elaboración propia en base información de las oficinas productoras de las instituciones.
A29: Nota: | B29: Los ingresos y egresos a cursos de postgrado para el período 2001-2009 son extraídos de Estadísticas Básicas 2010 - Dirección General de Planeamiento –UdelaR.
B30: No incluye grado.

Sheet G I-2.6.7
A1: Ministerio de Educación y Cultura Dirección de Educación
A5: Gráfico I-2.6.7
A27: Nota: | B27: Los ingresos y egresos a cursos de postgrado para el período 2001-2009 son extraídos de Estadísticas Básicas 2010 - Dirección General de Planeamiento –UdelaR.
B28: No incluye grado

Sheet G I-2.6.8
A1: Ministerio de Educación y Cultura Dirección de Educación
A5: Gráfico I-2.6.8

Sheet G I--2-8-1-
A1: Ministerio de Educación y Cultura Dirección de Educación
A5: Gráfico I-2.8.1.

Sheet G.I-3.1.1
A1: Ministerio de Educación y Cultura Dirección de Educación
A5: Gráfico I-3.1.1.
A27: Fuente: | B27: Elaboración propia con base en información proporcionada por el Área de Becas de la Dirección de Educación del MEC y el Fondo de Solidaridad.
A28: Nota: | B28: No se han graficado las Becas “Carlos Quijano” por problemas de escala: la relación de volumen entre unas y otras no permite su visualización en un mismo gráfico.

Sheet G I-3.1.2
A1: Ministerio de Educación y Cultura Dirección de Educación
A5: Gráfico I-3.1.2
A27: Fuente: | B27: Elaboración propia con base en información proporcionada por el Área de Becas de la Dirección de Educación del MEC y el Fondo de Solidaridad.

Sheet G I-3.1.3
A1: Ministerio de Educación y Cultura Dirección de Educación
A5: Gráfico I-3.1.3
A22: Fuente: | B22: Elaboración propia con base en información proporcionada por el Área de Becas de la Dirección de Educación del MEC.

Sheet G I-3.1.4
A1: Ministerio de Educación y Cultura Dirección de Educación
A5: Gráfico I-3.1.4
A24: Fuente: | B24: Elaboración propia con base en información proporcionada por el Fondo de Solidaridad.

Sheet G I-3.1.5
A1: Ministerio de Educación y Cultura Dirección de Educación
A5: Gráfico I-3.1.5
A28: Fuente: | B28: Elaboración propia con base en información proporcionada por el Fondo de Solidaridad.

Sheet G I-3.1.6.
A1: Ministerio de Educación y Cultura Dirección de Educación
A5: Gráfico I-3.1.6
A27: Fuente: | B27: Elaboración propia con base en información proporcionada por el Fondo de Solidaridad.

Sheet G-I-3.1.7
A1: Ministerio de Educación y Cultura Dirección de Educación
A5: Gráfico I-3.1.7
A29: Fuente: | B29: Plan Ceibal.

Sheet G-I.3.1.8
A1: Ministerio de Educación y Cultura Dirección de Educación
A4: Gráfico I-3.1.8
A28: Fuentes:Elaboración propia en basa a la ENH 2006 a 2011 del INE.

Sheet G I-3.1.9
A1: Ministerio de Educación y Cultura Dirección de Educación
A4: Gráfico I-3.1.9
A27: Fuente: | B27: Plan Ceibal.

Sheet G I.3.1.10
A1: Ministerio de Educación y Cultura Dirección de Educación
A5: Gráfico I-3.1.10
A27: Fuente: | B27: Plan Ceibal

Sheet G I-3.2.1
A1: Ministerio de Educación y Cultura Dirección de Educación
A5: Gráfico I-3.2.1
A30: Fuente: Banco Central del Uruguay (2005 – 2011).

Sheet G I-3.2.2
A1: Ministerio de Educación y Cultura Dirección de Educación
A5: Gráfico I-3.2.2
A33: Nota: Los valores medios anuales fueron estimados por el Método del Ingreso de 2006 sobre los datos de las personas.
A34: Fuente: Incidencia de la pobreza e indigencia, INE.

Sheet G I-3.3.1
A1: Ministerio de Educación y Cultura Dirección de Educación
A5: Gráfico I-3.3.1
A31: Fuente: Elaborado en base a datos del MEF en base a CGN..

Sheet G I-3.3.2
A1: Ministerio de Educación y Cultura Dirección de Educación
A5: Gráfico I-3.3.2
A31: Fuente: Elaborado en base a datos del MEF en base a CGN.

Sheet G I-3.3.3
A1: Ministerio de Educación y Cultura Dirección de Educación
A5: Gráfico I-3.3.3
A31: Fuente: Gerencia General de Programación y Presupuesto, Unidad de Programación y Control Presupuestal del CODICEN
A32: Nota: Datos al 1º de enero de cada año a valores constantes del 1º de enero de 1997. La información corresponde al salario nominal más la partida de alimentación
A34: Fuente: Gerencia General de Programación y Presupuesto, Unidad de Programación y Control Presupuestal del CODICEN

Sheet G I-4.1.1
A1: Ministerio de Educación y Cultura Dirección de Educación
A5: Gráfico I-4.1.1
A33: Fuente: Indicadores Educativos del Mercosur 20000-2008 y Unidades Productoras de Estadísticas Oficiales de los Países.
A34: Nota: La Tasa de Analfabetismo se mide con base en personas con 15 y más años de edad, con excepción de Argentina, en que refiere a personas con 10 y más años de edad.
A36: Brasil y Chile no actualizaron la información para el 2010, por lo que se replica el último dato disponible: año 2009.

Sheet G I-4.1.2
A1: Ministerio de Educación y Cultura Dirección de Educación
A5: Gráfico I-4.1.2
A28: Fuente: | B28: Datos UNESCO.
A29: Nota: | B29: Los porcentajes por región son promedios ponderados, teniendo en cuenta el tamaño poblacional relativo de los países. Los cálculos se realizaron con el último dato disponible de UNESCO (año 2000 en adelante). Para Uruguay es el dato 2011.

Sheet G I_4.1.3
A1: Ministerio de Educación y Cultura Dirección de Educación
A5: Gráfico I-4.1.3
A29: Nota: | B29: Los porcentajes por región son promedios ponderados, teniendo en cuenta el tamaño poblacional relativo de los países. Los cálculos se realizaron con el último dato disponible de UNESCO (año 2000 en adelante). Para Uruguay es el dato 2011.

Sheet G I 4.2.1
A1: Ministerio de Educación y Cultura Dirección de Educación
A5: Gráfico I-4.2.1
A34: Fuente: Indicadores Educativos del Mercosur 2000 – 2009.

Sheet G I 4.2.2
A1: Ministerio de Educación y Cultura Dirección de Educación
A5: Gráfico I-4.2.2
A33: Fuente: Indicadores Educativos del Mercosur 2000 – 2009.

Sheet G I-4.2.3
A1: Ministerio de Educación y Cultura Dirección de Educación
A5: Gráfico I-4.2.3
A30: Fuente: Indicadores Educativos del Mercosur 2000 - 2009.
A33: Fuente: Indicadores Educativos del Mercosur 2000 – 2009

Sheet G I-4.3.1
A1: Ministerio de Educación y Cultura Dirección de Educación
A5: Gráfico I-4.3.1
B29: Instituto de Estadística de la Organización de las Naciones Unidas para la Educación, la Ciencia y la Cultura (UNESCO) y, para Uruguay, Área de Investigación y Estadística de la Dirección de Educación del MEC, en base a datos del MEF, en base a CGN.
A30: Fuente:
A32: Nota: | B32: Último dato disponible posterior a 2000 y, para Uruguay, dato 2011.

Sheet G I-4.3.2
A1: Ministerio de Educación y Cultura Dirección de Educación
A5: Gráfico I-4.3.2
A30: Fuente: | B30: Instituto de Estadística de la Organización de las Naciones Unidas para la Educación, la Ciencia y la Cultura (UNESCO) y, para Uruguay, Área de Investigación y Estadística de la Dirección de Educación del MEC, en base a datos del MEF, en base a CGN.
A31: Nota: | B31: Los porcentajes por región, son promedios ponderados. Los cálculos se realizaron con base en el año 2010 o el último dato disponible en la fuente (año 2005 en adelante).

Sheet PRIMERA INFANCIA E INICIAL

Sheet II-1.1.1
A1: CONSEJO DE EDUCACIÓN PRIMARIA | F1: ESTABLECIMIENTOS
A3: Cuadro Nº II-1.1.1 | H3: VOLVER
A5: CANTIDAD DE ESTABLECIMIENTOS DE EDUCACIÓN INICIAL POR FORMA DE ADMINISTRACIÓN Y MODALIDAD SEGÚN DEPARTAMENTO. AÑO 2011.
A6: DEPARTAMENTO | B6: TOTAL | C6: FORMA DE ADMINISTRACIÓN
C7: PÚBLICA | H7: PRIVADA
C8: Total | D8: Jardines de Infantes | E8: JICI | F8: Guarderías | G8: Jardines de Tiempo Completo | H8: Jardines de Infantes
A11: TOTAL | B11: =+B12+B13 -> 252 | C11: =+C12+C13 -> 189 | D11: =SUM(D12:D13) -> 139 | E11: =SUM(E12:E13) -> 14 | F11: =SUM(F12:F13) -> 3 | G11: =SUM(G12:G13) -> 33 | H11: =SUM(H12:H13) -> 63
A12: MONTEVIDEO | B12: =+C12+H12 -> 101 | C12: =+D12+E12+F12+G12 -> 62 | D12: 44 | E12: 3 | F12: 2 | G12: 13 | H12: 39
A13: RESTO DEL PAÍS | B13: =+C13+H13 -> 151 | C13: =+D13+E13+F13+G13 -> 127 | D13: =SUM(D15:D32) -> 95 | E13: =SUM(E15:E32) -> 11 | F13: =SUM(F15:F32) -> 1 | G13: =SUM(G15:G32) -> 20 | H13: =SUM(H15:H32) -> 24
A15: Artigas | B15: =+C15+H15 -> 3 | C15: =+D15+E15+F15+G15 -> 3 | D15: 3 | E15: 0 | F15: 0 | G15: 0 | H15: 0
A16: Canelones | B16: 41 | C16: =+D16+E16+F16+G16 -> 34 | D16: 30 | E16: 2 | F16: 1 | G16: 1 | H16: 7
A17: Cerro Largo | B17: 8 | C17: 7 | D17: 5 | E17: 1 | F17: 0 | G17: 1 | H17: 1
A18: Colonia | B18: 6 | C18: 6 | D18: 5 | E18: 1 | F18: 0 | G18: 0 | H18: 0
A19: Durazno | B19: 5 | C19: 5 | D19: 3 | E19: 1 | F19: 0 | G19: 1 | H19: 0
A20: Flores | B20: 2 | C20: 2 | D20: 1 | E20: 0 | F20: 0 | G20: 1 | H20: 0
A21: Florida | B21: 6 | C21: 4 | D21: 2 | E21: 0 | F21: 0 | G21: 2 | H21: 2
A22: Lavalleja | B22: 7 | C22: 7 | D22: 4 | E22: 1 | F22: 0 | G22: 2 | H22: 0
A23: Maldonado | B23: 10 | C23: 7 | D23: 7 | E23: 0 | F23: 0 | G23: 0 | H23: 3
A24: Paysandú | B24: 5 | C24: 4 | D24: 1 | E24: 1 | F24: 0 | G24: 2 | H24: 1
A25: Río Negro | B25: 6 | C25: 6 | D25: 3 | E25: 1 | F25: 0 | G25: 2 | H25: 0
A26: Rivera | B26: 7 | C26: 7 | D26: 4 | E26: 1 | F26: 0 | G26: 2 | H26: 0
A27: Rocha | B27: 8 | C27: 7 | D27: 7 | E27: 0 | F27: 0 | G27: 0 | H27: 1
A28: Salto | B28: 9 | C28: 4 | D28: 4 | E28: 0 | F28: 0 | G28: 0 | H28: 5
A29: San José | B29: 7 | C29: 6 | D29: 5 | E29: 1 | F29: 0 | G29: 0 | H29: 1
A30: Soriano | B30: 6 | C30: 5 | D30: 4 | E30: 0 | F30: 0 | G30: 1 | H30: 1
A31: Tacuarembó | B31: =+C31+H31 -> 10 | C31: =+D31+E31+F31+G31 -> 9 | D31: 6 | E31: 0 | F31: 0 | G31: 3 | H31: 1
A32: Treinta y Tres | B32: =+C32+H32 -> 5 | C32: =+D32+E32+F32+G32 -> 4 | D32: 1 | E32: 1 | F32: 0 | G32: 2 | H32: 1
A33: Fuente: Procesamiento propio en base a datos proporcionados por el D.E.E. — C.E.I.P.

Sheet II-1.1.2
A1: MINISTERIO DE EDUCACIÓN Y CULTURA | E1: Establecimientos
A2: Dirección de Educación – Área de Educación en la Primera Infancia
A4: Cuadro Nº II-1.1.2
A6: CANTIDAD DE ESTABLECIMIENTOS DE PRIMERA INFANCIA POR FORMA DE ADMINISTRACIÓN SEGÚN DEPARTAMENTO. AÑO 2011.
A7: DEPARTAMENTO
B8: TOTAL | C8: CAIF | D8: DIURNOS-INAU | E8: PRIVADOS
A11: TOTAL | B11: =C11+D11+E11 -> 851 | C11: =C12+C13 -> 333 | D11: =D12+D13 -> 40 | E11: 478
A12: MONTEVIDEO | B12: 347 | C12: 76 | D12: 9 | E12: 262
A13: RESTO DEL PAÍS | B13: 504 | C13: =SUM(C15:C32) -> 257 | D13: =SUM(D15:D32) -> 31 | E13: =SUM(E15:E32) -> 216
A15: Artigas | B15: 21 | C15: 14 | D15: 2 | E15: 5
A16: Canelones | B16: 133 | C16: 46 | D16: 2 | E16: 85
A17: Cerro Largo | B17: 25 | C17: 19 | D17: 2 | E17: 4
A18: Colonia | B18: 37 | C18: 13 | D18: 2 | E18: 22
A19: Durazno | B19: 19 | C19: 14 | D19: 3 | E19: 2
A20: Flores | B20: 9 | C20: 5 | D20: 1 | E20: 3
A21: Florida | B21: 18 | C21: 9 | D21: 2 | E21: 7
A22: Lavalleja | B22: 15 | C22: 5 | D22: 1 | E22: 9
A23: Maldonado | B23: 28 | C23: 10 | D23: 2 | E23: 16
A24: Paysandú | B24: 39 | C24: 23 | D24: 2 | E24: 14
A25: Río Negro | B25: 17 | C25: 11 | D25: 2 | E25: 4
A26: Rivera | B26: 22 | C26: 14 | D26: 1 | E26: 7
A27: Rocha | B27: 15 | C27: 9 | D27: 1 | E27: 5
A28: Salto | B28: 29 | C28: 21 | D28: 1 | E28: 7
A29: San José | B29: 23 | C29: 9 | D29: 2 | E29: 12
A30: Soriano | B30: 22 | C30: 12 | D30: 1 | E30: 9
A31: Tacuarembó | B31: 20 | C31: 13 | D31: 3 | E31: 4
A32: Treinta y Tres | B32: 12 | C32: 10 | D32: 1 | E32: 1
A33: Fuente: Procesamiento propio en base a datos proporcionados por:
A34: Registro Nacional de Centros Educativos en la Primera Infancia. MEC
A35: Para CAIF Y CENTROS DIURNOS: SIPI de INAU.

Sheet II-1.2.1
A1: CONSEJO DE EDUCACIÓN PRIMARIA | O1: ALUMNOS MATRICULADOS
A3: Cuadro Nº II-1.2.1
A5: ALUMNOS MATRICULADOS EN EDUCACIÓN INICIAL POR FORMA DE ADMINISTRACIÓN, MODALIDAD Y SEXO SEGÚN DEPARTAMENTO AÑO 2011
A6: departamento | B6: FORMA DE ADMINISTRACIÓN
B7: TOTAL | E7: PÚBLICA | N7: PRIVADA
E8: Total Público | F8: Clases Jardineras | H8: Jardines de Infantes | J8: JICI | L8: Guarderías | N8: Total Privada | O8: Jardines de Infantes | Q8: Clases Jardineras
B9: TOTAL | C9: SEXO | F9: SEXO | H9: SEXO | J9: SEXO | L9: SEXO | O9: SEXO | Q9: SEXO
C10: M | D10: F | F10: M | G10: F | H10: M | I10: F | J10: M | K10: F | L10: M | M10: F | O10: M | P10: F | Q10: M | R10: F
A11: TOTAL | B11: =+B12+B13 -> 108244 | C11: =+C12+C13 -> 54980 | D11: =+D12+D13 -> 53264 | E11: =+E12+E13 -> 79405 | F11: =F12+F13 -> 23987 | G11: =G12+G13 -> 23138 | H11: =+H12+H13 -> 14896 | I11: =I12+I13 -> 14598 | J11: =J12+J13 -> 1299 | K11: =K12+K13 -> 1243 | L11: =+L12+L13 -> 103 | M11: =M12+M13 -> 141 | N11: =+N12+N13 -> 28839 | O11: =+O12+O13 -> 2936 | P11: =+P12+P13 -> 2817 | Q11: =+Q12+Q13 -> 11759 | R11: =+R12+R13 -> 11327
A12: MONTEVIDEO | B12: =+C12+D12 -> 41202 | C12: =+F12+H12+J12+L12+O12+Q12 -> 20997 | D12: =+G12+I12+K12+M12+P12+R12 -> 20205 | E12: =+F12+G12+H12+I12+J12+K12+L12+M12 -> 23693 | F12: 6077 | G12: 5818 | H12: 5422 | I12: 5363 | J12: 395 | K12: 400 | L12: 93 | M12: 125 | N12: =+O12+P12+Q12+R12 -> 17509 | O12: 2048 | P12: 1922 | Q12: 6962 | R12: 6577
A13: RESTO DEL PAÍS | B13: =SUM(B15:B32) -> 67042 | C13: =SUM(C15:C32) -> 33983 | D13: =SUM(D15:D32) -> 33059 | E13: =SUM(E15:E32) -> 55712 | F13: 17910 | G13: 17320 | H13: 9474 | I13: 9235 | J13: 904 | K13: 843 | L13: 10 | M13: 16 | N13: 11330 | O13: =SUM(O15:O32) -> 888 | P13: 895 | Q13: 4797 | R13: 4750
A15: Artigas | B15: =+C15+D15 -> 2169 | C15: =+F15+H15+J15+L15+O15+Q15 -> 1138 | D15: =+G15+I15+K15+M15+P15+R15 -> 1031 | E15: =+F15+G15+H15+I15+J15+K15+L15+M15 -> 2074 | F15: 945 | G15: 885 | H15: 136 | I15: 108 | L15: 0 | M15: 0 | N15: =+O15+P15+Q15+R15 -> 95 | O15: 0 | P15: 0 | Q15: 57 | R15: 38
A16: Canelones | B16: 16733 | C16: 8456 | D16: 8277 | E16: 12984 | F16: 3502 | G16: 3407 | H16: 2932 | I16: 2860 | J16: 137 | K16: 120 | L16: 10 | M16: 16 | N16: 3749 | O16: 309 | P16: 303 | Q16: 1566 | R16: 1571
A17: Cerro Largo | B17: 2941 | C17: 1474 | D17: 1467 | E17: 2666 | F17: 804 | G17: 791 | H17: 432 | I17: 426 | J17: 98 | K17: 115 | L17: 0 | M17: 0 | N17: 275 | O17: 39 | P17: 37 | Q17: 101 | R17: 98
A18: Colonia | B18: 4135 | C18: 2078 | D18: 2057 | E18: 3539 | F18: 1264 | G18: 1188 | H18: 465 | I18: 486 | J18: 62 | K18: 74 | L18: 0 | M18: 0 | N18: 596 | O18: 0 | P18: 0 | Q18: 287 | R18: 309
A19: Durazno | B19: 1873 | C19: 954 | D19: 919 | E19: 1647 | F19: 481 | G19: 486 | H19: 301 | I19: 281 | J19: 57 | K19: 41 | L19: 0 | M19: 0 | N19: 226 | O19: 0 | P19: 0 | Q19: 115 | R19: 111
A20: Flores | B20: 821 | C20: 402 | D20: 419 | E20: 648 | F20: 212 | G20: 195 | H20: 120 | I20: 121 | J20: 0 | K20: 0 | L20: 0 | M20: 0 | N20: 173 | O20: 0 | P20: 0 | Q20: 70 | R20: 103
A21: Florida | B21: 1994 | C21: 1052 | D21: 942 | E21: 1782 | F21: 647 | G21: 606 | H21: 292 | I21: 237 | J21: 0 | K21: 0 | L21: 0 | M21: 0 | N21: 212 | O21: 51 | P21: 47 | Q21: 62 | R21: 52
A22: Lavalleja | B22: 2190 | C22: 1110 | D22: 1080 | E22: 1848 | F22: 422 | G22: 423 | H22: 459 | I22: 433 | J22: 53 | K22: 58 | L22: 0 | M22: 0 | N22: 342 | O22: 0 | P22: 0 | Q22: 176 | R22: 166
A23: Maldonado | B23: 5924 | C23: 2969 | D23: 2955 | E23: 3877 | F23: 1304 | G23: 1238 | H23: 622 | I23: 713 | J23: 0 | K23: 0 | L23: 0 | M23: 0 | N23: 2047 | O23: 110 | P23: 104 | Q23: 933 | R23: 900
A24: Paysandú | B24: 3931 | C24: 1965 | D24: 1966 | E24: 3427 | F24: 1248 | G24: 1307 | H24: 363 | I24: 324 | J24: 102 | K24: 83 | L24: 0 | M24: 0 | N24: 504 | O24: 54 | P24: 65 | Q24: 198 | R24: 187
A25: Río Negro | B25: 2256 | C25: 1109 | D25: 1147 | E25: 1971 | F25: 501 | G25: 541 | H25: 398 | I25: 364 | J25: 80 | K25: 87 | L25: 0 | M25: 0 | N25: 285 | O25: 0 | P25: 0 | Q25: 130 | R25: 155
A26: Rivera | B26: 4097 | C26: 2086 | D26: 2011 | E26: 3648 | F26: 1097 | G26: 1034 | H26: 669 | I26: 658 | J26: 93 | K26: 97 | L26: 0 | M26: 0 | N26: 449 | O26: 0 | P26: 0 | Q26: 227 | R26: 222
A27: Rocha | B27: 2401 | C27: 1261 | D27: 1140 | E27: 2162 | F27: 621 | G27: 563 | H27: 522 | I27: 456 | J27: 0 | K27: 0 | L27: 0 | M27: 0 | N27: 239 | O27: 11 | P27: 19 | Q27: 107 | R27: 102
A28: Salto | B28: 4784 | C28: 2420 | D28: 2364 | E28: 3930 | F28: 1572 | G28: 1474 | H28: 435 | I28: 449 | J28: 0 | K28: 0 | L28: 0 | M28: 0 | N28: 854 | O28: 162 | P28: 178 | Q28: 251 | R28: 263
A29: San José | B29: 3675 | C29: 1905 | D29: 1770 | E29: 3225 | F29: 1028 | G29: 965 | H29: 553 | I29: 504 | J29: 97 | K29: 78 | L29: 0 | M29: 0 | N29: 450 | O29: 45 | P29: 38 | Q29: 182 | R29: 185
A30: Soriano | B30: 2871 | C30: 1471 | D30: 1400 | E30: 2607 | F30: 987 | G30: 943 | H30: 335 | I30: 342 | J30: 0 | K30: 0 | L30: 0 | M30: 0 | N30: 264 | O30: 22 | P30: 20 | Q30: 127 | R30: 95
A31: Tacuarembó | B31: 3002 | C31: 1488 | D31: 1514 | E31: 2516 | F31: 798 | G31: 805 | H31: 440 | I31: 473 | J31: 0 | K31: 0 | L31: 0 | M31: 0 | N31: 486 | O31: 42 | P31: 43 | Q31: 208 | R31: 193
A32: Treinta y Tres | B32: 1245 | C32: 645 | D32: 600 | E32: 1161 | F32: 477 | G32: 469 | J32: 125 | K32: 90 | L32: 0 | M32: 0 | N32: 84 | O32: 43 | P32: 41 | Q32: 0 | R32: 0
A33: Fuente: Procesamiento propio en base a datos proporcionados por el D.E.E. — C.E.I.P.
A34: Nota: Jardines de Infantes incluye Jardines de Tiempo Completo
A35: Educación pública y privada no incluye educación Inicial Especial

Sheet II-1.2.2
A1: MINISTERIO DE EDUCACIÓN Y CULTURA | I1: Alumnos Matriculados
A3: Dirección de Educación – Área de Educación en la Primera Infancia
A4: INAU-CAIF
A6: Cuadro Nº II-1.2.2
A8: ALUMNOS MATRICULADOS EN PRIMERA INFANCIA POR FORMA DE ADMINISTRACIÓN Y SEXO SEGÚN DEPARTAMENTO. AÑO 2011.
A9: DEPARTAMENTO | E9: FORMA DE ADMINISTRACIÓN
B10: TOTAL | E10: CAIF Y CENTROS DIURNOS | G10: Centros Privados
B12: TOTAL | C12: SEXO | E12: SEXO
C13: M | D13: F | E13: M | F13: F | G13: M | H13: F
A14: TOTAL | B14: =+B15+B16 -> 47845 | C14: =+E14+G14 -> 24513 | D14: =+F14+H14 -> 23332 | E14: =E15+E16 -> 14179 | F14: =F15+F16 -> 13659 | G14: =+G15+G16 -> 10334 | H14: =H15+H16 -> 9673
A15: MONTEVIDEO | B15: =+C15+D15 -> 19827 | C15: =+E15+G15 -> 10278 | D15: =+F15+H15 -> 9549 | E15: 3785 | F15: 3523 | G15: 6493 | H15: 6026
A16: RESTO DEL PAÍS | B16: =SUM(B18:B35) -> 28018 | C16: 14235 | D16: 13783 | E16: =SUM(E18:E35) -> 10394 | F16: =SUM(F18:F35) -> 10136 | G16: 3841 | H16: 3647
A18: Artigas | B18: =+C18+D18 -> 1303 | C18: =+E18+G18 -> 638 | D18: =+F18+H18 -> 665 | E18: 559 | F18: 593 | G18: 79 | H18: 72
A19: Canelones | B19: 6222 | C19: 3170 | D19: 3052 | E19: 1792 | F19: 1717 | G19: 1378 | H19: 1335
A20: Cerro Largo | B20: 1804 | C20: 910 | D20: 894 | E20: 826 | F20: 796 | G20: 84 | H20: 98
A21: Colonia | B21: 1665 | C21: 837 | D21: 828 | E21: 510 | F21: 526 | G21: 327 | H21: 302
A22: Durazno | B22: 1003 | C22: 520 | D22: 483 | E22: 507 | F22: 480 | G22: 13 | H22: 3
A23: Flores | B23: 582 | C23: 279 | D23: 303 | E23: 219 | F23: 237 | G23: 60 | H23: 66
A24: Florida | B24: 968 | C24: 495 | D24: 473 | E24: 367 | F24: 360 | G24: 128 | H24: 113
A25: Lavalleja | B25: 641 | C25: 322 | D25: 319 | E25: 195 | F25: 207 | G25: 127 | H25: 112
A26: Maldonado | B26: 1539 | C26: 818 | D26: 721 | E26: 363 | F26: 324 | G26: 455 | H26: 397
A27: Paysandú | B27: 2315 | C27: 1170 | D27: 1145 | E27: 961 | F27: 929 | G27: 209 | H27: 216
A28: Río Negro | B28: 1189 | C28: 595 | D28: 594 | E28: 497 | F28: 500 | G28: 98 | H28: 94
A29: Rivera | B29: 1627 | C29: 838 | D29: 789 | E29: 686 | F29: 640 | G29: 152 | H29: 149
A30: Rocha | B30: 913 | C30: 465 | D30: 448 | E30: 414 | F30: 388 | G30: 51 | H30: 60
A31: Salto | B31: 2015 | C31: 1022 | D31: 993 | E31: 783 | F31: 752 | G31: 239 | H31: 241
A32: San José | B32: 1155 | C32: 615 | D32: 540 | E32: 387 | F32: 354 | G32: 228 | H32: 186
A33: Soriano | B33: 1082 | C33: 545 | D33: 537 | E33: 401 | F33: 393 | G33: 144 | H33: 144
A34: Tacuarembó | B34: 1400 | C34: 700 | D34: 700 | E34: 638 | F34: 647 | G34: 62 | H34: 53
A35: Treinta y Tres | B35: 595 | C35: 296 | D35: 299 | E35: 289 | F35: 293 | G35: 7 | H35: 6
A36: Fuente: Procesamiento propio en base a datos proporcionados por:
A37: Nota: Los centros pertencientes al Proyecto Nuestros Niños de la IMM, se encuentran incluidos en la matrícula de Centros Privados, por cuanto los mismos son supervisados por el MEC.

Sheet II-1.2.3
A1: MINISTERIO DE EDUCACIÓN Y CULTURA | G1: ALUMNOS MATRICULADOS
A2: Dirección de Educación – Área de Educación en la Primera Infancia
A4: Cuadro Nº II-1.2.3
A5: ALUMNOS MATRICULADOS EN PRIMERA INFANCIA POR FORMA DE ADMINISTRACIÓN SEGÚN EDAD. AÑO 2011.
A6: EDAD | C6: FORMA DE ADMINISTRACIÓN
C7: Privados Subvencionados
B8: TOTAL
C9: CAIF EXPERIENCIA OPORTUNA | D9: DIURNO EXPERIENCIA OPORTUNA | E9: CAIF INICAL | F9: DIURNOS INICIAL | G9: Privados
A12: TOTAL | B12: =SUM(C12:G12) -> 65244 | C12: =C13+C14 -> 17038 | D12: =D13+D14 -> 361 | E12: =SUM(E15:E18) -> 26756 | F12: =SUM(F15:F18) -> 1082 | G12: =SUM(G13:G18) -> 20007
A13: 0 a 11 meses | B13: =SUM(C13:G13) -> 6408 | C13: 5623 | D13: 77 | G13: 708
A14: 1 año | B14: =SUM(C14:G14) -> 15061 | C14: 11415 | D14: 284 | G14: 3362
A15: 2 años | B15: =SUM(E15:G15) -> 18411 | E15: 12020 | F15: 454 | G15: 5937
A16: 3 años | B16: =SUM(E16:G16) -> 17338 | E16: 11213 | F16: 459 | G16: 5666
A17: 4 años | B17: =SUM(E17:G17) -> 6262 | E17: 3259 | F17: 131 | G17: 2872
A18: 5 años | B18: =SUM(E18:G18) -> 1764 | E18: 264 | F18: 38 | G18: 1462
A20: Fuente: Procesamiento propio en base a datos proporcionados por:
A21: Registro Nacional de Centros Educativos en la Primera Infancia. MEC
A22: Para CAIF Y CENTROS DIURNOS: SIPI de INAU.
A23: Programa Nuestros Niños: IMM. Se encuentran incluidos dentro de la matricula privada.

Sheet II-1.2.4
A1: CONSEJO DE EDUCACIÓN PRIMARIA | C1: ALUMNOS MATRICULADOS
A3: Cuadro Nº II-1.2.4
A5: ALUMNOS MATRICULADOS EN EDUCACIÓN INICIAL PÚBLICA EN CLASE JARDINERA POR ÁREA DEMOGRÁFICA SEGÚN DEPARTAMENTO AÑO 2011
A6: DEPARTAMENTO | B6: TOTAL | C6: ÁREA DEMOGRÁFICA
C7: URBANA | D7: RURAL
A8: TOTAL | B8: =SUM(C8+D8) -> 47125 | C8: =SUM(C9:C10) -> 42766 | D8: =SUM(D9:D10) -> 4359
A9: MONTEVIDEO | B9: =+C9+D9 -> 11895 | C9: 11895 | D9: 0
A10: RESTO DEL PAÍS | B10: =+C10+D10 -> 35230 | C10: =SUM(C12:C29) -> 30871 | D10: =SUM(D12:D29) -> 4359
A12: Artigas | B12: 1830 | C12: 1631 | D12: 199
A13: Canelones | B13: 6909 | C13: 6219 | D13: 690
A14: Cerro Largo | B14: 1595 | C14: 1360 | D14: 235
A15: Colonia | B15: 2452 | C15: 2141 | D15: 311
A16: Durazno | B16: 967 | C16: 836 | D16: 131
A17: Flores | B17: 407 | C17: 338 | D17: 69
A18: Florida | B18: 1253 | C18: 1034 | D18: 219
A19: Lavalleja | B19: 845 | C19: 730 | D19: 115
A20: Maldonado | B20: 2542 | C20: 2354 | D20: 188
A21: Paysandú | B21: 2555 | C21: 2300 | D21: 255
A22: Río Negro | B22: 1042 | C22: 882 | D22: 160
A23: Rivera | B23: 2131 | C23: 1844 | D23: 287
A24: Rocha | B24: 1184 | C24: 1088 | D24: 96
A25: Salto | B25: 3046 | C25: 2635 | D25: 411
A26: San José | B26: 1993 | C26: 1630 | D26: 363
A27: Soriano | B27: 1930 | C27: 1726 | D27: 204
A28: Tacuarembó | B28: 1603 | C28: 1301 | D28: 302
A29: Treinta y Tres | B29: 946 | C29: 822 | D29: 124
A30: Fuente: Procesamiento propio en base a datos proporcionados
A31: por el D.E.E. — C.E.I.P.
A32: Nota: No se presentan datos por Área Demográfica para las Modalidades Privadas, (Clases Jardineras y Jardines de Infantes en Colegios) porque no se registran establecimientos de dichas modalidades en áreas rurales.

Sheet II-1.2.5
A1: CONSEJO DE EDUCACIÓN PRIMARIA | L1: ALUMNOS MATRICULADOS
A3: Cuadro Nº II-2.2.5
A5: ALUMNOS MATRICULADOS EN EDUCACIÓN INICIAL PRIVADA POR MODALIDAD Y NIVEL SEGÚN DEPARTAMENTO AÑO 2011
A6: DEPARTAMENTO | D6: MODALIDAD
D7: JARDINES DE INFANTES | J7: CLASES JARDINERAS
B8: TOTAL | D8: NIVEL | J8: NIVEL
C9: Total | D9: Nursery | E9: 2 años | F9: 3 años | G9: 4 años | H9: 5 años | I9: Total | J9: Nursery | K9: 2 años | L9: 3 años | M9: 4 años | N9: 5 años
A11: TOTAL | B11: =+B12+B13 -> 28839 | C11: =+C12+C13 -> 5753 | D11: =SUM(D12:D13) -> 713 | E11: =SUM(E12:E13) -> 1470 | F11: =SUM(F12:F13) -> 1488 | G11: =SUM(G12:G13) -> 1231 | H11: =SUM(H12:H13) -> 851 | I11: =+I12+I13 -> 23086 | J11: =SUM(J12:J13) -> 1072 | K11: =SUM(K12:K13) -> 3062 | L11: =SUM(L12:L13) -> 4653 | M11: =SUM(M12:M13) -> 6663 | N11: =SUM(N12:N13) -> 7636
A12: MONTEVIDEO | B12: =+C12+I12 -> 17509 | C12: =SUM(D12:H12) -> 3970 | D12: 567 | E12: 1022 | F12: 968 | G12: 843 | H12: 570 | I12: =+J12+K12+L12+M12+N12 -> 13539 | J12: 641 | K12: 1674 | L12: 2575 | M12: 3889 | N12: 4760
A13: RESTO DEL PAÍS | B13: =SUM(B15:B32) -> 11330 | C13: =SUM(C15:C32) -> 1783 | D13: 146 | E13: 448 | F13: 520 | G13: 388 | H13: 281 | I13: =SUM(I15:I32) -> 9547 | J13: 431 | K13: 1388 | L13: 2078 | M13: 2774 | N13: 2876
A15: Artigas | B15: =+C15+I15 -> 95 | C15: =SUM(D15:H15) -> 0 | D15: 0 | E15: 0 | F15: 0 | G15: 0 | H15: 0 | I15: =+J15+K15+L15+M15+N15 -> 95 | J15: 0 | K15: 20 | L15: 31 | M15: 26 | N15: 18
A16: Canelones | B16: 3749 | C16: 612 | D16: 21 | E16: 129 | F16: 159 | G16: 173 | H16: 130 | I16: 3137 | J16: 133 | K16: 415 | L16: 661 | M16: 927 | N16: 1001
A17: Cerro Largo | B17: 275 | C17: 76 | D17: 14 | E17: 23 | F17: 39 | G17: 0 | H17: 0 | I17: 199 | J17: 0 | K17: 17 | L17: 36 | M17: 84 | N17: 62
A18: Colonia | B18: 596 | C18: 0 | D18: 0 | E18: 0 | F18: 0 | G18: 0 | H18: 0 | I18: 596 | J18: 79 | K18: 108 | L18: 126 | M18: 146 | N18: 137
A19: Durazno | B19: 226 | C19: 0 | D19: 0 | E19: 0 | F19: 0 | G19: 0 | H19: 0 | I19: 226 | J19: 9 | K19: 7 | L19: 53 | M19: 88 | N19: 69
A20: Flores | B20: 173 | C20: 0 | D20: 0 | E20: 0 | F20: 0 | G20: 0 | H20: 0 | I20: 173 | J20: 11 | K20: 29 | L20: 34 | M20: 44 | N20: 55
A21: Florida | B21: 212 | C21: 98 | D21: 16 | E21: 39 | F21: 27 | G21: 16 | H21: 0 | I21: 114 | J21: 0 | K21: 13 | L21: 22 | M21: 41 | N21: 38
A22: Lavalleja | B22: 342 | C22: 0 | D22: 0 | E22: 0 | F22: 0 | G22: 0 | H22: 0 | I22: 342 | J22: 18 | K22: 66 | L22: 78 | M22: 85 | N22: 95
A23: Maldonado | B23: 2047 | C23: 214 | D23: 3 | E23: 48 | F23: 61 | G23: 53 | H23: 49 | I23: 1833 | J23: 68 | K23: 272 | L23: 460 | M23: 510 | N23: 523
A24: Paysandú | B24: 504 | C24: 119 | D24: 14 | E24: 20 | F24: 29 | G24: 32 | H24: 24 | I24: 385 | J24: 1 | K24: 20 | L24: 48 | M24: 129 | N24: 187
A25: Río Negro | B25: 285 | C25: 0 | D25: 0 | E25: 0 | F25: 0 | G25: 0 | H25: 0 | I25: 285 | J25: 9 | K25: 55 | L25: 62 | M25: 88 | N25: 71
A26: Rivera | B26: 449 | C26: 0 | D26: 0 | E26: 0 | F26: 0 | G26: 0 | H26: 0 | I26: 449 | J26: 28 | K26: 77 | L26: 107 | M26: 118 | N26: 119
A27: Rocha | B27: 239 | C27: 30 | D27: 0 | E27: 5 | F27: 9 | G27: 5 | H27: 11 | I27: 209 | J27: 15 | K27: 45 | L27: 47 | M27: 47 | N27: 55
A28: Salto | B28: 854 | C28: 340 | D28: 47 | E28: 112 | F28: 112 | G28: 54 | H28: 15 | I28: 514 | J28: 36 | K28: 89 | L28: 89 | M28: 125 | N28: 175
A29: San José | B29: 450 | C29: 83 | D29: 16 | E29: 19 | F29: 27 | G29: 13 | H29: 8 | I29: 367 | J29: 13 | K29: 71 | L29: 75 | M29: 107 | N29: 101
A30: Soriano | B30: 264 | C30: 42 | D30: 7 | E30: 21 | F30: 13 | G30: 1 | H30: 0 | I30: 222 | J30: 0 | K30: 32 | L30: 36 | M30: 85 | N30: 69
A31: Tacuarembó | B31: 486 | C31: 85 | D31: 8 | E31: 19 | F31: 23 | G31: 17 | H31: 18 | I31: 401 | J31: 11 | K31: 52 | L31: 113 | M31: 124 | N31: 101
A32: Treinta y Tres | B32: 84 | C32: 84 | D32: 0 | E32: 13 | F32: 21 | G32: 24 | H32: 26 | I32: 0 | J32: 0 | K32: 0 | L32: 0 | M32: 0 | N32: 0
A33: Fuente: Procesamiento propio en base a datos proporcionados por el D.E.E. — C.E.I.P.

Sheet II-1.2.6
A1: MINISTERIO DE EDUCACIÓN Y CULTURA | J1: ALUMNOS MATRICULADOS
A2: Dirección de Educación – Área de Educación en la Primera Infancia
A4: Cuadro Nº II-1.2.6
A6: ALUMNOS MATRICULADOS EN PRIMERA INFANCIA POR EDAD SEGÚN DEPARTAMENTO. AÑO 2011.
A7: DEPARTAMENTO | C7: E D A D
B8: TOTAL | C8: 0 a 11 meses | D8: 1 año | E8: 2 años | F8: 3 años | G8: 4 años | H8: 5 años
A10: TOTAL | B10: =+B11+B12 -> 20007 | C10: 708 | D10: 3362 | E10: 5937 | F10: 5666 | G10: 2872 | H10: 1462
A11: MONTEVIDEO | B11: =+C11+D11+E11+F11+G11+H11 -> 12519 | C11: 543 | D11: 2078 | E11: 3664 | F11: 3415 | G11: 1940 | H11: 879
A12: RESTO DEL PAÍS | B12: =SUM(B14:B31) -> 7488 | C12: 165 | D12: 1284 | E12: 2273 | F12: 2251 | G12: 932 | H12: 583
A14: Artigas | B14: =+C14+D14+E14+F14+G14+H14 -> 151 | C14: 1 | D14: 27 | E14: 40 | F14: 48 | G14: 16 | H14: 19
A15: Canelones | B15: 2713 | C15: 59 | D15: 364 | E15: 791 | F15: 853 | G15: 411 | H15: 235
A16: Cerro Largo | B16: 182 | C16: 0 | D16: 15 | E16: 42 | F16: 55 | G16: 39 | H16: 31
A17: Colonia | B17: 629 | C17: 17 | D17: 128 | E17: 244 | F17: 226 | G17: 13 | H17: 1
A18: Durazno | B18: 16 | C18: 0 | D18: 1 | E18: 3 | F18: 10 | G18: 2 | H18: 0
A19: Flores | B19: 126 | C19: 6 | D19: 15 | E19: 39 | F19: 27 | G19: 19 | H19: 20
A20: Florida | B20: 241 | C20: 0 | D20: 80 | E20: 83 | F20: 47 | G20: 29 | H20: 2
A21: Lavalleja | B21: 239 | C21: 14 | D21: 58 | E21: 74 | F21: 65 | G21: 19 | H21: 9
A22: Maldonado | B22: 852 | C22: 10 | D22: 109 | E22: 224 | F22: 237 | G22: 137 | H22: 135
A23: Paysandú | B23: 425 | C23: 30 | D23: 123 | E23: 94 | F23: 112 | G23: 47 | H23: 19
A24: Río Negro | B24: 192 | C24: 7 | D24: 55 | E24: 58 | F24: 52 | G24: 9 | H24: 11
A25: Rivera | B25: 301 | C25: 6 | D25: 72 | E25: 102 | F25: 73 | G25: 35 | H25: 13
A26: Rocha | B26: 111 | C26: 6 | D26: 35 | E26: 41 | F26: 28 | G26: 1 | H26: 0
A27: Salto | B27: 480 | C27: 1 | D27: 67 | E27: 126 | F27: 150 | G27: 56 | H27: 80
A28: San José | B28: 414 | C28: 4 | D28: 69 | E28: 161 | F28: 146 | G28: 31 | H28: 3
A29: Soriano | B29: 288 | C29: 0 | D29: 44 | E29: 107 | F29: 90 | G29: 42 | H29: 5
A30: Tacuarembó | B30: 115 | C30: 4 | D30: 20 | E30: 36 | F30: 29 | G30: 26 | H30: 0
A31: Treinta y Tres | B31: 13 | C31: 0 | D31: 2 | E31: 8 | F31: 3 | G31: 0 | H31: 0
A32: Fuente: Procesamiento propio en base a datos proporcionados por:
A33: Registro Nacional de Centros Educativos en la Primera Infancia. MEC

Sheet II-1.3.1
A1: CONSEJO DE EDUCACIÓN PRIMARIA | D1: PERSONAL DOCENTE
A3: Cuadro Nº II-1.3.1
A5: PERSONAL DOCENTE DE EDUCACIÓN INICIAL PÚBLICA SEGÚN DEPARTAMENTO. AÑO 2011.
A6: DEPARTAMENTO | B6: DOCENTES
A8: TOTAL | B8: =SUM(B9:B10) -> 2946
A9: MONTEVIDEO | B9: 1015
A10: RESTO DEL PAÍS | B10: =SUM(B12:B29) -> 1931
A12: Artigas | B12: 83
A13: Canelones | B13: 448
A14: Cerro Largo | B14: 93
A15: Colonia | B15: 104
A16: Durazno | B16: 54
A17: Flores | B17: 28
A18: Florida | B18: 76
A19: Lavalleja | B19: 66
A20: Maldonado | B20: 155
A21: Paysandú | B21: 99
A22: Río Negro | B22: 67
A23: Rivera | B23: 115
A24: Rocha | B24: 77
A25: Salto… | B25: 129
A26: San José | B26: 94
A27: Soriano | B27: 89
A28: Tacuarembó | B28: 89
A29: Treinta y Tres | B29: 65
A30: Fuente: D.E.E. - C.E.P.
A31: Nota: Listado de Cargos de la División Planeamiento Administrativo. Departamento de Cómputos. Julio de 2011.

Sheet II-1.3.2
A1: CONSEJO DE EDUCACIÓN PRIMARIA | D1: PERSONAL DOCENTE
A3: Cuadro Nº II-1.3..2.
A5: PERSONAL DOCENTE DE EDUCACIÓN INICIAL PRIVADA SEGÚN DEPARTAMENTO. AÑO 2011.
A6: DEPARTAMENTO | C6: DOCENTES
B8: TOTAL | C8: Colegios Habilitados | D8: Colegios Autorizados
A10: TOTAL | B10: =SUM(B11:B12) -> 1092 | C10: =SUM(C11:C12) -> 1033 | D10: =SUM(D11:D12) -> 59
A11: MONTEVIDEO | B11: =+C11+D11 -> 611 | C11: 561 | D11: 50
A12: RESTO DEL PAÍS | B12: =SUM(B14:B31) -> 481 | C12: =SUM(C14:C31) -> 472 | D12: =SUM(D14:D31) -> 9
A14: Artigas | B14: =+C14+D14 -> 4 | C14: 4 | D14: 0
A15: Canelones | B15: 157 | C15: 148 | D15: 9
A16: Cerro Largo | B16: 11 | C16: 11 | D16: 0
A17: Colonia | B17: 18 | C17: 18 | D17: 0
A18: Durazno | B18: 8 | C18: 8 | D18: 0
A19: Flores | B19: 10 | C19: 10 | D19: 0
A20: Florida | B20: 4 | C20: 4 | D20: 0
A21: Lavalleja | B21: 16 | C21: 16 | D21: 0
A22: Maldonado | B22: 100 | C22: 100 | D22: 0
A23: Paysandú | B23: 25 | C23: 25 | D23: 0
A24: Río Negro | B24: 22 | C24: 22 | D24: 0
A25: Rivera | B25: 24 | C25: 24 | D25: 0
A26: Rocha | B26: 15 | C26: 15 | D26: 0
A27: Salto | B27: 26 | C27: 26 | D27: 0
A28: San José | B28: 13 | C28: 13 | D28: 0
A29: Soriano | B29: 13 | C29: 13 | D29: 0
A30: Tacuarembó | B30: 15 | C30: 15 | D30: 0
A31: Treinta y Tres | B31: 0 | C31: 0 | D31: 0
A32: Fuente: D.E.E. — C.E.P. | B32: C.E.I.P

Sheet PRIMARIA

Sheet CONTROL (hidden)
A1: DENTRO DE PRIMARIA | G1: EN SINOPSIS
B2: PRIMER CUADRO | C2: SEGUNDO CUADRO | D2: TERCER CUADRO | F2: Aclaración. | G2: PRIMER CUADRO | H2: SEGUNDO CUADRO | I2: TERCER CUADRO
A3: ESTABLEC. | B3: II-2.1.1 | C3: II-2.1.2 | E3: =IF(SUM(' II-2.1.2 '!D11+' II-2.1.2 '!E11+' II-2.1.2 '!F11+' II-2.1.2 '!G11+' II-2.1.2 '!I11='II-2.1.1'!C10),"OK","INCONSISTENCIA") -> OK
A4: ESTABLEC. | B4: II-2.1.1 | C4: II-2.1.5 | E4: =IF('II-2.1.1'!E10='II-2.1.4'!C10,"OK","INCONSISTENCIA") -> OK
A5: ESTABLEC. | B5: II-2.1.1 | C5: II-2.1.5 | E5: =IF('II-2.1.1'!F10='II-2.1.4'!F10,"OK","INCONSISTENCIA") -> OK | F5: =IF(E5="INCONSISTENCIA","Número de establecimiento de especial","") -> 
A6: MATRÍCULA | B6: II-2.2.1 | C6: II-2.2.2 | E6: =IF('II-2.2.1'!E9='II-2.2.2'!E11,"OK","INCONSISTENCIA") -> OK | F6: =IF(E6="INCONSISTENCIA","Matrícula de Primaria Pública","") ->  | G6: I-1.2.12 | J6: =IF(('II-2.2.1'!E9+'II-2.2.3'!H11)='I-1.2.12'!M20,"OK","INCONSISTENCIA") -> OK | K6: =IF(J6="INCONSISTENCIA","Matrícula de Primaria Pública","") -> 
A7: MATRÍCULA | B7: II-2.2.2 | C7: II-2.2.3 | E7: =IF('II-2.2.2'!E11=SUM('II-2.2.3'!B11-'II-2.2.3'!H11),"OK","INCONSISTENCIA") -> OK | J7: =IF(('II-2.2.1'!E19+'II-2.2.3'!H11)='I-1.2.13'!F8,"OK","INCONSISTENCIA") -> INCONSISTENCIA
A8: MATRÍCULA | B8: II-2.2.2 | C8: II-2.2.6 | E8: =IF('II-2.2.2'!E11='II-2.2.6'!B12,"OK","INCONSISTENCIA") -> OK
A9: MATRÍCULA | B9: II-2.2.1 | C9: II-2.2.5 | E9: =IF('II-2.2.1'!H9='II-2.2.5'!C10,"OK","INCONSISTENCIA") -> OK
A10: MATRÍCULA | B10: II-2.2.2 | C10: II-2.2.6 | E10: =IF('II-2.2.2'!E11='II-2.2.6'!B12,"OK","INCONSISTENCIA") -> OK
A11: MATRÍCULA | B11: II-2.2.1 | C11: II-2.2.6 | E11: =IF('II-2.2.1'!H9='II-2.2.6'!C12,"OK","INCONSISTENCIA") -> OK
A12: MATRÍCULA | B12: II-2.2.2 | C12: II-2.2.7 | E12: =IF('II-2.2.2'!E11='II-2.2.7'!B10,"OK","INCONSISTENCIA") -> OK
A13: MATRÍCULA | B13: II-2.2.1 | C13: II-2.2.6 | E13: =IF('II-2.2.1'!H9='II-2.2.8'!B9,"OK","INCONSISTENCIA") -> OK
A14: MATRÍCULA | B14: II-2.2.2 | C14: II-2.2.9 | E14: =IF('II-2.2.2'!E11='II-2.2.9'!B11,"OK","INCONSISTENCIA") -> OK
A15: MATRÍCULA | B15: II-2.2.1 | C15: II-2.2.9 | E15: =IF('II-2.2.1'!H9='II-2.2.9'!C11,"OK","INCONSISTENCIA") -> OK
A16: MATRÍCULA | B16: II-2.2.10 | C16: II-2.2.11 | E16: =IF('II-2.2.10'!B11='II-2.2.11'!B11,"OK","INCONSISTENCIA") -> OK
A17: MATRÍCULA | B17: II-2.2.10 | C17: II-2.2.12 | E17: =IF('II-2.2.10'!B11='II-2.2.12 '!B10,"OK","INCONSISTENCIA") -> OK

Sheet II-2.1.1
A1: CONSEJO DE EDUCACIÓN PRIMARIA | E1: ESTABLECIMIENTOS
A3: Cuadro Nº II-2.1.1
A4: ESTABLECIMIENTOS DE EDUCACIÓN PRIMARIA POR FORMA DE ADMINISTRACIÓN Y TIPO DE EDUCACIÓN SEGÚN DEPARTAMENTO. AÑO 2011.
A5: DEPARTAMENTO | C5: FORMA DE ADMINISTRACIÓN
B6: TOTAL | C6: TIPO DE EDUCACIÓN
C7: PÚBLICA | E7: PRIVADA
C8: Común | D8: Especial | E8: Común | F8: Especial
A10: TOTAL | B10: =+C10+D10+E10+F10 -> 2541 | C10: =SUM(C11:C12) -> 2060 | D10: =SUM(D11:D12) -> 78 | E10: 338 | F10: =SUM(F11:F12) -> 65
A11: MONTEVIDEO | B11: =+C11+D11+E11+F11 -> 485 | C11: 249 | D11: 25 | E11: 168 | F11: 43
A12: RESTO DEL PAÍS. | B12: 2056 | C12: =SUM(C13:C30) -> 1811 | D12: =SUM(D13:D30) -> 53 | E12: =SUM(E13:E30) -> 170 | F12: =SUM(F13:F30) -> 22
A13: Artigas | B13: 80 | C13: 75 | D13: 2 | E13: 1 | F13: 2
A14: Canelones | B14: 303 | C14: 230 | D14: 10 | E14: 61 | F14: 2
A15: Cerro Largo. | B15: 127 | C15: 118 | D15: 3 | E15: 6 | F15: 0
A16: Colonia | B16: 138 | C16: 126 | D16: 4 | E16: 8 | F16: 0
A17: Durazno | B17: 86 | C17: 80 | D17: 2 | E17: 4 | F17: 0
A18: Flores. | B18: 40 | C18: 36 | D18: 1 | E18: 3 | F18: 0
A19: Florida | B19: 107 | C19: 100 | D19: 2 | E19: 4 | F19: 1
A20: Lavalleja | B20: 99 | C20: 91 | D20: 2 | E20: 6 | F20: 0
A21: Maldonado | B21: 110 | C21: 78 | D21: 4 | E21: 25 | F21: 3
A22: Paysandú. | B22: 118 | C22: 104 | D22: 2 | E22: 8 | F22: 4
A23: Río Negro. | B23: 71 | C23: 62 | D23: 2 | E23: 6 | F23: 1
A24: Rivera | B24: 136 | C24: 124 | D24: 4 | E24: 8 | F24: 0
A25: Rocha. | B25: 80 | C25: 71 | D25: 3 | E25: 4 | F25: 2
A26: Salto | B26: 116 | C26: 102 | D26: 3 | E26: 8 | F26: 3
A27: San José | B27: 115 | C27: 105 | D27: 3 | E27: 7 | F27: 0
A28: Soriano | B28: 110 | C28: 100 | D28: 3 | E28: 3 | F28: 4
A29: Tacuarembó. | B29: 143 | C29: 135 | D29: 2 | E29: 6 | F29: 0
A30: Treinta y Tres. | B30: 77 | C30: 74 | D30: 1 | E30: 2 | F30: 0
A31: Fuente: Procesamiento propio en base a datos proporcionados por el D.E.E. — C.E.I.P.

Sheet II-2.1.2
A1: CONSEJO DE EDUCACIÓN PRIMARIA | J1: ESTABLECIMIENTOS
A3: Cuadro Nº II-2.1.2
A5: ESTABLECIMIENTOS DE EDUCACIÓN PRIMARIA PÚBLICA COMÚN POR ÁREA DEMOGRÁFICA Y CATEGORÍA SEGÚN DEPARTAMENTO AÑO 2011
A6: DEPARTAMENTO | B6: TOTAL | C6: ÁREA DEMOGRÁFICA
D7: URBANA | J7: RURAL
C8: Total Urbana | D8: CATEGORÍA | I8: Total Rural | J8: CATEGORÍA
D9: Común | E9: De Práctica | F9: Tiempo Completo | H9: JICI | J9: Común | K9: Internado Rural
G10: Aprender
A11: TOTAL | B11: =+C11+I11 -> 2074 | C11: =+D11+E11+F11+G11+H11 -> 943 | D11: =SUM(D12:D13) -> 384 | E11: =SUM(E12:E13) -> 117 | F11: 157 | G11: 271 | H11: 14 | I11: =SUM(I12:I13) -> 1131 | J11: 1125 | K11: 6
A12: MONTEVIDEO | B12: =+C12+I12 -> 252 | C12: =+D12+E12+F12+G12+H12 -> 252 | D12: 101 | E12: 22 | F12: 38 | G12: 88 | H12: 3 | I12: 0 | J12: 0 | K12: 0
A13: RESTO DEL PAÍS | B13: 1822 | C13: 691 | D13: =SUM(D14:D31) -> 283 | E13: 95 | F13: 119 | G13: 183 | H13: 11 | I13: =SUM(I14:I31) -> 1131 | J13: 1125 | K13: 6
A14: Artigas | B14: 75 | C14: 29 | D14: 7 | E14: 4 | F14: 7 | G14: 11 | H14: 0 | I14: =+J14+K14 -> 46 | J14: 45 | K14: 1
A15: Canelones | B15: 232 | C15: 135 | D15: 49 | E15: 16 | F15: 20 | G15: 48 | H15: 2 | I15: =+J15+K15 -> 97 | J15: 97 | K15: 0
A16: Cerro Largo | B16: 119 | C16: 30 | D16: 8 | E16: 5 | F16: 5 | G16: 11 | H16: 1 | I16: 89 | J16: 89 | K16: 0
A17: Colonia | B17: 127 | C17: 44 | D17: 24 | E17: 6 | F17: 5 | G17: 8 | H17: 1 | I17: 83 | J17: 83 | K17: 0
A18: Durazno | B18: 81 | C18: 25 | D18: 10 | E18: 4 | F18: 5 | G18: 5 | H18: 1 | I18: 56 | J18: 56 | K18: 0
A19: Flores | B19: 36 | C19: 10 | D19: 4 | E19: 2 | F19: 2 | G19: 2 | H19: 0 | I19: 26 | J19: 25 | K19: 1
A20: Florida | B20: 100 | C20: 31 | D20: 17 | E20: 5 | F20: 6 | G20: 3 | H20: 0 | I20: 69 | J20: 69 | K20: 0
A21: Lavalleja | B21: 92 | C21: 26 | D21: 11 | E21: 4 | F21: 6 | G21: 4 | H21: 1 | I21: 66 | J21: 66 | K21: 0
A22: Maldonado | B22: 78 | C22: 40 | D22: 21 | E22: 4 | F22: 10 | G22: 5 | H22: 0 | I22: 38 | J22: 37 | K22: 1
A23: Paysandú | B23: 105 | C23: 48 | D23: 19 | E23: 7 | F23: 7 | G23: 14 | H23: 1 | I23: 57 | J23: 55 | K23: 2
A24: Río Negro | B24: 63 | C24: 23 | D24: 12 | E24: 4 | F24: 4 | G24: 2 | H24: 1 | I24: 40 | J24: 39 | K24: 1
A25: Rivera | B25: 125 | C25: 40 | D25: 12 | E25: 5 | F25: 5 | G25: 17 | H25: 1 | I25: 85 | J25: 85 | K25: 0
A26: Rocha | B26: 71 | C26: 32 | D26: 15 | E26: 4 | F26: 7 | G26: 6 | H26: 0 | I26: 39 | J26: 39 | K26: 0
A27: Salto | B27: 102 | C27: 40 | D27: 12 | E27: 5 | F27: 11 | G27: 12 | H27: 0 | I27: 62 | J27: 62 | K27: 0
A28: San José | B28: 106 | C28: 37 | D28: 20 | E28: 6 | F28: 5 | G28: 5 | H28: 1 | I28: 69 | J28: 69 | K28: 0
A29: Soriano | B29: 100 | C29: 36 | D29: 19 | E29: 4 | F29: 5 | G29: 8 | H29: 0 | I29: 64 | J29: 64 | K29: 0
A30: Tacuarembó | B30: 135 | C30: 42 | D30: 14 | E30: 5 | F30: 6 | G30: 17 | H30: 0 | I30: 93 | J30: 93 | K30: 0
A31: Treinta y Tres | B31: 75 | C31: 23 | D31: 9 | E31: 5 | F31: 3 | G31: 5 | H31: 1 | I31: 52 | J31: 52 | K31: 0
A32: Fuente: Procesamiento propio en base a datos proporcionados por el DEE — CEIP | F32: D.E.E.-C.E.I.P.

Sheet II-2.1.3
A1: CONSEJO DE EDUCACIÓN PRIMARIA | D1: Establecimientos
A3: Cuadro Nº II-2.1.3
A5: ESTABLECIMIENTOS DE EDUCACIÓN PRIMARIA PÚBLICA ESPECIAL POR TIPO DE DISCAPACIDAD SEGÚN DEPARTAMENTO AÑO 2011
A6: DEPARTAMENTO | B6: TOTAL | C6: DISCAPACIDAD
C7: Intelectual | D7: Auditiva | E7: Visual
A9: TOTAL | B9: =+B10+B11 -> 82 | C9: =SUM(C10:C11) -> 74 | D9: =SUM(D10:D11) -> 4 | E9: =SUM(E10:E11) -> 4
A10: MONTEVIDEO | B10: =+C10+D10+E10 -> 27 | C10: 22 | D10: 1 | E10: 4
A11: RESTO DEL PAÍS | B11: =SUM(B13:B30) -> 55 | C11: =SUM(C13:C30) -> 52 | D11: =SUM(D13:D30) -> 3 | E11: =SUM(E13:E30) -> 0
A13: Artigas | B13: =+C13+D13+E13 -> 2 | C13: 2 | D13: 0 | E13: 0
A14: Canelones | B14: 10 | C14: 10 | D14: 0 | E14: 0
A15: Cerro Largo | B15: 3 | C15: 3 | D15: 0 | E15: 0
A16: Colonia | B16: 4 | C16: 4 | D16: 0 | E16: 0
A17: Durazno | B17: 2 | C17: 2 | D17: 0 | E17: 0
A18: Flores | B18: 1 | C18: 1 | D18: 0 | E18: 0
A19: Florida | B19: 2 | C19: 2 | D19: 0 | E19: 0
A20: Lavalleja | B20: 2 | C20: 2 | D20: 0 | E20: 0
A21: Maldonado | B21: 4 | C21: 3 | D21: 1 | E21: 0
A22: Paysandú | B22: 2 | C22: 2 | D22: 0 | E22: 0
A23: Río Negro | B23: 2 | C23: 2 | D23: 0 | E23: 0
A24: Rivera | B24: 4 | C24: 3 | D24: 1 | E24: 0
A25: Rocha | B25: 3 | C25: 3 | D25: 0 | E25: 0
A26: Salto | B26: 3 | C26: 2 | D26: 1 | E26: 0
A27: San José | B27: 5 | C27: 5 | D27: 0 | E27: 0
A28: Soriano | B28: 3 | C28: 3 | D28: 0 | E28: 0
A29: Tacuarembó | B29: 2 | C29: 2 | D29: 0 | E29: 0
A30: Treinta y Tres | B30: 1 | C30: 1 | D30: 0 | E30: 0
A31: Fuente: DEE — CEIP
A32: Nota: Los establecimientos que atienden discapacidades intelectuales, además de atender niños con disfunciones clásicamente tipificadas como “Intelectuales”, atienden a los niños con discapacidades de orden motriz o de carácter, lo que implica que la matrícula correspondiente los agrupa

Sheet II-2.1.4
A1: CONSEJO DE EDUCACIÓN PRIMARIA | E1: ESTABLECIMIENTOS
A3: Cuadro Nº II-2.1.4
A5: ESTABLECIMIENTOS DE EDUCACIÓN PRIMARIA PRIVADA POR TIPO DE EDUCACIÓN SEGÚN DEPARTAMENTO AÑO 2011
A6: DEPARTAMENTO | B6: TOTAL | D6: TIPO DE EDUCACIÓN
C7: Total | D7: EDUCACIÓN COMÚN | F7: EDUCACIÓN ESPECIAL
D8: Habilitados | E8: Autorizados
A10: TOTAL DEL PAÍS | B10: =+C10+F10 -> 403 | C10: =+D10+E10 -> 338 | D10: =SUM(D11:D12) -> 320 | E10: =SUM(E11:E12) -> 18 | F10: =SUM(F11:F12) -> 65
A11: MONTEVIDEO | B11: =+C11+F11 -> 212 | C11: =+D11+E11 -> 169 | D11: 158 | E11: 11 | F11: 43
A12: RESTO DEL PAÍS | B12: 191 | C12: 169 | D12: =SUM(D13:D30) -> 162 | E12: =SUM(E13:E30) -> 7 | F12: =SUM(F13:F30) -> 22
A13: Artigas | B13: 3 | C13: 1 | D13: 1 | E13: 0 | F13: 2
A14: Canelones | B14: 63 | C14: 61 | D14: 57 | E14: 4 | F14: 2
A15: Cerro Largo | B15: 6 | C15: 6 | D15: 6 | E15: 0 | F15: 0
A16: Colonia | B16: 8 | C16: 8 | D16: 8 | E16: 0 | F16: 0
A17: Durazno | B17: 3 | C17: 3 | D17: 3 | E17: 0 | F17: 0
A18: Flores | B18: 3 | C18: 3 | D18: 3 | E18: 0 | F18: 0
A19: Florida | B19: 5 | C19: 4 | D19: 4 | E19: 0 | F19: 1
A20: Lavalleja | B20: 6 | C20: 6 | D20: 6 | E20: 0 | F20: 0
A21: Maldonado | B21: 28 | C21: 25 | D21: 25 | E21: 0 | F21: 3
A22: Paysandú | B22: 12 | C22: 8 | D22: 8 | E22: 0 | F22: 4
A23: Río Negro | B23: 7 | C23: 6 | D23: 4 | E23: 2 | F23: 1
A24: Rivera | B24: 8 | C24: 8 | D24: 8 | E24: 0 | F24: 0
A25: Rocha | B25: 6 | C25: 4 | D25: 4 | E25: 0 | F25: 2
A26: Salto | B26: 11 | C26: 8 | D26: 8 | E26: 0 | F26: 3
A27: San José | B27: 7 | C27: 7 | D27: 6 | E27: 1 | F27: 0
A28: Soriano | B28: 7 | C28: 3 | D28: 3 | E28: 0 | F28: 4
A29: Tacuarembó | B29: 6 | C29: 6 | D29: 6 | E29: 0 | F29: 0
A30: Treinta y Tres | B30: 2 | C30: 2 | D30: 2 | E30: 0 | F30: 0
A31: Fuente: Procesamiento propio en base a datos proporcionados por el D.E.E. — C.E.I.P.

Sheet II-2.2.1
A1: CONSEJO DE EDUCACIÓN PRIMARIA | H1: ALUMNOS MATRICULADOS
A3: Cuadro Nº II-2.2.1
A4: ALUMNOS MATRICULADOS EN EDUCACIÓN PRIMARIA COMÚN POR FORMA DE ADMINISTRACIÓN Y SEXO SEGÚN DEPARTAMENTO AÑO 2011
A5: DEPARTAMENTO | B5: TOTAL | C5: FORMA DE ADMINISTRACIÓN
C6: TOTAL | E6: PÚBLICA | H6: PRIVADA
E7: TOTAL | F7: SEXO | H7: TOTAL | I7: SEXO
C8: M | D8: F | F8: M | G8: F | I8: M | J8: F
A9: TOTAL | B9: =E9+H9 -> 324726 | C9: =+F9+I9 -> 167236 | D9: =+G9+J9 -> 157490 | E9: 272657 | F9: 140970 | G9: 131687 | H9: =+I9+J9 -> 52069 | I9: =SUM(I10:I11) -> 26266 | J9: =SUM(J10:J11) -> 25803
A10: MONTEVIDEO | B10: =E10+H10 -> 115074 | C10: =+F10+I10 -> 58924 | D10: 56150 | E10: 82886 | F10: 42703 | G10: 40183 | H10: =+I10+J10 -> 32188 | I10: 16221 | J10: 15967
A11: RESTO DEL PAÍS | B11: 209652 | C11: 108312 | D11: 101340 | E11: 189771 | F11: 98267 | G11: 91504 | H11: 19881 | I11: =SUM(I12:I29) -> 10045 | J11: =SUM(J12:J29) -> 9836
A12: Artigas | B12: 8901 | C12: 4612 | D12: 4289 | E12: 8809 | F12: 4567 | G12: 4242 | H12: 92 | I12: 45 | J12: 47
A13: Canelones | B13: 52129 | C13: 26991 | D13: 25138 | E13: 45116 | F13: 23420 | G13: 21696 | H13: 7013 | I13: 3571 | J13: 3442
A14: Cerro Largo | B14: 9828 | C14: 5043 | D14: 4785 | E14: 9213 | F14: 4731 | G14: 4482 | H14: 615 | I14: 312 | J14: 303
A15: Colonia | B15: 11317 | C15: 5805 | D15: 5512 | E15: 10593 | F15: 5460 | G15: 5133 | H15: 724 | I15: 345 | J15: 379
A16: Durazno | B16: 6420 | C16: 3302 | D16: 3118 | E16: 5786 | F16: 3010 | G16: 2776 | H16: 634 | I16: 292 | J16: 342
A17: Flores | B17: 2594 | C17: 1281 | D17: 1313 | E17: 2233 | F17: 1092 | G17: 1141 | H17: 361 | I17: 189 | J17: 172
A18: Florida | B18: 6684 | C18: 3428 | D18: 3256 | E18: 6388 | F18: 3282 | G18: 3106 | H18: 296 | I18: 146 | J18: 150
A19: Lavalleja | B19: 5686 | C19: 2930 | D19: 2756 | E19: 5071 | F19: 2628 | G19: 2443 | H19: 615 | I19: 302 | J19: 313
A20: Maldonado | B20: 17549 | C20: 9046 | D20: 8503 | E20: 13670 | F20: 7065 | G20: 6605 | H20: 3879 | I20: 1981 | J20: 1898
A21: Paysandú | B21: 13188 | C21: 6885 | D21: 6303 | E21: 12013 | F21: 6296 | G21: 5717 | H21: 1175 | I21: 589 | J21: 586
A22: Río Negro | B22: 6282 | C22: 3277 | D22: 3005 | E22: 5821 | F22: 3042 | G22: 2779 | H22: 461 | I22: 235 | J22: 226
A23: Rivera | B23: 11968 | C23: 6269 | D23: 5699 | E23: 11295 | F23: 5909 | G23: 5386 | H23: 673 | I23: 360 | J23: 313
A24: Rocha | B24: 7254 | C24: 3761 | D24: 3493 | E24: 6841 | F24: 3545 | G24: 3296 | H24: 413 | I24: 216 | J24: 197
A25: Salto | B25: 14745 | C25: 7653 | D25: 7092 | E25: 13656 | F25: 7109 | G25: 6547 | H25: 1089 | I25: 544 | J25: 545
A26: San José | B26: 10565 | C26: 5459 | D26: 5106 | E26: 9989 | F26: 5177 | G26: 4812 | H26: 576 | I26: 282 | J26: 294
A27: Soriano | B27: 9030 | C27: 4605 | D27: 4425 | E27: 8595 | F27: 4394 | G27: 4201 | H27: 435 | I27: 211 | J27: 224
A28: Tacuarembó | B28: 10371 | C28: 5322 | D28: 5049 | E28: 9728 | F28: 5004 | G28: 4724 | H28: 643 | I28: 318 | J28: 325
A29: Treinta y Tres | B29: 5141 | C29: 2643 | D29: 2498 | E29: 4954 | F29: 2536 | G29: 2418 | H29: 187 | I29: 107 | J29: 80
A30: Fuente: Procesamiento propio en base a datos proporcionados por el DEE — CEIP
A31: Nota: No incluye JICI

Sheet II-2.2.2
A1: CONSEJO DE EDUCACIÓN PRIMARIA | H1: ALUMNOS MATRICULADOS
A3: Cuadro Nº II-2.2.2
A5: ALUMNOS MATRICULADOS EN EDUCACIÓN PRIMARIA PÚBLICA POR TIPO DE EDUCACIÓN Y SEXO SEGÚN DEPARTAMENTO. AÑO 2011.
A6: DEPARTAMENTO | B6: TOTAL | C6: TOTAL SEXO | E6: TIPO DE EDUCACIÓN
F7: COMÚN | I7: ESPECIAL
I8: ESCUELAS ESPECIALES | K8: CLASES ESPECIALES
F9: SEXO | I9: SEXO | K9: SEXO
C10: M | D10: F | E10: Total | F10: M | G10: F | H10: Total | I10: M | J10: F | K10: M | L10: F | EJ10: COMPARABLE CON ANTERIOR | EL10: BASE DE ESPECIAL 1 a 6 | EN10: Clases Especiales | EP10: TOTAL 1a6 esc y clases | ER10: TOTAL inic; 1a6 esc y clases
A11: TOTAL | B11: =+C11+D11 -> 279943 | C11: =+F11+I11+K11 -> 145464 | D11: =+G11+J11+L11 -> 134479 | E11: =+F11+G11 -> 272657 | F11: 140970 | G11: =SUM(G12:G13) -> 131687 | H11: =+I11+J11+K11+L11 -> 7286 | I11: =SUM(I12:I13) -> 4366 | J11: =SUM(J12:J13) -> 2727 | K11: 128 | L11: 65 | EI11: Montveo | EJ11: 1825 | EK11: 1155 | EL11: 1169 | EM11: 729 | EN11: 0 | EO11: 0 | EP11: =EL11+EN11 -> 1169 | EQ11: =EM11+EO11 -> 729 | ER11: =EJ11+EN11 -> 1825 | ES11: =EK11+EO11 -> 1155
A12: MONTEVIDEO | B12: =+C12+D12 -> 85771 | C12: =+F12+I12+K12 -> 44490 | D12: 41281 | E12: =+F12+G12 -> 82886 | F12: 42703 | G12: 40183 | H12: =+I12+J12+K12+L12 -> 2885 | I12: 1787 | J12: 1098 | K12: 0 | L12: 0
A13: RESTO DEL PAÍS | B13: 194172 | C13: 100974 | D13: 93198 | E13: =+F13+G13 -> 189771 | F13: =SUM(F14:F31) -> 98267 | G13: =SUM(G14:G31) -> 91504 | H13: =SUM(H14:H31) -> 4401 | I13: =SUM(I14:I31) -> 2579 | J13: =SUM(J14:J31) -> 1629 | K13: 128 | L13: 65
A14: Artigas | B14: 9009 | C14: 4688 | D14: 4321 | E14: =+F14+G14 -> 8809 | F14: 4567 | G14: 4242 | H14: 200 | I14: 112 | J14: 75 | K14: 9 | L14: 4 | EJ14: 119 | EK14: 87 | EL14: 81 | EM14: 52 | EN14: 11 | EO14: 4 | EP14: =EL14+EN14 -> 92 | EQ14: =EM14+EO14 -> 56 | ER14: =EJ14+EN14 -> 130 | ES14: =EK14+EO14 -> 91
A15: Canelones | B15: 45875 | C15: 23895 | D15: 21980 | E15: 45116 | F15: 23420 | G15: 21696 | H15: 759 | I15: 446 | J15: 272 | K15: 29 | L15: 12 | EJ15: 449 | EK15: 275 | EL15: 377 | EM15: 206 | EN15: 35 | EO15: 14 | EP15: =EL15+EN15 -> 412 | EQ15: 220 | ER15: =EJ15+EN15 -> 484 | ES15: 289
A16: Cerro Largo | B16: 9475 | C16: 4903 | D16: 4572 | E16: 9213 | F16: 4731 | G16: 4482 | H16: 262 | I16: 156 | J16: 84 | K16: 16 | L16: 6 | EJ16: 149 | EK16: 91 | EL16: 120 | EM16: 78 | EN16: 9 | EO16: 5 | EP16: 129 | EQ16: 83 | ER16: 158 | ES16: 96
A17: Colonia | B17: 10848 | C17: 5624 | D17: 5224 | E17: 10593 | F17: 5460 | G17: 5133 | H17: 255 | I17: 156 | J17: 87 | K17: 8 | L17: 4 | EJ17: 155 | EK17: 90 | EL17: 104 | EM17: 67 | EN17: 10 | EO17: 2 | EP17: 114 | EQ17: 69 | ER17: 165 | ES17: 92
A18: Durazno | B18: 6015 | C18: 3149 | D18: 2866 | E18: 5786 | F18: 3010 | G18: 2776 | H18: 229 | I18: 125 | J18: 82 | K18: 14 | L18: 8 | EJ18: 118 | EK18: 82 | EL18: 77 | EM18: 53 | EN18: 16 | EO18: 10 | EP18: 93 | EQ18: 63 | ER18: 134 | ES18: 92
A19: Flores | B19: 2281 | C19: 1121 | D19: 1160 | E19: 2233 | F19: 1092 | G19: 1141 | H19: 48 | I19: 29 | J19: 19 | K19: 0 | L19: 0 | EJ19: 36 | EK19: 25 | EL19: 31 | EM19: 16 | EN19: 0 | EO19: 0 | EP19: 31 | EQ19: 16 | ER19: 36 | ES19: 25
A20: Florida | B20: 6555 | C20: 3386 | D20: 3169 | E20: 6388 | F20: 3282 | G20: 3106 | H20: 167 | I20: 101 | J20: 59 | K20: 3 | L20: 4 | EJ20: 103 | EK20: 55 | EL20: 80 | EM20: 44 | EN20: 3 | EO20: 3 | EP20: 83 | EQ20: 47 | ER20: 106 | ES20: 58
A21: Lavalleja | B21: 5236 | C21: 2729 | D21: 2507 | E21: 5071 | F21: 2628 | G21: 2443 | H21: 165 | I21: 96 | J21: 63 | K21: 5 | L21: 1 | EJ21: 88 | EK21: 54 | EL21: 47 | EM21: 26 | EN21: 6 | EO21: 1 | EP21: 53 | EQ21: 27 | ER21: 94 | ES21: 55
A22: Maldonado | B22: 13961 | C22: 7233 | D22: 6728 | E22: 13670 | F22: 7065 | G22: 6605 | H22: 291 | I22: 168 | J22: 123 | K22: 0 | L22: 0 | EJ22: 169 | EK22: 119 | EL22: 129 | EM22: 83 | EN22: 0 | EO22: 0 | EP22: 129 | EQ22: 83 | ER22: 169 | ES22: 119
A23: Paysandú | B23: 12227 | C23: 6430 | D23: 5797 | E23: 12013 | F23: 6296 | G23: 5717 | H23: 214 | I23: 121 | J23: 74 | K23: 13 | L23: 6 | EJ23: 117 | EK23: 74 | EL23: 96 | EM23: 57 | EN23: 14 | EO23: 6 | EP23: 110 | EQ23: 63 | ER23: 131 | ES23: 80
A24: Río Negro | B24: 5994 | C24: 3128 | D24: 2866 | E24: 5821 | F24: 3042 | G24: 2779 | H24: 173 | I24: 84 | J24: 85 | K24: 2 | L24: 2 | EJ24: 89 | EK24: 85 | EL24: 60 | EM24: 60 | EN24: 1 | EO24: 3 | EP24: 61 | EQ24: 63 | ER24: 90 | ES24: 88
A25: Rivera | B25: 11551 | C25: 6072 | D25: 5479 | E25: 11295 | F25: 5909 | G25: 5386 | H25: 256 | I25: 163 | J25: 93 | K25: 0 | L25: 0 | EJ25: 168 | EK25: 90 | EL25: 134 | EM25: 79 | EN25: 0 | EO25: 0 | EP25: 134 | EQ25: 79 | ER25: 168 | ES25: 90
A26: Rocha | B26: 7093 | C26: 3700 | D26: 3393 | E26: 6841 | F26: 3545 | G26: 3296 | H26: 252 | I26: 151 | J26: 92 | K26: 4 | L26: 5 | EJ26: 151 | EK26: 88 | EL26: 126 | EM26: 64 | EN26: 2 | EO26: 8 | EP26: 128 | EQ26: 72 | ER26: 153 | ES26: 96
A27: Salto | B27: 14003 | C27: 7320 | D27: 6683 | E27: 13656 | F27: 7109 | G27: 6547 | H27: 347 | I27: 205 | J27: 134 | K27: 6 | L27: 2 | EJ27: 212 | EK27: 122 | EL27: 119 | EM27: 72 | EN27: 5 | EO27: 3 | EP27: 124 | EQ27: 75 | ER27: 217 | ES27: 125
A28: San José | B28: 10227 | C28: 5327 | D28: 4900 | E28: 9989 | F28: 5177 | G28: 4812 | H28: 238 | I28: 145 | J28: 88 | K28: 5 | L28: 0 | EJ28: 164 | EK28: 88 | EL28: 132 | EM28: 74 | EN28: 5 | EO28: 1 | EP28: 137 | EQ28: 75 | ER28: 169 | ES28: 89
A29: Soriano | B29: 8816 | C29: 4531 | D29: 4285 | E29: 8595 | F29: 4394 | G29: 4201 | H29: 221 | I29: 135 | J29: 84 | K29: 2 | L29: 0 | EJ29: 139 | EK29: 83 | EL29: 105 | EM29: 61 | EN29: 3 | EO29: 1 | EP29: 108 | EQ29: 62 | ER29: 142 | ES29: 84
A30: Tacuarembó | B30: 9929 | C30: 5126 | D30: 4803 | E30: 9728 | F30: 5004 | G30: 4724 | H30: 201 | I30: 114 | J30: 70 | K30: 8 | L30: 9 | EJ30: 115 | EK30: 63 | EL30: 90 | EM30: 48 | EN30: 8 | EO30: 9 | EP30: 98 | EQ30: 57 | ER30: 123 | ES30: 72
A31: Treinta y Tres | B31: 5077 | C31: 2612 | D31: 2465 | E31: 4954 | F31: 2536 | G31: 2418 | H31: 123 | I31: 72 | J31: 45 | K31: 4 | L31: 2 | EJ31: 78 | EK31: 43 | EL31: 72 | EM31: 38 | EN31: 3 | EO31: 2 | EP31: 75 | EQ31: 40 | ER31: 81 | ES31: 45
A32: Fuente: Procesamiento propio en base a datos proporcionados por el D.E.E. — C.E.I.P.

Sheet II-2.2.3
A1: CONSEJO DE EDUCACIÓN PRIMARIA | I1: ALUMNOS MATRICULADOS
A3: Cuadro Nº II-2.2.3
A5: ALUMNOS MATRICULADOS EN EDUCACIÓN PRIMARIA PÚBLICA COMÚN POR ÁREA DEMOGRÁFICA Y CATEGORÍA SEGÚN DEPARTAMENTO AÑO 2011 | M5: VOLVER
A6: DEPARTAMENTO | B6: TOTAL | C6: ÁREA DEMOGRÁFICA
C7: URBANA | J7: RURAL
C8: Total Urbana | D8: CATEGORÍA | I8: Total Rural | J8: CATEGORÍA
D9: Común | E9: De Práctica | F9: APRENDER | G9: Tiempo Completo | H9: JICI | J9: Común | K9: Internado Rural
A11: TOTAL | B11: =+C11+I11 -> 273440 | C11: =+D11+E11+F11+G11+H11 -> 256775 | D11: =SUM(D12:D13) -> 104956 | E11: =SUM(E12:E13) -> 39518 | F11: =SUM(F12:F13) -> 82740 | G11: =SUM(G12:G13) -> 28778 | H11: =SUM(H12:H13) -> 783 | I11: =+J11+K11 -> 16665 | J11: 16540 | K11: 125
A12: MONTEVIDEO | B12: =+C12+I12 -> 83116 | C12: =+D12+E12+F12+G12+H12 -> 83116 | D12: 33797 | E12: 6583 | F12: 33835 | G12: 8671 | H12: 230 | I12: =+J12+K12 -> 0 | J12: 0 | K12: 0
A13: RESTO DEL PAÍS | B13: =+C13+I13 -> 190324 | C13: 173659 | D13: =SUM(D14:D31) -> 71159 | E13: =SUM(E14:E31) -> 32935 | F13: =SUM(F14:F31) -> 48905 | G13: =SUM(G14:G31) -> 20107 | H13: =SUM(H14:H31) -> 553 | I13: 16665 | J13: =SUM(J14:J31) -> 16540 | K13: =SUM(K14:K31) -> 125
A14: Artigas | B14: 8809 | C14: 8003 | D14: 2301 | E14: 1609 | F14: 2828 | G14: 1265 | H14: 0 | I14: 806 | J14: 766 | K14: 40
A15: Canelones | B15: 45215 | C15: 42630 | D15: 16178 | E15: 6003 | F15: 16527 | G15: 3823 | H15: 99 | I15: 2585 | J15: 2585 | K15: 0
A16: Cerro Largo | B16: 9263 | C16: 8284 | D16: 2771 | E16: 1783 | F16: 2854 | G16: 826 | H16: 50 | I16: 979 | J16: 979 | K16: 0
A17: Colonia | B17: 10621 | C17: 9479 | D17: 6218 | E17: 1843 | F17: 589 | G17: 801 | H17: 28 | I17: 1142 | J17: 1142 | K17: 0
A18: Durazno | B18: 5835 | C18: 5327 | D18: 1938 | E18: 1475 | F18: 1116 | G18: 749 | H18: 49 | I18: 508 | J18: 508 | K18: 0
A19: Flores | B19: 2233 | C19: 1973 | D19: 903 | E19: 549 | F19: 254 | G19: 267 | H19: 0 | I19: 260 | J19: 237 | K19: 23
A20: Florida | B20: 6388 | C20: 5583 | D20: 2625 | E20: 1577 | F20: 618 | G20: 763 | H20: 0 | I20: 805 | J20: 805 | K20: 0
A21: Lavalleja | B21: 5090 | C21: 4628 | D21: 1673 | E21: 1369 | F21: 740 | G21: 827 | H21: 19 | I21: 462 | J21: 462 | K21: 0
A22: Maldonado | B22: 13670 | C22: 13016 | D22: 7523 | E22: 1930 | F22: 2336 | G22: 1227 | H22: 0 | I22: 654 | J22: 640 | K22: 14
A23: Paysandú | B23: 12031 | C23: 10918 | D23: 3519 | E23: 2251 | F23: 3622 | G23: 1508 | H23: 18 | I23: 1113 | J23: 1079 | K23: 34
A24: Río Negro | B24: 5864 | C24: 5242 | D24: 3256 | E24: 1218 | F24: 239 | G24: 486 | H24: 43 | I24: 622 | J24: 608 | K24: 14
A25: Rivera | B25: 11381 | C25: 10205 | D25: 3313 | E25: 1400 | F25: 4452 | G25: 954 | H25: 86 | I25: 1176 | J25: 1176 | K25: 0
A26: Rocha | B26: 6841 | C26: 6553 | D26: 3362 | E26: 1114 | F26: 1203 | G26: 874 | H26: 0 | I26: 288 | J26: 288 | K26: 0
A27: Salto | B27: 13656 | C27: 12170 | D27: 3622 | E27: 2288 | F27: 3884 | G27: 2376 | H27: 0 | I27: 1486 | J27: 1486 | K27: 0
A28: San José | B28: 10103 | C28: 8861 | D28: 4003 | E28: 1746 | F28: 1795 | G28: 1203 | H28: 114 | I28: 1242 | J28: 1242 | K28: 0
A29: Soriano | B29: 8595 | C29: 7881 | D29: 3675 | E29: 1738 | F29: 1734 | G29: 734 | H29: 0 | I29: 714 | J29: 714 | K29: 0
A30: Tacuarembó | B30: 9728 | C30: 8333 | D30: 2432 | E30: 1410 | F30: 3467 | G30: 1024 | H30: 0 | I30: 1395 | J30: 1395 | K30: 0
A31: Treinta y Tres | B31: 5001 | C31: 4573 | D31: 1847 | E31: 1632 | F31: 647 | G31: 400 | H31: 47 | I31: 428 | J31: 428 | K31: 0
A32: Fuente: Procesamiento propio en base a datos proporcionados por el D.E.E .— C.E.I.P.

Sheet II-2.2.4
A1: CONSEJO DE EDUCACIÓN PRIMARIA | E1: Alumnos matriculados
A3: Cuadro Nº II-2.2.4
A5: ALUMNOS MATRICULADOS EN EDUCACIÓN PRIMARIA PÚBLICA ESPECIAL POR TIPO DE DISCAPACIDAD SEGÚN DEPARTAMENTO. AÑO 2011.
A6: DEPARTAMENTO | C6: TOTAL | D6: DISCAPACIDAD
D7: Intelectual | E7: Auditiva | F7: Visual
A9: TOTAL | C9: =+C11+C12 -> 7286 | D9: =SUM(D11:D12) -> 6878 | E9: =SUM(E11:E12) -> 308 | F9: =SUM(F11:F12) -> 100
A11: MONTEVIDEO | C11: =+D11+E11+F11 -> 2885 | D11: 2714 | E11: 93 | F11: 78
A12: RESTO DEL PAÍS | C12: =SUM(C13:C30) -> 4401 | D12: =SUM(D13:D30) -> 4164 | E12: =SUM(E13:E30) -> 215 | F12: =SUM(F13:F30) -> 22
A13: Artigas | C13: =+D13+E13+F13 -> 200 | D13: 187 | E13: 13 | F13: 0
A14: Canelones | C14: 759 | D14: 734 | E14: 25 | F14: 0
A15: Cerro Largo | C15: 262 | D15: 249 | E15: 13 | F15: 0
A16: Colonia | C16: 255 | D16: 243 | E16: 12 | F16: 0
A17: Durazno | C17: 229 | D17: 216 | E17: 11 | F17: 2
A18: Flores | C18: 48 | D18: 48 | E18: 0 | F18: 0
A19: Florida | C19: 167 | D19: 160 | E19: 7 | F19: 0
A20: Lavalleja | C20: 165 | D20: 159 | E20: 6 | F20: 0
A21: Maldonado | C21: 291 | D21: 273 | E21: 18 | F21: 0
A22: Paysandú | C22: 214 | D22: 195 | E22: 13 | F22: 6
A23: Río Negro | C23: 173 | D23: 169 | E23: 4 | F23: 0
A24: Rivera | C24: 256 | D24: 240 | E24: 16 | F24: 0
A25: Rocha | C25: 252 | D25: 243 | E25: 9 | F25: 0
A26: Salto | C26: 347 | D26: 295 | E26: 44 | F26: 8
A27: San José | C27: 238 | D27: 233 | E27: 5 | F27: 0
A28: Soriano | C28: 221 | D28: 219 | E28: 2 | F28: 0
A29: Tacuarembó | C29: 201 | D29: 184 | E29: 11 | F29: 6
A30: Treinta y Tres | C30: 123 | D30: 117 | E30: 6 | F30: 0
A31: Fuente: D.E.E. — C.E.P.
A32: Nota: Incluyen Escuelas Especiales y Clases Especiales en Escuelas Comunes.
A33: Para el Interior del país las clases orientadas a discapacitados visuales y fonoaudiología se realizan en Escuelas Comunes, excepto en Maldonado, Rivera y Salto donde funcionan Escuelas de Fonoaudiología.

Sheet II-2.2.5
A1: CONSEJO DE EDUCACIÓN PRIMARIA | E1: ALUMNOS MATRICULADOS
A3: Cuadro Nº II-2.2.5
A5: ALUMNOS MATRICULADOS EN EDUCACIÓN PRIMARIA PRIVADA POR TIPO DE EDUCACIÓN SEGÚN DEPARTAMENTO AÑO 2011
A6: DEPARTAMENTO | B6: TIPO DE EDUCACIÓN
B7: TOTAL | C7: EDUCACIÓN COMÚN | F7: EDUCACIÓN ESPECIAL
C8: Total | D8: Habilitados | E8: Autorizados
A10: TOTAL DEL PAÍS | B10: =SUM(B11:B12) -> 56036 | C10: =+D10+E10 -> 52069 | D10: 49509 | E10: 2560 | F10: 3967
A11: MONTEVIDEO | B11: =+C11+F11 -> 34397 | C11: 32188 | D11: 30025 | E11: 2163 | F11: 2209 | AT11: MONTEVIDEO
A12: RESTO DEL PAÍS | B12: =+C12+F12 -> 21639 | C12: =+D12+E12 -> 19881 | D12: 19484 | E12: 397 | F12: 1758 | AT12: RESTO DEL PAÍS
A13: Artigas | B13: =+C13+F13 -> 254 | C13: =+D13+E13 -> 92 | D13: 92 | E13: 0 | F13: 162 | AT13: Artigas
A14: Canelones | B14: 7013 | C14: =+D14+E14 -> 7013 | D14: 6669 | E14: 344 | F14: 0 | AT14: Canelones
A15: Cerro Largo | B15: 615 | C15: 615 | D15: 615 | E15: 0 | F15: 0 | AT15: Cerro Largo
A16: Colonia | B16: 724 | C16: 724 | D16: 724 | E16: 0 | F16: 0 | AT16: Colonia
A17: Durazno | B17: 634 | C17: 634 | D17: 634 | E17: 0 | F17: 0 | AT17: Durazno
A18: Flores | B18: 368 | C18: 361 | D18: 361 | E18: 0 | F18: 7 | AT18: Flores
A19: Florida | B19: 358 | C19: 296 | D19: 296 | E19: 0 | F19: 62 | AT19: Florida
A20: Lavalleja | B20: 615 | C20: 615 | D20: 615 | E20: 0 | F20: 0 | AT20: Lavalleja
A21: Maldonado | B21: 4020 | C21: 3879 | D21: 3879 | E21: 0 | F21: 141 | AT21: Maldonado
A22: Paysandú | B22: 1451 | C22: 1175 | D22: 1175 | E22: 0 | F22: 276 | AT22: Paysandú
A23: Río Negro | B23: 610 | C23: 461 | D23: 428 | E23: 33 | F23: 149 | AT23: Río Negro
A24: Rivera | B24: 680 | C24: 673 | D24: 673 | E24: 0 | F24: 7 | AT24: Rivera
A25: Rocha | B25: 500 | C25: 413 | D25: 413 | E25: 0 | F25: 87 | AT25: Rocha
A26: Salto | B26: 1297 | C26: 1089 | D26: 1089 | E26: 0 | F26: 208 | AT26: Salto
A27: San José | B27: 576 | C27: 576 | D27: 556 | E27: 20 | F27: 0 | AT27: San José
A28: Soriano | B28: 1094 | C28: 435 | D28: 435 | E28: 0 | F28: 659 | AT28: Soriano
A29: Tacuarembó | B29: 643 | C29: 643 | D29: 643 | E29: 0 | F29: 0 | AT29: Tacuarembó
A30: Treinta y Tres | B30: 187 | C30: 187 | D30: 187 | E30: 0 | F30: 0 | AT30: Treinta y Tres
A31: Fuente: Procesamiento propio en base a datos proporcionados por el D.E.E. — C.E.I.P.
A32: Nota: Especial incluye la matrícula de clases especiales en escuelas comunes,
A33: Instrucción Temprana, Educación Inicial, Preparatorio y Talleres
A107: 30025 | B107: 2163 | C107: 2209
A108: 19484 | B108: 397 | C108: 1758
A109: 92 | B109: 0 | C109: 162
A110: 6669 | B110: 344 | C110: 0
A111: 615 | B111: 0 | C111: 0
A112: 724 | B112: 0 | C112: 0
A113: 634 | B113: 0 | C113: 0
A114: 361 | B114: 0 | C114: 7
A115: 296 | B115: 0 | C115: 62
A116: 615 | B116: 0 | C116: 0
A117: 3879 | B117: 0 | C117: 141
A118: 1175 | B118: 0 | C118: 276
A119: 428 | B119: 33 | C119: 149
A120: 673 | B120: 0 | C120: 7
A121: 413 | B121: 0 | C121: 87
A122: 1089 | B122: 0 | C122: 208
A123: 556 | B123: 20 | C123: 0
A124: 435 | B124: 0 | C124: 659
A125: 643 | B125: 0 | C125: 0
A126: 187 | B126: 0 | C126: 0

Sheet II-2.2.6
A1: CONSEJO DE EDUCACIÓN PRIMARIA | M1: ALUMNOS MATRICULADOS
A3: Cuadro Nº II-2.2.6
A5: ALUMNOS MATRICULADOS EN EDUCACIÓN PRIMARIA COMÚN POR GRADO Y FORMA DE ADMINISTRACIÓN SEGÚN EDAD AÑO 2011
A6: EDAD | D6: GRADO
B7: TOTAL | D7: Primero | F7: Segundo | H7: Tercero | J7: Cuarto | L7: Quinto | N7: Sexto
D9: FORMA DE ADMINISTRACIÓN
B10: Pública | C10: Privada | D10: Pública | E10: Privada | F10: Pública | G10: Privada | H10: Pública | I10: Privada | J10: Pública | K10: Privada | L10: Pública | M10: Privada | N10: Pública | O10: Privada
A12: TOTAL | B12: =SUM(B13:B21) -> 272657 | C12: =SUM(C13:C21) -> 52069 | D12: =SUM(D13:D21) -> 46719 | E12: =SUM(E13:E21) -> 9347 | F12: =SUM(F13:F21) -> 44446 | G12: =SUM(G13:G21) -> 9044 | H12: 45257 | I12: 8675 | J12: 45627 | K12: 8425 | L12: 44986 | M12: 8340 | N12: 45622 | O12: 8238
A13: 6 años | B13: =+D13 -> 35834 | C13: =+E13 -> 7930 | D13: 35834 | E13: 7930 | F13: 0 | G13: 0 | H13: 0 | I13: 0 | J13: 0 | K13: 0 | L13: 0 | M13: 0 | N13: 0 | O13: 0
A14: 7 años | B14: =+D14+F14 -> 40452 | C14: =+E14+G14 -> 8940 | D14: 9857 | E14: 1365 | F14: 30595 | G14: 7575 | H14: 0 | I14: 0 | J14: 0 | K14: 0 | L14: 0 | M14: 0 | N14: 0 | O14: 0
A15: 8 años | B15: =+D15+F15+H15 -> 41880 | C15: =+E15+G15+I15 -> 8687 | D15: 950 | E15: 40 | F15: 11305 | G15: 1388 | H15: 29625 | I15: 7259 | J15: 0 | K15: 0 | L15: 0 | M15: 0 | N15: 0 | O15: 0
A16: 9 años | B16: =+D16+F16+H16+J16 -> 42689 | C16: =+E16+G16+I16+K16 -> 8206 | D16: 71 | E16: 5 | F16: 2217 | G16: 67 | H16: 12095 | I16: 1331 | J16: 28306 | K16: 6803 | L16: 0 | M16: 0 | N16: 0 | O16: 0
A17: 10 años | B17: =+D17+F17+H17+J17+L17 -> 43107 | C17: =+E17+G17+I17+K17+M17 -> 8408 | D17: 5 | E17: 4 | F17: 295 | G17: 8 | H17: 2915 | I17: 71 | J17: 12771 | K17: 1503 | L17: 27121 | M17: 6822 | N17: 0 | O17: 0
A18: 11 años | B18: =+D18+F18+H18+J18+L18+N18 -> 43292 | C18: 8066 | D18: 1 | E18: 2 | F18: 25 | G18: 3 | H18: 538 | I18: 10 | J18: 3683 | K18: 99 | L18: 12514 | M18: 1398 | N18: 26531 | O18: 6554
A19: 12 años | B19: 17918 | C19: 1607 | D19: 1 | E19: 1 | F19: 5 | G19: 2 | H19: 70 | I19: 3 | J19: 747 | K19: 12 | L19: 4171 | M19: 108 | N19: 12924 | O19: 1481
A20: 13 años | B20: 5991 | C20: 183 | D20: 0 | E20: 0 | F20: 4 | G20: 0 | H20: 12 | I20: 0 | J20: 94 | K20: 5 | L20: 1044 | M20: 12 | N20: 4837 | O20: 166
A21: 14 años y más | B21: 1494 | C21: 42 | D21: 0 | E21: 0 | F21: 0 | G21: 1 | H21: 2 | I21: 1 | J21: 26 | K21: 3 | L21: 136 | M21: 0 | N21: 1330 | O21: 37
A22: Fuente: Procesamiento propio en base a datos proporcionados por el D.E.E .— C.E.I.P.
A23: Nota: Primaria Pública no incluye la matrícula correspondiente a JICI

Sheet II-2.2.7
A1: CONSEJO DE EDUCACIÓN PRIMARIA | N1: ALUMNOS MATRICULADOS
A3: Cuadro Nº II-2.2.7
A4: ALUMNOS MATRICULADOS EN EDUCACIÓN PRIMARIA COMÚN PÚBLICA POR GRADO Y SEXO SEGÚN EDAD. AÑO 2011.
A5: EDAD | E5: GRADO
B6: TOTAL SEXO | E6: Primero | G6: Segundo | I6: Tercero | K6: Cuarto | M6: Quinto | O6: Sexto
E8: SEXO
B9: TOTAL | C9: M | D9: F | E9: M | F9: F | G9: M | H9: F | I9: M | J9: F | K9: M | L9: F | M9: M | N9: F | O9: M | P9: F
A10: TOTAL | B10: =+C10+D10 -> 272657 | C10: =SUM(E10+G10+I10+K10+M10+O10) -> 140970 | D10: =+F10+H10+J10+L10+N10+P10 -> 131687 | E10: =SUM(E11:E19) -> 24695 | F10: 22024 | G10: 22920 | H10: 21526 | I10: 23316 | J10: 21941 | K10: 23720 | L10: 21907 | M10: 23127 | N10: 21859 | O10: 23192 | P10: 22430
A11: 6 años | B11: =+C11+D11 -> 35834 | C11: =SUM(E11+G11+I11+K11+M11+O11) -> 18425 | D11: =+F11+H11+J11+L11+N11+P11 -> 17409 | E11: 18425 | F11: 17409 | G11: 0 | H11: 0 | I11: 0 | J11: 0 | K11: 0 | L11: 0 | M11: 0 | N11: 0 | O11: 0 | P11: 0
A12: 7 años | B12: =+C12+D12 -> 40452 | C12: 20626 | D12: =+F12+H12+J12+L12+N12+P12 -> 19826 | E12: 5647 | F12: 4210 | G12: 14979 | H12: 15616 | I12: 0 | J12: 0 | K12: 0 | L12: 0 | M12: 0 | N12: 0 | O12: 0 | P12: 0
A13: 8 años | B13: 41880 | C13: 21339 | D13: 20541 | E13: 580 | F13: 370 | G13: 6342 | H13: 4963 | I13: 14417 | J13: 15208 | K13: 0 | L13: 0 | M13: 0 | N13: 0 | O13: 0 | P13: 0
A14: 9 años | B14: 42689 | C14: 21975 | D14: 20714 | E14: 39 | F14: 32 | G14: 1384 | H14: 833 | I14: 6703 | J14: 5392 | K14: 13849 | L14: 14457 | M14: 0 | N14: 0 | O14: 0 | P14: 0
A15: 10 años | B15: 43107 | C15: 21966 | D15: 21141 | E15: 4 | F15: 1 | G15: 188 | H15: 107 | I15: 1793 | J15: 1122 | K15: 6980 | L15: 5791 | M15: 13001 | N15: 14120 | O15: 0 | P15: 0
A16: 11 años | B16: 43292 | C16: 22071 | D16: =+F16+H16+J16+L16+N16+P16 -> 21221 | E16: 0 | F16: 1 | G16: 19 | H16: 6 | I16: 349 | J16: 189 | K16: 2305 | L16: 1378 | M16: 6855 | N16: 5659 | O16: 12543 | P16: 13988
A17: 12 años | B17: 17918 | C17: =SUM(E17+G17+I17+K17+M17+O17) -> 10028 | D17: 7890 | E17: 0 | F17: 1 | G17: 5 | H17: 0 | I17: 47 | J17: 23 | K17: 499 | L17: 248 | M17: 2535 | N17: 1636 | O17: 6942 | P17: 5982
A18: 13 años | B18: 5991 | C18: 3594 | D18: 2397 | E18: 0 | F18: 0 | G18: 3 | H18: 1 | I18: 6 | J18: 6 | K18: 67 | L18: 27 | M18: 636 | N18: 408 | O18: 2882 | P18: 1955
A19: 14 años y más | B19: 1494 | C19: 946 | D19: 548 | E19: 0 | F19: 0 | G19: 0 | H19: 0 | I19: 1 | J19: 1 | K19: 20 | L19: 6 | M19: 100 | N19: 36 | O19: 825 | P19: 505
A20: Fuente: Procesamiento propio en base a datos proporcionados por el D.E.E. — C.E.I.P.
A21: Nota: Primaria Pública no incluye la matrícula correspondiente a JICI

Sheet II-2.2.8
A1: CONSEJO DE EDUCACIÓN PRIMARIA | M1: ALUMNOS MATRICULADOS
A3: Cuadro Nº II-2.2.8
A4: ALUMNOS MATRICULADOS EN EDUCACIÓN PRIMARIA COMÚN PRIVADA POR GRADO Y SEXO SEGÚN EDAD AÑO 2011
A5: EDAD | E5: GRADO
B6: TOTAL SEXO | E6: Primero | G6: Segundo | I6: Tercero | K6: Cuarto | M6: Quinto | O6: Sexto
E7: SEXO
B8: TOTAL | C8: M | D8: F | E8: M | F8: F | G8: M | H8: F | I8: M | J8: F | K8: M | L8: F | M8: M | N8: F | O8: M | P8: F
A9: TOTAL | B9: =C9+D9 -> 52069 | C9: =SUM(C10:C18) -> 26266 | D9: 25803 | E9: 4713 | F9: 4634 | G9: 4575 | H9: 4469 | I9: 4349 | J9: 4326 | K9: 4287 | L9: 4138 | M9: 4199 | N9: 4141 | O9: 4143 | P9: 4095
A10: 6 años | B10: =C10+D10 -> 7930 | C10: 3957 | D10: 3973 | E10: 3957 | F10: 3973 | G10: 0 | H10: 0 | I10: 0 | J10: 0 | K10: 0 | L10: 0 | M10: 0 | N10: 0 | O10: 0 | P10: 0
A11: 7 años | B11: 8940 | C11: =+E11+G11 -> 4538 | D11: =+F11+H11 -> 4402 | E11: 723 | F11: 642 | G11: 3815 | H11: 3760 | I11: 0 | J11: 0 | K11: 0 | L11: 0 | M11: 0 | N11: 0 | O11: 0 | P11: 0
A12: 8 años | B12: 8687 | C12: =+E12+G12+I12 -> 4317 | D12: =SUM(F12+H12+J12) -> 4370 | E12: 25 | F12: 15 | G12: 715 | H12: 673 | I12: 3577 | J12: 3682 | K12: 0 | L12: 0 | M12: 0 | N12: 0 | O12: 0 | P12: 0
A13: 9 años | B13: 8206 | C13: =+E13+G13+I13+K13 -> 4176 | D13: =+F13+H13+J13+L13 -> 4030 | E13: 3 | F13: 2 | G13: 38 | H13: 29 | I13: 719 | J13: 612 | K13: 3416 | L13: 3387 | M13: 0 | N13: 0 | O13: 0 | P13: 0
A14: 10 años | B14: 8408 | C14: =+E14+G14+I14+K14+M14 -> 4247 | D14: =+F14+H14+J14+L14+N14 -> 4161 | E14: 3 | F14: 1 | G14: 3 | H14: 5 | I14: 47 | J14: 24 | K14: 797 | L14: 706 | M14: 3397 | N14: 3425 | O14: 0 | P14: 0
A15: 11 años | B15: 8066 | C15: =+E15+G15+I15+K15+M15+O15 -> 4013 | D15: 4053 | E15: 1 | F15: 1 | G15: 2 | H15: 1 | I15: 5 | J15: 5 | K15: 65 | L15: 34 | M15: 726 | N15: 672 | O15: 3214 | P15: 3340
A16: 12 años | B16: 1607 | C16: 881 | D16: 726 | E16: 1 | F16: 0 | G16: 2 | H16: 0 | I16: 1 | J16: 2 | K16: 6 | L16: 6 | M16: 67 | N16: 41 | O16: 804 | P16: 677
A17: 13 años | B17: 183 | C17: 113 | D17: 70 | E17: 0 | F17: 0 | G17: 0 | H17: 0 | I17: 0 | J17: 0 | K17: 2 | L17: 3 | M17: 9 | N17: 3 | O17: 102 | P17: 64
A18: 14 años y más | B18: 42 | C18: 24 | D18: 18 | E18: 0 | F18: 0 | G18: 0 | H18: 1 | I18: 0 | J18: 1 | K18: 1 | L18: 2 | M18: 0 | N18: 0 | O18: 23 | P18: 14
A19: Fuente: Procesamiento propio en base a datos proporcionados por el D.E.E. — C.E.I.P.

Sheet II-2.2.9
A1: CONSEJO DE EDUCACIÓN PRIMARIA | M1: ALUMNOS MATRICULADOS
A3: Cuadro Nº II-2.2.9
A5: ALUMNOS MATRICULADOS EN EDUCACIÓN PRIMARIA COMÚN POR GRADO Y FORMA DE ADMINISTRACIÓN SEGÚN DEPARTAMENTO AÑO 2011
A6: DEPARTAMENTO | B6: GRADO
B7: TOTAL | D7: Primero | F7: Segundo | H7: Tercero | J7: Cuarto | L7: Quinto | N7: Sexto
D8: FORMA DE ADMINISTRACIÓN
B9: Pública | C9: Privada | D9: Pública | E9: Privada | F9: Pública | G9: Privada | H9: Pública | I9: Privada | J9: Pública | K9: Privada | L9: Pública | M9: Privada | N9: Pública | O9: Privada
A11: TOTAL | B11: =SUM(B12:B13) -> 272657 | C11: 52069 | D11: 46719 | E11: 9347 | F11: 44446 | G11: 9044 | H11: =SUM(H12:H13) -> 45257 | I11: 8675 | J11: 45627 | K11: 8425 | L11: 44986 | M11: 8340 | N11: 45622 | O11: 8238
A12: MONTEVIDEO | B12: =+D12+F12+H12+J12+L12+N12 -> 82886 | C12: =+E12+G12+I12+K12+M12+O12 -> 32188 | D12: 14649 | E12: 5797 | F12: 13849 | G12: 5671 | H12: 13891 | I12: 5362 | J12: 13893 | K12: 5176 | L12: 13248 | M12: 5095 | N12: 13356 | O12: 5087
A13: RESTO DEL PAÍS | B13: =SUM(B14:B31) -> 189771 | C13: 19881 | D13: 32070 | E13: 3550 | F13: 30597 | G13: 3373 | H13: 31366 | I13: 3313 | J13: 31734 | K13: 3249 | L13: 31738 | M13: 3245 | N13: 32266 | O13: 3151
A14: Artigas | B14: =+D14+F14+H14+J14+L14+N14 -> 8809 | C14: =+E14+G14+I14+K14+M14+O14 -> 92 | D14: 1423 | E14: 17 | F14: 1376 | G14: 20 | H14: 1413 | I14: 13 | J14: 1560 | K14: 12 | L14: 1472 | M14: 18 | N14: 1565 | O14: 12
A15: Canelones | B15: =+D15+F15+H15+J15+L15+N15 -> 45116 | C15: =+E15+G15+I15+K15+M15+O15 -> 7013 | D15: 7659 | E15: 1269 | F15: 7345 | G15: 1230 | H15: 7568 | I15: 1170 | J15: 7456 | K15: 1160 | L15: 7568 | M15: 1161 | N15: 7520 | O15: 1023
A16: Cerro Largo | B16: =+D16+F16+H16+J16+L16+N16 -> 9213 | C16: 615 | D16: 1592 | E16: 117 | F16: 1546 | G16: 101 | H16: 1489 | I16: 85 | J16: 1498 | K16: 115 | L16: 1505 | M16: 103 | N16: 1583 | O16: 94
A17: Colonia | B17: =+D17+F17+H17+J17+L17+N17 -> 10593 | C17: 724 | D17: 1835 | E17: 118 | F17: 1807 | G17: 130 | H17: 1726 | I17: 126 | J17: 1749 | K17: 124 | L17: 1751 | M17: 103 | N17: 1725 | O17: 123
A18: Durazno | B18: 5786 | C18: 634 | D18: 966 | E18: 121 | F18: 868 | G18: 120 | H18: 1019 | I18: 107 | J18: 981 | K18: 96 | L18: 969 | M18: 100 | N18: 983 | O18: 90
A19: Flores | B19: 2233 | C19: 361 | D19: 373 | E19: 58 | F19: 390 | G19: 58 | H19: 389 | I19: 62 | J19: 363 | K19: 57 | L19: 343 | M19: 60 | N19: 375 | O19: 66
A20: Florida | B20: 6388 | C20: 296 | D20: 1165 | E20: 52 | F20: 1005 | G20: 42 | H20: 1073 | I20: 57 | J20: 1065 | K20: 40 | L20: 1049 | M20: 66 | N20: 1031 | O20: 39
A21: Lavalleja | B21: 5071 | C21: 615 | D21: 846 | E21: 108 | F21: 847 | G21: 93 | H21: 817 | I21: 108 | J21: 820 | K21: 96 | L21: 851 | M21: 100 | N21: 890 | O21: 110
A22: Maldonado | B22: 13670 | C22: 3879 | D22: 2247 | E22: 702 | F22: 2223 | G22: 586 | H22: 2318 | I22: 661 | J22: 2234 | K22: 655 | L22: 2286 | M22: 627 | N22: 2362 | O22: 648
A23: Paysandú | B23: 12013 | C23: 1175 | D23: 2070 | E23: 208 | F23: 1891 | G23: 217 | H23: 1948 | I23: 188 | J23: 2042 | K23: 205 | L23: 2065 | M23: 182 | N23: 1997 | O23: 175
A24: Río Negro | B24: 5821 | C24: 461 | D24: 994 | E24: 99 | F24: 928 | G24: 89 | H24: 926 | I24: 70 | J24: 977 | K24: 65 | L24: 1008 | M24: 77 | N24: 988 | O24: 61
A25: Rivera | B25: 11295 | C25: 673 | D25: 1889 | E25: 121 | F25: 1767 | G25: 107 | H25: 1869 | I25: 113 | J25: 1880 | K25: 99 | L25: 1909 | M25: 116 | N25: 1981 | O25: 117
A26: Rocha | B26: 6841 | C26: 413 | D26: 1143 | E26: 81 | F26: 1122 | G26: 74 | H26: 1074 | I26: 68 | J26: 1176 | K26: 50 | L26: 1119 | M26: 60 | N26: 1207 | O26: 80
A27: Salto | B27: 13656 | C27: 1089 | D27: 2363 | E27: 185 | F27: 2091 | G27: 161 | H27: 2257 | I27: 192 | J27: 2284 | K27: 172 | L27: 2266 | M27: 178 | N27: 2395 | O27: 201
A28: San José | B28: 9989 | C28: 576 | D28: 1634 | E28: 92 | F28: 1710 | G28: 101 | H28: 1691 | I28: 101 | J28: 1630 | K28: 91 | L28: 1688 | M28: 95 | N28: 1636 | O28: 96
A29: Soriano | B29: 8595 | C29: 435 | D29: 1470 | E29: 72 | F29: 1408 | G29: 87 | H29: 1380 | I29: 62 | J29: 1496 | K29: 74 | L29: 1416 | M29: 72 | N29: 1425 | O29: 68
A30: Tacuarembó | B30: 9728 | C30: 643 | D30: 1592 | E30: 104 | F30: 1509 | G30: 128 | H30: 1581 | I30: 99 | J30: 1700 | K30: 103 | L30: 1635 | M30: 98 | N30: 1711 | O30: 111
A31: Treinta y Tres | B31: 4954 | C31: 187 | D31: 809 | E31: 26 | F31: 764 | G31: 29 | H31: 828 | I31: 31 | J31: 823 | K31: 35 | L31: 838 | M31: 29 | N31: 892 | O31: 37
A32: Fuente: Procesamiento propio en base a datos proporcionados por el DEE — CEIP
A33: Nota: Primaria Pública no incluye la matrícula correspondiente a JICI

Sheet II-2.2.10
A1: CONSEJO DE EDUCACIÓN PRIMARIA | F1: ALUMNOS MATRICULADOS
A3: Cuadro Nº II-2.2.10
A5: ALUMNOS MATRICULADOS EN EDUCACIÓN PRIMARIA COMÚN PÚBLICA POR RENDIMIENTO ESCOLAR Y ÁREA DEMOGRÁFICA SEGÚN GRADO AÑO 2011
A6: GRADO | B6: RENDIMIENTO ESCOLAR
B7: PROMOVIDOS | E7: NO PROMOVIDOS
B8: TOTAL | C8: ÁREA DEMOGRÁFICA | E8: TOTAL | F8: ÁREA DEMOGRÁFICA
C9: Urbana | D9: Rural | F9: Urbana | G9: Rural
A11: TOTAL | B11: =+C11+D11 -> 256034 | C11: =SUM(C12:C17) -> 240151 | D11: =SUM(D12:D17) -> 15883 | E11: =+F11+G11 -> 16623 | F11: =SUM(F12:F17) -> 15841 | G11: =SUM(G12:G17) -> 782
A12: Primero | B12: =+C12+D12 -> 40136 | C12: 37642 | D12: 2494 | E12: =+F12+G12 -> 6583 | F12: 6260 | G12: 323
A13: Segundo | B13: 40936 | C13: 38375 | D13: 2561 | E13: 3510 | F13: 3348 | G13: 162
A14: Tercero | B14: 42768 | C14: 40089 | D14: 2679 | E14: 2489 | F14: 2386 | G14: 103
A15: Cuarto | B15: 43707 | C15: 40994 | D15: 2713 | E15: 1920 | F15: 1837 | G15: 83
A16: Quinto | B16: 43582 | C16: 40853 | D16: 2729 | E16: 1404 | F16: 1340 | G16: 64
A17: Sexto | B17: 44905 | C17: 42198 | D17: 2707 | E17: 717 | F17: 670 | G17: 47
A19: Fuente: Procesamiento propio en base a datos proporcionados por el D.E.E .— C.E.I.P.
A20: Nota: No se presenta información para la Educación Primaria Privada porque no existen establecimientos privados en el área demográfica rural
A21: No incluye datos correspondientes a JICI

Sheet II-2.2.11
A1: CONSEJO DE EDUCACIÓN PRIMARIA | F1: ALUMNOS MATRICULADOS
A3: Cuadro Nº II-2.2.11
A5: ALUMNOS MATRICULADOS EN EDUCACIÓN PRIMARIA COMÚN PÚBLICA POR RENDIMIENTO ESCOLAR Y ÁREA DEMOGRÁFICA SEGÚN DEPARTAMENTO AÑO 2011
A6: DEPARTAMENTO | B6: RENDIMIENTO ESCOLAR
B7: PROMOVIDOS | F7: NO PROMOVIDOS
B8: TOTAL | C8: ÁREA DEMOGRÁFICA | E8: TOTAL | F8: ÁREA DEMOGRÁFICA
C9: Urbana | D9: Rural | F9: Urbana | G9: Rural
A11: TOTAL | B11: =+C11+D11 -> 256034 | C11: =SUM(C12:C13) -> 240151 | D11: 15883 | E11: =+F11+G11 -> 16623 | F11: 15841 | G11: 782
A12: MONTEVIDEO | B12: =+C12+D12 -> 75282 | C12: 75282 | D12: 0 | E12: =+F12+G12 -> 7604 | F12: 7604 | G12: 0
A13: RESTO DEL PAÍS | B13: 180752 | C13: =SUM(C14:C31) -> 164869 | D13: =SUM(D14:D31) -> 15883 | E13: =+F13+G13 -> 9019 | F13: =SUM(F14:F31) -> 8237 | G13: =SUM(G14:G31) -> 782
A14: Artigas | B14: 8517 | C14: 7739 | D14: 778 | E14: =+F14+G14 -> 292 | F14: 264 | G14: 28
A15: Canelones | B15: 42151 | C15: 39716 | D15: 2435 | E15: 2965 | F15: 2815 | G15: 150
A16: Cerro Largo | B16: 8628 | C16: 7716 | D16: 912 | E16: 585 | F16: 518 | G16: 67
A17: Colonia | B17: 10269 | C17: 9157 | D17: 1112 | E17: 324 | F17: 294 | G17: 30
A18: Durazno | B18: 5596 | C18: 5102 | D18: 494 | E18: 190 | F18: 176 | G18: 14
A19: Flores | B19: 2193 | C19: 1942 | D19: 251 | E19: 40 | F19: 31 | G19: 9
A20: Florida | B20: 6079 | C20: 5317 | D20: 762 | E20: 309 | F20: 266 | G20: 43
A21: Lavalleja | B21: 4832 | C21: 4391 | D21: 441 | E21: 239 | F21: 218 | G21: 21
A22: Maldonado | B22: 13085 | C22: 12475 | D22: 610 | E22: 585 | F22: 541 | G22: 44
A23: Paysandú | B23: 11389 | C23: 10334 | D23: 1055 | E23: 624 | F23: 566 | G23: 58
A24: Río Negro | B24: 5546 | C24: 4955 | D24: 591 | E24: 275 | F24: 244 | G24: 31
A25: Rivera | B25: 10910 | C25: 9781 | D25: 1129 | E25: 385 | F25: 338 | G25: 47
A26: Rocha | B26: 6622 | C26: 6350 | D26: 272 | E26: 219 | F26: 203 | G26: 16
A27: Salto | B27: 12860 | C27: 11463 | D27: 1397 | E27: 796 | F27: 707 | G27: 89
A28: San José | B28: 9484 | C28: 8297 | D28: 1187 | E28: 505 | F28: 450 | G28: 55
A29: Soriano | B29: 8241 | C29: 7564 | D29: 677 | E29: 354 | F29: 317 | G29: 37
A30: Tacuarembó | B30: 9528 | C30: 8163 | D30: 1365 | E30: 200 | F30: 170 | G30: 30
A31: Treinta y Tres | B31: 4822 | C31: 4407 | D31: 415 | E31: 132 | F31: 119 | G31: 13
A32: Fuente: Procesamiento propio en base a datos proporcionados por el D.E.E .— C.E.I.P.
A33: Nota: No incluye datos correspondientes a JICI

Sheet II-2.2.12
A1: CONSEJO DE EDUCACIÓN PRIMARIA | F1: ALUMNOS MATRICULADOS
A3: Cuadro Nº II-2.2.12
A5: ALUMNOS MATRICULADOS EN EDUCACIÓN PRIMARIA COMÚN PÚBLICA POR RENDIMIENTO ESCOLAR Y SEXO SEGÚN DEPARTAMENTO. AÑO 2011.
A6: DEPARTAMENTO | B6: RENDIMIENTO ESCOLAR
B7: PROMOVIDOS | E7: NO PROMOVIDOS
B8: TOTAL | C8: SEXO | E8: TOTAL | F8: SEXO
C9: M | D9: F | F9: M | G9: F
A10: TOTAL | B10: =+C10+D10 -> 256034 | C10: =SUM(C11:C12) -> 130859 | D10: =SUM(D11:D12) -> 125175 | E10: =+F10+G10 -> 16623 | F10: =SUM(F11:F12) -> 10111 | G10: =SUM(G11:G12) -> 6512
A11: MONTEVIDEO | B11: =+C11+D11 -> 75282 | C11: 38084 | D11: 37198 | E11: =+F11+G11 -> 7604 | F11: 4619 | G11: 2985
A12: RESTO DEL PAÍS | B12: 180752 | C12: =SUM(C13:C30) -> 92775 | D12: =SUM(D13:D30) -> 87977 | E12: 9019 | F12: =SUM(F13:F30) -> 5492 | G12: =SUM(G13:G30) -> 3527
A13: Artigas | B13: 8517 | C13: 4386 | D13: 4131 | E13: 292 | F13: 181 | G13: 111
A14: Canelones | B14: 42151 | C14: 21641 | D14: 20510 | E14: 2965 | F14: 1779 | G14: 1186
A15: Cerro Largo | B15: 8628 | C15: 4373 | D15: 4255 | E15: 585 | F15: 358 | G15: 227
A16: Colonia | B16: 10269 | C16: 5264 | D16: 5005 | E16: 324 | F16: 196 | G16: 128
A17: Durazno | B17: 5596 | C17: 2906 | D17: 2690 | E17: 190 | F17: 104 | G17: 86
A18: Flores | B18: 2193 | C18: 1071 | D18: 1122 | E18: 40 | F18: 21 | G18: 19
A19: Florida | B19: 6079 | C19: 3090 | D19: 2989 | E19: 309 | F19: 192 | G19: 117
A20: Lavalleja | B20: 4832 | C20: 2479 | D20: 2353 | E20: 239 | F20: 149 | G20: 90
A21: Maldonado | B21: 13085 | C21: 6724 | D21: 6361 | E21: 585 | F21: 341 | G21: 244
A22: Paysandú | B22: 11389 | C22: 5913 | D22: 5476 | E22: 624 | F22: 383 | G22: 241
A23: Río Negro | B23: 5546 | C23: 2872 | D23: 2674 | E23: 275 | F23: 170 | G23: 105
A24: Rivera | B24: 10910 | C24: 5658 | D24: 5252 | E24: 385 | F24: 251 | G24: 134
A25: Rocha | B25: 6622 | C25: 3408 | D25: 3214 | E25: 219 | F25: 137 | G25: 82
A26: Salto | B26: 12860 | C26: 6608 | D26: 6252 | E26: 796 | F26: 501 | G26: 295
A27: San José | B27: 9484 | C27: 4879 | D27: 4605 | E27: 505 | F27: 298 | G27: 207
A28: Soriano | B28: 8241 | C28: 4169 | D28: 4072 | E28: 354 | F28: 225 | G28: 129
A29: Tacuarembó | B29: 9528 | C29: 4875 | D29: 4653 | E29: 200 | F29: 129 | G29: 71
A30: Treinta y Tres | B30: 4822 | C30: 2459 | D30: 2363 | E30: 132 | F30: 77 | G30: 55
A31: Fuente: Procesamiento propio en base a datos proporcionados por el D.E.E. — C.E.I.P.
A32: Nota: No incluye datos correspondientes a JICI .

Sheet II-2.2.13
A1: CONSEJO DE EDUCACIÓN PRIMARIA | F1: ALUMNOS MATRICULADOS
A3: Cuadro Nº II-2.2.13
A5: ALUMNOS MATRICULADOS EN EDUCACIÓN PRIMARIA COMÚN PRIVADA POR RENDIMIENTO ESCOLAR Y SEXO SEGÚN DEPARTAMENTO AÑO 2011
A6: DEPARTAMENTO | B6: RENDIMIENTO ESCOLAR
B7: PROMOVIDOS | E7: NO PROMOVIDOS
B8: TOTAL | C8: SEXO | E8: TOTAL | F8: SEXO
C9: M | D9: F | F9: M | G9: F
A10: TOTAL | B10: =+C10+D10 -> 51321 | C10: =SUM(C11:C12) -> 25789 | D10: =SUM(D11:D12) -> 25532 | E10: =+F10+G10 -> 748 | F10: =SUM(F11:F12) -> 271 | G10: =SUM(G11:G12) -> 477
A11: MONTEVIDEO | B11: =+C11+D11 -> 31687 | C11: 15902 | D11: 15785 | E11: =+F11+G11 -> 501 | F11: 182 | G11: 319
A12: RESTO DEL PAÍS | B12: 19634 | C12: =SUM(C13:C30) -> 9887 | D12: =SUM(D13:D30) -> 9747 | E12: 247 | F12: =SUM(F13:F30) -> 89 | G12: =SUM(G13:G30) -> 158
A13: Artigas | B13: 91 | C13: 45 | D13: 46 | E13: 1 | F13: 1 | G13: 0
A14: Canelones | B14: 6913 | C14: 3510 | D14: 3403 | E14: 100 | F14: 39 | G14: 61
A15: Cerro Largo | B15: 609 | C15: 309 | D15: 300 | E15: 6 | F15: 3 | G15: 3
A16: Colonia | B16: 719 | C16: 340 | D16: 379 | E16: 5 | F16: 0 | G16: 5
A17: Durazno | B17: 628 | C17: 287 | D17: 341 | E17: 6 | F17: 1 | G17: 5
A18: Flores | B18: 355 | C18: 185 | D18: 170 | E18: 6 | F18: 2 | G18: 4
A19: Florida | B19: 295 | C19: 146 | D19: 149 | E19: 1 | F19: 1 | G19: 0
A20: Lavalleja | B20: 597 | C20: 291 | D20: 306 | E20: 18 | F20: 7 | G20: 11
A21: Maldonado | B21: 3835 | C21: 1956 | D21: 1879 | E21: 44 | F21: 19 | G21: 25
A22: Paysandú | B22: 1161 | C22: 578 | D22: 583 | E22: 14 | F22: 3 | G22: 11
A23: Río Negro | B23: 459 | C23: 234 | D23: 225 | E23: 2 | F23: 1 | G23: 1
A24: Rivera | B24: 656 | C24: 347 | D24: 309 | E24: 17 | F24: 4 | G24: 13
A25: Rocha | B25: 413 | C25: 216 | D25: 197 | E25: 0 | F25: 0 | G25: 0
A26: Salto | B26: 1076 | C26: 533 | D26: 543 | E26: 13 | F26: 2 | G26: 11
A27: San José | B27: 566 | C27: 277 | D27: 289 | E27: 10 | F27: 5 | G27: 5
A28: Soriano | B28: 435 | C28: 211 | D28: 224 | E28: 0 | F28: 0 | G28: 0
A29: Tacuarembó | B29: 643 | C29: 318 | D29: 325 | E29: 0 | F29: 0 | G29: 0
A30: Treinta y Tres | B30: 183 | C30: 104 | D30: 79 | E30: 4 | F30: 1 | G30: 3
A31: Fuente: Procesamiento propio en base a datos proporcionados por el D.E.E. — C.E.I.P.

Sheet II-2.2.14
A1: CONSEJO DE EDUCACIÓN PRIMARIA | E1: ALUMNOS MATRICULADOS
A3: Cuadro Nº II-2.2.14
A5: ALUMNOS MATRICULADOS EGRESADOS DE EDUCACIÓN PRIMARIA COMÚN PÚBLICA POR ÁREA DEMOGRÁFICA SEGÚN DEPARTAMENTO AÑO 2011
A6: DEPARTAMENTO | C6: ÁREA DEMOGRÁFICA
B7: TOTAL
C8: Urbana | D8: Rural
A10: TOTAL | B10: =+C10+D10 -> 44905 | C10: =SUM(C11:C12) -> 42198 | D10: =SUM(D11:D12) -> 2707
A11: MONTEVIDEO | B11: 13081 | C11: 13081 | D11: 0
A12: RESTO DEL PAÍS | B12: =+C12+D12 -> 31824 | C12: =SUM(C13:C30) -> 29117 | D12: =SUM(D13:D30) -> 2707
A13: Artigas | B13: 1547 | C13: 1411 | D13: 136
A14: Canelones | B14: 7399 | C14: 6991 | D14: 408
A15: Cerro Largo | B15: 1561 | C15: 1397 | D15: 164
A16: Colonia | B16: 1715 | C16: 1545 | D16: 170
A17: Durazno | B17: 973 | C17: 887 | D17: 86
A18: Flores | B18: 371 | C18: 333 | D18: 38
A19: Florida | B19: 1019 | C19: 906 | D19: 113
A20: Lavalleja | B20: 869 | C20: 787 | D20: 82
A21: Maldonado | B21: 2338 | C21: 2224 | D21: 114
A22: Paysandú | B22: 1968 | C22: 1785 | D22: 183
A23: Río Negro | B23: 986 | C23: 884 | D23: 102
A24: Rivera | B24: 1958 | C24: 1761 | D24: 197
A25: Rocha | B25: 1195 | C25: 1156 | D25: 39
A26: Salto | B26: 2323 | C26: 2081 | D26: 242
A27: San José | B27: 1615 | C27: 1394 | D27: 221
A28: Soriano | B28: 1403 | C28: 1305 | D28: 98
A29: Tacuarembó | B29: 1699 | C29: 1456 | D29: 243
A30: Treinta y Tres | B30: 885 | C30: 814 | D30: 71
A31: Fuente: Procesamiento propio en base a datos proporcionados por el D.E.E .— C.E.I.P.
A32: Nota: No se presenta información para Montevideo Rural por que no existen establecimientos en el área demográfica rural.

Sheet II-2.2.15
A1: CONSEJO DE EDUCACIÓN PRIMARIA | G1: ALUMNOS MATRICULADOS
A3: Cuadro Nº II-2.2.15
A5: ALUMNOS MATRICULADOS Y EGRESADOS DE EDUCACIÓN PRIMARIA COMÚN POR FORMA DE ADMINISTRACIÓN SEGÚN DEPARTAMENTO AÑO 2011
A6: DEPARTAMENTO | B6: TOTAL | C6: PÚBLICA | G6: PRIVADA
C7: TOTAL | D7: SEXO | G7: TOTAL | H7: SEXO
D8: M | E8: M | F8: F | H8: M | I8: F
A9: TOTAL | B9: =+C9+G9 -> 53105 | C9: =+E9+F9 -> 44905 | E9: =SUM(E10:E11) -> 22744 | F9: =SUM(F10:F11) -> 22161 | G9: =+H9+I9 -> 8200 | H9: =SUM(H10,H11) -> 4123 | I9: =SUM(I10,I11) -> 4077
A10: MONTEVIDEO | B10: =+C10+G10 -> 18147 | C10: =+E10+F10 -> 13081 | D10: 6560 | E10: 6560 | F10: 6521 | G10: =+H10+I10 -> 5066 | H10: 2542 | I10: 2524
A11: RESTO DEL PAÍS | B11: 34958 | C11: 31824 | E11: =SUM(E12:E29) -> 16184 | F11: =SUM(F12:F29) -> 15640 | G11: 3134 | H11: =SUM(H12:H29) -> 1581 | I11: =SUM(I12:I29) -> 1553
A12: Artigas | B12: 1559 | C12: 1547 | D12: 765 | E12: 765 | F12: 782 | G12: 12 | H12: 8 | I12: 4
A13: Canelones | B13: 8418 | C13: 7399 | D13: 3826 | E13: 3826 | F13: 3573 | G13: 1019 | H13: 534 | I13: 485
A14: Cerro Largo | B14: 1655 | C14: 1561 | D14: 802 | E14: 802 | F14: 759 | G14: 94 | H14: 46 | I14: 48
A15: Colonia | B15: 1837 | C15: 1715 | D15: 891 | E15: 891 | F15: 824 | G15: 122 | H15: 55 | I15: 67
A16: Durazno | B16: 1063 | C16: 973 | D16: 502 | E16: 502 | F16: 471 | G16: 90 | H16: 42 | I16: 48
A17: Flores | B17: 437 | C17: 371 | D17: 192 | E17: 192 | F17: 179 | G17: 66 | H17: 35 | I17: 31
A18: Florida | B18: 1058 | C18: 1019 | D18: 502 | E18: 502 | F18: 517 | G18: 39 | H18: 23 | I18: 16
A19: Lavalleja | B19: 976 | C19: 869 | D19: 426 | E19: 426 | F19: 443 | G19: 107 | H19: 46 | I19: 61
A20: Maldonado | B20: 2985 | C20: 2338 | D20: 1183 | E20: 1183 | F20: 1155 | G20: 647 | H20: 328 | I20: 319
A21: Paysandú | B21: 2142 | C21: 1968 | D21: 976 | E21: 976 | F21: 992 | G21: 174 | H21: 85 | I21: 89
A22: Río Negro | B22: 1047 | C22: 986 | D22: 501 | E22: 501 | F22: 485 | G22: 61 | H22: 30 | I22: 31
A23: Rivera | B23: 2070 | C23: 1958 | D23: 995 | E23: 995 | F23: 963 | G23: 112 | H23: 54 | I23: 58
A24: Rocha | B24: 1275 | C24: 1195 | D24: 603 | E24: 603 | F24: 592 | G24: 80 | H24: 50 | I24: 30
A25: Salto | B25: 2524 | C25: 2323 | D25: 1191 | E25: 1191 | F25: 1132 | G25: 201 | H25: 96 | I25: 105
A26: San José | B26: 1709 | C26: 1615 | D26: 824 | E26: 824 | F26: 791 | G26: 94 | H26: 51 | I26: 43
A27: Soriano | B27: 1471 | C27: 1403 | D27: 717 | E27: 717 | F27: 686 | G27: 68 | H27: 35 | I27: 33
A28: Tacuarembó | B28: 1810 | C28: 1699 | D28: 845 | E28: 845 | F28: 854 | G28: 111 | H28: 47 | I28: 64
A29: Treinta y Tres | B29: 922 | C29: 885 | D29: 443 | E29: 443 | F29: 442 | G29: 37 | H29: 16 | I29: 21
A30: Fuente: Procesamiento propio en base a datos proporcionados por el D.E.E. — C.E.I.P.

Sheet II-2.2.16
A1: CONSEJO DE EDUCACIÓN PRIMARIA | E1: ALUMNOS MATRICULADOS
A3: Cuadro Nº II-2.2.16
A5: ASISTENCIA INSUFICIENTE Y ABANDONO INTERMITENTE DE 1º GRADO Y 1º A 6º GRADO EN EDUCACIÓN COMÚN PÚBLICA SEGÚN DEPARTAMENTO. AÑO 2011
A6: DEPARTAMENTO | B6: Matrícula a diciembre (1º a 6º años)
C7: ASISTENCIA INSUFICIENTE | E7: ABANDONO INTERMITENTE
C8: Sólo 1° año | D8: 1º a 6º años | E8: Sólo 1° año | F8: 1º a 6º años
A10: TOTAL | B10: =SUM(B11:B12) -> 272657 | C10: =SUM(C11:C12) -> 4309 | D10: =SUM(D11:D12) -> 16668 | E10: =SUM(E11:E12) -> 692 | F10: =SUM(F11:F12) -> 3055
A11: MONTEVIDEO | B11: 82886 | C11: 1823 | D11: 6718 | E11: 307 | F11: 1278
A12: RESTO DEL PAÍS | B12: =SUM(B13:B30) -> 189771 | C12: =SUM(C13:C30) -> 2486 | D12: =SUM(D13:D30) -> 9950 | E12: =SUM(E13:E30) -> 385 | F12: =SUM(F13:F30) -> 1777
A13: Artigas | B13: 8809 | C13: 113 | D13: 498 | E13: 16 | F13: 77
A14: Canelones | B14: 45116 | C14: 747 | D14: 2806 | E14: 122 | F14: 520
A15: Cerro Largo | B15: 9213 | C15: 111 | D15: 454 | E15: 18 | F15: 69
A16: Colonia | B16: 10593 | C16: 101 | D16: 339 | E16: 21 | F16: 80
A17: Durazno | B17: 5786 | C17: 85 | D17: 383 | E17: 13 | F17: 94
A18: Flores | B18: 2233 | C18: 21 | D18: 94 | E18: 3 | F18: 13
A19: Florida | B19: 6388 | C19: 91 | D19: 318 | E19: 7 | F19: 38
A20: Lavalleja | B20: 5071 | C20: 61 | D20: 261 | E20: 19 | F20: 104
A21: Maldonado | B21: 13670 | C21: 205 | D21: 929 | E21: 33 | F21: 118
A22: Paysandú | B22: 12013 | C22: 137 | D22: 642 | E22: 33 | F22: 163
A23: Río Negro | B23: 5821 | C23: 50 | D23: 191 | E23: 7 | F23: 35
A24: Rivera | B24: 11295 | C24: 128 | D24: 491 | E24: 10 | F24: 72
A25: Rocha | B25: 6841 | C25: 86 | D25: 408 | E25: 15 | F25: 68
A26: Salto | B26: 13656 | C26: 230 | D26: 847 | E26: 27 | F26: 108
A27: San José | B27: 9989 | C27: 120 | D27: 468 | E27: 14 | F27: 75
A28: Soriano | B28: 8595 | C28: 81 | D28: 295 | E28: 4 | F28: 32
A29: Tacuarembó | B29: 9728 | C29: 73 | D29: 337 | E29: 9 | F29: 49
A30: Treinta y Tres | B30: 4954 | C30: 46 | D30: 189 | E30: 14 | F30: 62
A31: Fuente: Procesamiento propio en base a datos proporcionados por el D.E.E. — C.E.I.P.
A32: No incluye datos correspondientes a JICI .

Sheet II-2.3.1
A1: CONSEJO DE EDUCACIÓN PRIMARIA | G1: PERSONAL DOCENTE
A3: Cuadro Nº II-2.3.1
A5: PERSONAL DOCENTE DE EDUCACIÓN PRIMARIA PÚBLICA POR TIPO DE DESEMPEÑO DOCENTE SEGÚN DEPARTAMENTO AÑO 2011
A6: DEPARTAMENTO | C6: TIPO DE DESEMPEÑO DOCENTE
B7: TOTAL | C7: Inspección | D7: Educación Común | E7: Educación en Colonias | F7: Educación Especial | G7: Servicios Docentes Especiales | H7: Profesores Especiales | I7: Coordinación Apoyo
A9: TOTAL | B9: =SUM(B11:B12) -> 18577 | C9: 261 | D9: 14748 | E9: 38 | F9: 961 | G9: 147 | H9: 2330 | I9: 92
A11: MONTEVIDEO | B11: =SUM(C11:I11) -> 5569 | C11: 92 | D11: 4130 | E11: 14 | F11: 409 | G11: 92 | H11: 819 | I11: 13
A12: RESTO DEL PAÍS | B12: =SUM(B14:B31) -> 13008 | C12: 169 | D12: 10618 | E12: 24 | F12: 552 | G12: 55 | H12: 1511 | I12: 79
A14: Artigas | B14: =SUM(C14:I14) -> 626 | C14: 7 | D14: 503 | E14: 0 | F14: 23 | G14: 0 | H14: 89 | I14: 4
A15: Canelones | B15: 2653 | C15: 32 | D15: 2234 | E15: 0 | F15: 108 | G15: 14 | H15: 253 | I15: 12
A16: Cerro Largo | B16: 641 | C16: 9 | D16: 528 | E16: 0 | F16: 31 | G16: 4 | H16: 65 | I16: 4
A17: Colonia | B17: 763 | C17: 9 | D17: 612 | E17: 0 | F17: 36 | G17: 3 | H17: 99 | I17: 4
A18: Durazno | B18: 449 | C18: 7 | D18: 367 | E18: 0 | F18: 22 | G18: 0 | H18: 49 | I18: 4
A19: Flores | B19: 194 | C19: 3 | D19: 152 | E19: 0 | F19: 9 | G19: 0 | H19: 27 | I19: 3
A20: Florida | B20: 502 | C20: 7 | D20: 396 | E20: 0 | F20: 23 | G20: 5 | H20: 67 | I20: 4
A21: Lavalleja | B21: 419 | C21: 6 | D21: 335 | E21: 0 | F21: 20 | G21: 4 | H21: 50 | I21: 4
A22: Maldonado | B22: 804 | C22: 11 | D22: 627 | E22: 15 | F22: 37 | G22: 7 | H22: 103 | I22: 4
A23: Paysandú | B23: 780 | C23: 10 | D23: 640 | E23: 0 | F23: 37 | G23: 5 | H23: 84 | I23: 4
A24: Río Negro | B24: 426 | C24: 5 | D24: 345 | E24: 0 | F24: 21 | G24: 0 | H24: 51 | I24: 4
A25: Rivera | B25: 846 | C25: 11 | D25: 688 | E25: 0 | F25: 31 | G25: 1 | H25: 111 | I25: 4
A26: Rocha | B26: 511 | C26: 7 | D26: 398 | E26: 0 | F26: 27 | G26: 3 | H26: 72 | I26: 4
A27: Salto | B27: 927 | C27: 11 | D27: 743 | E27: 9 | F27: 32 | G27: 2 | H27: 125 | I27: 5
A28: San José | B28: 677 | C28: 9 | D28: 576 | E28: 0 | F28: 29 | G28: 0 | H28: 59 | I28: 4
A29: Soriano | B29: 630 | C29: 9 | D29: 511 | E29: 0 | F29: 29 | G29: 2 | H29: 75 | I29: 4
A30: Tacuarembó | B30: 768 | C30: 10 | D30: 643 | E30: 0 | F30: 22 | G30: 5 | H30: 85 | I30: 3
A31: Treinta y Tres | B31: 392 | C31: 6 | D31: 320 | E31: 0 | F31: 15 | G31: 0 | H31: 47 | I31: 4
A32: Fuente: DEE — CEP Listado de cargos de la División Hacienda a Julio 2011
A33: Nota: Personal docente refiere a cargos de dos tipos: vacantes y ocupados
A74: =SUM(A76:A77) -> 147
A76: 92
A77: =SUM(A79:A96) -> 55
A79: 0
A80: 14
A81: 4
A82: 3
A83: 0
A84: 0
A85: 5
A86: 4
A87: 7
A88: 5
A89: 0
A90: 1
A91: 3
A92: 2
A93: 0
A94: 2
A95: 5
A96: 0

Sheet II-2.3.2
A1: CONSEJO DE EDUCACIÓN PRIMARIA | J1: PERSONAL DOCENTE
A3: Cuadro Nº II-2.3.2
A5: PERSONAL DOCENTE DE EDUCACIÓN PRIMARIA PRIVADA POR TIPO DE ESTABLECIMIENTO Y TIPO DE DESEMPEÑO DOCENTE SEGÚN DEPARTAMENTO AÑO 2011
A6: DEPARTAMENTO | C6: TOTAL | D6: MAESTROS | E6: PROFESORES | F6: ESTABLECIMIENTOS
F7: HABILITADOS | I7: AUTORIZADOS
F8: Total | G8: Maestros | H8: Profesores | I8: Total | J8: Maestros | K8: Profesores
A10: TOTAL | C10: =+F10+I10 -> 6998 | D10: =+G10+J10 -> 2705 | E10: =+H10+K10 -> 4293 | F10: =+G10+H10 -> 6547 | G10: =SUM(G11:G12) -> 2570 | H10: =SUM(H11:H12) -> 3977 | I10: =+J10+K10 -> 451 | J10: =SUM(J11:J12) -> 135 | K10: =SUM(K11:K12) -> 316
A11: MONTEVIDEO | C11: =+F11+I11 -> 4094 | D11: 1550 | E11: 2544 | F11: =+G11+H11 -> 3711 | G11: 1447 | H11: 2264 | I11: =+J11+K11 -> 383 | J11: 103 | K11: 280
A12: RESTO DEL PAÍS | C12: 2904 | D12: 1155 | E12: 1749 | F12: 2836 | G12: =SUM(G13:G30) -> 1123 | H12: =SUM(H13:H30) -> 1713 | I12: 68 | J12: =SUM(J13:J30) -> 32 | K12: =SUM(K13:K30) -> 36
A13: Artigas | C13: 10 | D13: 6 | E13: 4 | F13: 10 | G13: 6 | H13: 4 | I13: 0 | J13: 0 | K13: 0
A14: Canelones | C14: 1062 | D14: 432 | E14: 630 | F14: 1001 | G14: 405 | H14: 596 | I14: 61 | J14: 27 | K14: 34
A15: Cerro Largo | C15: 82 | D15: 35 | E15: 47 | F15: 82 | G15: 35 | H15: 47 | I15: 0 | J15: 0 | K15: 0
A16: Colonia | C16: 139 | D16: 64 | E16: 75 | F16: 139 | G16: 64 | H16: 75 | I16: 0 | J16: 0 | K16: 0
A17: Durazno | C17: 52 | D17: 29 | E17: 23 | F17: 52 | G17: 29 | H17: 23 | I17: 0 | J17: 0 | K17: 0
A18: Flores | C18: 54 | D18: 19 | E18: 35 | F18: 54 | G18: 19 | H18: 35 | I18: 0 | J18: 0 | K18: 0
A19: Florida | C19: 45 | D19: 15 | E19: 30 | F19: 45 | G19: 15 | H19: 30 | I19: 0 | J19: 0 | K19: 0
A20: Lavalleja | C20: 94 | D20: 36 | E20: 58 | F20: 94 | G20: 36 | H20: 58 | I20: 0 | J20: 0 | K20: 0
A21: Maldonado | C21: 484 | D21: 187 | E21: 297 | F21: 484 | G21: 187 | H21: 297 | I21: 0 | J21: 0 | K21: 0
A22: Paysandú | C22: 129 | D22: 56 | E22: 73 | F22: 129 | G22: 56 | H22: 73 | I22: 0 | J22: 0 | K22: 0
A23: Río Negro | C23: 94 | D23: 29 | E23: 65 | F23: 91 | G23: 27 | H23: 64 | I23: 3 | J23: 2 | K23: 1
A24: Rivera | C24: 111 | D24: 47 | E24: 64 | F24: 111 | G24: 47 | H24: 64 | I24: 0 | J24: 0 | K24: 0
A25: Rocha | C25: 69 | D25: 25 | E25: 44 | F25: 69 | G25: 25 | H25: 44 | I25: 0 | J25: 0 | K25: 0
A26: Salto | C26: 151 | D26: 49 | E26: 102 | F26: 151 | G26: 49 | H26: 102 | I26: 0 | J26: 0 | K26: 0
A27: San José | C27: 98 | D27: 41 | E27: 57 | F27: 94 | G27: 38 | H27: 56 | I27: 4 | J27: 3 | K27: 1
A28: Soriano | C28: 75 | D28: 23 | E28: 52 | F28: 75 | G28: 23 | H28: 52 | I28: 0 | J28: 0 | K28: 0
A29: Tacuarembó | C29: 136 | D29: 53 | E29: 83 | F29: 136 | G29: 53 | H29: 83 | I29: 0 | J29: 0 | K29: 0
A30: Treinta y Tres | C30: 19 | D30: 9 | E30: 10 | F30: 19 | G30: 9 | H30: 10 | I30: 0 | J30: 0 | K30: 0
A31: Fuente: DEE — CEP Planillas enviadas por las Inspecciones Departamentales a abril de 2011.
A32: NOTA: El personal docente incluye exclusivamente docencia directa

Sheet MEDIA BASICA

Sheet II-3.1.1
A1: CONSEJO DE EDUCACIÓN SECUNDARIA Y CONSEJO DE EDUCACIÓN TÉCNICO PROFESIONAL (UTU) | M1: ESTABLECIMIENTOS
A3: Cuadro Nº II-3.1.1
A5: ESTABLECIMIENTOS DE EDUCACIÓN MEDIA BÁSICA POR MODALIDAD Y FORMA DE ADMINISTRACIÓN SEGÚN DEPARTAMENTO. AÑO 2011.
A6: DEPARTAMENTO | D6: MODALIDAD
B7: TOTAL GENERAL | D7: CES | J7: CEIP | K7: CETP
D8: FORMA DE ADMINISTRACIÓN
D9: LICEOS PÚBLICOS | H9: Liceos Privados | J9: Escuelas con Ciclo Básico Rural | K9: Escuelas de CBT y Técnica.
D11: Diurnos Oficiales | F11: Extra Edad Oficiales (Nocturno Y Diurno)
C14: TOTAL CES | D14: Ciclo Básico | E14: C.Básico y Bachillerato | F14: Ciclo Básico | G14: C.Básico y Bachillerato | H14: Ciclo Básico | I14: C.Básico y Bachillerato
A15: TOTAL | B15: =B16+B17 -> 582 | C15: =D15+E15+F15+G15+H15+I15 -> 487 | D15: =D16+D17 -> 105 | E15: =E16+E17 -> 140 | F15: 4 | G15: 62 | H15: =H16+H17 -> 16 | I15: =I16+I17 -> 160 | J15: =J16+J17 -> 58 | K15: =K16+K17 -> 95
A16: MONTEVIDEO | B16: =D16+E16+F16+G16+H16+I16+K16 -> 182 | C16: =D16+E16+F16+G16+H16+I16 -> 168 | D16: 48 | E16: 5 | F16: 1 | G16: 14 | H16: 6 | I16: 94 | J16: 1 | K16: 14
A17: RESTO DEL PAÍS | B17: =D17+E17+F17+G17+H17+I17+K17 -> 400 | C17: =D17+E17+F17+G17+H17+I17 -> 319 | D17: =SUM(D18:D35) -> 57 | E17: 135 | F17: 3 | G17: 48 | H17: 10 | I17: 66 | J17: =SUM(J18:J35) -> 57 | K17: =SUM(K18:K35) -> 81
A18: Artigas | B18: 14 | C18: 11 | D18: 4 | E18: 5 | F18: 0 | G18: 1 | H18: 1 | I18: 0 | J18: 3 | K18: 3
A19: Canelones | B19: 97 | C19: 81 | D19: 13 | E19: 28 | F19: 2 | G19: 13 | H19: 5 | I19: 20 | J19: 0 | K19: 16
A20: Cerro Largo | B20: 16 | C20: 11 | D20: 2 | E20: 5 | F20: 0 | G20: 2 | H20: 0 | I20: 2 | J20: 4 | K20: 5
A21: Colonia | B21: 29 | C21: 20 | D21: 3 | E21: 9 | F21: 0 | G21: 6 | H21: 0 | I21: 2 | J21: 6 | K21: 9
A22: Durazno | B22: 13 | C22: 10 | D22: 2 | E22: 5 | F22: 0 | G22: 1 | H22: 0 | I22: 2 | J22: 1 | K22: 3
A23: Flores | B23: 8 | C23: 6 | D23: 1 | E23: 2 | F23: 0 | G23: 1 | H23: 0 | I23: 2 | J23: 1 | K23: 2
A24: Florida | B24: 15 | C24: 13 | D24: 1 | E24: 9 | F24: 0 | G24: 1 | H24: 0 | I24: 2 | J24: 2 | K24: 2
A25: Lavalleja | B25: 12 | C25: 11 | D25: 2 | E25: 6 | F25: 0 | G25: 1 | H25: 1 | I25: 1 | J25: 2 | K25: 1
A26: Maldonado | B26: 30 | C26: 25 | D26: 4 | E26: 6 | F26: 0 | G26: 4 | H26: 0 | I26: 11 | J26: 2 | K26: 5
A27: Paysandú | B27: 22 | C27: 17 | D27: 5 | E27: 7 | F27: 0 | G27: 1 | H27: 0 | I27: 4 | J27: 10 | K27: 5
A28: Río Negro | B28: 14 | C28: 11 | D28: 3 | E28: 4 | F28: 0 | G28: 2 | H28: 0 | I28: 2 | J28: 5 | K28: 3
A29: Rivera | B29: 23 | C29: 19 | D29: 3 | E29: 8 | F29: 1 | G29: 1 | H29: 2 | I29: 4 | J29: 4 | K29: 4
A30: Rocha | B30: 19 | C30: 15 | D30: 3 | E30: 7 | F30: 0 | G30: 3 | H30: 0 | I30: 2 | J30: 2 | K30: 4
A31: Salto | B31: 19 | C31: 16 | D31: 1 | E31: 9 | F31: 0 | G31: 1 | H31: 0 | I31: 5 | J31: 1 | K31: 3
A32: San José | B32: 20 | C32: 15 | D32: 3 | E32: 5 | F32: 0 | G32: 5 | H32: 0 | I32: 2 | J32: 7 | K32: 5
A33: Soriano | B33: 18 | C33: 12 | D33: 3 | E33: 5 | F33: 0 | G33: 3 | H33: 0 | I33: 1 | J33: 1 | K33: 6
A34: Tacuarembó | B34: 19 | C34: 16 | D34: 3 | E34: 9 | F34: 0 | G34: 1 | H34: 1 | I34: 2 | J34: 4 | K34: 3
A35: Treinta y Tres | B35: 12 | C35: 10 | D35: 1 | E35: 6 | F35: 0 | G35: 1 | H35: 0 | I35: 2 | J35: 2 | K35: 2
A37: Fuente: D.E.- C.E.S .
A38: Nota: 1- Los establecimientos considerados en el Tipo de Educación Escuelas con Ciclo Básico Rural” ya fueron considerados en los totales de establecimientos de Educación Primaria por lo cual, si bien se presentan en la columna correspondiente, no participan en el “Total” del presente cuadro.
A39: 2- En un mismo establecimiento del CETP, coexisten ofertas educativas de diferentes niveles Los establecimientos fueron contabilizados por el nivel educativo, por lo tanto cada dependencia física será contada tantas veces como niveles educativos contenga Por ello el presente cuadro computa los establecimientos con cursos de Educación Media Básica, independientemente que en el mismo espacio locativo se dicten ofertas de otros niveles.

Sheet II-3.2.1
A1: CONSEJO DE EDUCACIÓN SECUNDARIA | D1: ALUMNOS MATRICULADOS
A3: Cuadro Nº II-3.2.1
A5: ALUMNOS MATRICULADOS EN EDUCACION MEDIA BÁSICA GENERAL POR GRADO SEGÚN GRANDES ÁREAS Y FORMA DE ADMINISTRACIÓN. AÑO 2011.
A6: GRANDES ÁREAS Y FORMA DE ADMINISTRACIÓN | C6: GRADO
B7: TOTAL
C8: PRIMERO | D8: SEGUNDO | E8: TERCERO
A9: TOTAL DEL PAÍS | B9: =+C9+D9+E9 -> 156418 | C9: =+C10+C13 -> 57808 | D9: =+D10+D13 -> 50023 | E9: 48587
A10: MEDIA BÁSICA PÚBLICA | B10: =+C10+D10+E10 -> 130978 | C10: =+C11+C12 -> 49161 | D10: =+D11+D12 -> 41565 | E10: 40252
A11: Diurna | B11: 116634 | C11: 45610 | D11: 37301 | E11: 33723
A12: Cuarto Turno | B12: 14344 | C12: 3551 | D12: 4264 | E12: 6529
A13: MEDIA BÁSICA PRIVADA | B13: 25440 | C13: 8647 | D13: 8458 | E13: 8335
A14: TOTAL MONTEVIDEO | B14: 57922 | C14: =+C15+C18 -> 21661 | D14: =+D15+D18 -> 18368 | E14: 17893
A15: MEDIA BÁSICA PÚBLICA | B15: =+C15+D15+E15 -> 41523 | C15: =+C16+C17 -> 16120 | D15: =+D16+D17 -> 12870 | E15: 12533
A16: Diurna | B16: 36454 | C16: 14973 | D16: 11364 | E16: 10117
A17: Cuarto Turno | B17: 5069 | C17: 1147 | D17: 1506 | E17: 2416
A18: MEDIA BÁSICA PRIVADA | B18: 16399 | C18: 5541 | D18: 5498 | E18: 5360
A19: TOTAL RESTO DEL PAÍS | B19: 98496 | C19: 36147 | D19: 31655 | E19: 30694
A20: MEDIA BÁSICA PÚBLICA | B20: 89455 | C20: 33041 | D20: 28695 | E20: 27719
A21: Diurna | B21: 80180 | C21: 30637 | D21: 25937 | E21: 23606
A22: Cuarto Turno | B22: 9275 | C22: 2404 | D22: 2758 | E22: 4113
A23: MEDIA BÁSICA PRIVADA | B23: 9041 | C23: 3106 | D23: 2960 | E23: 2975
A24: Fuente: D.E. — C.E.S.
A25: Nota: La referencia "Privada", (incluye los Habilitados "Liceo Naval" y "Liceo Militar"), se corresponde con la de "Liceos Habilitados" presente en ediciones anteriores del Anuario Estadístico del MEC.

Sheet II-3.2.2
H1: ALUMNOS MATRICULADOS
A5: Cuadro II-3.2.2.
A6: ALUMNOS MATRICULADOS EN EL CETP EN EDUCACIÓN MEDIA BÁSICA TECNOLÓGICA POR TIPO DE CURSO SEGÚN GRANDES ÁREAS, DEPARTAMENTO Y SEXO .AÑO 2011.
A9: GRANDES ÁREAS,DEPARTAMENTO Y SEXO | B9: TOTAL | D9: EDUCACIÓN MEDIA BÁSICA TECNOLÓGICA
C10: TOTAL | D10: Articulación Ed.Media Básica | F10: TOTAL | G10: C. B. T. Agrario | I10: TOTAL | J10: Ciclo Básico Tecnológico | L10: TOTAL | M10: Formación Profesional Básica 2007
D11: Sexo | G11: Sexo | J11: Sexo | M11: Sexo
D12: M | E12: F | G12: M | H12: F | J12: M | K12: F | M12: M | N12: F
A14: TOTAL | B14: =SUM(B15:B16) -> 23791 | C14: =SUM(C15:C16) -> 156 | D14: =SUM(D15:D16) -> 96 | E14: =SUM(E15:E16) -> 60 | F14: =SUM(F15:F16) -> 1001 | G14: =SUM(G15:G16) -> 703 | H14: 298 | I14: 16125 | J14: 9620 | K14: 6505 | L14: 6509 | M14: =SUM(M15:M34) -> 7113 | N14: =SUM(N15:N16) -> 2392
A15: Montevideo | B15: =+C15+F15+I15+L15 -> 4259 | C15: =+D15+E15 -> 68 | D15: 37 | E15: 31 | F15: =+G15+H15 -> 0 | G15: 0 | H15: 0 | I15: =+J15+K15 -> 2462 | J15: 1470 | K15: 992 | L15: =+M15+N15 -> 1729 | M15: 1121 | N15: 608
A16: Resto del País | B16: =+C16+F16+I16+L16 -> 19532 | C16: =+D16+E16 -> 88 | D16: =SUM(D17:D34) -> 59 | E16: 29 | F16: 1001 | G16: 703 | H16: 298 | I16: 13663 | J16: 8150 | K16: 5513 | L16: 4780 | M16: 2996 | N16: 1784
A17: Artigas | B17: =+C17+F17+I17+L17 -> 1124 | C17: 25 | D17: 14 | E17: 11 | F17: =+G17+H17 -> 0 | G17: 0 | H17: 0 | I17: =+J17+K17 -> 897 | J17: 556 | K17: 341 | L17: =+M17+N17 -> 202 | M17: 100 | N17: 102
A18: Canelones | B18: =+C18+F18+I18+L18 -> 3662 | C18: 41 | D18: 28 | E18: 13 | F18: 84 | G18: 54 | H18: 30 | I18: 2297 | J18: 1355 | K18: 942 | L18: 1240 | M18: 743 | N18: 497
A19: Cerro Largo | B19: 1092 | C19: 0 | D19: 0 | E19: 0 | F19: 97 | G19: 70 | H19: 27 | I19: 749 | J19: 447 | K19: 302 | L19: 246 | M19: 185 | N19: 61
A20: Colonia | B20: 1551 | C20: 11 | D20: 8 | E20: 3 | F20: 114 | G20: 77 | H20: 37 | I20: 1192 | J20: 713 | K20: 479 | L20: 234 | M20: 148 | N20: 86
A21: Durazno | B21: 812 | C21: 0 | D21: 0 | E21: 0 | F21: 120 | G21: 71 | H21: 49 | I21: 567 | J21: 342 | K21: 225 | L21: 125 | M21: 72 | N21: 53
A22: Flores | B22: 298 | C22: 0 | D22: 0 | E22: 0 | F22: 0 | G22: 0 | H22: 0 | I22: 206 | J22: 122 | K22: 84 | L22: 92 | M22: 62 | N22: 30
A23: Florida | B23: 534 | C23: 0 | D23: 0 | E23: 0 | F23: 0 | G23: 0 | H23: 0 | I23: 295 | J23: 178 | K23: 117 | L23: 239 | M23: 140 | N23: 99
A24: Lavalleja | B24: 520 | C24: 0 | D24: 0 | E24: 0 | F24: 0 | G24: 0 | H24: 0 | I24: 378 | J24: 231 | K24: 147 | L24: 142 | M24: 90 | N24: 52
A25: Maldonado | B25: 1418 | C25: 0 | D25: 0 | E25: 0 | F25: 0 | G25: 0 | H25: 0 | I25: 1133 | J25: 662 | K25: 471 | L25: 285 | M25: 163 | N25: 122
A26: Paysandú | B26: 1173 | C26: 0 | D26: 0 | E26: 0 | F26: 209 | G26: 149 | H26: 60 | I26: 632 | J26: 384 | K26: 248 | L26: 332 | M26: 207 | N26: 125
A27: Rio Negro | B27: 595 | C27: 0 | D27: 0 | E27: 0 | F27: 0 | G27: 0 | H27: 0 | I27: 453 | J27: 289 | K27: 164 | L27: 142 | M27: 110 | N27: 32
A28: Rivera | B28: 656 | C28: 0 | D28: 0 | E28: 0 | F28: 75 | G28: 58 | H28: 17 | I28: 371 | J28: 231 | K28: 140 | L28: 210 | M28: 165 | N28: 45
A29: Rocha | B29: 578 | C29: 0 | D29: 0 | E29: 0 | F29: 17 | G29: 15 | H29: 2 | I29: 525 | J29: 322 | K29: 203 | L29: 36 | M29: 6 | N29: 30
A30: Salto | B30: 1113 | C30: 0 | D30: 0 | E30: 0 | F30: 0 | G30: 0 | H30: 0 | I30: 817 | J30: 461 | K30: 356 | L30: 296 | M30: 197 | N30: 99
A31: San José | B31: 1399 | C31: 0 | D31: 0 | E31: 0 | F31: 63 | G31: 55 | H31: 8 | I31: 1136 | J31: 647 | K31: 489 | L31: 200 | M31: 110 | N31: 90
A32: Soriano | B32: 1577 | C32: 11 | D32: 9 | E32: 2 | F32: 151 | G32: 111 | H32: 40 | I32: 1121 | J32: 649 | K32: 472 | L32: 294 | M32: 188 | N32: 106
A33: Tacuarembó | B33: 937 | C33: 0 | D33: 0 | E33: 0 | F33: 0 | G33: 0 | H33: 0 | I33: 501 | J33: 328 | K33: 173 | L33: 436 | M33: 296 | N33: 140
A34: Treinta y Tres | B34: 493 | C34: 0 | D34: 0 | E34: 0 | F34: 71 | G34: 43 | H34: 28 | I34: 393 | J34: 233 | K34: 160 | L34: 29 | M34: 14 | N34: 15
A35: Fuente: Procesamiento propio en base a datos proporcionados por el D.E. - CETP (U.T.U) .

Sheet II-3.2.3
A1: CONSEJO DE EDUCACIÓN PRIMARIA | I1: ALUMNOS MATRICULADOS
A3: Cuadro Nº II-3.2.3
A6: ALUMNOS MATRICULADOS EN SÉPTIMO, OCTAVO Y NOVENO GRADO DE CICLO BÁSICO RURAL POR SEXO SEGÚN DEPARTAMENTO AÑO 2011
A7: DEPARTAMENTO | B7: TOTAL | E7: CICLO BÁSICO RURAL
E8: GRADO
E9: SÉPTIMO | H9: OCTAVO | K9: NOVENO
E10: SEXO | H10: SEXO | K10: SEXO
B11: T | C11: M | D11: F | E11: T | F11: M | G11: F | H11: T | I11: M | J11: F | K11: T | L11: M | M11: F
A13: TOTAL | B13: 1966 | C13: 1020 | D13: 946 | E13: 748 | F13: 389 | G13: 359 | H13: 639 | I13: 339 | J13: 300 | K13: 579 | L13: 292 | M13: 287
A14: MONTEVIDEO | B14: 84 | C14: 35 | D14: 49 | E14: 21 | F14: 7 | G14: 14 | H14: 23 | I14: 10 | J14: 13 | K14: 40 | L14: 18 | M14: 22
A15: RESTO DEL PAÍS | B15: 1882 | C15: 985 | D15: 897 | E15: 727 | F15: 382 | G15: 345 | H15: 616 | I15: 329 | J15: 287 | K15: 539 | L15: 274 | M15: 265
A16: Artigas | B16: 127 | C16: 78 | D16: 49 | E16: 39 | F16: 23 | G16: 16 | H16: 48 | I16: 29 | J16: 19 | K16: 40 | L16: 26 | M16: 14
A17: Canelones | B17: 0 | C17: 0 | D17: 0 | E17: 0 | F17: 0 | G17: 0 | H17: 0 | I17: 0 | J17: 0 | K17: 0 | L17: 0 | M17: 0
A18: Cerro Largo | B18: 176 | C18: 83 | D18: 93 | E18: 65 | F18: 30 | G18: 35 | H18: 63 | I18: 30 | J18: 33 | K18: 48 | L18: 23 | M18: 25
A19: Colonia | B19: 220 | C19: 116 | D19: 104 | E19: 81 | F19: 45 | G19: 36 | H19: 71 | I19: 43 | J19: 28 | K19: 68 | L19: 28 | M19: 40
A20: Durazno | B20: 32 | C20: 16 | D20: 16 | E20: 12 | F20: 7 | G20: 5 | H20: 10 | I20: 5 | J20: 5 | K20: 10 | L20: 4 | M20: 6
A21: Flores | B21: 17 | C21: 12 | D21: 5 | E21: 8 | F21: 6 | G21: 2 | H21: 6 | I21: 5 | J21: 1 | K21: 3 | L21: 1 | M21: 2
A22: Florida | B22: 55 | C22: 31 | D22: 24 | E22: 22 | F22: 13 | G22: 9 | H22: 18 | I22: 8 | J22: 10 | K22: 15 | L22: 10 | M22: 5
A23: Lavalleja | B23: 62 | C23: 34 | D23: 28 | E23: 28 | F23: 17 | G23: 11 | H23: 22 | I23: 11 | J23: 11 | K23: 12 | L23: 6 | M23: 6
A24: Maldonado | B24: 111 | C24: 64 | D24: 47 | E24: 46 | F24: 31 | G24: 15 | H24: 43 | I24: 20 | J24: 23 | K24: 22 | L24: 13 | M24: 9
A25: Paysandú | B25: 333 | C25: 170 | D25: 163 | E25: 135 | F25: 64 | G25: 71 | H25: 94 | I25: 51 | J25: 43 | K25: 104 | L25: 55 | M25: 49
A26: Río Negro | B26: 105 | C26: 56 | D26: 49 | E26: 43 | F26: 24 | G26: 19 | H26: 37 | I26: 20 | J26: 17 | K26: 25 | L26: 12 | M26: 13
A27: Rivera | B27: 122 | C27: 57 | D27: 65 | E27: 43 | F27: 17 | G27: 26 | H27: 43 | I27: 19 | J27: 24 | K27: 36 | L27: 21 | M27: 15
A28: Rocha | B28: 90 | C28: 47 | D28: 43 | E28: 30 | F28: 15 | G28: 15 | H28: 26 | I28: 14 | J28: 12 | K28: 34 | L28: 18 | M28: 16
A29: Salto | B29: 25 | C29: 13 | D29: 12 | E29: 13 | F29: 7 | G29: 6 | H29: 7 | I29: 4 | J29: 3 | K29: 5 | L29: 2 | M29: 3
A30: San José | B30: 161 | C30: 87 | D30: 74 | E30: 65 | F30: 32 | G30: 33 | H30: 48 | I30: 31 | J30: 17 | K30: 48 | L30: 24 | M30: 24
A31: Soriano | B31: 35 | C31: 15 | D31: 20 | E31: 14 | F31: 6 | G31: 8 | H31: 11 | I31: 6 | J31: 5 | K31: 10 | L31: 3 | M31: 7
A32: Tacuarembó | B32: 143 | C32: 75 | D32: 68 | E32: 59 | F32: 33 | G32: 26 | H32: 44 | I32: 22 | J32: 22 | K32: 40 | L32: 20 | M32: 20
A33: Treinta y Tres | B33: 68 | C33: 31 | D33: 37 | E33: 24 | F33: 12 | G33: 12 | H33: 25 | I33: 11 | J33: 14 | K33: 19 | L33: 8 | M33: 11
A34: Fuente: DE — CES

Sheet II-3.2.4
A1: CONSEJO DE EDUCACIÓN SECUNDARIA | E1: ALUMNOS MATRICULADOS
A3: Cuadro Nº II-3.2.4
A5: ALUMNOS MATRICULADOS DE EDUCACIÓN MEDIA BÁSICA GENERAL POR GRADO Y FORMA DE ADMINISTRACIÓN SEGÚN DEPARTAMENTO AÑO 2011
A7: DEPARTAMENTO | B7: GRADO
B8: PRIMERO | D8: SEGUNDO | F8: TERCERO
B9: FORMA DE ADMINISTRACIÓN
B10: Públicos | C10: Privados | D10: Públicos | E10: Privados | F10: Públicos | G10: Privados
A11: TOTAL | B11: 49161 | C11: 8647 | D11: 41565 | E11: 8458 | F11: 40252 | G11: 8335
A12: MONTEVIDEO | B12: 16120 | C12: 5541 | D12: 12870 | E12: 5498 | F12: 12533 | G12: 5360
A13: RESTO DEL PAÍS | B13: 33041 | C13: 3106 | D13: 28695 | E13: 2960 | F13: 27719 | G13: 2975
A14: Artigas | B14: 1385 | C14: 15 | D14: 1254 | E14: 22 | F14: 1218 | G14: 16
A15: Canelones | B15: 8509 | C15: 1093 | D15: 7414 | E15: 1066 | F15: 6856 | G15: 1000
A16: Cerro Largo | B16: 1392 | C16: 87 | D16: 1287 | E16: 69 | F16: 1336 | G16: 93
A17: Colonia | B17: 1646 | C17: 7 | D17: 1582 | E17: 19 | F17: 1581 | G17: 8
A18: Durazno | B18: 967 | C18: 76 | D18: 845 | E18: 91 | F18: 731 | G18: 78
A19: Flores | B19: 377 | C19: 53 | D19: 313 | E19: 60 | F19: 345 | G19: 56
A20: Florida | B20: 954 | C20: 45 | D20: 901 | E20: 47 | F20: 926 | G20: 70
A21: Lavalleja | B21: 1042 | C21: 61 | D21: 799 | E21: 50 | F21: 848 | G21: 63
A22: Maldonado | B22: 2252 | C22: 468 | D22: 2025 | E22: 393 | F22: 2077 | G22: 471
A23: Paysandú | B23: 1773 | C23: 219 | D23: 1515 | E23: 225 | F23: 1489 | G23: 239
A24: Río Negro | B24: 952 | C24: 66 | D24: 914 | E24: 53 | F24: 774 | G24: 49
A25: Rivera | B25: 2494 | C25: 195 | D25: 1749 | E25: 174 | F25: 1765 | G25: 142
A26: Rocha | B26: 1247 | C26: 76 | D26: 1123 | E26: 77 | F26: 1120 | G26: 76
A27: Salto | B27: 2279 | C27: 218 | D27: 2073 | E27: 190 | F27: 1923 | G27: 216
A28: San José | B28: 1546 | C28: 108 | D28: 1412 | E28: 125 | F28: 1279 | G28: 115
A29: Soriano | B29: 1291 | C29: 86 | D29: 1059 | E29: 73 | F29: 1161 | G29: 79
A30: Tacuarembó | B30: 1905 | C30: 150 | D30: 1581 | E30: 141 | F30: 1515 | G30: 118
A31: Treinta y Tres | B31: 1030 | C31: 83 | D31: 849 | E31: 85 | F31: 775 | G31: 86
A32: Fuente: DE — CES

Sheet II-3.2.5
A1: CONSEJO DE EDUCACIÓN TÉCNICO PROFESIONAL (U.T.U.) | E1: ALUMNOS MATRICULADOS
A3: Cuadro Nº II-3.2.5
A5: ALUMNOS MATRICULADOS EN EDUCACIÓN TÉCNICA MEDIA BÁSICA POR TIPO DE CURSO SEGÚN EDAD. AÑO 2011
A7: EDAD | B7: TOTAL | C7: TIPO DE CURSO
C8: C.T.B Agrario | D8: Ciclo Básico Tecnológico | E8: Formación Profesional Básica Plan 2007 | F8: Articulación Educación Media Básica
A9: TOTAL | B9: =+C9+D9+E9+F9 -> 23791 | C9: =+C10+C11+C12++C13+C14+C15+C16+C17+C18+C19+C20+C21 -> 1001 | D9: =+D10+D11+D12++D13+D14+D15+D16+D17+D18+D19+D20+D21 -> 16125 | E9: =+E10+E11+E12++E13+E14+E15+E16+E17+E18+E19+E20+E21 -> 6509 | F9: 156
A10: 11 y 12 años | B10: =+C10+D10+E10+F10 -> 3186 | C10: 256 | D10: 2928 | E10: 2 | F10: 0
A11: 13 años | B11: 4933 | C11: 306 | D11: 4604 | E11: 22 | F11: 1
A12: 14 años | B12: 5531 | C12: 301 | D12: 4843 | E12: 387 | F12: 0
A13: 15 años | B13: 3820 | C13: 104 | D13: 2236 | E13: 1478 | F13: 2
A14: 16 años | B14: 2981 | C14: 20 | D14: 1040 | E14: 1916 | F14: 5
A15: 17 años | B15: 1779 | C15: 8 | D15: 371 | E15: 1388 | F15: 12
A16: 18 años | B16: 634 | C16: 2 | D16: 40 | E16: 571 | F16: 21
A17: 19 años | B17: 217 | C17: 0 | D17: 14 | E17: 191 | F17: 12
A18: 20 a 24 años | B18: 298 | C18: 2 | D18: 22 | E18: 241 | F18: 33
A19: 25 a 29 años | B19: 145 | C19: 0 | D19: 6 | E19: 119 | F19: 20
A20: 30 años y más | B20: 263 | C20: 0 | D20: 21 | E20: 192 | F20: 50
A21: Edad desc | B21: 4 | C21: 2 | D21: 0 | E21: 2 | F21: 0
A22: Fuente : Procesamiento propio en base a datos proprocionados por el D.E.-CETP (U.T.U.)

Sheet II-3.2.6
A1: CONSEJO DE EDUCACIÓN TÉCNICO PROFESIONAL (U.T.U.) | C1: ALUMNOS MATRICULADOS
A3: Cuadro Nº II-3.2.6.
A5: ALUMNOS MATRICULADOS EN EL CETP EN EDUCACIÓN MEDIA BÁSICA POR TIPO DE CURSO SEGÚN SECTORES DE ESTUDIO. AÑO 2011.
A7: SECTORES DE ESTUDIO | B7: TOTAL | C7: TIPO DE CURSO
C8: Ciclo Básico Tecnológico | D8: Formación Profesional Básica Plan 2007 | E8: CTB AGRARIO | F8: Articulación Eduación Media
A9: TOTAL | B9: =+C9+D9+E9+F9 -> 23791 | C9: 16125 | D9: 6509 | E9: 1001 | F9: 156
A10: Prog. Ciclo Básico. Educación Media | B10: =+C10+E10 -> 17126 | C10: 16125 | D10: 0 | E10: 1001 | F10: 0
A11: Agropecuario | B11: =+C11+D11+E11+F11 -> 129 | C11: 0 | D11: 129 | E11: 0 | F11: 0
A12: Hortifruticultura y Jardinería | B12: 53 | C12: 0 | D12: 53 | E12: 0 | F12: 0
A13: Metal - Mecánica | B13: 467 | C13: 0 | D13: 467 | E13: 0 | F13: 0
A14: Electricidad y Electrónica | B14: 754 | C14: 0 | D14: 754 | E14: 0 | F14: 0
A15: Textil y Confección de Vestimenta | B15: 284 | C15: 0 | D15: 284 | E15: 0 | F15: 0
A16: Madera y Muebles | B16: 890 | C16: 0 | D16: 880 | E16: 0 | F16: 10
A17: Mant. y Reparación de Vehículos | B17: 796 | C17: 0 | D17: 796 | E17: 0 | F17: 0
A18: Gastronomía | B18: 857 | C18: 0 | D18: 857 | E18: 0 | F18: 0
A19: Servicios personales | B19: 1043 | C19: 0 | D19: 1043 | E19: 0 | F19: 0
A20: Servicios de seguridad | B20: 103 | C20: 0 | D20: 103 | E20: 0 | F20: 0
A21: Informática | B21: 779 | C21: 0 | D21: 779 | E21: 0 | F21: 0
A22: Construcción y Arquitectura | B22: 150 | C22: 0 | D22: 150 | E22: 0 | F22: 0
A23: Deportes | B23: 214 | C23: 0 | D23: 214 | E23: 0 | F23: 0
A24: Prog. Articulación entre Niveles | B24: 146 | C24: 0 | D24: 0 | E24: 0 | F24: 146
A25: Fuente: proecesamiento propio deen base a datos proporcionados por el D.E.- CETP . (UTU)

Sheet II-3.3.1
A1: CONSEJO DE EDUCACIÓN SECUNDARIA | F1: PERSONAL DOCENTE
A3: Cuadro Nº II-3.3.1.
A5: PERSONAL DOCENTE Y HORAS DOCENTES DEL CES EN EDUACIÓN MEDIA BÁSICA GENERAL POR TITULACIÓN SEGÚN ASIGNATURAS. AÑO 2011.
A7: ASIGNATURAS | B7: TOTAL DOCENTES | C7: PERSONAL DOCENTE | E7: TOTAL HORAS | F7: HORAS DOCENTES
C8: Titulados | D8: No Titulados | F8: Titulados | G8: No Titulados
A9: TOTAL | B9: =SUM(C9:D9) -> 16109 | C9: =SUM(C10:C46) -> 8603 | D9: =SUM(D10:D46) -> 7506 | E9: =SUM(F9:G9) -> 226687 | F9: =SUM(F10:F46) -> 126366 | G9: =SUM(G10:G46) -> 100321
A10: ASTRONOMIA | B10: =C10+D10 -> 156 | C10: 35 | D10: 121 | E10: =F10+G10 -> 2040 | F10: 441 | G10: 1599
A11: BIOLOGIA | B11: =C11+D11 -> 1241 | C11: 988 | D11: 253 | E11: =F11+G11 -> 16038 | F11: 13787 | G11: 2251
A12: CONTABILIDAD | B12: 3 | C12: 1 | D12: 2 | E12: 17 | F12: 9 | G12: 8
A13: DIBUJO | B13: 741 | C13: 322 | D13: 419 | E13: 11638 | F13: 5473 | G13: 6165
A14: EDUCACION FISICA | B14: 948 | C14: 822 | D14: 126 | E14: 14913 | F14: 13403 | G14: 1510
A15: EDUCACION MUSICAL | B15: 542 | C15: 95 | D15: 447 | E15: 8281 | F15: 1511 | G15: 6770
A16: ED Y CIVICA -DERECHO- | B16: 472 | C16: 384 | D16: 88 | E16: 4139 | F16: 3666 | G16: 473
A17: FILOSOFIA | B17: 381 | C17: 251 | D17: 130 | E17: 4388 | F17: 3216 | G17: 1172
A18: FISICA | B18: 615 | C18: 262 | D18: 353 | E18: 7399 | F18: 3552 | G18: 3847
A19: FRANCES | B19: 64 | C19: 12 | D19: 52 | E19: 1071 | F19: 245 | G19: 826
A20: GEOGRAFIA | B20: 822 | C20: 623 | D20: 199 | E20: 12324 | F20: 10175 | G20: 2149
A21: HISTORIA | B21: 1399 | C21: 1158 | D21: 241 | E21: 17841 | F21: 15930 | G21: 1911
A22: IDIOMA ESPAÑOL | B22: 1106 | C22: 797 | D22: 309 | E22: 18010 | F22: 14054 | G22: 3956
A23: INGLES | B23: 1309 | C23: 404 | D23: 905 | E23: 22294 | F23: 7455 | G23: 14839
A24: ITALIANO | B24: 69 | C24: 22 | D24: 47 | E24: 1242 | F24: 438 | G24: 804
A25: LITERATURA | B25: 795 | C25: 609 | D25: 186 | E25: 9706 | F25: 8032 | G25: 1674
A26: FISICO - QUIMICA | B26: 799 | C26: 402 | D26: 397 | E26: 9390 | F26: 5137 | G26: 4253
A27: MATEMATICA | B27: 1479 | C27: 481 | D27: 998 | E27: 26574 | F27: 9633 | G27: 16941
A28: QUIMICA | B28: 695 | C28: 443 | D28: 252 | E28: 7428 | F28: 5129 | G28: 2299
A29: REC.NATUR Y PAISAJE AGRARIA | B29: 0 | C29: 0 | D29: 0 | E29: 0 | F29: 0 | G29: 0
A30: GEOLOGIA | B30: 1 | C30: 1 | D30: 0 | E30: 11 | F30: 11 | G30: 0
A31: DIRECTOR DE COROS | B31: 142 | C31: 49 | D31: 93 | E31: 1565 | F31: 560 | G31: 1005
A32: PIANISTA ACOMPAÑANTE | B32: 106 | C32: 15 | D32: 91 | E32: 1079 | F32: 146 | G32: 933
A33: INFORMATICA | B33: 886 | C33: 139 | D33: 747 | E33: 15255 | F33: 2131 | G33: 13124
A34: LENGCOMUY MEDIOS AUDIOVISUAL | B34: 0 | C34: 0 | D34: 0 | E34: 0 | F34: 0 | G34: 0
A35: ESTUDIOS ECONOMICOS Y SOCIALES | B35: 0 | C35: 0 | D35: 0 | E35: 0 | F35: 0 | G35: 0
A36: LABORATORIO INFORMATICA EDUCAT | B36: 318 | C36: 40 | D36: 278 | E36: 6691 | F36: 868 | G36: 5823
A37: MANUALIDADES | B37: 1 | C37: 0 | D37: 1 | E37: 20 | F37: 0 | G37: 20
A38: LENGUA ALEMAN | B38: 5 | C38: 0 | D38: 5 | E38: 77 | F38: 0 | G38: 77
A39: TEATRO | B39: 0 | C39: 0 | D39: 0 | E39: 0 | F39: 0 | G39: 0
A40: LENGUAS PORTUGUES | B40: 69 | C40: 3 | D40: 66 | E40: 1195 | F40: 40 | G40: 1155
A41: EXPRESION CORPORAL Y TEATRO | B41: 3 | C41: 1 | D41: 2 | E41: 6 | F41: 2 | G41: 4
A42: EXPRESION CORPORAL Y DANZA | B42: 1 | C42: 0 | D42: 1 | E42: 4 | F42: 0 | G42: 4
A43: ACTADAPTADAS AL MEDIO AMBIENT | B43: 57 | C43: 2 | D43: 55 | E43: 543 | F43: 9 | G43: 534
A44: ECONOMIA | B44: 0 | C44: 0 | D44: 0 | E44: 0 | F44: 0 | G44: 0
A45: ESPACIO CURRICULAR ABIERTO | B45: 880 | C45: 242 | D45: 638 | E45: 5445 | F45: 1313 | G45: 4132
A46: LENGUA DE SEÑAS | B46: 4 | C46: 0 | D46: 4 | E46: 63 | F46: 0 | G46: 63
A47: Fuente: Departamento de Computación - División Hacienda — C.E.S.
A48: Nota: Los docentes que dictan más de una asignatura son considerados como personas distintas en cada asignatura.

Sheet II-3.3.2
A1: CONSEJO DE EDUCACIÓN TÉCNICO PROFESIONAL (U.T.U.) | E1: PERSONAL DOCENTE
A3: Cuadro Nº II-3.3.2.
A5: PERSONAL DOCENTE DEL CETP EN EDUCACIÓN MEDIA BÁSICA TECNOLÓGICA POR TIPO DE CURSO. AÑO 2011.
A6: EDUCACIÓN MEDIA BÁSICA | B6: TOTAL
A9: TOTAL | B9: =SUM(B10:B13) -> 4580
A10: Ciclo Básico Tecnológico | B10: 2507
A11: Ciclo Básico Tecnológico Agrario | B11: 188
A12: Formación Profesional Básica Plan 2007 | B12: 1784
A13: Articulación Educ.Media Básica | B13: 101
A14: Fuente: U.T.U. División Informática.

Sheet II-3.4.1
A1: CONSEJO DE EDUCACIÓN SECUNDARIA | D1: GRUPOS
A3: Cuadro Nº II-3.4.1.
A5: GRUPOS DEL CES EN EDUCACIÓN MEDIA BÁSICA GENERAL COMPARADOS CON EL TOTAL DE GRUPOS EN EDUCACIÓN MEDIA GENERAL SEGÚN GRANDES ÁREAS Y FORMA DE ADMINISTRACIÓN. AÑO 2011.
A6: GRANDES ÁREAS Y FORMA DE ADMINISTRACIÓN | B6: FORMA DE ADMINISTRACIÓN
B8: Grupos en Eduacación Media Básica General | C8: Total de grupos en Eduacioón Media General
A10: TOTAL DEL PAÍS | B10: 5302 | C10: 9532
A11: MEDIA BÁSICA PÚBLICA | B11: 4265 | C11: 7332
A12: Diurna | B12: 3894 | C12: 6345
A13: Cuarto Turno | B13: 371 | C13: 987
A14: MEDIA BÁSICA PRIVADA | B14: 1037 | C14: 2200
A15: TOTAL MONTEVIDEO | B15: 1942 | C15: 3624
A16: MEDIA BÁSICA PÚBLICA | B16: 1295 | C16: 2164
A17: Diurna | B17: 1165 | C17: 1799
A18: Cuarto Turno | B18: 130 | C18: 365
A19: MEDIA BÁSICA PRIVADA | B19: 647 | C19: 1460
A20: TOTAL RESTO DEL PAÍS | B20: 3360 | C20: 5908
A21: MEDIA BÁSICA PÚBLICA | B21: 2970 | C21: 5168
A22: Diurna | B22: 2729 | C22: 4546
A23: Cuarto Turno | B23: 241 | C23: 622
A24: MEDIA BÁSICA PRIVADA | B24: 390 | C24: 740
A26: Fuente: D.E. — C.E.S.

Sheet MEDIA SUPERIOR

Sheet II-4.1.1
A1: CONSEJO DE EDUCACIÓN SECUNDARIA Y CONSEJO DE EDUCACIÓN TÉCNICO PROFESIONAL (UTU)
A3: Cuadro Nº II-4.1.1
A5: ESTABLECIMIENTOS DE EDUCACIÓN MEDIA SUPERIOR POR MODALIDAD Y FORMA DE ADMINISTRACIÓN SEGÚN DEPARTAMENTO. AÑO 2011.
A6: DEPARTAMENTO | D6: MODALIDAD
B7: TOTAL GENERAL | D7: CES | J7: CETP
D8: FORMA DE ADMINISTRACIÓN
D9: LICEOS PÚBLICOS | H9: Liceos Privados | J9: Escuelas de CBT y Técnica.
D11: Diurnos Oficiales | F11: Extra Edad Oficiales (Nocturno Y Diurno)
C14: TOTAL CES | D14: Bachillerato | E14: C.Básico y Bachillerato | F14: Bachillerato | G14: C.Básico y Bachillerato | H14: Bachillerato | I14: C.Básico y Bachillerato
A15: TOTAL | B15: =B16+B17 -> 561 | C15: =D15+E15+F15+G15+H15+I15 -> 443 | D15: =D16+D17 -> 42 | E15: =E16+E17 -> 140 | F15: 33 | G15: 62 | H15: 6 | I15: 160 | J15: =J16+J17 -> 118
A16: MONTEVIDEO | B16: =D16+E16+F16+G16+H16+I16+J16 -> 174 | C16: =D16+E16+F16+G16+H16+I16 -> 149 | D16: 17 | E16: 5 | F16: 15 | G16: 14 | H16: 4 | I16: 94 | J16: 25
A17: RESTO DEL PAÍS | B17: 387 | C17: =D17+E17+F17+G17+H17+I17 -> 294 | D17: =SUM(D18:D35) -> 25 | E17: 135 | F17: 18 | G17: 48 | H17: 2 | I17: 66 | J17: 93
A18: Artigas | B18: 14 | C18: =D18+E18+F18+G18+H18+I18 -> 9 | D18: 2 | E18: 5 | F18: 1 | G18: 1 | H18: 0 | I18: 0 | J18: 5
A19: Canelones | B19: 91 | C19: 76 | D19: 8 | E19: 28 | F19: 6 | G19: 13 | H19: 1 | I19: 20 | J19: 15
A20: Cerro Largo | B20: 14 | C20: 9 | D20: 0 | E20: 5 | F20: 0 | G20: 2 | H20: 0 | I20: 2 | J20: 5
A21: Colonia | B21: 31 | C21: 21 | D21: 2 | E21: 9 | F21: 2 | G21: 6 | H21: 0 | I21: 2 | J21: 10
A22: Durazno | B22: 14 | C22: 11 | D22: 1 | E22: 5 | F22: 2 | G22: 1 | H22: 0 | I22: 2 | J22: 3
A23: Flores | B23: 8 | C23: 6 | D23: 0 | E23: 2 | F23: 1 | G23: 1 | H23: 0 | I23: 2 | J23: 2
A24: Florida | B24: 18 | C24: 15 | D24: 2 | E24: 9 | F24: 1 | G24: 1 | H24: 0 | I24: 2 | J24: 3
A25: Lavalleja | B25: 12 | C25: 8 | D25: 0 | E25: 6 | F25: 0 | G25: 1 | H25: 0 | I25: 1 | J25: 4
A26: Maldonado | B26: 28 | C26: 23 | D26: 1 | E26: 6 | F26: 0 | G26: 4 | H26: 1 | I26: 11 | J26: 5
A27: Paysandú | B27: 21 | C27: 15 | D27: 2 | E27: 7 | F27: 1 | G27: 1 | H27: 0 | I27: 4 | J27: 6
A28: Río Negro | B28: 13 | C28: 10 | D28: 1 | E28: 4 | F28: 1 | G28: 2 | H28: 0 | I28: 2 | J28: 3
A29: Rivera | B29: 19 | C29: 14 | D29: 1 | E29: 8 | F29: 0 | G29: 1 | H29: 0 | I29: 4 | J29: 5
A30: Rocha | B30: 19 | C30: 14 | D30: 1 | E30: 7 | F30: 1 | G30: 3 | H30: 0 | I30: 2 | J30: 5
A31: Salto | B31: 21 | C31: 17 | D31: 1 | E31: 9 | F31: 1 | G31: 1 | H31: 0 | I31: 5 | J31: 4
A32: San José | B32: 20 | C32: 13 | D32: 1 | E32: 5 | F32: 0 | G32: 5 | H32: 0 | I32: 2 | J32: 7
A33: Soriano | B33: 16 | C33: 11 | D33: 1 | E33: 5 | F33: 1 | G33: 3 | H33: 0 | I33: 1 | J33: 5
A34: Tacuarembó | B34: 16 | C34: 13 | D34: 1 | E34: 9 | F34: 0 | G34: 1 | H34: 0 | I34: 2 | J34: 3
A35: Treinta y Tres | B35: 12 | C35: 9 | D35: 0 | E35: 6 | F35: 0 | G35: 1 | H35: 0 | I35: 2 | J35: 3
A37: Fuente: D.E.- C.E.S .
A38: Nota: 1- Los establecimientos considerados en el Tipo de Educación Escuelas con Ciclo Básico Rural” ya fueron considerados en los totales de establecimientos de Educación Primaria por lo cual, si bien se presentan en la columna correspondiente, no participan en el “Total” del presente cuadro.
A39: 2- En un mismo establecimiento del CETP, coexisten ofertas educativas de diferentes niveles Los establecimientos fueron contabilizados por el nivel educativo, por lo tanto cada dependencia física será contada tantas veces como niveles educativos contenga Por ello el presente cuadro computa los establecimientos con cursos de Educación Media Básica, independientemente que en el mismo espacio locativo se dicten ofertas de otros niveles.

Sheet II-4.2.1
A1: CONSEJO DE EDUCACIÓN SECUNDARIA | C1: ALUMNOS MATRICULADOS
A3: Cuadro Nº II-4.2.1
A5: ALUMNOS MATRICULADOS DEL CES EN EDUCACIÓN MEDIA SUPERIOR GENERAL POR GRADO SEGÚN GRANDES ÁREAS Y FORMA DE ADMINISTRACIÓN AÑO 2011
A6: GRANDES ÁREAS Y FORMA DE ADMINISTRACIÓN | B6: TOTAL | C6: GRADO
C8: CUARTO | D8: QUINTO | E8: SEXTO
A9: TOTAL DEL PAÍS | B9: 116117 | C9: 41407 | D9: 41395 | E9: 33315
A10: MEDIA SUPERIOR PÚBLICA | B10: 99175 | C10: 34570 | D10: 36001 | E10: 28604
A11: Diurna | B11: 64956 | C11: 25949 | D11: 21988 | E11: 17019
A12: Cuarto Turno | B12: 34219 | C12: 8621 | D12: 14013 | E12: 11585
A13: MEDIA SUPERIOR PRIVADA | B13: 16942 | C13: 6837 | D13: 5394 | E13: 4711
A14: TOTAL MONTEVIDEO | B14: 47543 | C14: 15225 | D14: 17457 | E14: 14861
A15: MEDIA SUPERIOR PÚBLICA | B15: 35008 | C15: 10585 | D15: 13343 | E15: 11080
A16: Diurna | B16: 18887 | C16: 7213 | D16: 6488 | E16: 5186
A17: Cuarto Turno | B17: 16121 | C17: 3372 | D17: 6855 | E17: 5894
A18: MEDIA SUPERIOR PRIVADA | B18: 12535 | C18: 4640 | D18: 4114 | E18: 3781
A19: TOTAL RESTO DEL PAÍS | B19: 68574 | C19: 26182 | D19: 23938 | E19: 18454
A20: MEDIA SUPERIOR PÚBLICA | B20: 64167 | C20: 23985 | D20: 22658 | E20: 17524
A21: Diurna | B21: 46069 | C21: 18736 | D21: 15500 | E21: 11833
A22: Cuarto Turno | B22: 18098 | C22: 5249 | D22: 7158 | E22: 5691
A23: MEDIA SUPERIOR PRIVADA | B23: 4407 | C23: 2197 | D23: 1280 | E23: 930
A24: Fuente: DE — CES
A25: Nota: La referencia "Privada" (incluye los Habilitados "Liceo Naval" y "Liceo Militar"), se corresponde con la de "Liceos Habilitados" presente en ediciones anteriores del Anuario Estadístico del MEC

Sheet II-4.2.2
A1: CONSEJO DE EDUCACIÓN TÉCNICO PROFESIONAL (U.T.U.) | K1: ALUMNOS MATRICULADOS
A3: Cuadro Nº II-4.2.2
A5: ALUMNOS MATRICULADOS EN EL CETP EN EDUCACIÓN MEDIA SUPERIOR TECNOLÓGICA POR TIPO DE CURSO SEGÚN GRANDES ÁREAS, DEPARTAMENTO Y SEXO. AÑO 2011.
A7: GRANDES ÁREAS,DEPARTAMENTO Y SEXO | B7: TOTAL | C7: TOTAL | E7: Tipo de curso
E9: EDUACIÓN MEDIA SUPERIOR TECONOLOGICA
E11: TOTAL | F11: Bachillerato Figari | H11: TOTAL | I11: Bachillerato Profesional | K11: TOTAL | L11: Curso Técnico | N11: TOTAL | O11: Educación Media Profesional | Q11: TOTAL | R11: Educación Media Tecnológica | T11: TOTAL | U11: Articulación
F12: Sexo | I12: Sexo | L12: Sexo | O12: Sexo | R12: Sexo | U12: Sexo
C13: F | D13: M | F13: F | G13: M | I13: F | J13: M | L13: F | M13: M | O13: F | P13: M | R13: F | S13: M | U13: F | V13: M
I14: Count | J14: Count | L14: Count | M14: Count | O14: Count | P14: Count | R14: Count | S14: Count
A16: TOTAL | B16: =+C16+D16 -> 33367 | C16: =SUM(C17:C18) -> 14896 | D16: =SUM(D17:D18) -> 18471 | E16: =+F16+G16 -> 135 | F16: =SUM(F17:F18) -> 71 | G16: =SUM(G17:G18) -> 64 | H16: =I16+J16 -> 526 | I16: =SUM(I17:I18) -> 61 | J16: =SUM(J17:J18) -> 465 | K16: =+L17+M17 -> 334 | L16: =SUM(L17:L18) -> 326 | M16: 8 | N16: 12023 | O16: 5721 | P16: 6302 | Q16: 20020 | R16: 8611 | S16: 11409 | T16: 329 | U16: 106 | V16: 223
A17: Montevideo | B17: =+C17+D17 -> 15042 | C17: =+F17+I17+L17+O17+R17+U17 -> 6296 | D17: =+G17+J17+M17+P17+S17+V17 -> 8746 | E17: =+F17+G17 -> 118 | F17: 61 | G17: 57 | H17: =I17+J17 -> 272 | I17: 32 | J17: 240 | K17: =+L17+M17 -> 334 | L17: 326 | M17: 8 | N17: =+O17+P17 -> 5476 | O17: 2683 | P17: 2793 | Q17: =+R17+S17 -> 8605 | R17: 3121 | S17: 5484 | T17: =+U17+V17 -> 237 | U17: 73 | V17: 164
A18: RESTO DEL PAÍS | B18: =+C18+D18 -> 18325 | C18: =+F18+I18+L18+O18+R18+U18 -> 8600 | D18: =+G18+J18+M18+P18+S18+V18 -> 9725 | E18: =+F18+G18 -> 17 | F18: =SUM(F19:F36) -> 10 | G18: =SUM(G19:G36) -> 7 | H18: 254 | I18: =SUM(I19:I36) -> 29 | J18: =SUM(J19:J36) -> 225 | K18: =+L19+M19 -> 0 | L18: =SUM(L19:L36) -> 0 | M18: 0 | N18: =+O18+P18 -> 6547 | O18: =SUM(O19:O36) -> 3038 | P18: =SUM(P19:P36) -> 3509 | Q18: =+R18+S18 -> 11415 | R18: =SUM(R19:R36) -> 5490 | S18: =SUM(S19:S36) -> 5925 | T18: =+U18+V18 -> 92 | U18: =SUM(U19:U36) -> 33 | V18: =SUM(V19:V36) -> 59
A19: Artigas | B19: =+C19+D19 -> 1070 | C19: =+F19+I19+L19+O19+R19+U19 -> 514 | D19: 556 | E19: =+F19+G19 -> 17 | F19: 10 | G19: 7 | H19: 33 | I19: 0 | J19: 33 | K19: 0 | L19: 0 | M19: 0 | N19: 429 | O19: 143 | P19: 286 | Q19: 591 | R19: 361 | S19: 230 | T19: 0 | U19: 0 | V19: 0
A20: Canelones | B20: 3261 | C20: 1734 | D20: 1527 | E20: 0 | F20: 0 | G20: 0 | H20: 37 | I20: 9 | J20: 28 | K20: 0 | L20: 0 | M20: 0 | N20: 1406 | O20: 772 | P20: 634 | Q20: 1818 | R20: 953 | S20: 865 | T20: 0 | U20: 0 | V20: 0
A21: Cerro Largo | B21: 734 | C21: 432 | D21: 302 | E21: 0 | F21: 0 | G21: 0 | H21: 0 | I21: 0 | J21: 0 | K21: 0 | L21: 0 | M21: 0 | N21: 410 | O21: 244 | P21: 166 | Q21: 324 | R21: 188 | S21: 136 | T21: 0 | U21: 0 | V21: 0
A22: Colonia | B22: 1306 | C22: 644 | D22: 662 | E22: 0 | F22: 0 | G22: 0 | H22: 9 | I22: 0 | J22: 9 | K22: 0 | L22: 0 | M22: 0 | N22: 487 | O22: 242 | P22: 245 | Q22: 810 | R22: 402 | S22: 408 | T22: 0 | U22: 0 | V22: 0
A23: Durazno | B23: 541 | C23: 262 | D23: 279 | E23: 0 | F23: 0 | G23: 0 | H23: 10 | I23: 6 | J23: 4 | K23: 0 | L23: 0 | M23: 0 | N23: 95 | O23: 44 | P23: 51 | Q23: 436 | R23: 212 | S23: 224 | T23: 0 | U23: 0 | V23: 0
A24: Flores | B24: 264 | C24: 119 | D24: 145 | E24: 0 | F24: 0 | G24: 0 | H24: 0 | I24: 0 | J24: 0 | K24: 0 | L24: 0 | M24: 0 | N24: 91 | O24: 46 | P24: 45 | Q24: 173 | R24: 73 | S24: 100 | T24: 0 | U24: 0 | V24: 0
A25: Florida | B25: 692 | C25: 302 | D25: 390 | E25: 0 | F25: 0 | G25: 0 | H25: 9 | I25: 1 | J25: 8 | K25: 0 | L25: 0 | M25: 0 | N25: 166 | O25: 79 | P25: 87 | Q25: 517 | R25: 222 | S25: 295 | T25: 0 | U25: 0 | V25: 0
A26: Lavalleja | B26: 418 | C26: 174 | D26: 244 | E26: 0 | F26: 0 | G26: 0 | H26: 15 | I26: 1 | J26: 14 | K26: 0 | L26: 0 | M26: 0 | N26: 265 | O26: 93 | P26: 172 | Q26: 138 | R26: 80 | S26: 58 | T26: 0 | U26: 0 | V26: 0
A27: Maldonado | B27: 1147 | C27: 500 | D27: 647 | E27: 0 | F27: 0 | G27: 0 | H27: 0 | I27: 0 | J27: 0 | K27: 0 | L27: 0 | M27: 0 | N27: 385 | O27: 137 | P27: 248 | Q27: 762 | R27: 363 | S27: 399 | T27: 0 | U27: 0 | V27: 0
A28: Paysandú | B28: 1626 | C28: 623 | D28: 1003 | E28: 0 | F28: 0 | G28: 0 | H28: 11 | I28: 0 | J28: 11 | K28: 0 | L28: 0 | M28: 0 | N28: 266 | O28: 112 | P28: 154 | Q28: 1303 | R28: 486 | S28: 817 | T28: 46 | U28: 25 | V28: 21
A29: Rio Negro | B29: 539 | C29: 236 | D29: 303 | E29: 0 | F29: 0 | G29: 0 | H29: 9 | I29: 2 | J29: 7 | K29: 0 | L29: 0 | M29: 0 | N29: 115 | O29: 42 | P29: 73 | Q29: 415 | R29: 192 | S29: 223 | T29: 0 | U29: 0 | V29: 0
A30: Rivera | B30: 825 | C30: 389 | D30: 436 | E30: 0 | F30: 0 | G30: 0 | H30: 13 | I30: 4 | J30: 9 | K30: 0 | L30: 0 | M30: 0 | N30: 191 | O30: 109 | P30: 82 | Q30: 610 | R30: 272 | S30: 338 | T30: 11 | U30: 4 | V30: 7
A31: Rocha | B31: 363 | C31: 216 | D31: 147 | E31: 0 | F31: 0 | G31: 0 | H31: 18 | I31: 0 | J31: 18 | K31: 0 | L31: 0 | M31: 0 | N31: 168 | O31: 103 | P31: 65 | Q31: 177 | R31: 113 | S31: 64 | T31: 0 | U31: 0 | V31: 0
A32: Salto | B32: 1865 | C32: 806 | D32: 1059 | E32: 0 | F32: 0 | G32: 0 | H32: 23 | I32: 2 | J32: 21 | K32: 0 | L32: 0 | M32: 0 | N32: 654 | O32: 296 | P32: 358 | Q32: 1163 | R32: 504 | S32: 659 | T32: 25 | U32: 4 | V32: 21
A33: San José | B33: 807 | C33: 400 | D33: 407 | E33: 0 | F33: 0 | G33: 0 | H33: 31 | I33: 2 | J33: 29 | K33: 0 | L33: 0 | M33: 0 | N33: 376 | O33: 153 | P33: 223 | Q33: 400 | R33: 245 | S33: 155 | T33: 0 | U33: 0 | V33: 0
A34: Soriano | B34: 1327 | C34: 572 | D34: 755 | E34: 0 | F34: 0 | G34: 0 | H34: 3 | I34: 0 | J34: 3 | K34: 0 | L34: 0 | M34: 0 | N34: 465 | O34: 208 | P34: 257 | Q34: 849 | R34: 364 | S34: 485 | T34: 10 | U34: 0 | V34: 10
A35: Tacuarembó | B35: 1014 | C35: 456 | D35: 558 | E35: 0 | F35: 0 | G35: 0 | H35: 10 | I35: 1 | J35: 9 | K35: 0 | L35: 0 | M35: 0 | N35: 281 | O35: 95 | P35: 186 | Q35: 723 | R35: 360 | S35: 363 | T35: 0 | U35: 0 | V35: 0
A36: Treinta y Tres | B36: 526 | C36: 221 | D36: 305 | E36: 0 | F36: 0 | G36: 0 | H36: 23 | I36: 1 | J36: 22 | K36: 0 | L36: 0 | M36: 0 | N36: 297 | O36: 120 | P36: 177 | Q36: 206 | R36: 100 | S36: 106 | T36: 0 | U36: 0 | V36: 0
A37: Fuente : Procesamiento propio en base a datos proporcionados por el D.E. _ CETP (U.T.U. )
A38: Nota: Los matriculados en Formación Profesional Superior ,potencialmente son estudiantes de Eduacación Media Superior, ya que con el curso de Articulación correspondiente adquieren continuidad educativa a nivel tericiario.
A82: Fuente: Procesamiento propio en base a datos proporcionados por el D.E. - CETP (U.T.U)
A83: Nota: Los matriculados en Formación Profesional Superior, potencialmente son estudiantes de Educación Media Superior, ya que con el curso de Articulación correspondiente adquieren continuidad educativa al nivel terciario.
A84: Sin embargo no adquieren esta condición hasta haber transitado por Articulación.

Sheet II-4.2.3
A1: CONSEJO DE EDUCACIÓN TÉCNICO PROFESIONAL (U.T.U.) | I1: ALUMNOS MATRICULADOS
A3: Cuadro Nº II-4.2.3
A5: ALUMNOS MATRICULADOS EN EL CETP EN EDUCACIÓN MEDIA SUPERIOR POR TIPO DE CURSO SEGÚN EDAD. AÑO 2011.
A7: EDAD | B7: TOTAL | C7: TIPO DE CURSO
C9: EDUCACION MEDIA SUPERIOR TECNOLÓGICA
C10: Bachillerato Figari | D10: Bachillerato Profesional | E10: Curso Técnico | F10: Educación Media Profesional | G10: Educación Media Tecnológica | H10: Articulación
A11: TOTAL | B11: =SUM(B12:B21) -> 33367 | C11: 135 | D11: 526 | E11: 334 | F11: 12023 | G11: 20020 | H11: 329
A12: 14 años | B12: =+C12+D12+E12+F12+G12+H12 -> 60 | C12: 0 | D12: 0 | E12: 0 | F12: 8 | G12: 52 | H12: 0
A13: 15 años | B13: =+C13+D13+E13+F13+G13+H13 -> 3113 | C13: 3 | D13: 0 | E13: 6 | F13: 675 | G13: 2429 | H13: 0
A14: 16 años | B14: 4863 | C14: 11 | D14: 2 | E14: 33 | F14: 1366 | G14: 3451 | H14: 0
A15: 17 años | B15: 5273 | C15: 6 | D15: 53 | E15: 35 | F15: 1486 | G15: 3690 | H15: 3
A16: 18años | B16: 3933 | C16: 10 | D16: 72 | E16: 39 | F16: 1304 | G16: 2466 | H16: 42
A17: 19años | B17: 2978 | C17: 4 | D17: 57 | E17: 43 | F17: 1198 | G17: 1643 | H17: 33
A18: 20 a 24 años | B18: 7821 | C18: 34 | D18: 163 | E18: 134 | F18: 3313 | G18: 4046 | H18: 131
A19: 25 a 29 años | B19: 2694 | C19: 19 | D19: 73 | E19: 23 | F19: 1272 | G19: 1241 | H19: 66
A20: 30 años y más | B20: 2612 | C20: 48 | D20: 106 | E20: 20 | F20: 1392 | G20: 994 | H20: 52
A21: Edad desc | B21: 20 | C21: 0 | D21: 0 | E21: 1 | F21: 9 | G21: 8 | H21: 2
A23: Fuente: Procesamiento propio en base a datos proporcionados por el D.E. - CETP (U.T.U)
A24: Nota: Los cursos de Articulación no corresponden estrictamente a Educación Media Superior. El curso de Articulación brinda
A25: la posibilidad de adquirir el nivel educativo para ingresar a cursos terciarios dentro de la oferta educativa del CEPT.
A26: De esta manera se entiende que su inclusión en Educación Media Superior parece más apropiada que su inclusión en nivel
A27: Terciario.

Sheet II-4.2.4
A1: CONSEJO DE EDUCACIÓN TÉCNICO PROFESIONAL (U.T.U.) | H1: ALUMNOS MATRICULADOS
A3: Cuadro Nº II-4.2.4.
A5: ALUMNOS MATRICULADOS EN EL CETP EN EDUCACIÓN MEDIA SUPERIOR TECNOLÓGICA POR TIPO DE CURSO SEGÚN SECTORES DE ESTUDIO. AÑO 2011.
A7: SECTORES DE ESTUDIO | B7: TOTAL | C7: EDUCACIÓN MEDIA SUPERIOR TECNOLÓGICA
C8: ='[1]II 4.2.4'!C4 -> Bachillerato Figari | D8: ='[1]II 4.2.4'!D4 -> Bachillerato Profesional | E8: ='[1]II 4.2.4'!E4 -> Curso Técnico | F8: ='[1]II 4.2.4'!F4 -> Educación Media Profesional | G8: ='[1]II 4.2.4'!G4 -> Educación Media Tecnológica | H8: ='[1]II 4.2.4'!H4 -> Articulación
A9: TOTAL | B9: =+C9+D9+E9+F9+G9+H9 -> 33367 | C9: =SUM(C10:C39) -> 135 | D9: 526 | E9: 334 | F9: 12023 | G9: 20020 | H9: 329
A10: ='[1]II 4.2.4'!B5 -> Agropecuario | B10: =+C10+D10+E10+F10+G10+H10 -> 1946 | C10: ='[1]II 4.2.4'!C5 -> 0 | D10: ='[1]II 4.2.4'!D5 -> 35 | E10: ='[1]II 4.2.4'!E5 -> 0 | F10: ='[1]II 4.2.4'!F5 -> 262 | G10: ='[1]II 4.2.4'!G5 -> 1649 | H10: ='[1]II 4.2.4'!H5 -> 0
A11: ='[1]II 4.2.4'!B6 -> Artes | B11: 67 | C11: ='[1]II 4.2.4'!C6 -> 67 | D11: ='[1]II 4.2.4'!D6 -> 0 | E11: ='[1]II 4.2.4'!E6 -> 0 | F11: ='[1]II 4.2.4'!F6 -> 0 | G11: ='[1]II 4.2.4'!G6 -> 0 | H11: ='[1]II 4.2.4'!H6 -> 0
A12: ='[1]II 4.2.4'!B7 -> Artesanías | B12: 50 | C12: ='[1]II 4.2.4'!C7 -> 50 | D12: ='[1]II 4.2.4'!D7 -> 0 | E12: ='[1]II 4.2.4'!E7 -> 0 | F12: ='[1]II 4.2.4'!F7 -> 0 | G12: ='[1]II 4.2.4'!G7 -> 0 | H12: ='[1]II 4.2.4'!H7 -> 0
A13: ='[1]II 4.2.4'!B8 -> Cerámica | B13: 18 | C13: ='[1]II 4.2.4'!C8 -> 18 | D13: ='[1]II 4.2.4'!D8 -> 0 | E13: ='[1]II 4.2.4'!E8 -> 0 | F13: ='[1]II 4.2.4'!F8 -> 0 | G13: ='[1]II 4.2.4'!G8 -> 0 | H13: ='[1]II 4.2.4'!H8 -> 0
A14: ='[1]II 4.2.4'!B9 -> Comercio y Administración | B14: 11480 | C14: ='[1]II 4.2.4'!C9 -> 0 | D14: ='[1]II 4.2.4'!D9 -> 0 | E14: ='[1]II 4.2.4'!E9 -> 0 | F14: ='[1]II 4.2.4'!F9 -> 4148 | G14: ='[1]II 4.2.4'!G9 -> 7332 | H14: ='[1]II 4.2.4'!H9 -> 0
A15: ='[1]II 4.2.4'!B10 -> Comunicación | B15: 0 | C15: ='[1]II 4.2.4'!C10 -> 0 | D15: ='[1]II 4.2.4'!D10 -> 0 | E15: ='[1]II 4.2.4'!E10 -> 0 | F15: ='[1]II 4.2.4'!F10 -> 0 | G15: ='[1]II 4.2.4'!G10 -> 0 | H15: ='[1]II 4.2.4'!H10 -> 0
A16: ='[1]II 4.2.4'!B11 -> Construcción y Arquitectura | B16: 2613 | C16: ='[1]II 4.2.4'!C11 -> 0 | D16: ='[1]II 4.2.4'!D11 -> 239 | E16: ='[1]II 4.2.4'!E11 -> 0 | F16: ='[1]II 4.2.4'!F11 -> 865 | G16: ='[1]II 4.2.4'!G11 -> 1509 | H16: ='[1]II 4.2.4'!H11 -> 0
A17: ='[1]II 4.2.4'!B12 -> Cuero y Calzado | B17: 0 | C17: ='[1]II 4.2.4'!C12 -> 0 | D17: ='[1]II 4.2.4'!D12 -> 0 | E17: ='[1]II 4.2.4'!E12 -> 0 | F17: ='[1]II 4.2.4'!F12 -> 0 | G17: ='[1]II 4.2.4'!G12 -> 0 | H17: ='[1]II 4.2.4'!H12 -> 0
A18: ='[1]II 4.2.4'!B13 -> Deportes | B18: 0 | C18: ='[1]II 4.2.4'!C13 -> 0 | D18: ='[1]II 4.2.4'!D13 -> 0 | E18: ='[1]II 4.2.4'!E13 -> 0 | F18: ='[1]II 4.2.4'!F13 -> 0 | G18: ='[1]II 4.2.4'!G13 -> 0 | H18: ='[1]II 4.2.4'!H13 -> 0
A19: ='[1]II 4.2.4'!B14 -> Electricidad y Electrónica | B19: 3313 | C19: ='[1]II 4.2.4'!C14 -> 0 | D19: ='[1]II 4.2.4'!D14 -> 0 | E19: ='[1]II 4.2.4'!E14 -> 0 | F19: ='[1]II 4.2.4'!F14 -> 881 | G19: ='[1]II 4.2.4'!G14 -> 2210 | H19: ='[1]II 4.2.4'!H14 -> 222
A20: ='[1]II 4.2.4'!B15 -> Forestal | B20: 25 | C20: ='[1]II 4.2.4'!C15 -> 0 | D20: ='[1]II 4.2.4'!D15 -> 0 | E20: ='[1]II 4.2.4'!E15 -> 0 | F20: ='[1]II 4.2.4'!F15 -> 25 | G20: ='[1]II 4.2.4'!G15 -> 0 | H20: ='[1]II 4.2.4'!H15 -> 0
A21: ='[1]II 4.2.4'!B16 -> Gastronomía | B21: 1686 | C21: ='[1]II 4.2.4'!C16 -> 0 | D21: ='[1]II 4.2.4'!D16 -> 80 | E21: ='[1]II 4.2.4'!E16 -> 0 | F21: ='[1]II 4.2.4'!F16 -> 1606 | G21: ='[1]II 4.2.4'!G16 -> 0 | H21: ='[1]II 4.2.4'!H16 -> 0
A22: ='[1]II 4.2.4'!B17 -> Gráficos | B22: 0 | C22: ='[1]II 4.2.4'!C17 -> 0 | D22: ='[1]II 4.2.4'!D17 -> 0 | E22: ='[1]II 4.2.4'!E17 -> 0 | F22: ='[1]II 4.2.4'!F17 -> 0 | G22: ='[1]II 4.2.4'!G17 -> 0 | H22: ='[1]II 4.2.4'!H17 -> 0
A23: ='[1]II 4.2.4'!B18 -> Hortifruticultura y Jardinería | B23: 49 | C23: ='[1]II 4.2.4'!C18 -> 0 | D23: ='[1]II 4.2.4'!D18 -> 0 | E23: ='[1]II 4.2.4'!E18 -> 0 | F23: ='[1]II 4.2.4'!F18 -> 49 | G23: ='[1]II 4.2.4'!G18 -> 0 | H23: ='[1]II 4.2.4'!H18 -> 0
A24: ='[1]II 4.2.4'!B19 -> Hotelería | B24: 0 | C24: ='[1]II 4.2.4'!C19 -> 0 | D24: ='[1]II 4.2.4'!D19 -> 0 | E24: ='[1]II 4.2.4'!E19 -> 0 | F24: ='[1]II 4.2.4'!F19 -> 0 | G24: ='[1]II 4.2.4'!G19 -> 0 | H24: ='[1]II 4.2.4'!H19 -> 0
A25: ='[1]II 4.2.4'!B20 -> Informática | B25: 5441 | C25: ='[1]II 4.2.4'!C20 -> 0 | D25: ='[1]II 4.2.4'!D20 -> 40 | E25: ='[1]II 4.2.4'!E20 -> 0 | F25: ='[1]II 4.2.4'!F20 -> 596 | G25: ='[1]II 4.2.4'!G20 -> 4805 | H25: ='[1]II 4.2.4'!H20 -> 0
A26: ='[1]II 4.2.4'!B21 -> Madera y Muebles | B26: 438 | C26: ='[1]II 4.2.4'!C21 -> 0 | D26: ='[1]II 4.2.4'!D21 -> 31 | E26: ='[1]II 4.2.4'!E21 -> 0 | F26: ='[1]II 4.2.4'!F21 -> 407 | G26: ='[1]II 4.2.4'!G21 -> 0 | H26: ='[1]II 4.2.4'!H21 -> 0
A27: ='[1]II 4.2.4'!B22 -> Mant. y Reparación de Vehículos | B27: 1695 | C27: ='[1]II 4.2.4'!C22 -> 0 | D27: ='[1]II 4.2.4'!D22 -> 71 | E27: ='[1]II 4.2.4'!E22 -> 0 | F27: ='[1]II 4.2.4'!F22 -> 1236 | G27: ='[1]II 4.2.4'!G22 -> 388 | H27: ='[1]II 4.2.4'!H22 -> 0
A28: ='[1]II 4.2.4'!B23 -> Mant., Rep., y Serv. a la Producción | B28: 151 | C28: ='[1]II 4.2.4'!C23 -> 0 | D28: ='[1]II 4.2.4'!D23 -> 0 | E28: ='[1]II 4.2.4'!E23 -> 0 | F28: ='[1]II 4.2.4'!F23 -> 151 | G28: ='[1]II 4.2.4'!G23 -> 0 | H28: ='[1]II 4.2.4'!H23 -> 0
A29: ='[1]II 4.2.4'!B24 -> Metal - Mecánica | B29: 667 | C29: ='[1]II 4.2.4'!C24 -> 0 | D29: ='[1]II 4.2.4'!D24 -> 16 | E29: ='[1]II 4.2.4'!E24 -> 0 | F29: ='[1]II 4.2.4'!F24 -> 415 | G29: ='[1]II 4.2.4'!G24 -> 236 | H29: ='[1]II 4.2.4'!H24 -> 0
A30: ='[1]II 4.2.4'!B25 -> Pesca | B30: 81 | C30: ='[1]II 4.2.4'!C25 -> 0 | D30: ='[1]II 4.2.4'!D25 -> 14 | E30: ='[1]II 4.2.4'!E25 -> 0 | F30: ='[1]II 4.2.4'!F25 -> 67 | G30: ='[1]II 4.2.4'!G25 -> 0 | H30: ='[1]II 4.2.4'!H25 -> 0
A31: ='[1]II 4.2.4'!B26 -> Producción de Alimentos | B31: 0 | C31: ='[1]II 4.2.4'!C26 -> 0 | D31: ='[1]II 4.2.4'!D26 -> 0 | E31: ='[1]II 4.2.4'!E26 -> 0 | F31: ='[1]II 4.2.4'!F26 -> 0 | G31: ='[1]II 4.2.4'!G26 -> 0 | H31: ='[1]II 4.2.4'!H26 -> 0
A32: ='[1]II 4.2.4'!B27 -> Prog. Articulación entre Niveles | B32: 0 | C32: ='[1]II 4.2.4'!C27 -> 0 | D32: ='[1]II 4.2.4'!D27 -> 0 | E32: ='[1]II 4.2.4'!E27 -> 0 | F32: ='[1]II 4.2.4'!F27 -> 0 | G32: ='[1]II 4.2.4'!G27 -> 0 | H32: ='[1]II 4.2.4'!H27 -> 0
A33: ='[1]II 4.2.4'!B28 -> Prog. Ciclo Básico. Educacion Media | B33: 0 | C33: ='[1]II 4.2.4'!C28 -> 0 | D33: ='[1]II 4.2.4'!D28 -> 0 | E33: ='[1]II 4.2.4'!E28 -> 0 | F33: ='[1]II 4.2.4'!F28 -> 0 | G33: ='[1]II 4.2.4'!G28 -> 0 | H33: ='[1]II 4.2.4'!H28 -> 0
A34: ='[1]II 4.2.4'!B29 -> Protección al medio ambiente | B34: 0 | C34: ='[1]II 4.2.4'!C29 -> 0 | D34: ='[1]II 4.2.4'!D29 -> 0 | E34: ='[1]II 4.2.4'!E29 -> 0 | F34: ='[1]II 4.2.4'!F29 -> 0 | G34: ='[1]II 4.2.4'!G29 -> 0 | H34: ='[1]II 4.2.4'!H29 -> 0
A35: ='[1]II 4.2.4'!B30 -> Química, Termodinámica y Agroenergía | B35: 427 | C35: ='[1]II 4.2.4'!C30 -> 0 | D35: ='[1]II 4.2.4'!D30 -> 0 | E35: ='[1]II 4.2.4'!E30 -> 0 | F35: ='[1]II 4.2.4'!F30 -> 0 | G35: ='[1]II 4.2.4'!G30 -> 370 | H35: ='[1]II 4.2.4'!H30 -> 57
A36: ='[1]II 4.2.4'!B31 -> Servicios de seguridad | B36: 0 | C36: ='[1]II 4.2.4'!C31 -> 0 | D36: ='[1]II 4.2.4'!D31 -> 0 | E36: ='[1]II 4.2.4'!E31 -> 0 | F36: ='[1]II 4.2.4'!F31 -> 0 | G36: ='[1]II 4.2.4'!G31 -> 0 | H36: ='[1]II 4.2.4'!H31 -> 0
A37: ='[1]II 4.2.4'!B32 -> Servicios personales | B37: 1297 | C37: 0 | D37: 0 | E37: 180 | F37: 1117 | G37: 0 | H37: 0
A38: ='[1]II 4.2.4'!B33 -> Textil y Confección de Vestimenta | B38: 352 | C38: 0 | D38: 0 | E38: 154 | F38: 198 | G38: 0 | H38: 0
A39: ='[1]II 4.2.4'!B34 -> Turismo | B39: 1571 | C39: ='[1]II 4.2.4'!C34 -> 0 | D39: ='[1]II 4.2.4'!D34 -> 0 | E39: ='[1]II 4.2.4'!E34 -> 0 | F39: ='[1]II 4.2.4'!F34 -> 0 | G39: ='[1]II 4.2.4'!G34 -> 1521 | H39: ='[1]II 4.2.4'!H34 -> 50
A40: Fuente: D.E.- CETP (U.T.U.)
A41: Nota: Los cursos de Articulación no corresponden estrictamente a Educación Media Superior. El curso de Articulación brinda
A42: la posibilidad de adquirir el nivel educativo para ingresar a cursos terciarios dentro de la oferta educativa del CEPT.
A43: De esta manera se entiende que su inclusión en Educación Media Superior parece más apropiada que su inclusión en nivel
A44: Terciario.

Sheet II-4.2.5
A1: CONSEJO DE EDUCACIÓN SECUNDARIA | F1: ALUMNOS MATRICULADOS
A3: Cuadro Nº II-4.2.5.
A5: ALUMNOS MATRICULADOS EN EL CES EN EDUCACIÓN MEDIA SUPERIOR GENERAL POR GRADO Y FORMA DE ADMINISTRACIÓN SEGÚN DEPARTAMENTO AÑO 2011
A7: DEPARTAMENTO | C7: GRADO
C8: CUARTO | E8: QUINTO | G8: SEXTO
C9: FORMA DE ADMINISTRACIÓN
C10: Públicos | D10: Privados | E10: Públicos | F10: Privados | G10: Públicos | H10: Privados
A12: TOTAL | C12: 34570 | D12: 6837 | E12: 36001 | F12: 5394 | G12: 28604 | H12: 4711
A13: MONTEVIDEO | C13: 10585 | D13: 4640 | E13: 13343 | F13: 4114 | G13: 11080 | H13: 3781
A14: RESTO DEL PAÍS | C14: 23985 | D14: 2197 | E14: 22658 | F14: 1280 | G14: 17524 | H14: 930
A15: Artigas | C15: 1076 | D15: 0 | E15: 984 | F15: 0 | G15: 779 | H15: 0
A16: Canelones | C16: 5927 | D16: 697 | E16: 5735 | F16: 422 | G16: 4298 | H16: 316
A17: Cerro Largo | C17: 1197 | D17: 78 | E17: 1098 | F17: 28 | G17: 808 | H17: 0
A18: Colonia | C18: 1398 | D18: 11 | E18: 1389 | F18: 0 | G18: 1230 | H18: 0
A19: Durazno | C19: 681 | D19: 75 | E19: 681 | F19: 35 | G19: 548 | H19: 0
A20: Flores | C20: 303 | D20: 38 | E20: 317 | F20: 19 | G20: 262 | H20: 0
A21: Florida | C21: 828 | D21: 12 | E21: 631 | F21: 30 | G21: 589 | H21: 30
A22: Lavalleja | C22: 744 | D22: 11 | E22: 739 | F22: 32 | G22: 509 | H22: 0
A23: Maldonado | C23: 1859 | D23: 505 | E23: 1760 | F23: 471 | G23: 1307 | H23: 421
A24: Paysandú | C24: 1158 | D24: 177 | E24: 1112 | F24: 105 | G24: 871 | H24: 65
A25: Río Negro | C25: 616 | D25: 25 | E25: 631 | F25: 6 | G25: 477 | H25: 0
A26: Rivera | C26: 1536 | D26: 97 | E26: 1450 | F26: 29 | G26: 1088 | H26: 18
A27: Rocha | C27: 1019 | D27: 39 | E27: 929 | F27: 0 | G27: 640 | H27: 0
A28: Salto | C28: 1563 | D28: 140 | E28: 1521 | F28: 9 | G28: 1235 | H28: 14
A29: San José | C29: 1236 | D29: 65 | E29: 1231 | F29: 33 | G29: 856 | H29: 24
A30: Soriano | C30: 950 | D30: 57 | E30: 984 | F30: 0 | G30: 779 | H30: 0
A31: Tacuarembó | C31: 1242 | D31: 109 | E31: 893 | F31: 61 | G31: 821 | H31: 42
A32: Treinta y Tres | C32: 652 | D32: 61 | E32: 573 | F32: 0 | G32: 427 | H32: 0
A34: Fuente: DE — CES
A35: Nota: La referencia "Privados" (incluye los Habilitados "Liceo Naval" y "Liceo Militar"), se corresponde con la de "Liceos Habilitados" presente en ediciones anteriores del Anuario Estadístico del MEC

Sheet II-4.2.6
A1: CONSEJO DE EDUCACIÓN SECUNDARIA | D1: ALUMNOS MATRICULADOS | H1: CONSEJO DE EDUCACIÓN SECUNDARIA | Q1: ALUMNOS MATRICULADOS
A3: Cuadro Nº II-4.2.6
A5: ALUMNOS MATRICULADOS EN EL CES EN QUINTO GRADO DE EDUCACIÓN MEDIA POR PLAN Y ORIENTACIÓN SEGÚN GRANDES ÁREAS Y FORMA DE ADMINISTRACIÓN AÑO 2011 | H5: ALUMNOS MATRICULADOS EN EL CES EN QUINTO GRADO DE EDUCACIÓN MEDIA GENERAL POR PLAN Y ORIENTACIÓN SEGÚN GRANDES ÁREAS Y FORMA DE ADMINISTRACIÓN AÑO 2011
A6: GRANDES ÁREAS Y FORMAS DE ADMINISTRACIÓN | B6: TOTAL | C6: QUINTO GRADO DE EDUCACIÓN MEDIA GENERAL | H6: GRANDES ÁREAS Y FORMAS DE ADMINISTRACIÓN | I6: TOTAL | J6: QUINTO GRADO DE EDUCACIÓN MEDIA GENERAL
C7: ORIENTACIÓN PLAN REFORMULACIÓN 2006 | J7: ORIENTACIÓN PLAN / 76 | M7: ORIENTACIÓN PLAN 94 | S7: TOTPLANESPRIVADOS | T7: OTROS (*)
T8: BINT y/o BICUL
C9: DivHum | D9: DivBiol | E9: DivCient | F9: DivArt | J9: Hum | K9: Biol | L9: Cient | M9: 2º H | O9: 2º B | Q9: 2º C
M10: ANUAL | N10: 1ºSemestre | O10: ANUAL | P10: 1ºSemestre | Q10: ANUAL | R10: 1ºSemestre
A11: TOTAL DEL PAÍS | B11: 41395 | C11: 9067 | D11: 7951 | E11: 3434 | F11: 1626 | H11: TOTAL DEL PAÍS | I11: 19317 | J11: 1320 | K11: 778 | L11: 105 | M11: 3950 | N11: 2841 | O11: 2827 | P11: 1242 | Q11: 594 | R11: 266 | S11: 5279 | T11: 115
A12: EDUCACIÓN MEDIA SUPERIOR PÚBLICA | B12: 36001 | C12: 9067 | D12: 7951 | E12: 3434 | F12: 1626 | H12: EDUCACIÓN MEDIA SUPERIOR PÚBLICA | I12: 13923 | J12: 1320 | K12: 778 | L12: 105 | M12: 3950 | N12: 2841 | O12: 2827 | P12: 1242 | Q12: 594 | R12: 266 | S12: 0 | T12: 0
A13: Diurna | B13: 21988 | C13: 9067 | D13: 7951 | E13: 3434 | F13: 1524 | H13: Diurna | I13: 12 | J13: 0 | K13: 0 | L13: 0 | M13: 12 | N13: 0 | O13: 0 | P13: 0 | Q13: 0 | R13: 0 | S13: 0 | T13: 0
A14: Cuarto Turno | B14: 14013 | C14: 0 | D14: 0 | E14: 0 | F14: 102 | H14: Cuarto Turno | I14: 13911 | J14: 1320 | K14: 778 | L14: 105 | M14: 3938 | N14: 2841 | O14: 2827 | P14: 1242 | Q14: 594 | R14: 266 | S14: 0 | T14: 0
A15: EDUCACIÓN MEDIA SUPERIOR PRIVADA | B15: 5394 | C15: 0 | D15: 0 | E15: 0 | F15: 0 | H15: EDUCACIÓN MEDIA SUPERIOR PRIVADA | I15: 5394 | J15: 0 | K15: 0 | L15: 0 | M15: 0 | N15: 0 | O15: 0 | P15: 0 | Q15: 0 | R15: 0 | S15: 5279 | T15: 115
A16: TOTAL MONTEVIDEO | B16: 17457 | C16: 2767 | D16: 1976 | E16: 1152 | F16: 683 | H16: TOTAL MONTEVIDEO | I16: 10879 | J16: 694 | K16: 394 | L16: 88 | M16: 1393 | N16: 1839 | O16: 892 | P16: 923 | Q16: 276 | R16: 266 | S16: 4015 | T16: 99
A17: EDUCACIÓN MEDIA SUPERIOR PÚBLICA | B17: 13343 | C17: 2767 | D17: 1976 | E17: 1152 | F17: 683 | H17: EDUCACIÓN MEDIA SUPERIOR PÚBLICA | I17: 6765 | J17: 694 | K17: 394 | L17: 88 | M17: 1393 | N17: 1839 | O17: 892 | P17: 923 | Q17: 276 | R17: 266 | S17: 0 | T17: 0
A18: Diurna | B18: 6488 | C18: 2767 | D18: 1976 | E18: 1152 | F18: 581 | H18: Diurna | I18: 12 | J18: 0 | K18: 0 | L18: 0 | M18: 12 | N18: 0 | O18: 0 | P18: 0 | Q18: 0 | R18: 0 | S18: 0 | T18: 0
A19: Cuarto Turno | B19: 6855 | F19: 102 | H19: Cuarto Turno | I19: 6753 | J19: 694 | K19: 394 | L19: 88 | M19: 1381 | N19: 1839 | O19: 892 | P19: 923 | Q19: 276 | R19: 266 | S19: 0 | T19: 0
A20: EDUCACIÓN MEDIA SUPERIOR PRIVADA | B20: 4114 | H20: EDUCACIÓN MEDIA SUPERIOR PRIVADA | I20: 4114 | J20: 0 | K20: 0 | L20: 0 | S20: 4015 | T20: 99
A21: TOTAL RESTO DEL PAÍS | B21: 23938 | C21: 6300 | D21: 5975 | E21: 2282 | F21: 943 | H21: TOTAL RESTO DEL PAÍS | I21: 8438 | J21: 626 | K21: 384 | L21: 17 | M21: 2557 | N21: 1002 | O21: 1935 | P21: 319 | Q21: 318 | R21: 0 | S21: 1264 | T21: 16
A22: EDUCACIÓN MEDIA SUPERIOR PÚBLICA | B22: 22658 | C22: 6300 | D22: 5975 | E22: 2282 | F22: 943 | H22: EDUCACIÓN MEDIA SUPERIOR PÚBLICA | I22: 7158 | J22: 626 | K22: 384 | L22: 17 | M22: 2557 | N22: 1002 | O22: 1935 | P22: 319 | Q22: 318 | R22: 0 | S22: 0 | T22: 0
A23: Diurna | B23: 15500 | C23: 6300 | D23: 5975 | E23: 2282 | F23: 943 | H23: Diurna | I23: 0 | J23: 0 | K23: 0 | L23: 0 | M23: 0 | N23: 0 | O23: 0 | P23: 0 | Q23: 0 | R23: 0 | S23: 0 | T23: 0
A24: Cuarto Turno | B24: 7158 | C24: 0 | D24: 0 | E24: 0 | F24: 0 | H24: Cuarto Turno | I24: 7158 | J24: 626 | K24: 384 | L24: 17 | M24: 2557 | N24: 1002 | O24: 1935 | P24: 319 | Q24: 318 | R24: 0 | S24: 0 | T24: 0
A25: EDUCACIÓN MEDIA SUPERIOR PRIVADA | B25: 1280 | C25: 0 | D25: 0 | E25: 0 | F25: 0 | H25: EDUCACIÓN MEDIA SUPERIOR PRIVADA | I25: 1280 | J25: 0 | K25: 0 | L25: 0 | M25: 0 | N25: 0 | O25: 0 | P25: 0 | Q25: 0 | R25: 0 | S25: 1264 | T25: 16
A26: Fuente: DE — CES | H26: Fuente: DE — CES
A27: Nota: OTROS (*) Corresponde a los cursos de Bachillerato Internacional y Bachillerato Bicultural | H27: Nota: OTROS (*) Corresponde a los cursos de Bachillerato Internacional y Bachillerato Bicultural
A28: La referencia "Privada", (incluye los Habilitados "Liceo Naval" y "Liceo Militar"), | H28: La referencia "Privada", (incluye los Habilitados "Liceo Naval" y "Liceo Militar"),
A29: se corresponde con la de "Liceos Habilitados" presente en ediciones anteriores | H29: se corresponde con la de "Liceos Habilitados" presente en ediciones anteriores
A30: del Anuario Estadístico del MEC | H30: del Anuario Estadístico del MEC

Sheet II-4.2.7
A1: CONSEJO DE EDUCACIÓN SECUNDARIA | L1: ALUMNOS MATRICULADOS
A3: Cuadro Nº II-4.2.7
A5: ALUMNOS MATRICULADOS EN EL CES EN QUINTO GRADO DE EDUCACIÓN MEDIA GENERAL PÚBLICA POR PLAN Y ORIENTACIÓN SEGÚN DEPARTAMENTO AÑO 2011
A7: DEPARTAMENTO | B7: TOTAL | C7: QUINTO GRADO DE EDUCACIÓN MEDIA GENERAL
C8: ORIENTACIÓN PLANES / 76 | F8: ORIENTACIÓN PLAN / 94 | L8: ORIENTACIÓN PLAN / REFORMULACIÓN 2006
C9: Humanística | D9: Biológica | E9: Científica | F9: 2º H | H9: 2º B | J9: 2º C
F10: ANUAL | G10: 1ºSemestre | H10: ANUAL | I10: 1ºSemestre | J10: ANUAL | K10: 1ºSemestre | L10: DivHum | M10: DivBiol | N10: DivCient | O10: DivArt
A12: TOTAL | B12: 36001 | C12: 1320 | D12: 778 | E12: 105 | F12: 3950 | G12: 2841 | H12: 2827 | I12: 1242 | J12: 594 | K12: 266 | L12: 9067 | M12: 7951 | N12: 3434 | O12: 1626
A13: MONTEVIDEO | B13: 13343 | C13: 694 | D13: 394 | E13: 88 | F13: 1393 | G13: 1839 | H13: 892 | I13: 923 | J13: 276 | K13: 266 | L13: 2767 | M13: 1976 | N13: 1152 | O13: 683
A14: RESTO DEL PAÍS | B14: 22658 | C14: 626 | D14: 384 | E14: 17 | F14: 2557 | G14: 1002 | H14: 1935 | I14: 319 | J14: 318 | K14: 0 | L14: 6300 | M14: 5975 | N14: 2282 | O14: 943
A15: Artigas | B15: 984 | C15: 0 | D15: 0 | E15: 0 | F15: 93 | G15: 95 | H15: 60 | I15: 0 | J15: 0 | K15: 0 | L15: 318 | M15: 287 | N15: 95 | O15: 36
A16: Canelones | B16: 5735 | C16: 67 | D16: 28 | E16: 17 | F16: 856 | G16: 343 | H16: 648 | I16: 0 | J16: 145 | K16: 0 | L16: 1474 | M16: 1158 | N16: 700 | O16: 299
A17: Cerro Largo | B17: 1098 | C17: 142 | D17: 87 | E17: 0 | F17: 46 | G17: 0 | H17: 26 | I17: 0 | J17: 12 | K17: 0 | L17: 326 | M17: 327 | N17: 86 | O17: 46
A18: Colonia | B18: 1389 | C18: 0 | D18: 0 | E18: 0 | F18: 270 | G18: 0 | H18: 259 | I18: 0 | J18: 0 | K18: 0 | L18: 273 | M18: 338 | N18: 179 | O18: 70
A19: Durazno | B19: 681 | C19: 0 | D19: 0 | E19: 0 | F19: 113 | G19: 0 | H19: 53 | I19: 0 | J19: 0 | K19: 0 | L19: 257 | M19: 159 | N19: 77 | O19: 22
A20: Flores | B20: 317 | C20: 0 | D20: 0 | E20: 0 | F20: 66 | G20: 0 | H20: 56 | I20: 0 | J20: 0 | K20: 0 | L20: 68 | M20: 92 | N20: 28 | O20: 7
A21: Florida | B21: 631 | C21: 92 | D21: 28 | E21: 0 | F21: 14 | G21: 0 | H21: 20 | I21: 0 | J21: 0 | K21: 0 | L21: 214 | M21: 172 | N21: 70 | O21: 21
A22: Lavalleja | B22: 739 | C22: 70 | D22: 57 | E22: 0 | F22: 0 | G22: 0 | H22: 0 | I22: 0 | J22: 0 | K22: 0 | L22: 254 | M22: 286 | N22: 53 | O22: 19
A23: Maldonado | B23: 1760 | C23: 171 | D23: 113 | E23: 0 | F23: 103 | G23: 74 | H23: 43 | I23: 28 | J23: 45 | K23: 0 | L23: 476 | M23: 390 | N23: 190 | O23: 127
A24: Paysandú | B24: 1112 | C24: 0 | D24: 0 | E24: 0 | F24: 0 | G24: 152 | H24: 0 | I24: 163 | J24: 22 | K24: 0 | L24: 297 | M24: 368 | N24: 90 | O24: 20
A25: Río Negro | B25: 631 | C25: 0 | D25: 0 | E25: 0 | F25: 144 | G25: 0 | H25: 84 | I25: 0 | J25: 0 | K25: 0 | L25: 148 | M25: 184 | N25: 51 | O25: 20
A26: Rivera | B26: 1450 | C26: 0 | D26: 0 | E26: 0 | F26: 47 | G26: 173 | H26: 50 | I26: 102 | J26: 27 | K26: 0 | L26: 547 | M26: 368 | N26: 106 | O26: 30
A27: Rocha | B27: 929 | C27: 84 | D27: 71 | E27: 0 | F27: 57 | G27: 42 | H27: 23 | I27: 26 | J27: 0 | K27: 0 | L27: 234 | M27: 257 | N27: 92 | O27: 43
A28: Salto | B28: 1521 | C28: 0 | D28: 0 | E28: 0 | F28: 188 | G28: 0 | H28: 130 | I28: 0 | J28: 24 | K28: 0 | L28: 478 | M28: 537 | N28: 125 | O28: 39
A29: San José | B29: 1231 | C29: 0 | D29: 0 | E29: 0 | F29: 246 | G29: 0 | H29: 222 | I29: 0 | J29: 34 | K29: 0 | L29: 235 | M29: 305 | N29: 119 | O29: 70
A30: Soriano | B30: 984 | C30: 0 | D30: 0 | E30: 0 | F30: 89 | G30: 123 | H30: 106 | I30: 0 | J30: 9 | K30: 0 | L30: 228 | M30: 308 | N30: 97 | O30: 24
A31: Tacuarembó | B31: 893 | C31: 0 | D31: 0 | E31: 0 | F31: 124 | G31: 0 | H31: 91 | I31: 0 | J31: 0 | K31: 0 | L31: 288 | M31: 277 | N31: 80 | O31: 33
A32: Treinta y Tres | B32: 573 | C32: 0 | D32: 0 | E32: 0 | F32: 101 | G32: 0 | H32: 64 | I32: 0 | J32: 0 | K32: 0 | L32: 185 | M32: 162 | N32: 44 | O32: 17
A33: Fuente: DE — CES

Sheet II-4.2.8
A1: CONSEJO DE EDUCACIÓN SECUNDARIA | F1: ALUMNOS MATRICULADOS
A3: Cuadro Nº II-4.2.8
A7: ALUMNOS MATRICULADOS EN EL CES EN QUINTO GRADO DE EDUCACIÓN MEDIA SUPERIOR DE EDUCACIÓN SECUNDARIA PRIVADA POR ORIENTACIÓN SEGÚN DEPARTAMENTO AÑO 2011
A9: DEPARTAMENTO | B9: TOTAL | C9: QUINTO GRADO DE EDUCACIÓN MEDIA GENERAL
C10: ORIENTACIÓN Planes 76+86+93+2006 | G10: OTROS (*)
C11: Humanística | D11: Biológica | E11: Científica | F11: Artístico | G11: BINT y/o BICUL
A13: TOTAL | B13: 5394 | C13: 1878 | D13: 1318 | E13: 1693 | F13: 390 | G13: 115
A14: MONTEVIDEO | B14: 4114 | C14: 1447 | D14: 890 | E14: 1347 | F14: 331 | G14: 99
A15: RESTO DEL PAÍS | B15: 1280 | C15: 431 | D15: 428 | E15: 346 | F15: 59 | G15: 16
A16: Artigas | B16: 0 | C16: 0 | D16: 0 | E16: 0 | F16: 0 | G16: 0
A17: Canelones | B17: 422 | C17: 148 | D17: 121 | E17: 127 | F17: 26 | G17: 0
A18: Cerro Largo | B18: 28 | C18: 0 | D18: 15 | E18: 13 | F18: 0 | G18: 0
A19: Colonia | B19: 0 | C19: 0 | D19: 0 | E19: 0 | F19: 0 | G19: 0
A20: Durazno | B20: 35 | C20: 9 | D20: 14 | E20: 12 | F20: 0 | G20: 0
A21: Flores | B21: 19 | C21: 6 | D21: 9 | E21: 4 | F21: 0 | G21: 0
A22: Florida | B22: 30 | C22: 11 | D22: 9 | E22: 10 | F22: 0 | G22: 0
A23: Lavalleja | B23: 32 | C23: 15 | D23: 17 | E23: 0 | F23: 0 | G23: 0
A24: Maldonado | B24: 471 | C24: 154 | D24: 140 | E24: 128 | F24: 33 | G24: 16
A25: Paysandú | B25: 105 | C25: 44 | D25: 39 | E25: 22 | F25: 0 | G25: 0
A26: Río Negro | B26: 6 | C26: 3 | D26: 3 | E26: 0 | F26: 0 | G26: 0
A27: Rivera | B27: 29 | C27: 8 | D27: 16 | E27: 5 | F27: 0 | G27: 0
A28: Rocha | B28: 0 | C28: 0 | D28: 0 | E28: 0 | F28: 0 | G28: 0
A29: Salto | B29: 9 | C29: 0 | D29: 9 | E29: 0 | F29: 0 | G29: 0
A30: San José | B30: 33 | C30: 14 | D30: 9 | E30: 10 | F30: 0 | G30: 0
A31: Soriano | B31: 0 | C31: 0 | D31: 0 | E31: 0 | F31: 0 | G31: 0
A32: Tacuarembó | B32: 61 | C32: 19 | D32: 27 | E32: 15 | F32: 0 | G32: 0
A33: Treinta y Tres | B33: 0 | C33: 0 | D33: 0 | E33: 0 | F33: 0 | G33: 0
A34: Fuente: DE — CES
A35: Nota: Otros (*) Corresponde a los cursos de Bachillerato Internacional y
A36: Bachillerato Bicultural

Sheet II_4_2_9
A1: CONSEJO DE EDUCACIÓN SECUNDARIA | Q1: ALUMNOS MATRICULADOS | U1: CONSEJO DE EDUCACIÓN SECUNDARIA | AD1: ALUMNOS MATRICULADOS
A3: Cuadro Nº II-4.2.9 | U3: Cuadro Nº II-429 (continuación)
A5: ALUMNOS MATRICULADOS EN EL CES EN SEXTO GRADO DE BACHILLERATO POR OPCIÓN Y PLAN SEGÚN GRANDES ÁREAS Y FORMA DE ADMINISTRACIÓN AÑO 2011 | U5: ALUMNOS MATRICULADOS DE SEXTO GRADO DE BACHILLERATO POR OPCIÓN Y PLAN SEGÚN GRANDES ÁREAS Y FORMA DE ADMINISTRACIÓN AÑO 2011
A7: GRANDES ÁREAS Y FORMA DE ADMINISTRACIÓN | B7: Total todos los planes | C7: SEXTO GRADO DE EDUCACIÓN MEDIA GENERAL | U7: GRANDES ÁREAS Y FORMA DE ADMINISTRACIÓN | V7: TOTAL | W7: SEXTO GRADO
C8: O P C I Ó N P L A N E S / 76 | I8: O P C I Ó N P L A N / 94 | W8: O P C I Ó N P L A N / R E F O R M U L A C I Ó N 2006 | AE8: OTROS (*)
C9: Derecho | D9: Economía | E9: Agronomía | F9: Medicina | G9: Arquitectura | H9: Ingeniería | I9: 3º DER | K9: 3º ECO | M9: 3º AGR | O9: 3º MED | P9: 3º ARQ | R9: 3º ING
W10: SH | X10: SE | Y10: CA | Z10: CB | AA10: FM | AB10: MD | AC10: AE | AD10: TotPlanes Privados | AE10: BINT y/o BICUL
I11: ANUAL | J11: 1ºSemestre | K11: ANUAL | L11: 1ºSemestre | M11: ANUAL | N11: 1ºSemestre | O11: ANUAL | P11: ANUAL | Q11: 1ºSemestre | R11: ANUAL | S11: 1ºSemestre
A12: TOTAL | B12: 33315 | C12: 903 | D12: 85 | E12: 19 | F12: 600 | G12: 30 | H12: 94 | I12: 3148 | J12: 1650 | K12: 377 | L12: 138 | M12: 131 | N12: 0 | O12: 2624 | P12: 165 | Q12: 109 | R12: 527 | S12: 140 | U12: TOTAL | V12: 21758 | W12: 5834 | X12: 1882 | Y12: 624 | Z12: 5263 | AA12: 1815 | AB12: 737 | AC12: 892 | AD12: 4611 | AE12: 100
A13: EDUCACIÓN MEDIA SUPERIOR PÚBLICA | B13: 28604 | C13: 903 | D13: 85 | E13: 19 | F13: 600 | G13: 30 | H13: 94 | I13: 3148 | J13: 1650 | K13: 377 | L13: 138 | M13: 131 | N13: 0 | O13: 2624 | P13: 165 | Q13: 109 | R13: 527 | S13: 140 | U13: EDUCACIÓN MEDIA SUPERIOR PÚBLICA | V13: 17047 | W13: 5834 | X13: 1882 | Y13: 624 | Z13: 5263 | AA13: 1815 | AB13: 737 | AC13: 892 | AD13: 0 | AE13: 0
A14: Diurna | B14: 17019 | C14: 0 | D14: 0 | E14: 0 | F14: 0 | G14: 0 | H14: 0 | I14: 8 | J14: 0 | K14: 0 | L14: 0 | M14: 0 | N14: 0 | O14: 0 | P14: 0 | Q14: 0 | R14: 0 | S14: 0 | U14: Diurna | V14: 17011 | W14: 5834 | X14: 1882 | Y14: 624 | Z14: 5263 | AA14: 1815 | AB14: 737 | AC14: 856 | AD14: 0 | AE14: 0
A15: Cuarto Turno | B15: 11585 | C15: 903 | D15: 85 | E15: 19 | F15: 600 | G15: 30 | H15: 94 | I15: 3140 | J15: 1650 | K15: 377 | L15: 138 | M15: 131 | N15: 0 | O15: 2624 | P15: 165 | Q15: 109 | R15: 527 | S15: 140 | U15: Cuarto Turno | V15: 36 | W15: 0 | X15: 0 | Y15: 0 | Z15: 0 | AA15: 0 | AB15: 0 | AC15: 36 | AD15: 0 | AE15: 0
A16: EDUCACIÓN MEDIA SUPERIOR PRIVADA | B16: 4711 | C16: 0 | D16: 0 | E16: 0 | F16: 0 | G16: 0 | H16: 0 | I16: 0 | J16: 0 | K16: 0 | L16: 0 | M16: 0 | N16: 0 | O16: 0 | P16: 0 | Q16: 0 | R16: 0 | S16: 0 | U16: EDUCACIÓN MEDIA SUPERIOR PRIVADA | V16: 4711 | W16: 0 | X16: 0 | Y16: 0 | Z16: 0 | AA16: 0 | AB16: 0 | AC16: 0 | AD16: 4611 | AE16: 100
A17: TOTAL MONTEVIDEO | B17: 14861 | C17: 485 | D17: 61 | E17: 19 | F17: 320 | G17: 30 | H17: 77 | I17: 873 | J17: 1315 | K17: 237 | L17: 138 | M17: 35 | N17: 0 | O17: 884 | P17: 121 | Q17: 109 | R17: 311 | S17: 140 | U17: TOTAL MONTEVIDEO | V17: 8995 | W17: 1705 | X17: 716 | Y17: 91 | Z17: 1453 | AA17: 611 | AB17: 257 | AC17: 381 | AD17: 3692 | AE17: 89
A18: EDUCACIÓN MEDIA SUPERIOR PÚBLICA | B18: 11080 | C18: 485 | D18: 61 | E18: 19 | F18: 320 | G18: 30 | H18: 77 | I18: 873 | J18: 1315 | K18: 237 | L18: 138 | M18: 35 | N18: 0 | O18: 884 | P18: 121 | Q18: 109 | R18: 311 | S18: 140 | U18: EDUCACIÓN MEDIA SUPERIOR PÚBLICA | V18: 5214 | W18: 1705 | X18: 716 | Y18: 91 | Z18: 1453 | AA18: 611 | AB18: 257 | AC18: 381 | AD18: 0 | AE18: 0
A19: Diurna | B19: 5186 | C19: 0 | D19: 0 | E19: 0 | F19: 0 | G19: 0 | H19: 0 | I19: 8 | J19: 0 | K19: 0 | L19: 0 | M19: 0 | N19: 0 | O19: 0 | P19: 0 | Q19: 0 | R19: 0 | S19: 0 | U19: Diurna | V19: 5178 | W19: 1705 | X19: 716 | Y19: 91 | Z19: 1453 | AA19: 611 | AB19: 257 | AC19: 345 | AD19: 0 | AE19: 0
A20: Cuarto Turno | B20: 5894 | C20: 485 | D20: 61 | E20: 19 | F20: 320 | G20: 30 | H20: 77 | I20: 865 | J20: 1315 | K20: 237 | L20: 138 | M20: 35 | N20: 0 | O20: 884 | P20: 121 | Q20: 109 | R20: 311 | S20: 140 | U20: Cuarto Turno | V20: 36 | W20: 0 | X20: 0 | Y20: 0 | Z20: 0 | AA20: 0 | AB20: 0 | AC20: 36 | AD20: 0 | AE20: 0
A21: EDUCACIÓN MEDIA SUPERIOR PRIVADA | B21: 3781 | C21: 0 | D21: 0 | E21: 0 | F21: 0 | G21: 0 | H21: 0 | I21: 0 | J21: 0 | K21: 0 | L21: 0 | M21: 0 | N21: 0 | O21: 0 | P21: 0 | Q21: 0 | R21: 0 | S21: 0 | U21: EDUCACIÓN MEDIA SUPERIOR PRIVADA | V21: 3781 | W21: 0 | X21: 0 | Y21: 0 | Z21: 0 | AA21: 0 | AB21: 0 | AC21: 0 | AD21: 3692 | AE21: 89
A22: RESTO DEL PAÍS | B22: 18454 | C22: 418 | D22: 24 | E22: 0 | F22: 280 | G22: 0 | H22: 17 | I22: 2275 | J22: 335 | K22: 140 | L22: 0 | M22: 96 | N22: 0 | O22: 1740 | P22: 44 | Q22: 0 | R22: 216 | S22: 0 | U22: RESTO DEL PAÍS | V22: 12763 | W22: 4129 | X22: 1166 | Y22: 533 | Z22: 3810 | AA22: 1204 | AB22: 480 | AC22: 511 | AD22: 919 | AE22: 11
A23: EDUCACIÓN MEDIA SUPERIOR PÚBLICA | B23: 17524 | C23: 418 | D23: 24 | E23: 0 | F23: 280 | G23: 0 | H23: 17 | I23: 2275 | J23: 335 | K23: 140 | L23: 0 | M23: 96 | N23: 0 | O23: 1740 | P23: 44 | Q23: 0 | R23: 216 | S23: 0 | U23: EDUCACIÓN MEDIA SUPERIOR PÚBLICA | V23: 11833 | W23: 4129 | X23: 1166 | Y23: 533 | Z23: 3810 | AA23: 1204 | AB23: 480 | AC23: 511 | AD23: 0 | AE23: 0
A24: Diurna | B24: 11833 | C24: 0 | D24: 0 | E24: 0 | F24: 0 | G24: 0 | H24: 0 | I24: 0 | J24: 0 | K24: 0 | L24: 0 | M24: 0 | N24: 0 | O24: 0 | P24: 0 | Q24: 0 | R24: 0 | S24: 0 | U24: Diurna | V24: 11833 | W24: 4129 | X24: 1166 | Y24: 533 | Z24: 3810 | AA24: 1204 | AB24: 480 | AC24: 511 | AD24: 0 | AE24: 0
A25: Cuaro Turno | B25: 5691 | C25: 418 | D25: 24 | E25: 0 | F25: 280 | G25: 0 | H25: 17 | I25: 2275 | J25: 335 | K25: 140 | L25: 0 | M25: 96 | N25: 0 | O25: 1740 | P25: 44 | Q25: 0 | R25: 216 | S25: 0 | U25: Cuarto Turno | V25: 0 | W25: 0 | X25: 0 | Y25: 0 | Z25: 0 | AA25: 0 | AB25: 0 | AC25: 0 | AD25: 0 | AE25: 0
A26: EDUCACIÓN MEDIA SUPERIOR PRIVADA | B26: 930 | C26: 0 | D26: 0 | E26: 0 | F26: 0 | G26: 0 | H26: 0 | I26: 0 | J26: 0 | K26: 0 | L26: 0 | M26: 0 | N26: 0 | O26: 0 | P26: 0 | Q26: 0 | R26: 0 | S26: 0 | U26: EDUCACIÓN MEDIA SUPERIOR PRIVADA | V26: 930 | X26: 0 | Y26: 0 | Z26: 0 | AA26: 0 | AB26: 0 | AC26: 0 | AD26: 919 | AE26: 11
A28: Fuente: DE — CES | U28: Fuente: DE — CES | Y28: 0
A29: Nota: La referencia "Privada" (incluye los Habilitados "Liceo Naval" y "Liceo Militar"), se corresponde con la de "Liceos Habilitados" | U29: Nota: OTROS (*) Corresponde a los cursos de Bachillerato Internacional y Bachillerato Bicultural
A30: presente en ediciones anteriores del Anuario Estadístico del MEC | U30: La referencia "Privada" (incluye los Habilitados "Liceo Naval" y "Liceo Militar"), se corresponde con la de "Liceos Habilitados"
U31: presente en ediciones anteriores del Anuario Estadístico del MEC

Sheet II_4_2_10
A1: CONSEJO DE EDUCACIÓN SECUNDARIA | H1: ALUMNOS MATRICULADOS | W1: CONSEJO DE EDUCACIÓN SECUNDARIA | AB1: ALUMNOS MATRICULADOS
A3: Cuadro Nº II-4.2.10 | W3: Cuadro Nº II-4210 (continuación)
A5: ALUMNOS MATRICULADOS EN EL CES EN SEXTO GRADO DE EDUCACIÓN MEDIA GENERAL PÚBLICA POR PLAN Y OPCIÓN SEGÚN DEPARTAMENTO AÑO 2011 | W5: ALUMNOS MATRICULADOS EN EL CES EN SEXTO GRADO DE EDUCACIÓN MEDIA PÚBLICA POR PLAN Y OPCIÓN SEGÚN DEPARTAMENTO AÑO 2011
W6: DEPARTAMENTO | X6: Total | Y6: SEXTO GRADO
A7: DEPARTAMENTO | B7: TOTAL | C7: O P C I Ó N P L A N /76 | I7: O P C I Ó N P L A N / 94 | Y7: O P C I Ó N P L A N / R E F O R M U L A C I Ó N 2006
C9: Derecho | D9: Economía | E9: Agronomía | F9: Medicina | G9: Arquitectura | H9: Ingeniería | I9: 3º DER | K9: 3º ECO | M9: 3º AGR | O9: 3º MED | Q9: 3º ARQ | S9: 3º ING | Y9: SH | Z9: SE | AA9: CA | AB9: CB | AC9: FM | AD9: MD | AE9: AE
I10: ANUAL | J10: 1ºSemestre | K10: ANUAL | L10: 1ºSemestre | M10: ANUAL | N10: 1ºSemestre | O10: ANUAL | P10: 1ºSemestre | Q10: ANUAL | R10: 1ºSemestre | S10: ANUAL | T10: 1ºSemestre
A12: TOTAL | B12: 28604 | C12: 903 | D12: 85 | E12: 19 | F12: 600 | G12: 30 | H12: 94 | I12: 3148 | J12: 1650 | K12: 377 | L12: 138 | M12: 131 | N12: 0 | O12: 2624 | P12: 817 | Q12: 165 | R12: 109 | S12: 527 | T12: 140 | W12: TOTAL | X12: =+Y12+Z12+AA12+AB12+AC12+AD12+AE12 -> 17047 | Y12: 5834 | Z12: 1882 | AA12: 624 | AB12: 5263 | AC12: 1815 | AD12: 737 | AE12: 892
A13: MONTEVIDEO | B13: 11080 | C13: 485 | D13: 61 | E13: 19 | F13: 320 | G13: 30 | H13: 77 | I13: 873 | J13: 1315 | K13: 237 | L13: 138 | M13: 35 | N13: 0 | O13: 884 | P13: 711 | Q13: 121 | R13: 109 | S13: 311 | T13: 140 | W13: MONTEVIDEO | X13: =+Y13+Z13+AA13+AB13+AC13+AD13+AE13 -> 5214 | Y13: 1705 | Z13: 716 | AA13: 91 | AB13: 1453 | AC13: 611 | AD13: 257 | AE13: 381
A14: RESTO DEL PAÍS | B14: 17524 | C14: 418 | D14: 24 | E14: 0 | F14: 280 | G14: 0 | H14: 17 | I14: 2275 | J14: 335 | K14: 140 | L14: 0 | M14: 96 | N14: 0 | O14: 1740 | P14: 106 | Q14: 44 | R14: 0 | S14: 216 | T14: 0 | W14: RESTO DEL PAÍS | X14: 11833 | Y14: 4129 | Z14: 1166 | AA14: 533 | AB14: 3810 | AC14: 1204 | AD14: 480 | AE14: 511
A15: Artigas | B15: 779 | C15: 0 | D15: 0 | E15: 0 | F15: 0 | G15: 0 | H15: 0 | I15: 58 | J15: 87 | K15: 0 | L15: 0 | M15: 0 | N15: 0 | O15: 87 | P15: 0 | Q15: 0 | R15: 0 | S15: 0 | T15: 0 | W15: Artigas | X15: 547 | Y15: 215 | Z15: 40 | AA15: 0 | AB15: 204 | AC15: 62 | AD15: 14 | AE15: 12
A16: Canelones | B16: 4298 | C16: 57 | D16: 0 | E16: 0 | F16: 11 | G16: 0 | H16: 17 | I16: 780 | J16: 54 | K16: 82 | L16: 0 | M16: 28 | N16: 0 | O16: 456 | P16: 0 | Q16: 20 | R16: 0 | S16: 97 | T16: 0 | W16: Canelones | X16: 2696 | Y16: 910 | Z16: 337 | AA16: 94 | AB16: 745 | AC16: 343 | AD16: 132 | AE16: 135
A17: Cerro Largo | B17: 808 | C17: 102 | D17: 0 | E17: 0 | F17: 82 | G17: 0 | H17: 0 | I17: 36 | J17: 0 | K17: 0 | L17: 0 | M17: 0 | N17: 0 | O17: 17 | P17: 0 | Q17: 0 | R17: 0 | S17: 11 | T17: 0 | W17: Cerro Largo | X17: 560 | Y17: 195 | Z17: 45 | AA17: 43 | AB17: 187 | AC17: 47 | AD17: 20 | AE17: 23
A18: Colonia | B18: 1230 | C18: 0 | D18: 0 | E18: 0 | F18: 0 | G18: 0 | H18: 0 | I18: 254 | J18: 0 | K18: 10 | L18: 0 | M18: 0 | N18: 0 | O18: 220 | P18: 0 | Q18: 0 | R18: 0 | S18: 0 | T18: 0 | W18: Colonia | X18: 746 | Y18: 184 | Z18: 110 | AA18: 57 | AB18: 206 | AC18: 93 | AD18: 52 | AE18: 44
A19: Durazno | B19: 548 | C19: 0 | D19: 0 | E19: 0 | F19: 0 | G19: 0 | H19: 0 | I19: 99 | J19: 0 | K19: 0 | L19: 0 | M19: 0 | N19: 0 | O19: 72 | P19: 0 | Q19: 0 | R19: 0 | S19: 0 | T19: 0 | W19: Durazno | X19: 377 | Y19: 150 | Z19: 44 | AA19: 19 | AB19: 108 | AC19: 36 | AD19: 7 | AE19: 13
A20: Flores | B20: 262 | C20: 0 | D20: 0 | E20: 0 | F20: 0 | G20: 0 | H20: 0 | I20: 41 | J20: 0 | K20: 0 | L20: 0 | M20: 0 | N20: 0 | O20: 47 | P20: 0 | Q20: 0 | R20: 0 | S20: 0 | T20: 0 | W20: Flores | X20: 174 | Y20: 49 | Z20: 11 | AA20: 10 | AB20: 66 | AC20: 26 | AD20: 6 | AE20: 6
A21: Florida | B21: 589 | C21: 68 | D21: 0 | E21: 0 | F21: 51 | G21: 0 | H21: 0 | I21: 40 | J21: 0 | K21: 0 | L21: 0 | M21: 0 | N21: 0 | O21: 32 | P21: 0 | Q21: 0 | R21: 0 | S21: 0 | T21: 0 | W21: Florida | X21: 398 | Y21: 162 | Z21: 24 | AA21: 5 | AB21: 132 | AC21: 46 | AD21: 20 | AE21: 9
A22: Lavalleja | B22: 509 | C22: 50 | D22: 0 | E22: 0 | F22: 17 | G22: 0 | H22: 0 | I22: 0 | J22: 0 | K22: 0 | L22: 0 | M22: 0 | N22: 0 | O22: 0 | P22: 0 | Q22: 0 | R22: 0 | S22: 0 | T22: 0 | W22: Lavalleja | X22: 442 | Y22: 184 | Z22: 41 | AA22: 10 | AB22: 160 | AC22: 27 | AD22: 10 | AE22: 10
A23: Maldonado | B23: 1307 | C23: 99 | D23: 24 | E23: 0 | F23: 79 | G23: 0 | H23: 0 | I23: 106 | J23: 0 | K23: 14 | L23: 0 | M23: 0 | N23: 0 | O23: 70 | P23: 0 | Q23: 14 | R23: 0 | S23: 13 | T23: 0 | W23: Maldonado | X23: 888 | Y23: 313 | Z23: 86 | AA23: 22 | AB23: 250 | AC23: 87 | AD23: 62 | AE23: 68
A24: Paysandú | B24: 871 | C24: 0 | D24: 0 | E24: 0 | F24: 0 | G24: 0 | H24: 0 | I24: 0 | J24: 86 | K24: 13 | L24: 0 | M24: 22 | N24: 0 | O24: 112 | P24: 0 | Q24: 0 | R24: 0 | S24: 22 | T24: 0 | W24: Paysandú | X24: 616 | Y24: 217 | Z24: 55 | AA24: 37 | AB24: 231 | AC24: 33 | AD24: 22 | AE24: 21
A25: Río Negro | B25: 477 | C25: 0 | D25: 0 | E25: 0 | F25: 0 | G25: 0 | H25: 0 | I25: 115 | J25: 0 | K25: 5 | L25: 0 | M25: 16 | N25: 0 | O25: 58 | P25: 0 | Q25: 0 | R25: 0 | S25: 0 | T25: 0 | W25: Río Negro | X25: 283 | Y25: 98 | Z25: 14 | AA25: 14 | AB25: 98 | AC25: 36 | AD25: 8 | AE25: 15
A26: Rivera | B26: 1088 | C26: 0 | D26: 0 | E26: 0 | F26: 0 | G26: 0 | H26: 0 | I26: 44 | J26: 108 | K26: 0 | L26: 0 | M26: 0 | N26: 0 | O26: 0 | P26: 106 | Q26: 0 | R26: 0 | S26: 34 | T26: 0 | W26: Rivera | X26: 796 | Y26: 321 | Z26: 67 | AA26: 52 | AB26: 238 | AC26: 75 | AD26: 11 | AE26: 32
A27: Rocha | B27: 640 | C27: 42 | D27: 0 | E27: 0 | F27: 40 | G27: 0 | H27: 0 | I27: 28 | J27: 0 | K27: 0 | L27: 0 | M27: 0 | N27: 0 | O27: 35 | P27: 0 | Q27: 0 | R27: 0 | S27: 0 | T27: 0 | W27: Rocha | X27: 495 | Y27: 170 | Z27: 43 | AA27: 27 | AB27: 180 | AC27: 35 | AD27: 22 | AE27: 18
A28: Salto | B28: 1235 | C28: 0 | D28: 0 | E28: 0 | F28: 0 | G28: 0 | H28: 0 | I28: 146 | J28: 0 | K28: 0 | L28: 0 | M28: 18 | N28: 0 | O28: 148 | P28: 0 | Q28: 10 | R28: 0 | S28: 30 | T28: 0 | W28: Salto | X28: 883 | Y28: 307 | Z28: 73 | AA28: 28 | AB28: 365 | AC28: 64 | AD28: 25 | AE28: 21
A29: San José | B29: 856 | C29: 0 | D29: 0 | E29: 0 | F29: 0 | G29: 0 | H29: 0 | I29: 164 | J29: 0 | K29: 0 | L29: 0 | M29: 0 | N29: 0 | O29: 169 | P29: 0 | Q29: 0 | R29: 0 | S29: 0 | T29: 0 | W29: San José | X29: 523 | Y29: 152 | Z29: 59 | AA29: 18 | AB29: 191 | AC29: 65 | AD29: 18 | AE29: 20
A30: Soriano | B30: 779 | C30: 0 | D30: 0 | E30: 0 | F30: 0 | G30: 0 | H30: 0 | I30: 167 | J30: 0 | K30: 16 | L30: 0 | M30: 7 | N30: 0 | O30: 87 | P30: 0 | Q30: 0 | R30: 0 | S30: 9 | T30: 0 | W30: Soriano | X30: 493 | Y30: 148 | Z30: 52 | AA30: 39 | AB30: 158 | AC30: 43 | AD30: 25 | AE30: 28
A31: Tacuarembó | B31: 821 | C31: 0 | D31: 0 | E31: 0 | F31: 0 | G31: 0 | H31: 0 | I31: 111 | J31: 0 | K31: 0 | L31: 0 | M31: 5 | N31: 0 | O31: 79 | P31: 0 | Q31: 0 | R31: 0 | S31: 0 | T31: 0 | W31: Tacuarembó | X31: 626 | Y31: 236 | Z31: 56 | AA31: 31 | AB31: 198 | AC31: 61 | AD31: 18 | AE31: 26
A32: Treinta y Tres | B32: 427 | C32: 0 | D32: 0 | E32: 0 | F32: 0 | G32: 0 | H32: 0 | I32: 86 | J32: 0 | K32: 0 | L32: 0 | M32: 0 | N32: 0 | O32: 51 | P32: 0 | Q32: 0 | R32: 0 | S32: 0 | T32: 0 | W32: Treinta y Tres | X32: 290 | Y32: 118 | Z32: 9 | AA32: 27 | AB32: 93 | AC32: 25 | AD32: 8 | AE32: 10
A33: Fuente: DE — CES | W33: Fuente: DE — CES

Sheet II-4.2.11
A1: CONSEJO DE EDUCACIÓN SECUNDARIA | E1: ALUMNOS MATRICULADOS
A3: Cuadro Nº II-4.2.11
A5: ALUMNOS MATRICULADOS EN EL CES EN SEXTO GRADO DE EDUCACIÓN MEDIA GENERAL PRIVADA POR OPCIÓN SEGÚN DEPARTAMENTO. AÑO 2011
A6: DEPARTAMENTO | B6: TOTAL | C6: TODOS LOS PLANES OPCIÓN SEXTO GRADO | J6: Otros (*)
C7: Social Humanístico | D7: Social Economía | E7: Ciencias Agrarias | F7: Ciencias Biológicas | G7: Física Matemática | H7: Matemática Diseño | I7: Arte y Expresión | J7: B.INT.y/o BICUL.
A8: TOTAL | B8: 4711 | C8: 1114 | D8: 908 | E8: 153 | F8: 920 | G8: 742 | H8: 492 | I8: 282 | J8: 100
A9: MONTEVIDEO | B9: 3781 | C9: 875 | D9: 789 | E9: 95 | F9: 679 | G9: 618 | H9: 388 | I9: 248 | J9: 89
A10: RESTO DEL PAÍS | B10: 930 | C10: 239 | D10: 119 | E10: 58 | F10: 241 | G10: 124 | H10: 104 | I10: 34 | J10: 11
A11: Artigas | B11: 0 | C11: 0 | D11: 0 | E11: 0 | F11: 0 | G11: 0 | H11: 0 | I11: 0 | J11: 0
A12: Canelones | B12: 316 | C12: 82 | D12: 46 | E12: 18 | F12: 87 | G12: 56 | H12: 15 | I12: 12 | J12: 0
A13: Cerro Largo | B13: 0 | C13: 0 | D13: 0 | E13: 0 | F13: 0 | G13: 0 | H13: 0 | I13: 0 | J13: 0
A14: Colonia | B14: 0 | C14: 0 | D14: 0 | E14: 0 | F14: 0 | G14: 0 | H14: 0 | I14: 0 | J14: 0
A15: Durazno | B15: 0 | C15: 0 | D15: 0 | E15: 0 | F15: 0 | G15: 0 | H15: 0 | I15: 0 | J15: 0
A16: Flores | B16: 0 | C16: 0 | D16: 0 | E16: 0 | F16: 0 | G16: 0 | H16: 0 | I16: 0 | J16: 0
A17: Florida | B17: 30 | C17: 10 | D17: 0 | E17: 0 | F17: 9 | G17: 0 | H17: 11 | I17: 0 | J17: 0
A18: Lavalleja | B18: 0 | C18: 0 | D18: 0 | E18: 0 | F18: 0 | G18: 0 | H18: 0 | I18: 0 | J18: 0
A19: Maldonado | B19: 421 | C19: 124 | D19: 50 | E19: 8 | F19: 94 | G19: 54 | H19: 58 | I19: 22 | J19: 11
A20: Paysandú | B20: 65 | C20: 12 | D20: 12 | E20: 10 | F20: 13 | G20: 11 | H20: 7 | I20: 0 | J20: 0
A21: Río Negro | B21: 0 | C21: 0 | D21: 0 | E21: 0 | F21: 0 | G21: 0 | H21: 0 | I21: 0 | J21: 0
A22: Rivera | B22: 18 | C22: 0 | D22: 0 | E22: 9 | F22: 9 | G22: 0 | H22: 0 | I22: 0 | J22: 0
A23: Rocha | B23: 0 | C23: 0 | D23: 0 | E23: 0 | F23: 0 | G23: 0 | H23: 0 | I23: 0 | J23: 0
A24: Salto | B24: 14 | C24: 0 | D24: 0 | E24: 0 | F24: 14 | G24: 0 | H24: 0 | I24: 0 | J24: 0
A25: San José | B25: 24 | C25: 0 | D25: 0 | E25: 5 | F25: 10 | G25: 0 | H25: 9 | I25: 0 | J25: 0
A26: Soriano | B26: 0 | C26: 0 | D26: 0 | E26: 0 | F26: 0 | G26: 0 | H26: 0 | I26: 0 | J26: 0
A27: Tacuarembó | B27: 42 | C27: 11 | D27: 11 | E27: 8 | F27: 5 | G27: 3 | H27: 4 | I27: 0 | J27: 0
A28: Treinta y Tres | B28: 0 | C28: 0 | D28: 0 | E28: 0 | F28: 0 | G28: 0 | H28: 0 | I28: 0 | J28: 0
A30: Fuente D.E - CES
A31: Nota: Otros (*) Corresponde a los cursosa de Bachillerato Internacional y Bachillerato Bicultural.

Sheet II-4.3.1
A1: CONSEJO DE EDUCACIÓN SECUNDARIA | F1: PERSONAL DOCENTE
A3: Cuadro Nº II-431
A5: PERSONAL DOCENTE Y HORAS DOCENTES DEL CES EN EDUCACIÓN MEDIA SUPERIOR GENERAL PÚBLICA POR CONDICÓN DE TITULACIÓN AÑO 2011
A7: ASIGNATURAS | B7: TOTAL DOCENTES | C7: PERSONAL DOCENTE | E7: TOTAL HORAS | F7: HORAS DOCENTES
C8: Titulados | D8: No Titulados | F8: Titulados | G8: No Titulados
A9: TOTAL | B9: =SUM(C9:D9) -> 7214 | C9: =SUM(C10:C46) -> 4726 | D9: =SUM(D10:D46) -> 2488 | E9: =SUM(F9:G9) -> 87131 | F9: =SUM(F10:F46) -> 60426 | G9: =SUM(G10:G46) -> 26705
A10: ASTRONOMIA | B10: =+C10+D10 -> 28 | C10: 6 | D10: 22 | E10: =+F10+G10 -> 208 | F10: 77 | G10: 131
A11: BIOLOGIA | B11: =+C11+D11 -> 608 | C11: 514 | D11: 94 | E11: =+F11+G11 -> 7277 | F11: 6171 | G11: 1106
A12: CONTABILIDAD | B12: 159 | C12: 18 | D12: 141 | E12: 1269 | F12: 138 | G12: 1131
A13: DIBUJO | B13: 333 | C13: 173 | D13: 160 | E13: 2967 | F13: 1831 | G13: 1136
A14: EDUCACION FISICA | B14: 174 | C14: 150 | D14: 24 | E14: 1325 | F14: 1184 | G14: 141
A15: EDUCACION MUSICAL | B15: 63 | C15: 23 | D15: 40 | E15: 535 | F15: 205 | G15: 330
A16: ED Y CIVICA -DERECHO- | B16: 611 | C16: 515 | D16: 96 | E16: 7021 | F16: 6121 | G16: 900
A17: FILOSOFIA | B17: 533 | C17: 381 | D17: 152 | E17: 6332 | F17: 5024 | G17: 1308
A18: FISICA | B18: 489 | C18: 296 | D18: 193 | E18: 7539 | F18: 4785 | G18: 2754
A19: FRANCES | B19: 7 | C19: 6 | D19: 1 | E19: 123 | F19: 103 | G19: 20
A20: GEOGRAFIA | B20: 199 | C20: 158 | D20: 41 | E20: 1539 | F20: 1238 | G20: 301
A21: HISTORIA | B21: 608 | C21: 540 | D21: 68 | E21: 7150 | F21: 6437 | G21: 713
A22: IDIOMA ESPAÑOL | B22: 14 | C22: 9 | D22: 5 | E22: 220 | F22: 153 | G22: 67
A23: INGLES | B23: 532 | C23: 200 | D23: 332 | E23: 6632 | F23: 3016 | G23: 3616
A24: ITALIANO | B24: 75 | C24: 21 | D24: 54 | E24: 846 | F24: 274 | G24: 572
A25: LITERATURA | B25: 583 | C25: 485 | D25: 98 | E25: 6857 | F25: 5954 | G25: 903
A26: FISICO - QUIMICA | B26: 11 | C26: 5 | D26: 6 | E26: 142 | F26: 76 | G26: 66
A27: MATEMATICA | B27: 1007 | C27: 496 | D27: 511 | E27: 17026 | F27: 9601 | G27: 7425
A28: QUIMICA | B28: 488 | C28: 352 | D28: 136 | E28: 7562 | F28: 5722 | G28: 1840
A29: RECNATURY PAISAJE AGRARIA | B29: 44 | C29: 31 | D29: 13 | E29: 118 | F29: 68 | G29: 50
A30: GEOLOGIA | B30: 14 | C30: 5 | D30: 9 | E30: 64 | F30: 30 | G30: 34
A31: DIRECTOR DE COROS | B31: 16 | C31: 8 | D31: 8 | E31: 132 | F31: 58 | G31: 74
A32: PIANISTA ACOMPA･ANTE | B32: 12 | C32: 2 | D32: 10 | E32: 82 | F32: 12 | G32: 70
A33: INFORMATICA | B33: 85 | C33: 27 | D33: 58 | E33: 872 | F33: 356 | G33: 516
A34: LENGCOMUY MEDIOS AUDIOVISUAL | B34: 32 | C34: 12 | D34: 20 | E34: 160 | F34: 42 | G34: 118
A35: ESTUDIOS ECONOMICOS Y SOCIALES | B35: 215 | C35: 184 | D35: 31 | E35: 1306 | F35: 1124 | G35: 182
A36: LABORATORIO INFORMATICA EDUCAT | B36: 18 | C36: 7 | D36: 11 | E36: 179 | F36: 61 | G36: 118
A37: MANUALIDADES | B37: 0 | C37: 0 | D37: 0 | E37: 0 | F37: 0 | G37: 0
A38: LENGUA ALEMAN | B38: 0 | C38: 0 | D38: 0 | E38: 0 | F38: 0 | G38: 0
A39: TEATRO | B39: 34 | C39: 9 | D39: 25 | E39: 211 | F39: 48 | G39: 163
A40: LENGUAS PORTUGUES | B40: 5 | C40: 1 | D40: 4 | E40: 65 | F40: 10 | G40: 55
A41: EXPRESION CORPORAL Y TEATRO | B41: 46 | C41: 13 | D41: 33 | E41: 219 | F41: 59 | G41: 160
A42: EXPRESION CORPORAL Y DANZA | B42: 28 | C42: 3 | D42: 25 | E42: 192 | F42: 16 | G42: 176
A43: ACTADAPTADAS AL MEDIO AMBIENT | B43: 2 | C43: 0 | D43: 2 | E43: 15 | F43: 0 | G43: 15
A44: ECONOMIA | B44: 132 | C44: 76 | D44: 56 | E44: 854 | F44: 432 | G44: 422
A45: ESPACIO CURRICULAR ABIERTO | B45: 8 | C45: 0 | D45: 8 | E45: 64 | F45: 0 | G45: 64
A46: LENGUA DE SE･AS | B46: 1 | C46: 0 | D46: 1 | E46: 28 | F46: 0 | G46: 28
A47: Fuente: Departamento de Computación - División Hacienda — CES
A48: Nota: Los docentes que dictan más de una asignatura son considerados como personas distintas en cada asignatura

Sheet II-4.3.2
A1: CONSEJO DE EDUCACIÓN TÉCNICO PROFESIONAL (U.T.U.) | C1: PERSONAL DOCENTE
A3: Cuadro Nº II-4.3.2
A5: PERSONAL DOCENTE DEL CETP EN EDUCACIÓN MEDIA SUPERIOR TECNOLÓGICA POR TIPO DE CURSO. AÑO 2011.
A6: EDUCACIÓN MEDIA SUPERIOR TECNOLÓGICA | B6: TOTAL
A8: TOTAL | B8: =SUM(B9:B14) -> 6814
A9: Bachillerato Figari | B9: 88
A10: Bachillerato Profesional | B10: 737
A11: Educación Media Profesional | B11: 2517
A12: Educación Media Tecnológica | B12: 3267
A13: Curso de Articulación | B13: 116
A14: Curso Técnico | B14: 89
A15: Fuente: U.T.U. División Informática.
A16: Los cursos EMP Especialización, fueron reubicados en el Nivel Superior de Formación Profesional.

Sheet II-4.4.1
A1: CONSEJO DE EDUCACIÓN SECUNDARIA | C1: GRUPOS
A3: Cuadro Nº II-4.4.1
A5: GRUPOS DE EDUCACIÓN MEDIA SUPERIOR GENERAL COMPARADOS CON EL TOTAL DE AMBOS CICLOS SEGÚN GRANDES ÁREAS Y FORMA DE ADMINISTRACIÓN AÑO 2011
B6: FORMA DE ADMINISTRACIÓN
B7: Grupos en Educación Media Superior General | C7: Total de Grupos en Educación Media Superior General
A8: TOTAL DEL PAÍS | B8: 4230 | C8: 9532
A9: EDUCACIÓN MEDIA SUPERIOR PÚBLICA | B9: 3067 | C9: 7332
A10: Diurna | B10: 2451 | C10: 6345
A11: Nocturna | B11: 616 | C11: 987
A12: EDUCACIÓN MEDIA SUPERIOR PRIVADA | B12: 1163 | C12: 2200
A13: TOTAL MONTEVIDEO | B13: 1682 | C13: 3624
A14: EDUCACIÓN MEDIA SUPERIOR PÚBLICA | B14: 869 | C14: 2164
A15: Diurna | B15: 634 | C15: 1799
A16: Nocturna | B16: 235 | C16: 365
A17: EDUCACIÓN MEDIA SUPERIOR PRIVADA | B17: 813 | C17: 1460
A18: TOTAL RESTO DEL PAÍS | B18: 2548 | C18: 5908
A19: EDUCACIÓN MEDIA SUPERIOR PÚBLICA | B19: 2198 | C19: 5168
A20: Diurna | B20: 1817 | C20: 4546
A21: Nocturna | B21: 381 | C21: 622
A22: EDUCACIÓN MEDIA SUPERIOR PRIVADA | B22: 350 | C22: 740
A23: Fuente: DE — CES
A24: Nota: El “Total de ambos Ciclos” presenta de manera agregada la cantidad total de grupos con que cuente Educación Secundaria y es el resultado de adicionar al total de Grupos del presente cuadro (Ciclo Superior de Educación Secundaria), el total de los grupos presentados en el Cuadro II-341 (Ciclo Básico de Educación Secundaria)

Sheet TERCIERIA NO UNIVERSITARIA

Sheet II-5.1.1
A1: OFERTA TERCIARIA NO UNIVERSITARIA | D1: INSTITUCIONES
A3: Cuadro Nº II-5.1.1
A5: MATRÍCULA Y PERSONAL DOCENTE POR SEXO SEGÚN GRANDES ÁREAS, DEPARTAMENTOS E INSTITUCIONES. AÑO 2011.
A6: GRANDES ÁREAS / DEPARTAMENTO / INSTITUCIÓN | B6: TOTAL | C6: MATRICULA | E6: DOCENTES
C7: SEXO
C9: M | D9: F
A11: TOTAL | B11: =+B13+B27 -> 27857 | C11: - | D11: - | E11: =+E13+E27 -> 3193
A13: MONTEVIDEO | B13: =SUM(B15:B25) -> 14218 | C13: - | D13: - | E13: =SUM(E15:E25) -> 1395
A15: IINN | B15: 2228 | C15: - | D15: - | E15: 217
A16: IPA | B16: 6121 | C16: - | D16: - | E16: 557
A17: INET | B17: 758 | C17: - | D17: - | E17: 110
A18: ESCUELA NAVAL | B18: =C18+D18 -> 58 | C18: 47 | D18: 11 | E18: 127
A19: ESCUELA NACIONAL DE POLICÍA | B19: =C19+D19 -> 242 | C19: 195 | D19: 47 | E19: 109
A20: ESCUELA MILITAR | B20: 122 | C20: 108 | D20: 14 | E20: 99
A21: ESCUELA MILITAR DE AERONÁUTICA | B21: 48 | C21: 40 | D21: 8 | E21: 92
A22: EMAD | B22: 89 | C22: 23 | D22: 66 | E22: 36
A23: INAU | B23: 230 | C23: 33 | D23: 197 | E23: 19
A24: CIEP | B24: 93 | C24: 0 | D24: 93 | E24: 29
A25: UTU | B25: =+C25+D25 -> 4229 | C25: 2554 | D25: 1675 | E25: s/d
A27: RESTO DEL PAÍS | B27: =+B29+B32+B36+B38+B42+B45+B48+B52+B68+B72+B75+B78+B82+B85+B89+B91+B94+B97 -> 13639 | C27: - | D27: - | E27: =+E29+E32+E36+E38+E42+E45+E48+E52+E68+E72+E75+E78+E82+E85+E89+E91+E94+E97 -> 1798
A29: Artigas | B29: =SUM(B30:B31) -> 662 | C29: - | D29: - | E29: =+E30+E31 -> 72
A30: IFD | B30: 540 | C30: - | D30: - | E30: 72
A31: UTU | B31: =+C31+D31 -> 122 | C31: 74 | D31: 48 | E31: s/d
A32: Canelones | B32: =SUM(B33:B35) -> 2092 | C32: - | D32: - | E32: =E33+E34+E35 -> 338
A33: IFD | B33: 1363 | C33: - | D33: - | E33: 210
A34: CERP | B34: 500 | C34: - | D34: - | E34: 128
A35: UTU | B35: =+C35+D35 -> 229 | C35: 103 | D35: 126 | E35: s/d
A36: Cerro Largo - IFD | B36: 450 | C36: - | D36: - | E36: 66
A37: UTU | B37: =+C37+D37 -> 112 | C37: 58 | D37: 54 | E37: s/d
A38: Colonia | B38: =SUM(B39:B41) -> 1245 | C38: - | D38: - | E38: =SUM(E39:E41) -> 186
A39: IFD | B39: 558 | C39: - | D39: - | E39: 71
A40: CERP | B40: 405 | C40: - | D40: - | E40: 115
A41: UTU | B41: =+C41+D41 -> 282 | C41: 131 | D41: 151 | E41: s/d
A42: Durazno | B42: =B43+B44 -> 597 | C42: - | D42: - | E42: =E43+E44 -> 49
A43: IFD | B43: 523 | C43: - | D43: - | E43: 49
A44: UTU | B44: =+C44+D44 -> 74 | C44: 29 | D44: 45 | E44: s/d
A45: Flores | B45: =SUM(B46:B47) -> 289 | C45: =SUM(C46:C47) -> 100 | D45: =SUM(D46:D47) -> 51 | E45: =E46+E47 -> 32
A46: IFD | B46: 138 | C46: - | D46: - | E46: 32
A47: UTU | B47: =+C47+D47 -> 151 | C47: 100 | D47: 51 | E47: s/d
A48: Florida | B48: =SUM(B49:B51) -> 685 | C48: =SUM(C49:C51) -> 63 | D48: =SUM(D49:D51) -> 49 | E48: =E49+E50 -> 157
A49: IFD | B49: 264 | C49: - | D49: - | E49: 54
A50: CERP | B50: 309 | C50: - | D50: - | E50: 103
A51: UTU | B51: =+C51+D51 -> 112 | C51: 63 | D51: 49 | E51: s/d
A52: Lavalleja | B52: =SUM(B53:B54) -> 273 | C52: =+C53+C54 -> 11 | D52: =+D53+D54 -> 7 | E52: =E53+E54 -> 48
A53: IFD | B53: 255 | C53: - | D53: - | E53: 48
A54: UTU | B54: =+C54+D54 -> 18 | C54: 11 | D54: 7 | E54: s/d
E55: (Continúa)
A58: OFERTA TERCIARIA NO UNIVERSITARIA | D58: INSTITUCIONES
A60: Cuadro Nº II-5.1.1 (continuación)
A62: MATRÍCULA Y PERSONAL DOCENTE POR SEXO SEGÚN GRANDES ÁREAS, DEPARTAMENTOS E INSTITUCIONES. AÑO 2011.
A63: GRANDES ÁREAS / DEPARTAMENTO / INSTITUCIÓN | B63: TOTAL | C63: MATRICULA | E63: DOCENTES
C64: SEXO
C66: M | D66: F
A68: Maldonado | B68: =SUM(B69:B71) -> 866 | C68: - | D68: - | E68: =E69+E70+E71 -> 149
A69: IFD | B69: 202 | C69: - | D69: - | E69: 46
A70: CERP | B70: 506 | C70: - | D70: - | E70: 103
A71: UTU | B71: =+C71+D71 -> 158 | C71: 96 | D71: 62 | E71: s/d
A72: Paysandú | B72: =SUM(B73:B74) -> 1126 | C72: =SUM(C73:C74) -> 251 | D72: =SUM(D73:D74) -> 94 | E72: =E73+E74 -> 83
A73: IFD | B73: 781 | C73: - | D73: - | E73: 83
A74: UTU | B74: =+C74+D74 -> 345 | C74: 251 | D74: 94 | E74: s/d
A75: Río Negro | B75: =SUM(B76:B77) -> 507 | C75: =SUM(C76:C77) -> 22 | D75: =SUM(D76:D77) -> 47 | E75: =E76+E77 -> 32
A76: IFD | B76: 438 | C76: - | D76: - | E76: 32
A77: UTU | B77: =+C77+D77 -> 69 | C77: 22 | D77: 47 | E77: s/d
A78: Rivera | B78: =SUM(B79:B81) -> 1289 | C78: =SUM(C79:C81) -> 127 | D78: =SUM(D79:D81) -> 113 | E78: =+E79+E80+E81 -> 164
A79: IFD | B79: 412 | C79: - | D79: - | E79: 71
A80: CERP | B80: 637 | C80: - | D80: - | E80: 93
A81: UTU | B81: =+C81+D81 -> 240 | C81: 127 | D81: 113 | E81: s/d
A82: Rocha | B82: =SUM(B84:B84) -> 40 | C82: =SUM(C84:C84) -> 21 | D82: =SUM(D84:D84) -> 19 | E82: =E84 -> 0
A83: IFD | B83: 233 | C83: - | D83: - | E83: 43
A84: UTU | B84: =+C84+D84 -> 40 | C84: 21 | D84: 19
A85: Salto | B85: =SUM(B86:B88) -> 1543 | C85: =SUM(C86:C88) -> 199 | D85: =SUM(D86:D88) -> 76 | E85: =E86+E87+E88 -> 190
A86: IFD | B86: 465 | C86: - | D86: - | E86: 66
A87: CERP | B87: 803 | C87: - | D87: - | E87: 124
A88: UTU | B88: =+C88+D88 -> 275 | C88: 199 | D88: 76 | E88: s/d
A89: San José | B89: 268 | C89: - | D89: - | E89: 48
A90: UTU | B90: =+C90+D90 -> 43 | C90: 18 | D90: 25 | E90: s/d
A91: Soriano | B91: =SUM(B92:B93) -> 408 | C91: =SUM(C92:C93) -> 95 | D91: =SUM(D92:D93) -> 79 | E91: =E92+E93 -> 45
A92: IFD | B92: 234 | C92: - | D92: - | E92: 45
A93: UTU | B93: =+C93+D93 -> 174 | C93: 95 | D93: 79 | E93: s/d
A94: Tacuarembó | B94: =SUM(B95:B96) -> 740 | C94: =SUM(C95:C96) -> 45 | D94: =SUM(D95:D96) -> 31 | E94: =E95+E96 -> 77
A95: IFD | B95: 664 | C95: - | D95: - | E95: 77
A96: UTU | B96: =+C96+D96 -> 76 | C96: 45 | D96: 31 | E96: s/d
A97: Treinta y Tres | B97: =SUM(B98:B99) -> 559 | C97: - | D97: - | E97: 62
A98: IFD | B98: 528 | C98: - | D98: - | E98: 66
A99: UTU | B99: =+C99+D99 -> 31 | C99: 11 | D99: 20 | E99: s/d
A100: Fuente: Informática - D.F.P.D.
A101: Gestión Educativa - Escuela Naval.
A102: Jefatura de Estudios - Escuela Nacional de Policía.
A103: Escuela Militar.
A104: Departamento de Bedelía - Escuela Militar de Aeronáutica.
A105: Secretaría General - E.M.A.D.
A106: CEN.FOR.ES - I.N.A.U.
A107: C.D.I
A108: C.I.E.P
A109: Secretaría General - CALEN.
A110: D.E. - U.T.U

Sheet II-5.2.1
A1: DIRECCIÓN DE FORMACIÓN Y PERFECCIONAMIENTO DOCENTE | I1: ALUMNOS MATRICULADOS
A3: Cuadro Nº II-5.2.1
A5: ALUMNOS INGRESADOS Y MATRICULADOS EN FORMACIÓN DOCENTE POR CARRERA SEGÚN DEPARTAMENTO Y ESTABLECIMIENTO. AÑO 2011.
A6: DEPARTAMENTO / ESTABLECIMIENTO | C6: TOTAL | F6: CARRERA
F7: Magisterio | I7: Profesorado
C9: Ingr. | D9: Matr. | E9: Egr. | F9: Ingr. | G9: Matr. | H9: Egr. | I9: Ingr. | J9: Matr. | K9: Egr.
A11: TOTAL | C11: =+C13+C17 -> 8304 | D11: =+D13+D17 -> 20583 | E11: =E13+E17 -> 1286 | F11: =+F13+F17 -> 0 | G11: =+G13+G17 -> 6373 | H11: =H13+H17 -> 699 | I11: =+I13+I17 -> 0 | J11: =+J13+J17 -> 14210 | K11: =K13+K17 -> 587
A13: MONTEVIDEO | C13: 3760 | D13: =SUM(D14:D16) -> 9107 | E13: 472 | F13: 0 | G13: 2228 | H13: 187 | I13: 0 | J13: =SUM(J14:J16) -> 6879 | K13: 285
A14: IINN | C14: =F14+I14 -> 0 | D14: 2228 | E14: 187 | F14: S/D | G14: 2228 | H14: 187 | I14: N/C | J14: N/C | K14: 0
A15: IPA | C15: 0 | D15: 6121 | E15: 267 | F15: N/C | G15: N/C | H15: 0 | I15: S/D | J15: 6121 | K15: 267
A16: INET | C16: 0 | D16: 758 | E16: 18 | F16: N/C | G16: N/C | H16: 0 | I16: S/D | J16: 758 | K16: 18
A17: RESTO DEL PAÍS | C17: =SUM(C18:C51) -> 4544 | D17: =G17+J17 -> 11476 | E17: 814 | F17: =F18+F19+F25+F26+F31+F30+F32+F35+F36+F39+F40+F41+F44+F45+F48+F49+F50+F51 -> 0 | G17: =G18+G19+G25+G26+G31+G30+G32+G35+G36+G39+G40+G41+G44+G45+G48+G49+G50+G51 -> 4145 | H17: =H18+H19+H25+H26+H31+H30+H32+H35+H36+H39+H40+H41+H44+H45+H48+H49+H50+H51 -> 512 | I17: =I18+I19+I25+I26+I31+I30+I32+I35+I36+I39+I40+I41+I44+I45+I48+I49+I50+I51 -> 0 | J17: =J18+J19+J25+J26+J31+J30+J32+J35+J36+J39+J40+J41+J44+J45+J48+J49+J50+J51 -> 7331 | K17: =K18+K19+K25+K26+K31+K30+K32+K35+K36+K39+K40+K41+K44+K45+K48+K49+K50+K51 -> 302
A18: Artigas IFD Artigas | C18: 178 | D18: 540 | E18: 43 | F18: S/D | G18: 338 | H18: 41 | I18: S/D | J18: 202 | K18: 2
A19: Canelones | C19: 618 | D19: 1863 | E19: 92 | F19: S/D | G19: =SUM(G20:G24) -> 710 | H19: =SUM(H20:H24) -> 41 | I19: S/D | J19: =SUM(J20:J24) -> 1153 | K19: =SUM(K20:K24) -> 51
A20: IFD Canelones | C20: 0 | D20: 387 | E20: 14 | F20: S/D | G20: 207 | H20: 10 | I20: S/D | J20: 180 | K20: 4
A21: IFD de la Costa | C21: 0 | D21: 355 | E21: 16 | F21: S/D | G21: 159 | H21: 0 | I21: S/D | J21: 196 | K21: 16
A22: IFD Pando | C22: 0 | D22: 462 | E22: 24 | F22: S/D | G22: 252 | H22: 22 | I22: S/D | J22: 210 | K22: 2
A23: IFD San Ramón | C23: 0 | D23: 159 | E23: 10 | F23: S/D | G23: 92 | H23: 9 | I23: S/D | J23: 67 | K23: 1
A24: CERP del Sur | C24: 0 | D24: 500 | E24: 28 | F24: N/C | G24: N/C | H24: 0 | I24: S/D | J24: 500 | K24: 28
A25: Cerro Largo IFD Melo | C25: 346 | D25: 450 | E25: 44 | F25: S/D | G25: 190 | H25: 41 | I25: S/D | J25: 260 | K25: 3
A26: Colonia | C26: 269 | D26: 963 | E26: 63 | F26: S/D | G26: =SUM(G27:G29) -> 181 | H26: 37 | I26: S/D | J26: 782 | K26: 26
A27: IFD Carmelo | C27: 0 | D27: 328 | E27: 13 | F27: S/D | G27: 81 | H27: 11 | I27: S/D | J27: 247 | K27: 2
A28: IFD Rosario | C28: 0 | D28: 230 | E28: 27 | F28: S/D | G28: 100 | H28: 26 | I28: S/D | J28: 130 | K28: 1
A29: CERP del Suroeste | C29: 0 | D29: 405 | E29: 23 | F29: N/C | G29: N/C | H29: 0 | I29: S/D | J29: 405 | K29: 23
A30: Durazno IFD Durazno | C30: 207 | D30: 523 | E30: 27 | F30: S/D | G30: 239 | H30: 26 | I30: S/D | J30: 284 | K30: 1
A31: Flores IFD Trinidad | C31: 48 | D31: 138 | E31: 6 | F31: S/D | G31: 54 | H31: 6 | I31: S/D | J31: 84 | K31: 0
A32: Florida | C32: 226 | D32: 573 | E32: 46 | F32: S/D | G32: =SUM(G33:G34) -> 228 | H32: =SUM(H33:H34) -> 19 | I32: S/D | J32: =SUM(J33:J34) -> 345 | K32: =SUM(K33:K34) -> 27
A33: IFD Florida | C33: 0 | D33: 264 | E33: 22 | F33: S/D | G33: 228 | H33: 19 | I33: S/D | J33: 36 | K33: 3
A34: CERP del Centro | C34: 0 | D34: 309 | E34: 24 | F34: N/C | G34: N/C | H34: 0 | I34: S/D | J34: 309 | K34: 24
A35: Lavalleja IFD Minas | C35: 115 | D35: 255 | E35: 33 | F35: S/D | G35: 127 | H35: 31 | I35: S/D | J35: 128 | K35: 2
A36: Maldonado | C36: 267 | D36: 708 | E36: 55 | F36: S/D | G36: =SUM(G37:G38) -> 181 | H36: 24 | I36: S/D | J36: 527 | K36: 31
A37: IFD Maldonado | C37: 0 | D37: 202 | E37: 24 | F37: S/D | G37: 181 | H37: 24 | I37: S/D | J37: 21 | K37: 0
A38: CERP del Centro | C38: 0 | D38: 506 | E38: 31 | F38: N/C | G38: N/C | H38: 0 | I38: S/D | J38: 506 | K38: 31
A39: Paysandú IFD Paysandú | C39: 332 | D39: 781 | E39: 35 | F39: S/D | G39: 243 | H39: 28 | I39: S/D | J39: 538 | K39: 7
